Workbook

Sheet M.CÁLCULO
A1: MEMÓRIA DE CÁLCULO | S1: NÃO MEXER NESTE DADO
A3: OBRA: | B3: CONTRATAÇÃO DE EMPRESA ESPECIALIZADA PARA ELABORAÇÃO DE PROJETOS DE INFRAESTRUTURA
A4: LOCAL: | B4: SAQUAREMA - RJ
L5: PRAZO: | M5: 12 | N5: MESES
L6: TIPO DE CONTIBUIÇÃO PREVIDENCIÁRIA: | O6: =IFERROR(IF(#REF!="-",M.CÁLCULO!$S$6,#REF!),M.CÁLCULO!$S$6) -> NÃO DESONERADO | S6: NÃO DESONERADO | T6: DESONERADO
K7: Io: | L7: EMOP - MARÇO/2026
A8: ITEM | B8: ORIGEM | C8: CÓDIGO | D8: CÓDIGO | E8: DESCRIÇÃO | P8: QUANT. | Q8: UNIDADE
A9: 1.0 | D9: =MID(C9,1,2) ->  | E9: PROJETOS | R9: =A9 -> 1.0
A10: 1.1 | B10: EMOP | C10: 01.016.0082-0 | D10: =IF($T$6="DESONERADO",IF($B10="","",IF($C10="","",IF($B10="EMOP",VLOOKUP($C10,EMOP_CONJ_03.2026!$A:$I,6,FALSE),IF($B10="SINAPI",$C10,IF($B10="SCO",VLOOKUP($C10,SCO_SERV_CONJ_052025!$A:$F,6,FALSE),IF($B10="SBC",$C10,IF($B10="COMPOSIÇÃO",CONCATENATE($C10,"-D"),IF($B10="COTAÇÃO",$C10)))))))),FALSE) -> 01.016.0082-A | E10: =IF($O$6="DESONERADO",IF($D10="","",IF($B10="EMOP",VLOOKUP($D10,EMOP_CONJ_03.2026!$F:$I,2,0),IF($B10="SCO",VLOOKUP($D10,SCO_SERV_CONJ_052025!$F:$I,2,0),IF($B10="SINAPI",VLOOKUP($D10,SINAPI_SERV_CONJ_052025!$I:$M,2,0),IF($B10="COMPOSIÇÃO",VLOOKUP($D10,#REF!,3,FALSE),IF($B10="COTAÇÃO",VLOOKUP($D10,#REF!,2,0),IF($B10="SBC",VLOOKUP($D10,#REF!,2,0),IF($B10="SICRO",VLOOKUP($D10,SICRO_02022!$F:$I,2,0),FALSE)))))))),IF($O$6="NÃO DESONERADO",IF($C10="","",IF($B10="EMOP",VLOOKUP($C10,EMOP_CONJ_03.2026!$A:$D,2,0),IF($B10="SCO",VLOOKUP($C10,SCO_SERV_CONJ_052025!$A:$D,2,0),IF($B10="SINAPI",VLOOKUP($C10,SINAPI_SERV_CONJ_052025!$I:$L,2,0),IF($B10="COMPOSIÇÃO",VLOOKUP($C10,#REF!,3,0),IF($B10="COTAÇÃO",VLOOKUP($C10,#REF!,2,0),IF($B10="SBC",VLOOKUP($C10,#REF!,2,0),IF($B10="SICRO",VLOOKUP($C10,SICRO_02022!$A:$D,2,0),FALSE)))))))))) -> LEVANTAMENTO PLANIALTIMETRICO CADASTRAL DE AREA URBANA OU SUBURBANA,DESTINADA A REGULARIZACAO FUNDIARIA,PROJETOS VIARIOSE DE INFRAESTRUTURA,URBANIZAZAO E ASSEMELHADOS,UTILIZANDO POLIGONAL III PAC,DESENHO NA ESCALA DE 1:250 A 1:100 EM AREASMEDIANAMENTE OCUPADAS(ATE 50% DAS QUADRAS),EM AREAS ACIMA DE10000M2 | P10: =J14 -> 840000 | Q10: =IF($O$6="DESONERADO",IF($D10="","",IF($B10="EMOP",VLOOKUP($D10,EMOP_CONJ_03.2026!$F:$I,3,0),IF($B10="SCO",VLOOKUP($D10,SCO_SERV_CONJ_052025!$F:$I,3,0),IF($B10="SINAPI",VLOOKUP($D10,SINAPI_SERV_CONJ_052025!$I:$M,3,0),IF($B10="COMPOSIÇÃO",VLOOKUP($D10,#REF!,7,0),IF($B10="COTAÇÃO",VLOOKUP($D10,#REF!,5,0),IF($B10="SBC",VLOOKUP($D10,#REF!,3,0),FALSE))))))),IF($O$6="NÃO DESONERADO",IF($C10="","",IF($B10="EMOP",VLOOKUP($C10,EMOP_CONJ_03.2026!$A:$D,3,0),IF($B10="SCO",VLOOKUP($C10,SCO_SERV_CONJ_052025!$A:$D,3,0),IF($B10="SINAPI",VLOOKUP($C10,SINAPI_SERV_CONJ_052025!$I:$L,3,0),IF($B10="COMPOSIÇÃO",VLOOKUP($C10,#REF!,7,0),IF($B10="COTAÇÃO",VLOOKUP($C10,#REF!,5,0),IF($B10="SBC",VLOOKUP($C10,#REF!,3,0),IF($B10="SICRO",VLOOKUP($C10,SICRO_02022!$A:$D,3,0),FALSE)))))))))) -> M2 | S10: 70000 | T10: Mudar aqui
F12: Levantamento Topográfico
F13: Extensão (m) | H13: Largura (m) | J13: Total (m²)
F14: =S10 -> 70000 | G14: x | H14: 12 | I14: = | J14: =TRUNC(F14*H14,2) -> 840000
A16: 1.2 | B16: EMOP | C16: 01.050.0157-0 | D16: =IF($T$6="DESONERADO",IF($B16="","",IF($C16="","",IF($B16="EMOP",VLOOKUP($C16,EMOP_CONJ_03.2026!$A:$I,6,FALSE),IF($B16="SINAPI",$C16,IF($B16="SCO",VLOOKUP($C16,SCO_SERV_CONJ_052025!$A:$F,6,FALSE),IF($B16="SBC",$C16,IF($B16="COMPOSIÇÃO",CONCATENATE($C16,"-D"),IF($B16="COTAÇÃO",$C16)))))))),FALSE) -> 01.050.0157-A | E16: =IF($O$6="DESONERADO",IF($D16="","",IF($B16="EMOP",VLOOKUP($D16,EMOP_CONJ_03.2026!$F:$I,2,0),IF($B16="SCO",VLOOKUP($D16,SCO_SERV_CONJ_052025!$F:$I,2,0),IF($B16="SINAPI",VLOOKUP($D16,SINAPI_SERV_CONJ_052025!$I:$M,2,0),IF($B16="COMPOSIÇÃO",VLOOKUP($D16,#REF!,3,FALSE),IF($B16="COTAÇÃO",VLOOKUP($D16,#REF!,2,0),IF($B16="SBC",VLOOKUP($D16,#REF!,2,0),IF($B16="SICRO",VLOOKUP($D16,SICRO_02022!$F:$I,2,0),FALSE)))))))),IF($O$6="NÃO DESONERADO",IF($C16="","",IF($B16="EMOP",VLOOKUP($C16,EMOP_CONJ_03.2026!$A:$D,2,0),IF($B16="SCO",VLOOKUP($C16,SCO_SERV_CONJ_052025!$A:$D,2,0),IF($B16="SINAPI",VLOOKUP($C16,SINAPI_SERV_CONJ_052025!$I:$L,2,0),IF($B16="COMPOSIÇÃO",VLOOKUP($C16,#REF!,3,0),IF($B16="COTAÇÃO",VLOOKUP($C16,#REF!,2,0),IF($B16="SBC",VLOOKUP($C16,#REF!,2,0),IF($B16="SICRO",VLOOKUP($C16,SICRO_02022!$A:$D,2,0),FALSE)))))))))) -> PROJETO EXECUTIVO DE SISTEMA DE DRENAGEM ACIMA DE 20.000M2,APRESENTADO NOS PADROES DA CONTRATANTE | P16: =J19 -> 3500000 | Q16: =IF($O$6="DESONERADO",IF($D16="","",IF($B16="EMOP",VLOOKUP($D16,EMOP_CONJ_03.2026!$F:$I,3,0),IF($B16="SCO",VLOOKUP($D16,SCO_SERV_CONJ_052025!$F:$I,3,0),IF($B16="SINAPI",VLOOKUP($D16,SINAPI_SERV_CONJ_052025!$I:$M,3,0),IF($B16="COMPOSIÇÃO",VLOOKUP($D16,#REF!,7,0),IF($B16="COTAÇÃO",VLOOKUP($D16,#REF!,5,0),IF($B16="SBC",VLOOKUP($D16,#REF!,3,0),FALSE))))))),IF($O$6="NÃO DESONERADO",IF($C16="","",IF($B16="EMOP",VLOOKUP($C16,EMOP_CONJ_03.2026!$A:$D,3,0),IF($B16="SCO",VLOOKUP($C16,SCO_SERV_CONJ_052025!$A:$D,3,0),IF($B16="SINAPI",VLOOKUP($C16,SINAPI_SERV_CONJ_052025!$I:$L,3,0),IF($B16="COMPOSIÇÃO",VLOOKUP($C16,#REF!,7,0),IF($B16="COTAÇÃO",VLOOKUP($C16,#REF!,5,0),IF($B16="SBC",VLOOKUP($C16,#REF!,3,0),IF($B16="SICRO",VLOOKUP($C16,SICRO_02022!$A:$D,3,0),FALSE)))))))))) -> M2
F18: Extensão (m) | H18: Largura (m) | J18: Total (m²)
F19: =F14 -> 70000 | G19: x | H19: 50 | I19: = | J19: =TRUNC(F19*H19,2) -> 3500000
F20: Obs: Largura da bacia hidrográfica= 50m.
A22: 1.3 | B22: EMOP | C22: 01.050.0165-0 | D22: =IF($T$6="DESONERADO",IF($B22="","",IF($C22="","",IF($B22="EMOP",VLOOKUP($C22,EMOP_CONJ_03.2026!$A:$I,6,FALSE),IF($B22="SINAPI",$C22,IF($B22="SCO",VLOOKUP($C22,SCO_SERV_CONJ_052025!$A:$F,6,FALSE),IF($B22="SBC",$C22,IF($B22="COMPOSIÇÃO",CONCATENATE($C22,"-D"),IF($B22="COTAÇÃO",$C22)))))))),FALSE) -> 01.050.0165-A | E22: =IF($O$6="DESONERADO",IF($D22="","",IF($B22="EMOP",VLOOKUP($D22,EMOP_CONJ_03.2026!$F:$I,2,0),IF($B22="SCO",VLOOKUP($D22,SCO_SERV_CONJ_052025!$F:$I,2,0),IF($B22="SINAPI",VLOOKUP($D22,SINAPI_SERV_CONJ_052025!$I:$M,2,0),IF($B22="COMPOSIÇÃO",VLOOKUP($D22,#REF!,3,FALSE),IF($B22="COTAÇÃO",VLOOKUP($D22,#REF!,2,0),IF($B22="SBC",VLOOKUP($D22,#REF!,2,0),IF($B22="SICRO",VLOOKUP($D22,SICRO_02022!$F:$I,2,0),FALSE)))))))),IF($O$6="NÃO DESONERADO",IF($C22="","",IF($B22="EMOP",VLOOKUP($C22,EMOP_CONJ_03.2026!$A:$D,2,0),IF($B22="SCO",VLOOKUP($C22,SCO_SERV_CONJ_052025!$A:$D,2,0),IF($B22="SINAPI",VLOOKUP($C22,SINAPI_SERV_CONJ_052025!$I:$L,2,0),IF($B22="COMPOSIÇÃO",VLOOKUP($C22,#REF!,3,0),IF($B22="COTAÇÃO",VLOOKUP($C22,#REF!,2,0),IF($B22="SBC",VLOOKUP($C22,#REF!,2,0),IF($B22="SICRO",VLOOKUP($C22,SICRO_02022!$A:$D,2,0),FALSE)))))))))) -> PROJETO EXECUTIVO PARA URBANIZACAO/REURBANIZACAO (GEOMETRICO,CORTES E DETALHES) PARA TRATAMENTO PAISAGISTICO DE AREAS PUBLICAS,APRESENTADO NOS PADROES DA CONTRATANTE,INCLUSIVE AS OPERACOES PERTINENTES E A COORDENACAO DOS PROJETOS COMPLEMENTARES | P22: =L25 -> 70 | Q22: =IF($O$6="DESONERADO",IF($D22="","",IF($B22="EMOP",VLOOKUP($D22,EMOP_CONJ_03.2026!$F:$I,3,0),IF($B22="SCO",VLOOKUP($D22,SCO_SERV_CONJ_052025!$F:$I,3,0),IF($B22="SINAPI",VLOOKUP($D22,SINAPI_SERV_CONJ_052025!$I:$M,3,0),IF($B22="COMPOSIÇÃO",VLOOKUP($D22,#REF!,7,0),IF($B22="COTAÇÃO",VLOOKUP($D22,#REF!,5,0),IF($B22="SBC",VLOOKUP($D22,#REF!,3,0),FALSE))))))),IF($O$6="NÃO DESONERADO",IF($C22="","",IF($B22="EMOP",VLOOKUP($C22,EMOP_CONJ_03.2026!$A:$D,3,0),IF($B22="SCO",VLOOKUP($C22,SCO_SERV_CONJ_052025!$A:$D,3,0),IF($B22="SINAPI",VLOOKUP($C22,SINAPI_SERV_CONJ_052025!$I:$L,3,0),IF($B22="COMPOSIÇÃO",VLOOKUP($C22,#REF!,7,0),IF($B22="COTAÇÃO",VLOOKUP($C22,#REF!,5,0),IF($B22="SBC",VLOOKUP($C22,#REF!,3,0),IF($B22="SICRO",VLOOKUP($C22,SICRO_02022!$A:$D,3,0),FALSE)))))))))) -> HA
F24: Extensão (m) | H24: Largura (m) | J24: Fator (ha) | L24: Total (ha)
F25: =F14 -> 70000 | G25: x | H25: 10 | I25: / | J25: 10000 | K25: = | L25: =TRUNC((F25*H25)/J25,2) -> 70
F26: Obs: Largura média de muro a muro= 10m.
A28: 1.4 | B28: EMOP | C28: 01.050.0300-0 | D28: =IF($T$6="DESONERADO",IF($B28="","",IF($C28="","",IF($B28="EMOP",VLOOKUP($C28,EMOP_CONJ_03.2026!$A:$I,6,FALSE),IF($B28="SINAPI",$C28,IF($B28="SCO",VLOOKUP($C28,SCO_SERV_CONJ_052025!$A:$F,6,FALSE),IF($B28="SBC",$C28,IF($B28="COMPOSIÇÃO",CONCATENATE($C28,"-D"),IF($B28="COTAÇÃO",$C28)))))))),FALSE) -> 01.050.0300-A | E28: =IF($O$6="DESONERADO",IF($D28="","",IF($B28="EMOP",VLOOKUP($D28,EMOP_CONJ_03.2026!$F:$I,2,0),IF($B28="SCO",VLOOKUP($D28,SCO_SERV_CONJ_052025!$F:$I,2,0),IF($B28="SINAPI",VLOOKUP($D28,SINAPI_SERV_CONJ_052025!$I:$M,2,0),IF($B28="COMPOSIÇÃO",VLOOKUP($D28,#REF!,3,FALSE),IF($B28="COTAÇÃO",VLOOKUP($D28,#REF!,2,0),IF($B28="SBC",VLOOKUP($D28,#REF!,2,0),IF($B28="SICRO",VLOOKUP($D28,SICRO_02022!$F:$I,2,0),FALSE)))))))),IF($O$6="NÃO DESONERADO",IF($C28="","",IF($B28="EMOP",VLOOKUP($C28,EMOP_CONJ_03.2026!$A:$D,2,0),IF($B28="SCO",VLOOKUP($C28,SCO_SERV_CONJ_052025!$A:$D,2,0),IF($B28="SINAPI",VLOOKUP($C28,SINAPI_SERV_CONJ_052025!$I:$L,2,0),IF($B28="COMPOSIÇÃO",VLOOKUP($C28,#REF!,3,0),IF($B28="COTAÇÃO",VLOOKUP($C28,#REF!,2,0),IF($B28="SBC",VLOOKUP($C28,#REF!,2,0),IF($B28="SICRO",VLOOKUP($C28,SICRO_02022!$A:$D,2,0),FALSE)))))))))) -> RELATORIO FINAL DE OBRAS OU SERVICOS DE ENGENHARIA,REGISTROFOTOGRAFICO DOS SERVICOS,ACOMPANHADO DE LEGENDAS E INDICACAODA LOCALIZACAO,INFORMACOES CONTRATUAIS,PLANILHA ORCAMENTARIA E DESCRICAO DO ESCOPO DOS SERVICOS REALIZADOS,CONF.RECOMENDACOES E ESPECIFICACOES DO ORGAO CONTRATANTE.O ITEM DEVERA SER MEDIDO PELO NUMERO PRANCHAS ORIGINAIS COMPOE RELATORIO | P28: =J31 -> 630 | Q28: =IF($O$6="DESONERADO",IF($D28="","",IF($B28="EMOP",VLOOKUP($D28,EMOP_CONJ_03.2026!$F:$I,3,0),IF($B28="SCO",VLOOKUP($D28,SCO_SERV_CONJ_052025!$F:$I,3,0),IF($B28="SINAPI",VLOOKUP($D28,SINAPI_SERV_CONJ_052025!$I:$M,3,0),IF($B28="COMPOSIÇÃO",VLOOKUP($D28,#REF!,7,0),IF($B28="COTAÇÃO",VLOOKUP($D28,#REF!,5,0),IF($B28="SBC",VLOOKUP($D28,#REF!,3,0),FALSE))))))),IF($O$6="NÃO DESONERADO",IF($C28="","",IF($B28="EMOP",VLOOKUP($C28,EMOP_CONJ_03.2026!$A:$D,3,0),IF($B28="SCO",VLOOKUP($C28,SCO_SERV_CONJ_052025!$A:$D,3,0),IF($B28="SINAPI",VLOOKUP($C28,SINAPI_SERV_CONJ_052025!$I:$L,3,0),IF($B28="COMPOSIÇÃO",VLOOKUP($C28,#REF!,7,0),IF($B28="COTAÇÃO",VLOOKUP($C28,#REF!,5,0),IF($B28="SBC",VLOOKUP($C28,#REF!,3,0),IF($B28="SICRO",VLOOKUP($C28,SICRO_02022!$A:$D,3,0),FALSE)))))))))) -> UN
F30: Extensão (Km) | H30: Pranchas (Un) | J30: Total (un)
F31: =F14/1000 -> 70 | G31: x | H31: 9 | I31: = | J31: =TRUNC(F31*H31,2) -> 630
F32: Obs: Número de pranchas por Km de projeto= 9 unid.
A34: 1.5 | B34: EMOP | C34: 01.050.0724-0 | D34: =IF($T$6="DESONERADO",IF($B34="","",IF($C34="","",IF($B34="EMOP",VLOOKUP($C34,EMOP_CONJ_03.2026!$A:$I,6,FALSE),IF($B34="SINAPI",$C34,IF($B34="SCO",VLOOKUP($C34,SCO_SERV_CONJ_052025!$A:$F,6,FALSE),IF($B34="SBC",$C34,IF($B34="COMPOSIÇÃO",CONCATENATE($C34,"-D"),IF($B34="COTAÇÃO",$C34)))))))),FALSE) -> 01.050.0724-A | E34: =IF($O$6="DESONERADO",IF($D34="","",IF($B34="EMOP",VLOOKUP($D34,EMOP_CONJ_03.2026!$F:$I,2,0),IF($B34="SCO",VLOOKUP($D34,SCO_SERV_CONJ_052025!$F:$I,2,0),IF($B34="SINAPI",VLOOKUP($D34,SINAPI_SERV_CONJ_052025!$I:$M,2,0),IF($B34="COMPOSIÇÃO",VLOOKUP($D34,#REF!,3,FALSE),IF($B34="COTAÇÃO",VLOOKUP($D34,#REF!,2,0),IF($B34="SBC",VLOOKUP($D34,#REF!,2,0),IF($B34="SICRO",VLOOKUP($D34,SICRO_02022!$F:$I,2,0),FALSE)))))))),IF($O$6="NÃO DESONERADO",IF($C34="","",IF($B34="EMOP",VLOOKUP($C34,EMOP_CONJ_03.2026!$A:$D,2,0),IF($B34="SCO",VLOOKUP($C34,SCO_SERV_CONJ_052025!$A:$D,2,0),IF($B34="SINAPI",VLOOKUP($C34,SINAPI_SERV_CONJ_052025!$I:$L,2,0),IF($B34="COMPOSIÇÃO",VLOOKUP($C34,#REF!,3,0),IF($B34="COTAÇÃO",VLOOKUP($C34,#REF!,2,0),IF($B34="SBC",VLOOKUP($C34,#REF!,2,0),IF($B34="SICRO",VLOOKUP($C34,SICRO_02022!$A:$D,2,0),FALSE)))))))))) -> MAO-DE-OBRA DE CONSULTOR,PARA SERVICOS DE CONSULTORIA DE ENGENHARIA E ARQUITETURA,INCLUSIVE ENCARGOS SOCIAIS | P34: =L37 -> 12 | Q34: =IF($O$6="DESONERADO",IF($D34="","",IF($B34="EMOP",VLOOKUP($D34,EMOP_CONJ_03.2026!$F:$I,3,0),IF($B34="SCO",VLOOKUP($D34,SCO_SERV_CONJ_052025!$F:$I,3,0),IF($B34="SINAPI",VLOOKUP($D34,SINAPI_SERV_CONJ_052025!$I:$M,3,0),IF($B34="COMPOSIÇÃO",VLOOKUP($D34,#REF!,7,0),IF($B34="COTAÇÃO",VLOOKUP($D34,#REF!,5,0),IF($B34="SBC",VLOOKUP($D34,#REF!,3,0),FALSE))))))),IF($O$6="NÃO DESONERADO",IF($C34="","",IF($B34="EMOP",VLOOKUP($C34,EMOP_CONJ_03.2026!$A:$D,3,0),IF($B34="SCO",VLOOKUP($C34,SCO_SERV_CONJ_052025!$A:$D,3,0),IF($B34="SINAPI",VLOOKUP($C34,SINAPI_SERV_CONJ_052025!$I:$L,3,0),IF($B34="COMPOSIÇÃO",VLOOKUP($C34,#REF!,7,0),IF($B34="COTAÇÃO",VLOOKUP($C34,#REF!,5,0),IF($B34="SBC",VLOOKUP($C34,#REF!,3,0),IF($B34="SICRO",VLOOKUP($C34,SICRO_02022!$A:$D,3,0),FALSE)))))))))) -> MES
F36: Quantidade (un) | H36: Meses | J36: Dedicação mensal (%) | L36: Total (mês)
F37: 1 | G37: x | H37: 12 | I37: x | J37: 1 | K37: = | L37: =TRUNC(F37*H37*J37,2) -> 12
A39: 2.0 | D39: =MID(C39,1,2) ->  | E39: CONTROLE TECNOLÓGICO | R39: 2.0
A40: 2.1 | B40: EMOP | C40: 01.001.0040-0 | D40: =IF($T$6="DESONERADO",IF($B40="","",IF($C40="","",IF($B40="EMOP",VLOOKUP($C40,EMOP_CONJ_03.2026!$A:$I,6,FALSE),IF($B40="SINAPI",$C40,IF($B40="SCO",VLOOKUP($C40,SCO_SERV_CONJ_052025!$A:$F,6,FALSE),IF($B40="SBC",$C40,IF($B40="COMPOSIÇÃO",CONCATENATE($C40,"-D"),IF($B40="COTAÇÃO",$C40)))))))),FALSE) -> 01.001.0040-A | E40: =IF($O$6="DESONERADO",IF($D40="","",IF($B40="EMOP",VLOOKUP($D40,EMOP_CONJ_03.2026!$F:$I,2,0),IF($B40="SCO",VLOOKUP($D40,SCO_SERV_CONJ_052025!$F:$I,2,0),IF($B40="SINAPI",VLOOKUP($D40,SINAPI_SERV_CONJ_052025!$I:$M,2,0),IF($B40="COMPOSIÇÃO",VLOOKUP($D40,#REF!,3,FALSE),IF($B40="COTAÇÃO",VLOOKUP($D40,#REF!,2,0),IF($B40="SBC",VLOOKUP($D40,#REF!,2,0),IF($B40="SICRO",VLOOKUP($D40,SICRO_02022!$F:$I,2,0),FALSE)))))))),IF($O$6="NÃO DESONERADO",IF($C40="","",IF($B40="EMOP",VLOOKUP($C40,EMOP_CONJ_03.2026!$A:$D,2,0),IF($B40="SCO",VLOOKUP($C40,SCO_SERV_CONJ_052025!$A:$D,2,0),IF($B40="SINAPI",VLOOKUP($C40,SINAPI_SERV_CONJ_052025!$I:$L,2,0),IF($B40="COMPOSIÇÃO",VLOOKUP($C40,#REF!,3,0),IF($B40="COTAÇÃO",VLOOKUP($C40,#REF!,2,0),IF($B40="SBC",VLOOKUP($C40,#REF!,2,0),IF($B40="SICRO",VLOOKUP($C40,SICRO_02022!$A:$D,2,0),FALSE)))))))))) -> SONDAGEM MANUAL,COM TRADO CAVADEIRA,POR METRO LINEAR OU FRACAO | P40: =N43 -> 466 | Q40: =IF($O$6="DESONERADO",IF($D40="","",IF($B40="EMOP",VLOOKUP($D40,EMOP_CONJ_03.2026!$F:$I,3,0),IF($B40="SCO",VLOOKUP($D40,SCO_SERV_CONJ_052025!$F:$I,3,0),IF($B40="SINAPI",VLOOKUP($D40,SINAPI_SERV_CONJ_052025!$I:$M,3,0),IF($B40="COMPOSIÇÃO",VLOOKUP($D40,#REF!,7,0),IF($B40="COTAÇÃO",VLOOKUP($D40,#REF!,5,0),IF($B40="SBC",VLOOKUP($D40,#REF!,3,0),FALSE))))))),IF($O$6="NÃO DESONERADO",IF($C40="","",IF($B40="EMOP",VLOOKUP($C40,EMOP_CONJ_03.2026!$A:$D,3,0),IF($B40="SCO",VLOOKUP($C40,SCO_SERV_CONJ_052025!$A:$D,3,0),IF($B40="SINAPI",VLOOKUP($C40,SINAPI_SERV_CONJ_052025!$I:$L,3,0),IF($B40="COMPOSIÇÃO",VLOOKUP($C40,#REF!,7,0),IF($B40="COTAÇÃO",VLOOKUP($C40,#REF!,5,0),IF($B40="SBC",VLOOKUP($C40,#REF!,3,0),IF($B40="SICRO",VLOOKUP($C40,SICRO_02022!$A:$D,3,0),FALSE)))))))))) -> M
F42: Extensão (m) | H42: Espaçamento (m) | J42: Furos (un) | L42: Profundidade (m) | N42: Total (m)
F43: =F14 -> 70000 | G43: / | H43: 150 | I43: = | J43: =TRUNC(F43/H43,0) -> 466 | K43: x | L43: 1 | M43: = | N43: =TRUNC(J43*L43,2) -> 466
F45: Obs: 1 furo de sondagem com 1 metro de profundidade a cada 150m.
A47: 2.2 | B47: EMOP | C47: 01.001.0042-0 | D47: =IF($T$6="DESONERADO",IF($B47="","",IF($C47="","",IF($B47="EMOP",VLOOKUP($C47,EMOP_CONJ_03.2026!$A:$I,6,FALSE),IF($B47="SINAPI",$C47,IF($B47="SCO",VLOOKUP($C47,SCO_SERV_CONJ_052025!$A:$F,6,FALSE),IF($B47="SBC",$C47,IF($B47="COMPOSIÇÃO",CONCATENATE($C47,"-D"),IF($B47="COTAÇÃO",$C47)))))))),FALSE) -> 01.001.0042-A | E47: =IF($O$6="DESONERADO",IF($D47="","",IF($B47="EMOP",VLOOKUP($D47,EMOP_CONJ_03.2026!$F:$I,2,0),IF($B47="SCO",VLOOKUP($D47,SCO_SERV_CONJ_052025!$F:$I,2,0),IF($B47="SINAPI",VLOOKUP($D47,SINAPI_SERV_CONJ_052025!$I:$M,2,0),IF($B47="COMPOSIÇÃO",VLOOKUP($D47,#REF!,3,FALSE),IF($B47="COTAÇÃO",VLOOKUP($D47,#REF!,2,0),IF($B47="SBC",VLOOKUP($D47,#REF!,2,0),IF($B47="SICRO",VLOOKUP($D47,SICRO_02022!$F:$I,2,0),FALSE)))))))),IF($O$6="NÃO DESONERADO",IF($C47="","",IF($B47="EMOP",VLOOKUP($C47,EMOP_CONJ_03.2026!$A:$D,2,0),IF($B47="SCO",VLOOKUP($C47,SCO_SERV_CONJ_052025!$A:$D,2,0),IF($B47="SINAPI",VLOOKUP($C47,SINAPI_SERV_CONJ_052025!$I:$L,2,0),IF($B47="COMPOSIÇÃO",VLOOKUP($C47,#REF!,3,0),IF($B47="COTAÇÃO",VLOOKUP($C47,#REF!,2,0),IF($B47="SBC",VLOOKUP($C47,#REF!,2,0),IF($B47="SICRO",VLOOKUP($C47,SICRO_02022!$A:$D,2,0),FALSE)))))))))) -> SONDAGEM MANUAL,COM PA E PICARETA,POR METRO LINEAR OU FRACAO | P47: =N50 -> 233 | Q47: =IF($O$6="DESONERADO",IF($D47="","",IF($B47="EMOP",VLOOKUP($D47,EMOP_CONJ_03.2026!$F:$I,3,0),IF($B47="SCO",VLOOKUP($D47,SCO_SERV_CONJ_052025!$F:$I,3,0),IF($B47="SINAPI",VLOOKUP($D47,SINAPI_SERV_CONJ_052025!$I:$M,3,0),IF($B47="COMPOSIÇÃO",VLOOKUP($D47,#REF!,7,0),IF($B47="COTAÇÃO",VLOOKUP($D47,#REF!,5,0),IF($B47="SBC",VLOOKUP($D47,#REF!,3,0),FALSE))))))),IF($O$6="NÃO DESONERADO",IF($C47="","",IF($B47="EMOP",VLOOKUP($C47,EMOP_CONJ_03.2026!$A:$D,3,0),IF($B47="SCO",VLOOKUP($C47,SCO_SERV_CONJ_052025!$A:$D,3,0),IF($B47="SINAPI",VLOOKUP($C47,SINAPI_SERV_CONJ_052025!$I:$L,3,0),IF($B47="COMPOSIÇÃO",VLOOKUP($C47,#REF!,7,0),IF($B47="COTAÇÃO",VLOOKUP($C47,#REF!,5,0),IF($B47="SBC",VLOOKUP($C47,#REF!,3,0),IF($B47="SICRO",VLOOKUP($C47,SICRO_02022!$A:$D,3,0),FALSE)))))))))) -> M
F49: Extensão (m) | H49: Espaçamento (m) | J49: Furos (un) | L49: Profundidade (m) | N49: Total (m)
F50: =F14 -> 70000 | G50: / | H50: 150 | I50: = | J50: =TRUNC(F50/H50,0) -> 466 | K50: x | L50: 0.5 | M50: = | N50: =TRUNC(J50*L50,2) -> 233
F52: Obs: 1 furo de sondagem com 0,50 metro de profundidade a cada 150m.
A54: 2.3 | B54: EMOP | C54: 01.001.0060-0 | D54: =IF($T$6="DESONERADO",IF($B54="","",IF($C54="","",IF($B54="EMOP",VLOOKUP($C54,EMOP_CONJ_03.2026!$A:$I,6,FALSE),IF($B54="SINAPI",$C54,IF($B54="SCO",VLOOKUP($C54,SCO_SERV_CONJ_052025!$A:$F,6,FALSE),IF($B54="SBC",$C54,IF($B54="COMPOSIÇÃO",CONCATENATE($C54,"-D"),IF($B54="COTAÇÃO",$C54)))))))),FALSE) -> 01.001.0060-A | E54: =IF($O$6="DESONERADO",IF($D54="","",IF($B54="EMOP",VLOOKUP($D54,EMOP_CONJ_03.2026!$F:$I,2,0),IF($B54="SCO",VLOOKUP($D54,SCO_SERV_CONJ_052025!$F:$I,2,0),IF($B54="SINAPI",VLOOKUP($D54,SINAPI_SERV_CONJ_052025!$I:$M,2,0),IF($B54="COMPOSIÇÃO",VLOOKUP($D54,#REF!,3,FALSE),IF($B54="COTAÇÃO",VLOOKUP($D54,#REF!,2,0),IF($B54="SBC",VLOOKUP($D54,#REF!,2,0),IF($B54="SICRO",VLOOKUP($D54,SICRO_02022!$F:$I,2,0),FALSE)))))))),IF($O$6="NÃO DESONERADO",IF($C54="","",IF($B54="EMOP",VLOOKUP($C54,EMOP_CONJ_03.2026!$A:$D,2,0),IF($B54="SCO",VLOOKUP($C54,SCO_SERV_CONJ_052025!$A:$D,2,0),IF($B54="SINAPI",VLOOKUP($C54,SINAPI_SERV_CONJ_052025!$I:$L,2,0),IF($B54="COMPOSIÇÃO",VLOOKUP($C54,#REF!,3,0),IF($B54="COTAÇÃO",VLOOKUP($C54,#REF!,2,0),IF($B54="SBC",VLOOKUP($C54,#REF!,2,0),IF($B54="SICRO",VLOOKUP($C54,SICRO_02022!$A:$D,2,0),FALSE)))))))))) -> AMOSTRA DE SOLO - PREPARACAO PARA ENSAIOS DE COMPACTACAO E ENSAIOS DE CARACTERIZACAO | P54: =J57 -> 155 | Q54: =IF($O$6="DESONERADO",IF($D54="","",IF($B54="EMOP",VLOOKUP($D54,EMOP_CONJ_03.2026!$F:$I,3,0),IF($B54="SCO",VLOOKUP($D54,SCO_SERV_CONJ_052025!$F:$I,3,0),IF($B54="SINAPI",VLOOKUP($D54,SINAPI_SERV_CONJ_052025!$I:$M,3,0),IF($B54="COMPOSIÇÃO",VLOOKUP($D54,#REF!,7,0),IF($B54="COTAÇÃO",VLOOKUP($D54,#REF!,5,0),IF($B54="SBC",VLOOKUP($D54,#REF!,3,0),FALSE))))))),IF($O$6="NÃO DESONERADO",IF($C54="","",IF($B54="EMOP",VLOOKUP($C54,EMOP_CONJ_03.2026!$A:$D,3,0),IF($B54="SCO",VLOOKUP($C54,SCO_SERV_CONJ_052025!$A:$D,3,0),IF($B54="SINAPI",VLOOKUP($C54,SINAPI_SERV_CONJ_052025!$I:$L,3,0),IF($B54="COMPOSIÇÃO",VLOOKUP($C54,#REF!,7,0),IF($B54="COTAÇÃO",VLOOKUP($C54,#REF!,5,0),IF($B54="SBC",VLOOKUP($C54,#REF!,3,0),IF($B54="SICRO",VLOOKUP($C54,SICRO_02022!$A:$D,3,0),FALSE)))))))))) -> UN
F56: Extensão (m) | H56: Espaçamento (m) | J56: Total (un)
F57: =F14 -> 70000 | G57: / | H57: 450 | I57: = | J57: =TRUNC(F57/H57,0) -> 155
F59: Obs: 1 amostra a cada 150m.
A61: 2.4 | B61: EMOP | C61: 01.001.0001-0 | D61: =IF($T$6="DESONERADO",IF($B61="","",IF($C61="","",IF($B61="EMOP",VLOOKUP($C61,EMOP_CONJ_03.2026!$A:$I,6,FALSE),IF($B61="SINAPI",$C61,IF($B61="SCO",VLOOKUP($C61,SCO_SERV_CONJ_052025!$A:$F,6,FALSE),IF($B61="SBC",$C61,IF($B61="COMPOSIÇÃO",CONCATENATE($C61,"-D"),IF($B61="COTAÇÃO",$C61)))))))),FALSE) -> 01.001.0001-A | E61: =IF($O$6="DESONERADO",IF($D61="","",IF($B61="EMOP",VLOOKUP($D61,EMOP_CONJ_03.2026!$F:$I,2,0),IF($B61="SCO",VLOOKUP($D61,SCO_SERV_CONJ_052025!$F:$I,2,0),IF($B61="SINAPI",VLOOKUP($D61,SINAPI_SERV_CONJ_052025!$I:$M,2,0),IF($B61="COMPOSIÇÃO",VLOOKUP($D61,#REF!,3,FALSE),IF($B61="COTAÇÃO",VLOOKUP($D61,#REF!,2,0),IF($B61="SBC",VLOOKUP($D61,#REF!,2,0),IF($B61="SICRO",VLOOKUP($D61,SICRO_02022!$F:$I,2,0),FALSE)))))))),IF($O$6="NÃO DESONERADO",IF($C61="","",IF($B61="EMOP",VLOOKUP($C61,EMOP_CONJ_03.2026!$A:$D,2,0),IF($B61="SCO",VLOOKUP($C61,SCO_SERV_CONJ_052025!$A:$D,2,0),IF($B61="SINAPI",VLOOKUP($C61,SINAPI_SERV_CONJ_052025!$I:$L,2,0),IF($B61="COMPOSIÇÃO",VLOOKUP($C61,#REF!,3,0),IF($B61="COTAÇÃO",VLOOKUP($C61,#REF!,2,0),IF($B61="SBC",VLOOKUP($C61,#REF!,2,0),IF($B61="SICRO",VLOOKUP($C61,SICRO_02022!$A:$D,2,0),FALSE)))))))))) -> LIMITE DE PLASTICIDADE | P61: =J64 -> 155 | Q61: =IF($O$6="DESONERADO",IF($D61="","",IF($B61="EMOP",VLOOKUP($D61,EMOP_CONJ_03.2026!$F:$I,3,0),IF($B61="SCO",VLOOKUP($D61,SCO_SERV_CONJ_052025!$F:$I,3,0),IF($B61="SINAPI",VLOOKUP($D61,SINAPI_SERV_CONJ_052025!$I:$M,3,0),IF($B61="COMPOSIÇÃO",VLOOKUP($D61,#REF!,7,0),IF($B61="COTAÇÃO",VLOOKUP($D61,#REF!,5,0),IF($B61="SBC",VLOOKUP($D61,#REF!,3,0),FALSE))))))),IF($O$6="NÃO DESONERADO",IF($C61="","",IF($B61="EMOP",VLOOKUP($C61,EMOP_CONJ_03.2026!$A:$D,3,0),IF($B61="SCO",VLOOKUP($C61,SCO_SERV_CONJ_052025!$A:$D,3,0),IF($B61="SINAPI",VLOOKUP($C61,SINAPI_SERV_CONJ_052025!$I:$L,3,0),IF($B61="COMPOSIÇÃO",VLOOKUP($C61,#REF!,7,0),IF($B61="COTAÇÃO",VLOOKUP($C61,#REF!,5,0),IF($B61="SBC",VLOOKUP($C61,#REF!,3,0),IF($B61="SICRO",VLOOKUP($C61,SICRO_02022!$A:$D,3,0),FALSE)))))))))) -> UN
F63: Extensão (m) | H63: Espaçamento (m) | J63: Total (un)
F64: =F14 -> 70000 | G64: / | H64: 450 | I64: = | J64: =TRUNC(F64/H64,0) -> 155
F66: Obs: 1 amostra a cada 150m.
A68: 2.5 | B68: EMOP | C68: 01.001.0002-0 | D68: =IF($T$6="DESONERADO",IF($B68="","",IF($C68="","",IF($B68="EMOP",VLOOKUP($C68,EMOP_CONJ_03.2026!$A:$I,6,FALSE),IF($B68="SINAPI",$C68,IF($B68="SCO",VLOOKUP($C68,SCO_SERV_CONJ_052025!$A:$F,6,FALSE),IF($B68="SBC",$C68,IF($B68="COMPOSIÇÃO",CONCATENATE($C68,"-D"),IF($B68="COTAÇÃO",$C68)))))))),FALSE) -> 01.001.0002-A | E68: =IF($O$6="DESONERADO",IF($D68="","",IF($B68="EMOP",VLOOKUP($D68,EMOP_CONJ_03.2026!$F:$I,2,0),IF($B68="SCO",VLOOKUP($D68,SCO_SERV_CONJ_052025!$F:$I,2,0),IF($B68="SINAPI",VLOOKUP($D68,SINAPI_SERV_CONJ_052025!$I:$M,2,0),IF($B68="COMPOSIÇÃO",VLOOKUP($D68,#REF!,3,FALSE),IF($B68="COTAÇÃO",VLOOKUP($D68,#REF!,2,0),IF($B68="SBC",VLOOKUP($D68,#REF!,2,0),IF($B68="SICRO",VLOOKUP($D68,SICRO_02022!$F:$I,2,0),FALSE)))))))),IF($O$6="NÃO DESONERADO",IF($C68="","",IF($B68="EMOP",VLOOKUP($C68,EMOP_CONJ_03.2026!$A:$D,2,0),IF($B68="SCO",VLOOKUP($C68,SCO_SERV_CONJ_052025!$A:$D,2,0),IF($B68="SINAPI",VLOOKUP($C68,SINAPI_SERV_CONJ_052025!$I:$L,2,0),IF($B68="COMPOSIÇÃO",VLOOKUP($C68,#REF!,3,0),IF($B68="COTAÇÃO",VLOOKUP($C68,#REF!,2,0),IF($B68="SBC",VLOOKUP($C68,#REF!,2,0),IF($B68="SICRO",VLOOKUP($C68,SICRO_02022!$A:$D,2,0),FALSE)))))))))) -> LIMITE DE LIQUIDEZ | P68: =J71 -> 155 | Q68: =IF($O$6="DESONERADO",IF($D68="","",IF($B68="EMOP",VLOOKUP($D68,EMOP_CONJ_03.2026!$F:$I,3,0),IF($B68="SCO",VLOOKUP($D68,SCO_SERV_CONJ_052025!$F:$I,3,0),IF($B68="SINAPI",VLOOKUP($D68,SINAPI_SERV_CONJ_052025!$I:$M,3,0),IF($B68="COMPOSIÇÃO",VLOOKUP($D68,#REF!,7,0),IF($B68="COTAÇÃO",VLOOKUP($D68,#REF!,5,0),IF($B68="SBC",VLOOKUP($D68,#REF!,3,0),FALSE))))))),IF($O$6="NÃO DESONERADO",IF($C68="","",IF($B68="EMOP",VLOOKUP($C68,EMOP_CONJ_03.2026!$A:$D,3,0),IF($B68="SCO",VLOOKUP($C68,SCO_SERV_CONJ_052025!$A:$D,3,0),IF($B68="SINAPI",VLOOKUP($C68,SINAPI_SERV_CONJ_052025!$I:$L,3,0),IF($B68="COMPOSIÇÃO",VLOOKUP($C68,#REF!,7,0),IF($B68="COTAÇÃO",VLOOKUP($C68,#REF!,5,0),IF($B68="SBC",VLOOKUP($C68,#REF!,3,0),IF($B68="SICRO",VLOOKUP($C68,SICRO_02022!$A:$D,3,0),FALSE)))))))))) -> UN
F70: Extensão (m) | H70: Espaçamento (m) | J70: Total (un)
F71: =F14 -> 70000 | G71: / | H71: 450 | I71: = | J71: =TRUNC(F71/H71,0) -> 155
F73: Obs: 1 amostra a cada 150m.
A75: 2.6 | B75: EMOP | C75: 01.001.0004-0 | D75: =IF($T$6="DESONERADO",IF($B75="","",IF($C75="","",IF($B75="EMOP",VLOOKUP($C75,EMOP_CONJ_03.2026!$A:$I,6,FALSE),IF($B75="SINAPI",$C75,IF($B75="SCO",VLOOKUP($C75,SCO_SERV_CONJ_052025!$A:$F,6,FALSE),IF($B75="SBC",$C75,IF($B75="COMPOSIÇÃO",CONCATENATE($C75,"-D"),IF($B75="COTAÇÃO",$C75)))))))),FALSE) -> 01.001.0004-A | E75: =IF($O$6="DESONERADO",IF($D75="","",IF($B75="EMOP",VLOOKUP($D75,EMOP_CONJ_03.2026!$F:$I,2,0),IF($B75="SCO",VLOOKUP($D75,SCO_SERV_CONJ_052025!$F:$I,2,0),IF($B75="SINAPI",VLOOKUP($D75,SINAPI_SERV_CONJ_052025!$I:$M,2,0),IF($B75="COMPOSIÇÃO",VLOOKUP($D75,#REF!,3,FALSE),IF($B75="COTAÇÃO",VLOOKUP($D75,#REF!,2,0),IF($B75="SBC",VLOOKUP($D75,#REF!,2,0),IF($B75="SICRO",VLOOKUP($D75,SICRO_02022!$F:$I,2,0),FALSE)))))))),IF($O$6="NÃO DESONERADO",IF($C75="","",IF($B75="EMOP",VLOOKUP($C75,EMOP_CONJ_03.2026!$A:$D,2,0),IF($B75="SCO",VLOOKUP($C75,SCO_SERV_CONJ_052025!$A:$D,2,0),IF($B75="SINAPI",VLOOKUP($C75,SINAPI_SERV_CONJ_052025!$I:$L,2,0),IF($B75="COMPOSIÇÃO",VLOOKUP($C75,#REF!,3,0),IF($B75="COTAÇÃO",VLOOKUP($C75,#REF!,2,0),IF($B75="SBC",VLOOKUP($C75,#REF!,2,0),IF($B75="SICRO",VLOOKUP($C75,SICRO_02022!$A:$D,2,0),FALSE)))))))))) -> ANALISE GRANULOMETRICA SEM SEDIMENTACAO (PENEIRAMENTO) | P75: =J78 -> 155 | Q75: =IF($O$6="DESONERADO",IF($D75="","",IF($B75="EMOP",VLOOKUP($D75,EMOP_CONJ_03.2026!$F:$I,3,0),IF($B75="SCO",VLOOKUP($D75,SCO_SERV_CONJ_052025!$F:$I,3,0),IF($B75="SINAPI",VLOOKUP($D75,SINAPI_SERV_CONJ_052025!$I:$M,3,0),IF($B75="COMPOSIÇÃO",VLOOKUP($D75,#REF!,7,0),IF($B75="COTAÇÃO",VLOOKUP($D75,#REF!,5,0),IF($B75="SBC",VLOOKUP($D75,#REF!,3,0),FALSE))))))),IF($O$6="NÃO DESONERADO",IF($C75="","",IF($B75="EMOP",VLOOKUP($C75,EMOP_CONJ_03.2026!$A:$D,3,0),IF($B75="SCO",VLOOKUP($C75,SCO_SERV_CONJ_052025!$A:$D,3,0),IF($B75="SINAPI",VLOOKUP($C75,SINAPI_SERV_CONJ_052025!$I:$L,3,0),IF($B75="COMPOSIÇÃO",VLOOKUP($C75,#REF!,7,0),IF($B75="COTAÇÃO",VLOOKUP($C75,#REF!,5,0),IF($B75="SBC",VLOOKUP($C75,#REF!,3,0),IF($B75="SICRO",VLOOKUP($C75,SICRO_02022!$A:$D,3,0),FALSE)))))))))) -> UN
F77: Extensão (m) | H77: Espaçamento (m) | J77: Total (un)
F78: =F14 -> 70000 | G78: / | H78: 450 | I78: = | J78: =TRUNC(F78/H78,0) -> 155
F80: Obs: 1 amostra a cada 150m.
A82: 2.7 | B82: EMOP | C82: 01.001.0020-0 | D82: =IF($T$6="DESONERADO",IF($B82="","",IF($C82="","",IF($B82="EMOP",VLOOKUP($C82,EMOP_CONJ_03.2026!$A:$I,6,FALSE),IF($B82="SINAPI",$C82,IF($B82="SCO",VLOOKUP($C82,SCO_SERV_CONJ_052025!$A:$F,6,FALSE),IF($B82="SBC",$C82,IF($B82="COMPOSIÇÃO",CONCATENATE($C82,"-D"),IF($B82="COTAÇÃO",$C82)))))))),FALSE) -> 01.001.0020-A | E82: =IF($O$6="DESONERADO",IF($D82="","",IF($B82="EMOP",VLOOKUP($D82,EMOP_CONJ_03.2026!$F:$I,2,0),IF($B82="SCO",VLOOKUP($D82,SCO_SERV_CONJ_052025!$F:$I,2,0),IF($B82="SINAPI",VLOOKUP($D82,SINAPI_SERV_CONJ_052025!$I:$M,2,0),IF($B82="COMPOSIÇÃO",VLOOKUP($D82,#REF!,3,FALSE),IF($B82="COTAÇÃO",VLOOKUP($D82,#REF!,2,0),IF($B82="SBC",VLOOKUP($D82,#REF!,2,0),IF($B82="SICRO",VLOOKUP($D82,SICRO_02022!$F:$I,2,0),FALSE)))))))),IF($O$6="NÃO DESONERADO",IF($C82="","",IF($B82="EMOP",VLOOKUP($C82,EMOP_CONJ_03.2026!$A:$D,2,0),IF($B82="SCO",VLOOKUP($C82,SCO_SERV_CONJ_052025!$A:$D,2,0),IF($B82="SINAPI",VLOOKUP($C82,SINAPI_SERV_CONJ_052025!$I:$L,2,0),IF($B82="COMPOSIÇÃO",VLOOKUP($C82,#REF!,3,0),IF($B82="COTAÇÃO",VLOOKUP($C82,#REF!,2,0),IF($B82="SBC",VLOOKUP($C82,#REF!,2,0),IF($B82="SICRO",VLOOKUP($C82,SICRO_02022!$A:$D,2,0),FALSE)))))))))) -> INDICE SUPORTE CALIFORNIA,POR 5 PONTOS,COMPACTACAO COM ENERGIA PROCTOR NORMAL | P82: =J85 -> 155 | Q82: =IF($O$6="DESONERADO",IF($D82="","",IF($B82="EMOP",VLOOKUP($D82,EMOP_CONJ_03.2026!$F:$I,3,0),IF($B82="SCO",VLOOKUP($D82,SCO_SERV_CONJ_052025!$F:$I,3,0),IF($B82="SINAPI",VLOOKUP($D82,SINAPI_SERV_CONJ_052025!$I:$M,3,0),IF($B82="COMPOSIÇÃO",VLOOKUP($D82,#REF!,7,0),IF($B82="COTAÇÃO",VLOOKUP($D82,#REF!,5,0),IF($B82="SBC",VLOOKUP($D82,#REF!,3,0),FALSE))))))),IF($O$6="NÃO DESONERADO",IF($C82="","",IF($B82="EMOP",VLOOKUP($C82,EMOP_CONJ_03.2026!$A:$D,3,0),IF($B82="SCO",VLOOKUP($C82,SCO_SERV_CONJ_052025!$A:$D,3,0),IF($B82="SINAPI",VLOOKUP($C82,SINAPI_SERV_CONJ_052025!$I:$L,3,0),IF($B82="COMPOSIÇÃO",VLOOKUP($C82,#REF!,7,0),IF($B82="COTAÇÃO",VLOOKUP($C82,#REF!,5,0),IF($B82="SBC",VLOOKUP($C82,#REF!,3,0),IF($B82="SICRO",VLOOKUP($C82,SICRO_02022!$A:$D,3,0),FALSE)))))))))) -> UN
F84: Extensão (m) | H84: Espaçamento (m) | J84: Total (un)
F85: =F14 -> 70000 | G85: / | H85: 450 | I85: = | J85: =TRUNC(F85/H85,0) -> 155
F87: Obs: 1 amostra a cada 150m.
A89: 2.8 | B89: EMOP | C89: 01.001.0200-0 | D89: =IF($T$6="DESONERADO",IF($B89="","",IF($C89="","",IF($B89="EMOP",VLOOKUP($C89,EMOP_CONJ_03.2026!$A:$I,6,FALSE),IF($B89="SINAPI",$C89,IF($B89="SCO",VLOOKUP($C89,SCO_SERV_CONJ_052025!$A:$F,6,FALSE),IF($B89="SBC",$C89,IF($B89="COMPOSIÇÃO",CONCATENATE($C89,"-D"),IF($B89="COTAÇÃO",$C89)))))))),FALSE) -> 01.001.0200-A | E89: =IF($O$6="DESONERADO",IF($D89="","",IF($B89="EMOP",VLOOKUP($D89,EMOP_CONJ_03.2026!$F:$I,2,0),IF($B89="SCO",VLOOKUP($D89,SCO_SERV_CONJ_052025!$F:$I,2,0),IF($B89="SINAPI",VLOOKUP($D89,SINAPI_SERV_CONJ_052025!$I:$M,2,0),IF($B89="COMPOSIÇÃO",VLOOKUP($D89,#REF!,3,FALSE),IF($B89="COTAÇÃO",VLOOKUP($D89,#REF!,2,0),IF($B89="SBC",VLOOKUP($D89,#REF!,2,0),IF($B89="SICRO",VLOOKUP($D89,SICRO_02022!$F:$I,2,0),FALSE)))))))),IF($O$6="NÃO DESONERADO",IF($C89="","",IF($B89="EMOP",VLOOKUP($C89,EMOP_CONJ_03.2026!$A:$D,2,0),IF($B89="SCO",VLOOKUP($C89,SCO_SERV_CONJ_052025!$A:$D,2,0),IF($B89="SINAPI",VLOOKUP($C89,SINAPI_SERV_CONJ_052025!$I:$L,2,0),IF($B89="COMPOSIÇÃO",VLOOKUP($C89,#REF!,3,0),IF($B89="COTAÇÃO",VLOOKUP($C89,#REF!,2,0),IF($B89="SBC",VLOOKUP($C89,#REF!,2,0),IF($B89="SICRO",VLOOKUP($C89,SICRO_02022!$A:$D,2,0),FALSE)))))))))) -> DENSIDADE APARENTE | P89: =N95 -> 194 | Q89: =IF($O$6="DESONERADO",IF($D89="","",IF($B89="EMOP",VLOOKUP($D89,EMOP_CONJ_03.2026!$F:$I,3,0),IF($B89="SCO",VLOOKUP($D89,SCO_SERV_CONJ_052025!$F:$I,3,0),IF($B89="SINAPI",VLOOKUP($D89,SINAPI_SERV_CONJ_052025!$I:$M,3,0),IF($B89="COMPOSIÇÃO",VLOOKUP($D89,#REF!,7,0),IF($B89="COTAÇÃO",VLOOKUP($D89,#REF!,5,0),IF($B89="SBC",VLOOKUP($D89,#REF!,3,0),FALSE))))))),IF($O$6="NÃO DESONERADO",IF($C89="","",IF($B89="EMOP",VLOOKUP($C89,EMOP_CONJ_03.2026!$A:$D,3,0),IF($B89="SCO",VLOOKUP($C89,SCO_SERV_CONJ_052025!$A:$D,3,0),IF($B89="SINAPI",VLOOKUP($C89,SINAPI_SERV_CONJ_052025!$I:$L,3,0),IF($B89="COMPOSIÇÃO",VLOOKUP($C89,#REF!,7,0),IF($B89="COTAÇÃO",VLOOKUP($C89,#REF!,5,0),IF($B89="SBC",VLOOKUP($C89,#REF!,3,0),IF($B89="SICRO",VLOOKUP($C89,SICRO_02022!$A:$D,3,0),FALSE)))))))))) -> UN
F91: Extensão (m) | H91: Largura (m) | J91: Espessura (m) | L91: (t/m³) | N91: Peso (t)
A92: Estimativa de pavimento em cbuq | E92: = | F92: =S92 -> 120000 | G92: x | H92: 5.4 | I92: x | J92: 0.05 | K92: x | L92: 2.4 | N92: =TRUNC(F92*H92*J92*L92,2) -> 77760 | S92: 120000 | T92: Mudar aqui
N94: Quantidade (un)
B95: 2 Ensaios para cada 800 t/dia de produção na usina | G95: = | H95: =N92 -> 77760 | I95: / | J95: 800 | K95: x | L95: 2 | M95: = | N95: =TRUNC((H95/J95)*L95,0) -> 194
A97: 2.9 | B97: EMOP | C97: 01.001.0201-0 | D97: =IF($T$6="DESONERADO",IF($B97="","",IF($C97="","",IF($B97="EMOP",VLOOKUP($C97,EMOP_CONJ_03.2026!$A:$I,6,FALSE),IF($B97="SINAPI",$C97,IF($B97="SCO",VLOOKUP($C97,SCO_SERV_CONJ_052025!$A:$F,6,FALSE),IF($B97="SBC",$C97,IF($B97="COMPOSIÇÃO",CONCATENATE($C97,"-D"),IF($B97="COTAÇÃO",$C97)))))))),FALSE) -> 01.001.0201-A | E97: =IF($O$6="DESONERADO",IF($D97="","",IF($B97="EMOP",VLOOKUP($D97,EMOP_CONJ_03.2026!$F:$I,2,0),IF($B97="SCO",VLOOKUP($D97,SCO_SERV_CONJ_052025!$F:$I,2,0),IF($B97="SINAPI",VLOOKUP($D97,SINAPI_SERV_CONJ_052025!$I:$M,2,0),IF($B97="COMPOSIÇÃO",VLOOKUP($D97,#REF!,3,FALSE),IF($B97="COTAÇÃO",VLOOKUP($D97,#REF!,2,0),IF($B97="SBC",VLOOKUP($D97,#REF!,2,0),IF($B97="SICRO",VLOOKUP($D97,SICRO_02022!$F:$I,2,0),FALSE)))))))),IF($O$6="NÃO DESONERADO",IF($C97="","",IF($B97="EMOP",VLOOKUP($C97,EMOP_CONJ_03.2026!$A:$D,2,0),IF($B97="SCO",VLOOKUP($C97,SCO_SERV_CONJ_052025!$A:$D,2,0),IF($B97="SINAPI",VLOOKUP($C97,SINAPI_SERV_CONJ_052025!$I:$L,2,0),IF($B97="COMPOSIÇÃO",VLOOKUP($C97,#REF!,3,0),IF($B97="COTAÇÃO",VLOOKUP($C97,#REF!,2,0),IF($B97="SBC",VLOOKUP($C97,#REF!,2,0),IF($B97="SICRO",VLOOKUP($C97,SICRO_02022!$A:$D,2,0),FALSE)))))))))) -> PERCENTAGEM DE VAZIOS RICE | P97: =N103 -> 194 | Q97: =IF($O$6="DESONERADO",IF($D97="","",IF($B97="EMOP",VLOOKUP($D97,EMOP_CONJ_03.2026!$F:$I,3,0),IF($B97="SCO",VLOOKUP($D97,SCO_SERV_CONJ_052025!$F:$I,3,0),IF($B97="SINAPI",VLOOKUP($D97,SINAPI_SERV_CONJ_052025!$I:$M,3,0),IF($B97="COMPOSIÇÃO",VLOOKUP($D97,#REF!,7,0),IF($B97="COTAÇÃO",VLOOKUP($D97,#REF!,5,0),IF($B97="SBC",VLOOKUP($D97,#REF!,3,0),FALSE))))))),IF($O$6="NÃO DESONERADO",IF($C97="","",IF($B97="EMOP",VLOOKUP($C97,EMOP_CONJ_03.2026!$A:$D,3,0),IF($B97="SCO",VLOOKUP($C97,SCO_SERV_CONJ_052025!$A:$D,3,0),IF($B97="SINAPI",VLOOKUP($C97,SINAPI_SERV_CONJ_052025!$I:$L,3,0),IF($B97="COMPOSIÇÃO",VLOOKUP($C97,#REF!,7,0),IF($B97="COTAÇÃO",VLOOKUP($C97,#REF!,5,0),IF($B97="SBC",VLOOKUP($C97,#REF!,3,0),IF($B97="SICRO",VLOOKUP($C97,SICRO_02022!$A:$D,3,0),FALSE)))))))))) -> UN
F99: Extensão (m) | H99: Largura (m) | J99: Espessura (m) | L99: (t/m³) | N99: Peso (t)
A100: Estimativa de pavimento em cbuq | E100: = | F100: =F92 -> 120000 | G100: x | H100: 5.4 | I100: x | J100: 0.05 | K100: x | L100: 2.4 | N100: =TRUNC(F100*H100*J100*L100,2) -> 77760
N102: Quantidade (un)
B103: 2 Ensaios para cada 800 t/dia de produção na usina | G103: = | H103: =N100 -> 77760 | I103: / | J103: 800 | K103: x | L103: 2 | M103: = | N103: =TRUNC((H103/J103)*L103,0) -> 194
A105: 2.10 | B105: EMOP | C105: 01.001.0303-0 | D105: =IF($T$6="DESONERADO",IF($B105="","",IF($C105="","",IF($B105="EMOP",VLOOKUP($C105,EMOP_CONJ_03.2026!$A:$I,6,FALSE),IF($B105="SINAPI",$C105,IF($B105="SCO",VLOOKUP($C105,SCO_SERV_CONJ_052025!$A:$F,6,FALSE),IF($B105="SBC",$C105,IF($B105="COMPOSIÇÃO",CONCATENATE($C105,"-D"),IF($B105="COTAÇÃO",$C105)))))))),FALSE) -> 01.001.0303-A | E105: =IF($O$6="DESONERADO",IF($D105="","",IF($B105="EMOP",VLOOKUP($D105,EMOP_CONJ_03.2026!$F:$I,2,0),IF($B105="SCO",VLOOKUP($D105,SCO_SERV_CONJ_052025!$F:$I,2,0),IF($B105="SINAPI",VLOOKUP($D105,SINAPI_SERV_CONJ_052025!$I:$M,2,0),IF($B105="COMPOSIÇÃO",VLOOKUP($D105,#REF!,3,FALSE),IF($B105="COTAÇÃO",VLOOKUP($D105,#REF!,2,0),IF($B105="SBC",VLOOKUP($D105,#REF!,2,0),IF($B105="SICRO",VLOOKUP($D105,SICRO_02022!$F:$I,2,0),FALSE)))))))),IF($O$6="NÃO DESONERADO",IF($C105="","",IF($B105="EMOP",VLOOKUP($C105,EMOP_CONJ_03.2026!$A:$D,2,0),IF($B105="SCO",VLOOKUP($C105,SCO_SERV_CONJ_052025!$A:$D,2,0),IF($B105="SINAPI",VLOOKUP($C105,SINAPI_SERV_CONJ_052025!$I:$L,2,0),IF($B105="COMPOSIÇÃO",VLOOKUP($C105,#REF!,3,0),IF($B105="COTAÇÃO",VLOOKUP($C105,#REF!,2,0),IF($B105="SBC",VLOOKUP($C105,#REF!,2,0),IF($B105="SICRO",VLOOKUP($C105,SICRO_02022!$A:$D,2,0),FALSE)))))))))) -> EXTRACAO COM O AUXILIO DE SONDA ROTATIVA,DE CORPOS DE PROVACOM 15CM DE DIAMETRO,EM PAVIMENTOS COM REVESTIMENTO BETUMINOSO,COM ATE 10CM DE ESPESSURA,POR CORPO DE PROVA | P105: =J108 -> 1200 | Q105: =IF($O$6="DESONERADO",IF($D105="","",IF($B105="EMOP",VLOOKUP($D105,EMOP_CONJ_03.2026!$F:$I,3,0),IF($B105="SCO",VLOOKUP($D105,SCO_SERV_CONJ_052025!$F:$I,3,0),IF($B105="SINAPI",VLOOKUP($D105,SINAPI_SERV_CONJ_052025!$I:$M,3,0),IF($B105="COMPOSIÇÃO",VLOOKUP($D105,#REF!,7,0),IF($B105="COTAÇÃO",VLOOKUP($D105,#REF!,5,0),IF($B105="SBC",VLOOKUP($D105,#REF!,3,0),FALSE))))))),IF($O$6="NÃO DESONERADO",IF($C105="","",IF($B105="EMOP",VLOOKUP($C105,EMOP_CONJ_03.2026!$A:$D,3,0),IF($B105="SCO",VLOOKUP($C105,SCO_SERV_CONJ_052025!$A:$D,3,0),IF($B105="SINAPI",VLOOKUP($C105,SINAPI_SERV_CONJ_052025!$I:$L,3,0),IF($B105="COMPOSIÇÃO",VLOOKUP($C105,#REF!,7,0),IF($B105="COTAÇÃO",VLOOKUP($C105,#REF!,5,0),IF($B105="SBC",VLOOKUP($C105,#REF!,3,0),IF($B105="SICRO",VLOOKUP($C105,SICRO_02022!$A:$D,3,0),FALSE)))))))))) -> UN
F107: Extensão (m) | H107: Espaçamento (m) | J107: Total (un)
F108: =F92 -> 120000 | G108: / | H108: 100 | I108: = | J108: =TRUNC(F108/H108,0) -> 1200
F110: Obs: 1 corpo de prova a cada 100m.
A112: 2.11 | B112: EMOP | C112: 01.001.0205-0 | D112: =IF($T$6="DESONERADO",IF($B112="","",IF($C112="","",IF($B112="EMOP",VLOOKUP($C112,EMOP_CONJ_03.2026!$A:$I,6,FALSE),IF($B112="SINAPI",$C112,IF($B112="SCO",VLOOKUP($C112,SCO_SERV_CONJ_052025!$A:$F,6,FALSE),IF($B112="SBC",$C112,IF($B112="COMPOSIÇÃO",CONCATENATE($C112,"-D"),IF($B112="COTAÇÃO",$C112)))))))),FALSE) -> 01.001.0205-A | E112: =IF($O$6="DESONERADO",IF($D112="","",IF($B112="EMOP",VLOOKUP($D112,EMOP_CONJ_03.2026!$F:$I,2,0),IF($B112="SCO",VLOOKUP($D112,SCO_SERV_CONJ_052025!$F:$I,2,0),IF($B112="SINAPI",VLOOKUP($D112,SINAPI_SERV_CONJ_052025!$I:$M,2,0),IF($B112="COMPOSIÇÃO",VLOOKUP($D112,#REF!,3,FALSE),IF($B112="COTAÇÃO",VLOOKUP($D112,#REF!,2,0),IF($B112="SBC",VLOOKUP($D112,#REF!,2,0),IF($B112="SICRO",VLOOKUP($D112,SICRO_02022!$F:$I,2,0),FALSE)))))))),IF($O$6="NÃO DESONERADO",IF($C112="","",IF($B112="EMOP",VLOOKUP($C112,EMOP_CONJ_03.2026!$A:$D,2,0),IF($B112="SCO",VLOOKUP($C112,SCO_SERV_CONJ_052025!$A:$D,2,0),IF($B112="SINAPI",VLOOKUP($C112,SINAPI_SERV_CONJ_052025!$I:$L,2,0),IF($B112="COMPOSIÇÃO",VLOOKUP($C112,#REF!,3,0),IF($B112="COTAÇÃO",VLOOKUP($C112,#REF!,2,0),IF($B112="SBC",VLOOKUP($C112,#REF!,2,0),IF($B112="SICRO",VLOOKUP($C112,SICRO_02022!$A:$D,2,0),FALSE)))))))))) -> DETERMINACAO,COM AUXILIO DE SONDA ROTATIVA,DA DENSIDADE DE MISTURA COMPACTADA,POR CORPO DE PROVA | P112: =J115 -> 1200 | Q112: =IF($O$6="DESONERADO",IF($D112="","",IF($B112="EMOP",VLOOKUP($D112,EMOP_CONJ_03.2026!$F:$I,3,0),IF($B112="SCO",VLOOKUP($D112,SCO_SERV_CONJ_052025!$F:$I,3,0),IF($B112="SINAPI",VLOOKUP($D112,SINAPI_SERV_CONJ_052025!$I:$M,3,0),IF($B112="COMPOSIÇÃO",VLOOKUP($D112,#REF!,7,0),IF($B112="COTAÇÃO",VLOOKUP($D112,#REF!,5,0),IF($B112="SBC",VLOOKUP($D112,#REF!,3,0),FALSE))))))),IF($O$6="NÃO DESONERADO",IF($C112="","",IF($B112="EMOP",VLOOKUP($C112,EMOP_CONJ_03.2026!$A:$D,3,0),IF($B112="SCO",VLOOKUP($C112,SCO_SERV_CONJ_052025!$A:$D,3,0),IF($B112="SINAPI",VLOOKUP($C112,SINAPI_SERV_CONJ_052025!$I:$L,3,0),IF($B112="COMPOSIÇÃO",VLOOKUP($C112,#REF!,7,0),IF($B112="COTAÇÃO",VLOOKUP($C112,#REF!,5,0),IF($B112="SBC",VLOOKUP($C112,#REF!,3,0),IF($B112="SICRO",VLOOKUP($C112,SICRO_02022!$A:$D,3,0),FALSE)))))))))) -> UN
F114: Extensão (m) | H114: Espaçamento (m) | J114: Total (un)
F115: =F92 -> 120000 | G115: / | H115: 100 | I115: = | J115: =TRUNC(F115/H115,0) -> 1200
A117: 2.12 | B117: EMOP | C117: 01.001.0198-0 | D117: =IF($T$6="DESONERADO",IF($B117="","",IF($C117="","",IF($B117="EMOP",VLOOKUP($C117,EMOP_CONJ_03.2026!$A:$I,6,FALSE),IF($B117="SINAPI",$C117,IF($B117="SCO",VLOOKUP($C117,SCO_SERV_CONJ_052025!$A:$F,6,FALSE),IF($B117="SBC",$C117,IF($B117="COMPOSIÇÃO",CONCATENATE($C117,"-D"),IF($B117="COTAÇÃO",$C117)))))))),FALSE) -> 01.001.0198-A | E117: =IF($O$6="DESONERADO",IF($D117="","",IF($B117="EMOP",VLOOKUP($D117,EMOP_CONJ_03.2026!$F:$I,2,0),IF($B117="SCO",VLOOKUP($D117,SCO_SERV_CONJ_052025!$F:$I,2,0),IF($B117="SINAPI",VLOOKUP($D117,SINAPI_SERV_CONJ_052025!$I:$M,2,0),IF($B117="COMPOSIÇÃO",VLOOKUP($D117,#REF!,3,FALSE),IF($B117="COTAÇÃO",VLOOKUP($D117,#REF!,2,0),IF($B117="SBC",VLOOKUP($D117,#REF!,2,0),IF($B117="SICRO",VLOOKUP($D117,SICRO_02022!$F:$I,2,0),FALSE)))))))),IF($O$6="NÃO DESONERADO",IF($C117="","",IF($B117="EMOP",VLOOKUP($C117,EMOP_CONJ_03.2026!$A:$D,2,0),IF($B117="SCO",VLOOKUP($C117,SCO_SERV_CONJ_052025!$A:$D,2,0),IF($B117="SINAPI",VLOOKUP($C117,SINAPI_SERV_CONJ_052025!$I:$L,2,0),IF($B117="COMPOSIÇÃO",VLOOKUP($C117,#REF!,3,0),IF($B117="COTAÇÃO",VLOOKUP($C117,#REF!,2,0),IF($B117="SBC",VLOOKUP($C117,#REF!,2,0),IF($B117="SICRO",VLOOKUP($C117,SICRO_02022!$A:$D,2,0),FALSE)))))))))) -> DETERMINACAO DO TEOR DE BETUME | P117: =N123 -> 194 | Q117: =IF($O$6="DESONERADO",IF($D117="","",IF($B117="EMOP",VLOOKUP($D117,EMOP_CONJ_03.2026!$F:$I,3,0),IF($B117="SCO",VLOOKUP($D117,SCO_SERV_CONJ_052025!$F:$I,3,0),IF($B117="SINAPI",VLOOKUP($D117,SINAPI_SERV_CONJ_052025!$I:$M,3,0),IF($B117="COMPOSIÇÃO",VLOOKUP($D117,#REF!,7,0),IF($B117="COTAÇÃO",VLOOKUP($D117,#REF!,5,0),IF($B117="SBC",VLOOKUP($D117,#REF!,3,0),FALSE))))))),IF($O$6="NÃO DESONERADO",IF($C117="","",IF($B117="EMOP",VLOOKUP($C117,EMOP_CONJ_03.2026!$A:$D,3,0),IF($B117="SCO",VLOOKUP($C117,SCO_SERV_CONJ_052025!$A:$D,3,0),IF($B117="SINAPI",VLOOKUP($C117,SINAPI_SERV_CONJ_052025!$I:$L,3,0),IF($B117="COMPOSIÇÃO",VLOOKUP($C117,#REF!,7,0),IF($B117="COTAÇÃO",VLOOKUP($C117,#REF!,5,0),IF($B117="SBC",VLOOKUP($C117,#REF!,3,0),IF($B117="SICRO",VLOOKUP($C117,SICRO_02022!$A:$D,3,0),FALSE)))))))))) -> UN
F119: Extensão (m) | H119: Largura (m) | J119: Espessura (m) | L119: (t/m³) | N119: Peso (t)
A120: Estimativa de pavimento em cbuq | E120: = | F120: =F92 -> 120000 | G120: x | H120: 5.4 | I120: x | J120: 0.05 | K120: x | L120: 2.4 | N120: =TRUNC(F120*H120*J120*L120,2) -> 77760
N122: Quantidade (un)
B123: 2 Ensaios para cada 800 t/dia de produção na usina | G123: = | H123: =N120 -> 77760 | I123: / | J123: 800 | K123: x | L123: 2 | M123: = | N123: =TRUNC((H123/J123)*L123,0) -> 194
A125: 2.13 | B125: EMOP | C125: 01.001.0208-0 | D125: =IF($T$6="DESONERADO",IF($B125="","",IF($C125="","",IF($B125="EMOP",VLOOKUP($C125,EMOP_CONJ_03.2026!$A:$I,6,FALSE),IF($B125="SINAPI",$C125,IF($B125="SCO",VLOOKUP($C125,SCO_SERV_CONJ_052025!$A:$F,6,FALSE),IF($B125="SBC",$C125,IF($B125="COMPOSIÇÃO",CONCATENATE($C125,"-D"),IF($B125="COTAÇÃO",$C125)))))))),FALSE) -> 01.001.0208-A | E125: =IF($O$6="DESONERADO",IF($D125="","",IF($B125="EMOP",VLOOKUP($D125,EMOP_CONJ_03.2026!$F:$I,2,0),IF($B125="SCO",VLOOKUP($D125,SCO_SERV_CONJ_052025!$F:$I,2,0),IF($B125="SINAPI",VLOOKUP($D125,SINAPI_SERV_CONJ_052025!$I:$M,2,0),IF($B125="COMPOSIÇÃO",VLOOKUP($D125,#REF!,3,FALSE),IF($B125="COTAÇÃO",VLOOKUP($D125,#REF!,2,0),IF($B125="SBC",VLOOKUP($D125,#REF!,2,0),IF($B125="SICRO",VLOOKUP($D125,SICRO_02022!$F:$I,2,0),FALSE)))))))),IF($O$6="NÃO DESONERADO",IF($C125="","",IF($B125="EMOP",VLOOKUP($C125,EMOP_CONJ_03.2026!$A:$D,2,0),IF($B125="SCO",VLOOKUP($C125,SCO_SERV_CONJ_052025!$A:$D,2,0),IF($B125="SINAPI",VLOOKUP($C125,SINAPI_SERV_CONJ_052025!$I:$L,2,0),IF($B125="COMPOSIÇÃO",VLOOKUP($C125,#REF!,3,0),IF($B125="COTAÇÃO",VLOOKUP($C125,#REF!,2,0),IF($B125="SBC",VLOOKUP($C125,#REF!,2,0),IF($B125="SICRO",VLOOKUP($C125,SICRO_02022!$A:$D,2,0),FALSE)))))))))) -> DETERMINACAO DA RESISTENCIA A TRACAO POR COMPRESSAO DIAMETRAL DE MISTURAS BETUMINOSAS | P125: =N131 -> 194 | Q125: =IF($O$6="DESONERADO",IF($D125="","",IF($B125="EMOP",VLOOKUP($D125,EMOP_CONJ_03.2026!$F:$I,3,0),IF($B125="SCO",VLOOKUP($D125,SCO_SERV_CONJ_052025!$F:$I,3,0),IF($B125="SINAPI",VLOOKUP($D125,SINAPI_SERV_CONJ_052025!$I:$M,3,0),IF($B125="COMPOSIÇÃO",VLOOKUP($D125,#REF!,7,0),IF($B125="COTAÇÃO",VLOOKUP($D125,#REF!,5,0),IF($B125="SBC",VLOOKUP($D125,#REF!,3,0),FALSE))))))),IF($O$6="NÃO DESONERADO",IF($C125="","",IF($B125="EMOP",VLOOKUP($C125,EMOP_CONJ_03.2026!$A:$D,3,0),IF($B125="SCO",VLOOKUP($C125,SCO_SERV_CONJ_052025!$A:$D,3,0),IF($B125="SINAPI",VLOOKUP($C125,SINAPI_SERV_CONJ_052025!$I:$L,3,0),IF($B125="COMPOSIÇÃO",VLOOKUP($C125,#REF!,7,0),IF($B125="COTAÇÃO",VLOOKUP($C125,#REF!,5,0),IF($B125="SBC",VLOOKUP($C125,#REF!,3,0),IF($B125="SICRO",VLOOKUP($C125,SICRO_02022!$A:$D,3,0),FALSE)))))))))) -> UN
F127: Extensão (m) | H127: Largura (m) | J127: Espessura (m) | L127: (t/m³) | N127: Peso (t)
A128: Estimativa de pavimento em cbuq | E128: = | F128: =F92 -> 120000 | G128: x | H128: 5.4 | I128: x | J128: 0.05 | K128: x | L128: 2.4 | N128: =TRUNC(F128*H128*J128*L128,2) -> 77760
N130: Quantidade (un)
B131: 2 Ensaios para cada 800 t/dia de produção na usina | G131: = | H131: =N128 -> 77760 | I131: / | J131: 800 | K131: x | L131: 2 | M131: = | N131: =TRUNC((H131/J131)*L131,0) -> 194
A133: 2.14 | B133: EMOP | C133: 01.001.0204-0 | D133: =IF($T$6="DESONERADO",IF($B133="","",IF($C133="","",IF($B133="EMOP",VLOOKUP($C133,EMOP_CONJ_03.2026!$A:$I,6,FALSE),IF($B133="SINAPI",$C133,IF($B133="SCO",VLOOKUP($C133,SCO_SERV_CONJ_052025!$A:$F,6,FALSE),IF($B133="SBC",$C133,IF($B133="COMPOSIÇÃO",CONCATENATE($C133,"-D"),IF($B133="COTAÇÃO",$C133)))))))),FALSE) -> 01.001.0204-A | E133: =IF($O$6="DESONERADO",IF($D133="","",IF($B133="EMOP",VLOOKUP($D133,EMOP_CONJ_03.2026!$F:$I,2,0),IF($B133="SCO",VLOOKUP($D133,SCO_SERV_CONJ_052025!$F:$I,2,0),IF($B133="SINAPI",VLOOKUP($D133,SINAPI_SERV_CONJ_052025!$I:$M,2,0),IF($B133="COMPOSIÇÃO",VLOOKUP($D133,#REF!,3,FALSE),IF($B133="COTAÇÃO",VLOOKUP($D133,#REF!,2,0),IF($B133="SBC",VLOOKUP($D133,#REF!,2,0),IF($B133="SICRO",VLOOKUP($D133,SICRO_02022!$F:$I,2,0),FALSE)))))))),IF($O$6="NÃO DESONERADO",IF($C133="","",IF($B133="EMOP",VLOOKUP($C133,EMOP_CONJ_03.2026!$A:$D,2,0),IF($B133="SCO",VLOOKUP($C133,SCO_SERV_CONJ_052025!$A:$D,2,0),IF($B133="SINAPI",VLOOKUP($C133,SINAPI_SERV_CONJ_052025!$I:$L,2,0),IF($B133="COMPOSIÇÃO",VLOOKUP($C133,#REF!,3,0),IF($B133="COTAÇÃO",VLOOKUP($C133,#REF!,2,0),IF($B133="SBC",VLOOKUP($C133,#REF!,2,0),IF($B133="SICRO",VLOOKUP($C133,SICRO_02022!$A:$D,2,0),FALSE)))))))))) -> AMOSTRA GRANULOMETRICA APOS EXTRACAO DO LIGANTE | P133: =N139 -> 194 | Q133: =IF($O$6="DESONERADO",IF($D133="","",IF($B133="EMOP",VLOOKUP($D133,EMOP_CONJ_03.2026!$F:$I,3,0),IF($B133="SCO",VLOOKUP($D133,SCO_SERV_CONJ_052025!$F:$I,3,0),IF($B133="SINAPI",VLOOKUP($D133,SINAPI_SERV_CONJ_052025!$I:$M,3,0),IF($B133="COMPOSIÇÃO",VLOOKUP($D133,#REF!,7,0),IF($B133="COTAÇÃO",VLOOKUP($D133,#REF!,5,0),IF($B133="SBC",VLOOKUP($D133,#REF!,3,0),FALSE))))))),IF($O$6="NÃO DESONERADO",IF($C133="","",IF($B133="EMOP",VLOOKUP($C133,EMOP_CONJ_03.2026!$A:$D,3,0),IF($B133="SCO",VLOOKUP($C133,SCO_SERV_CONJ_052025!$A:$D,3,0),IF($B133="SINAPI",VLOOKUP($C133,SINAPI_SERV_CONJ_052025!$I:$L,3,0),IF($B133="COMPOSIÇÃO",VLOOKUP($C133,#REF!,7,0),IF($B133="COTAÇÃO",VLOOKUP($C133,#REF!,5,0),IF($B133="SBC",VLOOKUP($C133,#REF!,3,0),IF($B133="SICRO",VLOOKUP($C133,SICRO_02022!$A:$D,3,0),FALSE)))))))))) -> UN
F135: Extensão (m) | H135: Largura (m) | J135: Espessura (m) | L135: (t/m³) | N135: Peso (t)
A136: Estimativa de pavimento em cbuq | E136: = | F136: =F92 -> 120000 | G136: x | H136: 5.4 | I136: x | J136: 0.05 | K136: x | L136: 2.4 | N136: =TRUNC(F136*H136*J136*L136,2) -> 77760
N138: Quantidade (un)
B139: 2 Ensaios para cada 800 t/dia de produção na usina | G139: = | H139: =N136 -> 77760 | I139: / | J139: 800 | K139: x | L139: 2 | M139: = | N139: =TRUNC((H139/J139)*L139,0) -> 194
A141: 2.15 | B141: EMOP | C141: 01.008.0050-0 | D141: =IF($T$6="DESONERADO",IF($B141="","",IF($C141="","",IF($B141="EMOP",VLOOKUP($C141,EMOP_CONJ_03.2026!$A:$I,6,FALSE),IF($B141="SINAPI",$C141,IF($B141="SCO",VLOOKUP($C141,SCO_SERV_CONJ_052025!$A:$F,6,FALSE),IF($B141="SBC",$C141,IF($B141="COMPOSIÇÃO",CONCATENATE($C141,"-D"),IF($B141="COTAÇÃO",$C141)))))))),FALSE) -> 01.008.0050-A | E141: =IF($O$6="DESONERADO",IF($D141="","",IF($B141="EMOP",VLOOKUP($D141,EMOP_CONJ_03.2026!$F:$I,2,0),IF($B141="SCO",VLOOKUP($D141,SCO_SERV_CONJ_052025!$F:$I,2,0),IF($B141="SINAPI",VLOOKUP($D141,SINAPI_SERV_CONJ_052025!$I:$M,2,0),IF($B141="COMPOSIÇÃO",VLOOKUP($D141,#REF!,3,FALSE),IF($B141="COTAÇÃO",VLOOKUP($D141,#REF!,2,0),IF($B141="SBC",VLOOKUP($D141,#REF!,2,0),IF($B141="SICRO",VLOOKUP($D141,SICRO_02022!$F:$I,2,0),FALSE)))))))),IF($O$6="NÃO DESONERADO",IF($C141="","",IF($B141="EMOP",VLOOKUP($C141,EMOP_CONJ_03.2026!$A:$D,2,0),IF($B141="SCO",VLOOKUP($C141,SCO_SERV_CONJ_052025!$A:$D,2,0),IF($B141="SINAPI",VLOOKUP($C141,SINAPI_SERV_CONJ_052025!$I:$L,2,0),IF($B141="COMPOSIÇÃO",VLOOKUP($C141,#REF!,3,0),IF($B141="COTAÇÃO",VLOOKUP($C141,#REF!,2,0),IF($B141="SBC",VLOOKUP($C141,#REF!,2,0),IF($B141="SICRO",VLOOKUP($C141,SICRO_02022!$A:$D,2,0),FALSE)))))))))) -> MOBILIZACAO E DESMOBILIZACAO DE EQUIPAMENTO E EQUIPE DE SONDAGEM E PERFURACAO A PERCUSSAO,COM TRANSPORTE ATE 50KM | P141: =J144 -> 12 | Q141: =IF($O$6="DESONERADO",IF($D141="","",IF($B141="EMOP",VLOOKUP($D141,EMOP_CONJ_03.2026!$F:$I,3,0),IF($B141="SCO",VLOOKUP($D141,SCO_SERV_CONJ_052025!$F:$I,3,0),IF($B141="SINAPI",VLOOKUP($D141,SINAPI_SERV_CONJ_052025!$I:$M,3,0),IF($B141="COMPOSIÇÃO",VLOOKUP($D141,#REF!,7,0),IF($B141="COTAÇÃO",VLOOKUP($D141,#REF!,5,0),IF($B141="SBC",VLOOKUP($D141,#REF!,3,0),FALSE))))))),IF($O$6="NÃO DESONERADO",IF($C141="","",IF($B141="EMOP",VLOOKUP($C141,EMOP_CONJ_03.2026!$A:$D,3,0),IF($B141="SCO",VLOOKUP($C141,SCO_SERV_CONJ_052025!$A:$D,3,0),IF($B141="SINAPI",VLOOKUP($C141,SINAPI_SERV_CONJ_052025!$I:$L,3,0),IF($B141="COMPOSIÇÃO",VLOOKUP($C141,#REF!,7,0),IF($B141="COTAÇÃO",VLOOKUP($C141,#REF!,5,0),IF($B141="SBC",VLOOKUP($C141,#REF!,3,0),IF($B141="SICRO",VLOOKUP($C141,SICRO_02022!$A:$D,3,0),FALSE)))))))))) -> UN
F143: Quantidade (un) | H143: Meses | J143: Total (un)
F144: 1 | G144: x | H144: 12 | I144: = | J144: =TRUNC(F144*H144,2) -> 12
A146: 3.0 | D146: =MID(C146,1,2) ->  | E146: APOIO TÉCNICO | R146: =A146 -> 3.0
A147: 3.1 | B147: EMOP | C147: 05.105.0147-0 | D147: =IF($T$6="DESONERADO",IF($B147="","",IF($C147="","",IF($B147="EMOP",VLOOKUP($C147,EMOP_CONJ_03.2026!$A:$I,6,FALSE),IF($B147="SINAPI",$C147,IF($B147="SCO",VLOOKUP($C147,SCO_SERV_CONJ_052025!$A:$F,6,FALSE),IF($B147="SBC",$C147,IF($B147="COMPOSIÇÃO",CONCATENATE($C147,"-D"),IF($B147="COTAÇÃO",$C147)))))))),FALSE) -> 05.105.0147-A | E147: =IF($O$6="DESONERADO",IF($D147="","",IF($B147="EMOP",VLOOKUP($D147,EMOP_CONJ_03.2026!$F:$I,2,0),IF($B147="SCO",VLOOKUP($D147,SCO_SERV_CONJ_052025!$F:$I,2,0),IF($B147="SINAPI",VLOOKUP($D147,SINAPI_SERV_CONJ_052025!$I:$M,2,0),IF($B147="COMPOSIÇÃO",VLOOKUP($D147,#REF!,3,FALSE),IF($B147="COTAÇÃO",VLOOKUP($D147,#REF!,2,0),IF($B147="SBC",VLOOKUP($D147,#REF!,2,0),IF($B147="SICRO",VLOOKUP($D147,SICRO_02022!$F:$I,2,0),FALSE)))))))),IF($O$6="NÃO DESONERADO",IF($C147="","",IF($B147="EMOP",VLOOKUP($C147,EMOP_CONJ_03.2026!$A:$D,2,0),IF($B147="SCO",VLOOKUP($C147,SCO_SERV_CONJ_052025!$A:$D,2,0),IF($B147="SINAPI",VLOOKUP($C147,SINAPI_SERV_CONJ_052025!$I:$L,2,0),IF($B147="COMPOSIÇÃO",VLOOKUP($C147,#REF!,3,0),IF($B147="COTAÇÃO",VLOOKUP($C147,#REF!,2,0),IF($B147="SBC",VLOOKUP($C147,#REF!,2,0),IF($B147="SICRO",VLOOKUP($C147,SICRO_02022!$A:$D,2,0),FALSE)))))))))) -> MAO-DE-OBRA PARA LABORATORISTA "A",INCLUSIVE ENCARGOS SOCIAIS | P147: =L150 -> 24 | Q147: =IF($O$6="DESONERADO",IF($D147="","",IF($B147="EMOP",VLOOKUP($D147,EMOP_CONJ_03.2026!$F:$I,3,0),IF($B147="SCO",VLOOKUP($D147,SCO_SERV_CONJ_052025!$F:$I,3,0),IF($B147="SINAPI",VLOOKUP($D147,SINAPI_SERV_CONJ_052025!$I:$M,3,0),IF($B147="COMPOSIÇÃO",VLOOKUP($D147,#REF!,7,0),IF($B147="COTAÇÃO",VLOOKUP($D147,#REF!,5,0),IF($B147="SBC",VLOOKUP($D147,#REF!,3,0),FALSE))))))),IF($O$6="NÃO DESONERADO",IF($C147="","",IF($B147="EMOP",VLOOKUP($C147,EMOP_CONJ_03.2026!$A:$D,3,0),IF($B147="SCO",VLOOKUP($C147,SCO_SERV_CONJ_052025!$A:$D,3,0),IF($B147="SINAPI",VLOOKUP($C147,SINAPI_SERV_CONJ_052025!$I:$L,3,0),IF($B147="COMPOSIÇÃO",VLOOKUP($C147,#REF!,7,0),IF($B147="COTAÇÃO",VLOOKUP($C147,#REF!,5,0),IF($B147="SBC",VLOOKUP($C147,#REF!,3,0),IF($B147="SICRO",VLOOKUP($C147,SICRO_02022!$A:$D,3,0),FALSE)))))))))) -> MES
F149: Quantidade (un) | H149: Meses | J149: Dedicação mensal (%) | L149: Total (mês)
F150: 2 | G150: x | H150: 12 | I150: x | J150: 1 | K150: = | L150: =TRUNC(F150*H150*J150,2) -> 24
A152: 3.2 | B152: EMOP | C152: 05.105.0125-0 | D152: =IF($T$6="DESONERADO",IF($B152="","",IF($C152="","",IF($B152="EMOP",VLOOKUP($C152,EMOP_CONJ_03.2026!$A:$I,6,FALSE),IF($B152="SINAPI",$C152,IF($B152="SCO",VLOOKUP($C152,SCO_SERV_CONJ_052025!$A:$F,6,FALSE),IF($B152="SBC",$C152,IF($B152="COMPOSIÇÃO",CONCATENATE($C152,"-D"),IF($B152="COTAÇÃO",$C152)))))))),FALSE) -> 05.105.0125-A | E152: =IF($O$6="DESONERADO",IF($D152="","",IF($B152="EMOP",VLOOKUP($D152,EMOP_CONJ_03.2026!$F:$I,2,0),IF($B152="SCO",VLOOKUP($D152,SCO_SERV_CONJ_052025!$F:$I,2,0),IF($B152="SINAPI",VLOOKUP($D152,SINAPI_SERV_CONJ_052025!$I:$M,2,0),IF($B152="COMPOSIÇÃO",VLOOKUP($D152,#REF!,3,FALSE),IF($B152="COTAÇÃO",VLOOKUP($D152,#REF!,2,0),IF($B152="SBC",VLOOKUP($D152,#REF!,2,0),IF($B152="SICRO",VLOOKUP($D152,SICRO_02022!$F:$I,2,0),FALSE)))))))),IF($O$6="NÃO DESONERADO",IF($C152="","",IF($B152="EMOP",VLOOKUP($C152,EMOP_CONJ_03.2026!$A:$D,2,0),IF($B152="SCO",VLOOKUP($C152,SCO_SERV_CONJ_052025!$A:$D,2,0),IF($B152="SINAPI",VLOOKUP($C152,SINAPI_SERV_CONJ_052025!$I:$L,2,0),IF($B152="COMPOSIÇÃO",VLOOKUP($C152,#REF!,3,0),IF($B152="COTAÇÃO",VLOOKUP($C152,#REF!,2,0),IF($B152="SBC",VLOOKUP($C152,#REF!,2,0),IF($B152="SICRO",VLOOKUP($C152,SICRO_02022!$A:$D,2,0),FALSE)))))))))) -> MAO-DE-OBRA DE AUXILIAR TECNICO,INCLUSIVE ENCARGOS SOCIAIS | P152: =L155 -> 24 | Q152: =IF($O$6="DESONERADO",IF($D152="","",IF($B152="EMOP",VLOOKUP($D152,EMOP_CONJ_03.2026!$F:$I,3,0),IF($B152="SCO",VLOOKUP($D152,SCO_SERV_CONJ_052025!$F:$I,3,0),IF($B152="SINAPI",VLOOKUP($D152,SINAPI_SERV_CONJ_052025!$I:$M,3,0),IF($B152="COMPOSIÇÃO",VLOOKUP($D152,#REF!,7,0),IF($B152="COTAÇÃO",VLOOKUP($D152,#REF!,5,0),IF($B152="SBC",VLOOKUP($D152,#REF!,3,0),FALSE))))))),IF($O$6="NÃO DESONERADO",IF($C152="","",IF($B152="EMOP",VLOOKUP($C152,EMOP_CONJ_03.2026!$A:$D,3,0),IF($B152="SCO",VLOOKUP($C152,SCO_SERV_CONJ_052025!$A:$D,3,0),IF($B152="SINAPI",VLOOKUP($C152,SINAPI_SERV_CONJ_052025!$I:$L,3,0),IF($B152="COMPOSIÇÃO",VLOOKUP($C152,#REF!,7,0),IF($B152="COTAÇÃO",VLOOKUP($C152,#REF!,5,0),IF($B152="SBC",VLOOKUP($C152,#REF!,3,0),IF($B152="SICRO",VLOOKUP($C152,SICRO_02022!$A:$D,3,0),FALSE)))))))))) -> MES
F154: Quantidade (un) | H154: Meses | J154: Dedicação mensal (%) | L154: Total (mês)
F155: 2 | G155: x | H155: 12 | I155: x | J155: 1 | K155: = | L155: =TRUNC(F155*H155*J155,2) -> 24
A157: 3.3 | B157: EMOP | C157: 05.105.0131-0 | D157: =IF($T$6="DESONERADO",IF($B157="","",IF($C157="","",IF($B157="EMOP",VLOOKUP($C157,EMOP_CONJ_03.2026!$A:$I,6,FALSE),IF($B157="SINAPI",$C157,IF($B157="SCO",VLOOKUP($C157,SCO_SERV_CONJ_052025!$A:$F,6,FALSE),IF($B157="SBC",$C157,IF($B157="COMPOSIÇÃO",CONCATENATE($C157,"-D"),IF($B157="COTAÇÃO",$C157)))))))),FALSE) -> 05.105.0131-A | E157: =IF($O$6="DESONERADO",IF($D157="","",IF($B157="EMOP",VLOOKUP($D157,EMOP_CONJ_03.2026!$F:$I,2,0),IF($B157="SCO",VLOOKUP($D157,SCO_SERV_CONJ_052025!$F:$I,2,0),IF($B157="SINAPI",VLOOKUP($D157,SINAPI_SERV_CONJ_052025!$I:$M,2,0),IF($B157="COMPOSIÇÃO",VLOOKUP($D157,#REF!,3,FALSE),IF($B157="COTAÇÃO",VLOOKUP($D157,#REF!,2,0),IF($B157="SBC",VLOOKUP($D157,#REF!,2,0),IF($B157="SICRO",VLOOKUP($D157,SICRO_02022!$F:$I,2,0),FALSE)))))))),IF($O$6="NÃO DESONERADO",IF($C157="","",IF($B157="EMOP",VLOOKUP($C157,EMOP_CONJ_03.2026!$A:$D,2,0),IF($B157="SCO",VLOOKUP($C157,SCO_SERV_CONJ_052025!$A:$D,2,0),IF($B157="SINAPI",VLOOKUP($C157,SINAPI_SERV_CONJ_052025!$I:$L,2,0),IF($B157="COMPOSIÇÃO",VLOOKUP($C157,#REF!,3,0),IF($B157="COTAÇÃO",VLOOKUP($C157,#REF!,2,0),IF($B157="SBC",VLOOKUP($C157,#REF!,2,0),IF($B157="SICRO",VLOOKUP($C157,SICRO_02022!$A:$D,2,0),FALSE)))))))))) -> MAO-DE-OBRA DE ENGENHEIRO OU ARQUITETO SENIOR,INCLUSIVE ENCARGOS SOCIAIS | P157: =L160 -> 12 | Q157: =IF($O$6="DESONERADO",IF($D157="","",IF($B157="EMOP",VLOOKUP($D157,EMOP_CONJ_03.2026!$F:$I,3,0),IF($B157="SCO",VLOOKUP($D157,SCO_SERV_CONJ_052025!$F:$I,3,0),IF($B157="SINAPI",VLOOKUP($D157,SINAPI_SERV_CONJ_052025!$I:$M,3,0),IF($B157="COMPOSIÇÃO",VLOOKUP($D157,#REF!,7,0),IF($B157="COTAÇÃO",VLOOKUP($D157,#REF!,5,0),IF($B157="SBC",VLOOKUP($D157,#REF!,3,0),FALSE))))))),IF($O$6="NÃO DESONERADO",IF($C157="","",IF($B157="EMOP",VLOOKUP($C157,EMOP_CONJ_03.2026!$A:$D,3,0),IF($B157="SCO",VLOOKUP($C157,SCO_SERV_CONJ_052025!$A:$D,3,0),IF($B157="SINAPI",VLOOKUP($C157,SINAPI_SERV_CONJ_052025!$I:$L,3,0),IF($B157="COMPOSIÇÃO",VLOOKUP($C157,#REF!,7,0),IF($B157="COTAÇÃO",VLOOKUP($C157,#REF!,5,0),IF($B157="SBC",VLOOKUP($C157,#REF!,3,0),IF($B157="SICRO",VLOOKUP($C157,SICRO_02022!$A:$D,3,0),FALSE)))))))))) -> MES
F159: Quantidade (un) | H159: Meses | J159: Dedicação mensal (%) | L159: Total (mês)
F160: 1 | G160: x | H160: 12 | I160: x | J160: 1 | K160: = | L160: =TRUNC(F160*H160*J160,2) -> 12
A162: 3.4 | B162: EMOP | C162: 19.004.0402-0 | D162: =IF($T$6="DESONERADO",IF($B162="","",IF($C162="","",IF($B162="EMOP",VLOOKUP($C162,EMOP_CONJ_03.2026!$A:$I,6,FALSE),IF($B162="SINAPI",$C162,IF($B162="SCO",VLOOKUP($C162,SCO_SERV_CONJ_052025!$A:$F,6,FALSE),IF($B162="SBC",$C162,IF($B162="COMPOSIÇÃO",CONCATENATE($C162,"-D"),IF($B162="COTAÇÃO",$C162)))))))),FALSE) -> 19.004.0402-A | E162: =IF($O$6="DESONERADO",IF($D162="","",IF($B162="EMOP",VLOOKUP($D162,EMOP_CONJ_03.2026!$F:$I,2,0),IF($B162="SCO",VLOOKUP($D162,SCO_SERV_CONJ_052025!$F:$I,2,0),IF($B162="SINAPI",VLOOKUP($D162,SINAPI_SERV_CONJ_052025!$I:$M,2,0),IF($B162="COMPOSIÇÃO",VLOOKUP($D162,#REF!,3,FALSE),IF($B162="COTAÇÃO",VLOOKUP($D162,#REF!,2,0),IF($B162="SBC",VLOOKUP($D162,#REF!,2,0),IF($B162="SICRO",VLOOKUP($D162,SICRO_02022!$F:$I,2,0),FALSE)))))))),IF($O$6="NÃO DESONERADO",IF($C162="","",IF($B162="EMOP",VLOOKUP($C162,EMOP_CONJ_03.2026!$A:$D,2,0),IF($B162="SCO",VLOOKUP($C162,SCO_SERV_CONJ_052025!$A:$D,2,0),IF($B162="SINAPI",VLOOKUP($C162,SINAPI_SERV_CONJ_052025!$I:$L,2,0),IF($B162="COMPOSIÇÃO",VLOOKUP($C162,#REF!,3,0),IF($B162="COTAÇÃO",VLOOKUP($C162,#REF!,2,0),IF($B162="SBC",VLOOKUP($C162,#REF!,2,0),IF($B162="SICRO",VLOOKUP($C162,SICRO_02022!$A:$D,2,0),FALSE)))))))))) -> CAMIONETE TIPO PICK-UP,COM CABINE SIMPLES E CACAMBA,TIPO LEVE,MOTOR BICOMBUSTIVEL (GASOLINA E ALCOOL) DE 1,6 LITROS,INCLUSIVE MOTORISTA E COMBUSTIVEL | P162: =J165 -> 24 | Q162: =IF($O$6="DESONERADO",IF($D162="","",IF($B162="EMOP",VLOOKUP($D162,EMOP_CONJ_03.2026!$F:$I,3,0),IF($B162="SCO",VLOOKUP($D162,SCO_SERV_CONJ_052025!$F:$I,3,0),IF($B162="SINAPI",VLOOKUP($D162,SINAPI_SERV_CONJ_052025!$I:$M,3,0),IF($B162="COMPOSIÇÃO",VLOOKUP($D162,#REF!,7,0),IF($B162="COTAÇÃO",VLOOKUP($D162,#REF!,5,0),IF($B162="SBC",VLOOKUP($D162,#REF!,3,0),FALSE))))))),IF($O$6="NÃO DESONERADO",IF($C162="","",IF($B162="EMOP",VLOOKUP($C162,EMOP_CONJ_03.2026!$A:$D,3,0),IF($B162="SCO",VLOOKUP($C162,SCO_SERV_CONJ_052025!$A:$D,3,0),IF($B162="SINAPI",VLOOKUP($C162,SINAPI_SERV_CONJ_052025!$I:$L,3,0),IF($B162="COMPOSIÇÃO",VLOOKUP($C162,#REF!,7,0),IF($B162="COTAÇÃO",VLOOKUP($C162,#REF!,5,0),IF($B162="SBC",VLOOKUP($C162,#REF!,3,0),IF($B162="SICRO",VLOOKUP($C162,SICRO_02022!$A:$D,3,0),FALSE)))))))))) -> MES
F164: Quantidade (un) | H164: Meses | J164: Total (mês)
F165: 2 | G165: x | H165: 12 | I165: = | J165: =TRUNC(F165*H165,2) -> 24
A167: 4.0 | D167: =MID(C167,1,2) ->  | E167: ADMINISTRAÇÃO LOCAL | R167: =A167 -> 4.0
A168: 4.1 | B168: EMOP | C168: 05.100.0900-0 | D168: =IF($T$6="DESONERADO",IF($B168="","",IF($C168="","",IF($B168="EMOP",VLOOKUP($C168,EMOP_CONJ_03.2026!$A:$I,6,FALSE),IF($B168="SINAPI",$C168,IF($B168="SCO",VLOOKUP($C168,SCO_SERV_CONJ_052025!$A:$F,6,FALSE),IF($B168="SBC",$C168,IF($B168="COMPOSIÇÃO",CONCATENATE($C168,"-D"),IF($B168="COTAÇÃO",$C168)))))))),FALSE) -> 05.100.0900-A | E168: =IF($O$6="DESONERADO",IF($D168="","",IF($B168="EMOP",VLOOKUP($D168,EMOP_CONJ_03.2026!$F:$I,2,0),IF($B168="SCO",VLOOKUP($D168,SCO_SERV_CONJ_052025!$F:$I,2,0),IF($B168="SINAPI",VLOOKUP($D168,SINAPI_SERV_CONJ_052025!$I:$M,2,0),IF($B168="COMPOSIÇÃO",VLOOKUP($D168,#REF!,3,FALSE),IF($B168="COTAÇÃO",VLOOKUP($D168,#REF!,2,0),IF($B168="SBC",VLOOKUP($D168,#REF!,2,0),IF($B168="SICRO",VLOOKUP($D168,SICRO_02022!$F:$I,2,0),FALSE)))))))),IF($O$6="NÃO DESONERADO",IF($C168="","",IF($B168="EMOP",VLOOKUP($C168,EMOP_CONJ_03.2026!$A:$D,2,0),IF($B168="SCO",VLOOKUP($C168,SCO_SERV_CONJ_052025!$A:$D,2,0),IF($B168="SINAPI",VLOOKUP($C168,SINAPI_SERV_CONJ_052025!$I:$L,2,0),IF($B168="COMPOSIÇÃO",VLOOKUP($C168,#REF!,3,0),IF($B168="COTAÇÃO",VLOOKUP($C168,#REF!,2,0),IF($B168="SBC",VLOOKUP($C168,#REF!,2,0),IF($B168="SICRO",VLOOKUP($C168,SICRO_02022!$A:$D,2,0),FALSE)))))))))) -> UNIDADE REF.P/COMPL.ADM LOCAL,CONSID:CONSUMO AGUA,TEL.ENERGIA ELETR.MAT.LIMPEZA ESCRITORIO,COMPUTADORES LICENCA OBRA,MOVEIS UTENSILIOS,AR COND.BEBEDOURO,ART,RRT,FOTOGRAFIAS,UNIFORMES,DARIAS,EXAMES ADMISSIONAIS,PERIODICOS E DEMISSIONAIS,CURSOS CAPACITACAO/TREINAMENTO ITENS COMPLEMENTEM DESP.NECESS.EXCL.DESP.C/CAFE MANHA,REFEICAO,CESTA BASICA E VALE TRANSPORTE | Q168: =IF($O$6="DESONERADO",IF($D168="","",IF($B168="EMOP",VLOOKUP($D168,EMOP_CONJ_03.2026!$F:$I,3,0),IF($B168="SCO",VLOOKUP($D168,SCO_SERV_CONJ_052025!$F:$I,3,0),IF($B168="SINAPI",VLOOKUP($D168,SINAPI_SERV_CONJ_052025!$I:$M,3,0),IF($B168="COMPOSIÇÃO",VLOOKUP($D168,#REF!,7,0),IF($B168="COTAÇÃO",VLOOKUP($D168,#REF!,5,0),IF($B168="SBC",VLOOKUP($D168,#REF!,3,0),FALSE))))))),IF($O$6="NÃO DESONERADO",IF($C168="","",IF($B168="EMOP",VLOOKUP($C168,EMOP_CONJ_03.2026!$A:$D,3,0),IF($B168="SCO",VLOOKUP($C168,SCO_SERV_CONJ_052025!$A:$D,3,0),IF($B168="SINAPI",VLOOKUP($C168,SINAPI_SERV_CONJ_052025!$I:$L,3,0),IF($B168="COMPOSIÇÃO",VLOOKUP($C168,#REF!,7,0),IF($B168="COTAÇÃO",VLOOKUP($C168,#REF!,5,0),IF($B168="SBC",VLOOKUP($C168,#REF!,3,0),IF($B168="SICRO",VLOOKUP($C168,SICRO_02022!$A:$D,3,0),FALSE)))))))))) -> UR
C170: Aplicação | F170: Valor Serviços (R$) | H170: (%) | J170: Valor a ser medido (R$) | L170: Valor do item (R$) | N170: Total (UR)
C171: Adm Local | E171: = | F171: =TRUNC(ORÇ_ONE!K13+ORÇ_ONE!K19+ORÇ_ONE!K35,5) -> 18915368.72 | G171: x | H171: 0.04 | I171: = | J171: =TRUNC(F171*H171,5) -> 756614.7488 | K171: / | L171: =TRUNC(VLOOKUP(C168,EMOP_CONJ_03.2026!$A:$D,4,0)*(1+ORÇ_ONE!$K$8),2) -> 45.01 | M171: = | N171: =TRUNC(J171/L171,5) -> 16809.92554

Sheet ORÇ_ONE
B1: PLANILHA ORÇAMENTÁRIA
B3: OBRA: | D3: =M.CÁLCULO!B3 -> CONTRATAÇÃO DE EMPRESA ESPECIALIZADA PARA ELABORAÇÃO DE PROJETOS DE INFRAESTRUTURA
B4: LOCAL: | D4: =M.CÁLCULO!B4 -> SAQUAREMA - RJ
B5: PRAZO: | D5: =M.CÁLCULO!M5 -> 12
B6: CONTRIBUIÇÃO PREVIDENCIÁRIA: | E6: NÃO DESONERADO
B7: IO: | C7: =M.CÁLCULO!L7 -> EMOP - MARÇO/2026
J8: BDI: | K8: =COMP_BDI!C43 -> 0.2215
B10: ITEM | C10: ORIGEM | D10: CÓDIGOS | E10: DESCRIÇÃO | F10: UNID. | G10: QUANT. | H10: SEM BDI | J10: COM BDI
H11: PÇ. UNIT. S/ BDI | I11: TOTAL S/ BDI | J11: PÇ. UNIT. C/ BDI | K11: TOTAL C/ BDI
A13: SUBTOTAL | B13: 1.0 | E13: =M.CÁLCULO!E9 -> PROJETOS | I13: =SUMIF($A:$A,$B13,$I:$I) -> 12850969.82 | K13: =SUMIF($A:$A,$B13,$K:$K) -> 15697134.07
A14: =$B$13 -> 1.0 | B14: 1.1 | C14: =VLOOKUP(B14,M.CÁLCULO!$A:$P,2,0) -> EMOP | D14: =IF($E$6="NÃO DESONERADO",VLOOKUP($B14,M.CÁLCULO!$A:$Q,3,FALSE),IF($E$6="DESONERADO",VLOOKUP($B14,M.CÁLCULO!$A:$Q,4,FALSE),FALSE)) -> 01.016.0082-0 | E14: =IF($E$6="DESONERADO",IF($D14="","",IF($C14="EMOP",VLOOKUP($D14,EMOP_CONJ_03.2026!$F:$I,2,0),IF($C14="SCO",VLOOKUP($D14,SCO_SERV_CONJ_052025!$F:$I,2,0),IF($C14="SINAPI",VLOOKUP($D14,SINAPI_SERV_CONJ_052025!$I:$M,2,0),IF($C14="COMPOSIÇÃO",VLOOKUP($D14,#REF!,4,0),IF($C14="COTAÇÃO",VLOOKUP($D14,#REF!,2,0),IF($C14="SBC",VLOOKUP($D14,#REF!,2,0),IF($C14="SICRO",VLOOKUP($D14,SICRO_02022!$F:$I,2,0),FALSE)))))))),IF($E$6="NÃO DESONERADO",IF($D14="","",IF($C14="EMOP",VLOOKUP($D14,EMOP_CONJ_03.2026!$A:$D,2,0),IF($C14="SCO",VLOOKUP($D14,SCO_SERV_CONJ_052025!$A:$D,2,0),IF($C14="SINAPI",VLOOKUP($D14,SINAPI_SERV_CONJ_052025!$I:$L,2,0),IF($C14="COMPOSIÇÃO",VLOOKUP($D14,#REF!,3,0),IF($C14="COTAÇÃO",VLOOKUP($D14,#REF!,2,0),IF($C14="SBC",VLOOKUP($D14,#REF!,2,0),IF($C14="SICRO",VLOOKUP($D14,SICRO_02022!$A:$D,2,0),FALSE)))))))))) -> LEVANTAMENTO PLANIALTIMETRICO CADASTRAL DE AREA URBANA OU SUBURBANA,DESTINADA A REGULARIZACAO FUNDIARIA,PROJETOS VIARIOSE DE INFRAESTRUTURA,URBANIZAZAO E ASSEMELHADOS,UTILIZANDO POLIGONAL III PAC,DESENHO NA ESCALA DE 1:250 A 1:100 EM AREASMEDIANAMENTE OCUPADAS(ATE 50% DAS QUADRAS),EM AREAS ACIMA DE10000M2 | F14: =IF($E$6="DESONERADO",IF($D14="","",IF($C14="EMOP",VLOOKUP($D14,EMOP_CONJ_03.2026!$F:$I,3,0),IF($C14="SCO",VLOOKUP($D14,SCO_SERV_CONJ_052025!$F:$I,3,0),IF($C14="SINAPI",VLOOKUP($D14,SINAPI_SERV_CONJ_052025!$I:$M,3,0),IF($C14="COMPOSIÇÃO",VLOOKUP($D14,#REF!,7,0),IF($C14="COTAÇÃO",VLOOKUP($D14,#REF!,5,0),IF($C14="SBC",VLOOKUP($D14,#REF!,3,0),IF($C14="SICRO",VLOOKUP($D14,SICRO_02022!$F:$I,3,0),FALSE)))))))),IF($E$6="NÃO DESONERADO",IF($D14="","",IF($C14="EMOP",VLOOKUP($D14,EMOP_CONJ_03.2026!$A:$D,3,0),IF($C14="SCO",VLOOKUP($D14,SCO_SERV_CONJ_052025!$A:$D,3,0),IF($C14="SINAPI",VLOOKUP($D14,SINAPI_SERV_CONJ_052025!$I:$L,3,0),IF($C14="COMPOSIÇÃO",VLOOKUP($D14,#REF!,7,0),IF($C14="COTAÇÃO",VLOOKUP($D14,#REF!,5,0),IF($C14="SBC",VLOOKUP($D14,#REF!,3,0),FALSOSE($C14="SICRO",VLOOKUP($D14,SICRO_02022!$A:$D,3,0),FALSE)))))))))) -> M2 | G14: =VLOOKUP($B14,M.CÁLCULO!$A:$Q,16,0) -> 840000 | H14: =IF($E$6="DESONERADO",IF($D14="","",IF($C14="EMOP",VLOOKUP($D14,EMOP_CONJ_03.2026!$F:$I,4,0),IF($C14="SCO",VLOOKUP($D14,SCO_SERV_CONJ_052025!$F:$I,4,0),IF($C14="SINAPI",VLOOKUP($D14,SINAPI_SERV_CONJ_052025!$I:$M,5,0),IF($C14="COMPOSIÇÃO",VLOOKUP($D14,#REF!,9,0),IF($C14="COTAÇÃO",VLOOKUP($D14,#REF!,8,0),IF($C14="SBC",VLOOKUP($D14,#REF!,4,0),IF($C14="SICRO",VLOOKUP($D14,SICRO_02022!$F:$I,4,0),FALSE)))))))),IF($E$6="NÃO DESONERADO",IF($D14="","",IF($C14="EMOP",VLOOKUP($D14,EMOP_CONJ_03.2026!$A:$D,4,0),IF($C14="SCO",VLOOKUP($D14,SCO_SERV_CONJ_052025!$A:$D,4,0),IF($C14="SINAPI",VLOOKUP($D14,SINAPI_SERV_CONJ_052025!$I:$L,4,0),IF($C14="COMPOSIÇÃO",VLOOKUP($D14,#REF!,9,0),IF($C14="COTAÇÃO",VLOOKUP($D14,#REF!,8,0),IF($C14="SBC",VLOOKUP($D14,#REF!,4,0),IF($C14="SICRO",VLOOKUP($D14,SICRO_02022!$A:$D,4,0),FALSE)))))))))) -> 2.05 | I14: =TRUNC(G14*H14,2) -> 1722000 | J14: =TRUNC(H14*(1+$K$8),4) -> 2.504 | K14: =TRUNC(G14*J14,2) -> 2103360
A15: =$B$13 -> 1.0 | B15: 1.2 | C15: =VLOOKUP(B15,M.CÁLCULO!$A:$P,2,0) -> EMOP | D15: =IF($E$6="NÃO DESONERADO",VLOOKUP($B15,M.CÁLCULO!$A:$Q,3,FALSE),IF($E$6="DESONERADO",VLOOKUP($B15,M.CÁLCULO!$A:$Q,4,FALSE),FALSE)) -> 01.050.0157-0 | E15: =IF($E$6="DESONERADO",IF($D15="","",IF($C15="EMOP",VLOOKUP($D15,EMOP_CONJ_03.2026!$F:$I,2,0),IF($C15="SCO",VLOOKUP($D15,SCO_SERV_CONJ_052025!$F:$I,2,0),IF($C15="SINAPI",VLOOKUP($D15,SINAPI_SERV_CONJ_052025!$I:$M,2,0),IF($C15="COMPOSIÇÃO",VLOOKUP($D15,#REF!,4,0),IF($C15="COTAÇÃO",VLOOKUP($D15,#REF!,2,0),IF($C15="SBC",VLOOKUP($D15,#REF!,2,0),IF($C15="SICRO",VLOOKUP($D15,SICRO_02022!$F:$I,2,0),FALSE)))))))),IF($E$6="NÃO DESONERADO",IF($D15="","",IF($C15="EMOP",VLOOKUP($D15,EMOP_CONJ_03.2026!$A:$D,2,0),IF($C15="SCO",VLOOKUP($D15,SCO_SERV_CONJ_052025!$A:$D,2,0),IF($C15="SINAPI",VLOOKUP($D15,SINAPI_SERV_CONJ_052025!$I:$L,2,0),IF($C15="COMPOSIÇÃO",VLOOKUP($D15,#REF!,3,0),IF($C15="COTAÇÃO",VLOOKUP($D15,#REF!,2,0),IF($C15="SBC",VLOOKUP($D15,#REF!,2,0),IF($C15="SICRO",VLOOKUP($D15,SICRO_02022!$A:$D,2,0),FALSE)))))))))) -> PROJETO EXECUTIVO DE SISTEMA DE DRENAGEM ACIMA DE 20.000M2,APRESENTADO NOS PADROES DA CONTRATANTE | F15: =IF($E$6="DESONERADO",IF($D15="","",IF($C15="EMOP",VLOOKUP($D15,EMOP_CONJ_03.2026!$F:$I,3,0),IF($C15="SCO",VLOOKUP($D15,SCO_SERV_CONJ_052025!$F:$I,3,0),IF($C15="SINAPI",VLOOKUP($D15,SINAPI_SERV_CONJ_052025!$I:$M,3,0),IF($C15="COMPOSIÇÃO",VLOOKUP($D15,#REF!,7,0),IF($C15="COTAÇÃO",VLOOKUP($D15,#REF!,5,0),IF($C15="SBC",VLOOKUP($D15,#REF!,3,0),IF($C15="SICRO",VLOOKUP($D15,SICRO_02022!$F:$I,3,0),FALSE)))))))),IF($E$6="NÃO DESONERADO",IF($D15="","",IF($C15="EMOP",VLOOKUP($D15,EMOP_CONJ_03.2026!$A:$D,3,0),IF($C15="SCO",VLOOKUP($D15,SCO_SERV_CONJ_052025!$A:$D,3,0),IF($C15="SINAPI",VLOOKUP($D15,SINAPI_SERV_CONJ_052025!$I:$L,3,0),IF($C15="COMPOSIÇÃO",VLOOKUP($D15,#REF!,7,0),IF($C15="COTAÇÃO",VLOOKUP($D15,#REF!,5,0),IF($C15="SBC",VLOOKUP($D15,#REF!,3,0),FALSOSE($C15="SICRO",VLOOKUP($D15,SICRO_02022!$A:$D,3,0),FALSE)))))))))) -> M2 | G15: =VLOOKUP($B15,M.CÁLCULO!$A:$Q,16,0) -> 3500000 | H15: =IF($E$6="DESONERADO",IF($D15="","",IF($C15="EMOP",VLOOKUP($D15,EMOP_CONJ_03.2026!$F:$I,4,0),IF($C15="SCO",VLOOKUP($D15,SCO_SERV_CONJ_052025!$F:$I,4,0),IF($C15="SINAPI",VLOOKUP($D15,SINAPI_SERV_CONJ_052025!$I:$M,5,0),IF($C15="COMPOSIÇÃO",VLOOKUP($D15,#REF!,9,0),IF($C15="COTAÇÃO",VLOOKUP($D15,#REF!,8,0),IF($C15="SBC",VLOOKUP($D15,#REF!,4,0),IF($C15="SICRO",VLOOKUP($D15,SICRO_02022!$F:$I,4,0),FALSE)))))))),IF($E$6="NÃO DESONERADO",IF($D15="","",IF($C15="EMOP",VLOOKUP($D15,EMOP_CONJ_03.2026!$A:$D,4,0),IF($C15="SCO",VLOOKUP($D15,SCO_SERV_CONJ_052025!$A:$D,4,0),IF($C15="SINAPI",VLOOKUP($D15,SINAPI_SERV_CONJ_052025!$I:$L,4,0),IF($C15="COMPOSIÇÃO",VLOOKUP($D15,#REF!,9,0),IF($C15="COTAÇÃO",VLOOKUP($D15,#REF!,8,0),IF($C15="SBC",VLOOKUP($D15,#REF!,4,0),IF($C15="SICRO",VLOOKUP($D15,SICRO_02022!$A:$D,4,0),FALSE)))))))))) -> 1.05 | I15: 3675000 | J15: =TRUNC(H15*(1+$K$8),4) -> 1.2825 | K15: 4488750
A16: =$B$13 -> 1.0 | B16: 1.3 | C16: =VLOOKUP(B16,M.CÁLCULO!$A:$P,2,0) -> EMOP | D16: =IF($E$6="NÃO DESONERADO",VLOOKUP($B16,M.CÁLCULO!$A:$Q,3,FALSE),IF($E$6="DESONERADO",VLOOKUP($B16,M.CÁLCULO!$A:$Q,4,FALSE),FALSE)) -> 01.050.0165-0 | E16: =IF($E$6="DESONERADO",IF($D16="","",IF($C16="EMOP",VLOOKUP($D16,EMOP_CONJ_03.2026!$F:$I,2,0),IF($C16="SCO",VLOOKUP($D16,SCO_SERV_CONJ_052025!$F:$I,2,0),IF($C16="SINAPI",VLOOKUP($D16,SINAPI_SERV_CONJ_052025!$I:$M,2,0),IF($C16="COMPOSIÇÃO",VLOOKUP($D16,#REF!,4,0),IF($C16="COTAÇÃO",VLOOKUP($D16,#REF!,2,0),IF($C16="SBC",VLOOKUP($D16,#REF!,2,0),IF($C16="SICRO",VLOOKUP($D16,SICRO_02022!$F:$I,2,0),FALSE)))))))),IF($E$6="NÃO DESONERADO",IF($D16="","",IF($C16="EMOP",VLOOKUP($D16,EMOP_CONJ_03.2026!$A:$D,2,0),IF($C16="SCO",VLOOKUP($D16,SCO_SERV_CONJ_052025!$A:$D,2,0),IF($C16="SINAPI",VLOOKUP($D16,SINAPI_SERV_CONJ_052025!$I:$L,2,0),IF($C16="COMPOSIÇÃO",VLOOKUP($D16,#REF!,3,0),IF($C16="COTAÇÃO",VLOOKUP($D16,#REF!,2,0),IF($C16="SBC",VLOOKUP($D16,#REF!,2,0),IF($C16="SICRO",VLOOKUP($D16,SICRO_02022!$A:$D,2,0),FALSE)))))))))) -> PROJETO EXECUTIVO PARA URBANIZACAO/REURBANIZACAO (GEOMETRICO,CORTES E DETALHES) PARA TRATAMENTO PAISAGISTICO DE AREAS PUBLICAS,APRESENTADO NOS PADROES DA CONTRATANTE,INCLUSIVE AS OPERACOES PERTINENTES E A COORDENACAO DOS PROJETOS COMPLEMENTARES | F16: =IF($E$6="DESONERADO",IF($D16="","",IF($C16="EMOP",VLOOKUP($D16,EMOP_CONJ_03.2026!$F:$I,3,0),IF($C16="SCO",VLOOKUP($D16,SCO_SERV_CONJ_052025!$F:$I,3,0),IF($C16="SINAPI",VLOOKUP($D16,SINAPI_SERV_CONJ_052025!$I:$M,3,0),IF($C16="COMPOSIÇÃO",VLOOKUP($D16,#REF!,7,0),IF($C16="COTAÇÃO",VLOOKUP($D16,#REF!,5,0),IF($C16="SBC",VLOOKUP($D16,#REF!,3,0),IF($C16="SICRO",VLOOKUP($D16,SICRO_02022!$F:$I,3,0),FALSE)))))))),IF($E$6="NÃO DESONERADO",IF($D16="","",IF($C16="EMOP",VLOOKUP($D16,EMOP_CONJ_03.2026!$A:$D,3,0),IF($C16="SCO",VLOOKUP($D16,SCO_SERV_CONJ_052025!$A:$D,3,0),IF($C16="SINAPI",VLOOKUP($D16,SINAPI_SERV_CONJ_052025!$I:$L,3,0),IF($C16="COMPOSIÇÃO",VLOOKUP($D16,#REF!,7,0),IF($C16="COTAÇÃO",VLOOKUP($D16,#REF!,5,0),IF($C16="SBC",VLOOKUP($D16,#REF!,3,0),FALSOSE($C16="SICRO",VLOOKUP($D16,SICRO_02022!$A:$D,3,0),FALSE)))))))))) -> HA | G16: =VLOOKUP($B16,M.CÁLCULO!$A:$Q,16,0) -> 70 | H16: =IF($E$6="DESONERADO",IF($D16="","",IF($C16="EMOP",VLOOKUP($D16,EMOP_CONJ_03.2026!$F:$I,4,0),IF($C16="SCO",VLOOKUP($D16,SCO_SERV_CONJ_052025!$F:$I,4,0),IF($C16="SINAPI",VLOOKUP($D16,SINAPI_SERV_CONJ_052025!$I:$M,5,0),IF($C16="COMPOSIÇÃO",VLOOKUP($D16,#REF!,9,0),IF($C16="COTAÇÃO",VLOOKUP($D16,#REF!,8,0),IF($C16="SBC",VLOOKUP($D16,#REF!,4,0),IF($C16="SICRO",VLOOKUP($D16,SICRO_02022!$F:$I,4,0),FALSE)))))))),IF($E$6="NÃO DESONERADO",IF($D16="","",IF($C16="EMOP",VLOOKUP($D16,EMOP_CONJ_03.2026!$A:$D,4,0),IF($C16="SCO",VLOOKUP($D16,SCO_SERV_CONJ_052025!$A:$D,4,0),IF($C16="SINAPI",VLOOKUP($D16,SINAPI_SERV_CONJ_052025!$I:$L,4,0),IF($C16="COMPOSIÇÃO",VLOOKUP($D16,#REF!,9,0),IF($C16="COTAÇÃO",VLOOKUP($D16,#REF!,8,0),IF($C16="SBC",VLOOKUP($D16,#REF!,4,0),IF($C16="SICRO",VLOOKUP($D16,SICRO_02022!$A:$D,4,0),FALSE)))))))))) -> 74203.22 | I16: 5194225.4 | J16: 90639.2332 | K16: 6344746.32
A17: =$B$13 -> 1.0 | B17: 1.4 | C17: =VLOOKUP(B17,M.CÁLCULO!$A:$P,2,0) -> EMOP | D17: =IF($E$6="NÃO DESONERADO",VLOOKUP($B17,M.CÁLCULO!$A:$Q,3,FALSE),IF($E$6="DESONERADO",VLOOKUP($B17,M.CÁLCULO!$A:$Q,4,FALSE),FALSE)) -> 01.050.0300-0 | E17: =IF($E$6="DESONERADO",IF($D17="","",IF($C17="EMOP",VLOOKUP($D17,EMOP_CONJ_03.2026!$F:$I,2,0),IF($C17="SCO",VLOOKUP($D17,SCO_SERV_CONJ_052025!$F:$I,2,0),IF($C17="SINAPI",VLOOKUP($D17,SINAPI_SERV_CONJ_052025!$I:$M,2,0),IF($C17="COMPOSIÇÃO",VLOOKUP($D17,#REF!,4,0),IF($C17="COTAÇÃO",VLOOKUP($D17,#REF!,2,0),IF($C17="SBC",VLOOKUP($D17,#REF!,2,0),IF($C17="SICRO",VLOOKUP($D17,SICRO_02022!$F:$I,2,0),FALSE)))))))),IF($E$6="NÃO DESONERADO",IF($D17="","",IF($C17="EMOP",VLOOKUP($D17,EMOP_CONJ_03.2026!$A:$D,2,0),IF($C17="SCO",VLOOKUP($D17,SCO_SERV_CONJ_052025!$A:$D,2,0),IF($C17="SINAPI",VLOOKUP($D17,SINAPI_SERV_CONJ_052025!$I:$L,2,0),IF($C17="COMPOSIÇÃO",VLOOKUP($D17,#REF!,3,0),IF($C17="COTAÇÃO",VLOOKUP($D17,#REF!,2,0),IF($C17="SBC",VLOOKUP($D17,#REF!,2,0),IF($C17="SICRO",VLOOKUP($D17,SICRO_02022!$A:$D,2,0),FALSE)))))))))) -> RELATORIO FINAL DE OBRAS OU SERVICOS DE ENGENHARIA,REGISTROFOTOGRAFICO DOS SERVICOS,ACOMPANHADO DE LEGENDAS E INDICACAODA LOCALIZACAO,INFORMACOES CONTRATUAIS,PLANILHA ORCAMENTARIA E DESCRICAO DO ESCOPO DOS SERVICOS REALIZADOS,CONF.RECOMENDACOES E ESPECIFICACOES DO ORGAO CONTRATANTE.O ITEM DEVERA SER MEDIDO PELO NUMERO PRANCHAS ORIGINAIS COMPOE RELATORIO | F17: =IF($E$6="DESONERADO",IF($D17="","",IF($C17="EMOP",VLOOKUP($D17,EMOP_CONJ_03.2026!$F:$I,3,0),IF($C17="SCO",VLOOKUP($D17,SCO_SERV_CONJ_052025!$F:$I,3,0),IF($C17="SINAPI",VLOOKUP($D17,SINAPI_SERV_CONJ_052025!$I:$M,3,0),IF($C17="COMPOSIÇÃO",VLOOKUP($D17,#REF!,7,0),IF($C17="COTAÇÃO",VLOOKUP($D17,#REF!,5,0),IF($C17="SBC",VLOOKUP($D17,#REF!,3,0),IF($C17="SICRO",VLOOKUP($D17,SICRO_02022!$F:$I,3,0),FALSE)))))))),IF($E$6="NÃO DESONERADO",IF($D17="","",IF($C17="EMOP",VLOOKUP($D17,EMOP_CONJ_03.2026!$A:$D,3,0),IF($C17="SCO",VLOOKUP($D17,SCO_SERV_CONJ_052025!$A:$D,3,0),IF($C17="SINAPI",VLOOKUP($D17,SINAPI_SERV_CONJ_052025!$I:$L,3,0),IF($C17="COMPOSIÇÃO",VLOOKUP($D17,#REF!,7,0),IF($C17="COTAÇÃO",VLOOKUP($D17,#REF!,5,0),IF($C17="SBC",VLOOKUP($D17,#REF!,3,0),FALSOSE($C17="SICRO",VLOOKUP($D17,SICRO_02022!$A:$D,3,0),FALSE)))))))))) -> UN | G17: =VLOOKUP($B17,M.CÁLCULO!$A:$Q,16,0) -> 630 | H17: =IF($E$6="DESONERADO",IF($D17="","",IF($C17="EMOP",VLOOKUP($D17,EMOP_CONJ_03.2026!$F:$I,4,0),IF($C17="SCO",VLOOKUP($D17,SCO_SERV_CONJ_052025!$F:$I,4,0),IF($C17="SINAPI",VLOOKUP($D17,SINAPI_SERV_CONJ_052025!$I:$M,5,0),IF($C17="COMPOSIÇÃO",VLOOKUP($D17,#REF!,9,0),IF($C17="COTAÇÃO",VLOOKUP($D17,#REF!,8,0),IF($C17="SBC",VLOOKUP($D17,#REF!,4,0),IF($C17="SICRO",VLOOKUP($D17,SICRO_02022!$F:$I,4,0),FALSE)))))))),IF($E$6="NÃO DESONERADO",IF($D17="","",IF($C17="EMOP",VLOOKUP($D17,EMOP_CONJ_03.2026!$A:$D,4,0),IF($C17="SCO",VLOOKUP($D17,SCO_SERV_CONJ_052025!$A:$D,4,0),IF($C17="SINAPI",VLOOKUP($D17,SINAPI_SERV_CONJ_052025!$I:$L,4,0),IF($C17="COMPOSIÇÃO",VLOOKUP($D17,#REF!,9,0),IF($C17="COTAÇÃO",VLOOKUP($D17,#REF!,8,0),IF($C17="SBC",VLOOKUP($D17,#REF!,4,0),IF($C17="SICRO",VLOOKUP($D17,SICRO_02022!$A:$D,4,0),FALSE)))))))))) -> 2207.19 | I17: 1390529.7 | J17: 2696.0825 | K17: 1698531.97
A18: =$B$13 -> 1.0 | B18: 1.5 | C18: =VLOOKUP(B18,M.CÁLCULO!$A:$P,2,0) -> EMOP | D18: =IF($E$6="NÃO DESONERADO",VLOOKUP($B18,M.CÁLCULO!$A:$Q,3,FALSE),IF($E$6="DESONERADO",VLOOKUP($B18,M.CÁLCULO!$A:$Q,4,FALSE),FALSE)) -> 01.050.0724-0 | E18: =IF($E$6="DESONERADO",IF($D18="","",IF($C18="EMOP",VLOOKUP($D18,EMOP_CONJ_03.2026!$F:$I,2,0),IF($C18="SCO",VLOOKUP($D18,SCO_SERV_CONJ_052025!$F:$I,2,0),IF($C18="SINAPI",VLOOKUP($D18,SINAPI_SERV_CONJ_052025!$I:$M,2,0),IF($C18="COMPOSIÇÃO",VLOOKUP($D18,#REF!,4,0),IF($C18="COTAÇÃO",VLOOKUP($D18,#REF!,2,0),IF($C18="SBC",VLOOKUP($D18,#REF!,2,0),IF($C18="SICRO",VLOOKUP($D18,SICRO_02022!$F:$I,2,0),FALSE)))))))),IF($E$6="NÃO DESONERADO",IF($D18="","",IF($C18="EMOP",VLOOKUP($D18,EMOP_CONJ_03.2026!$A:$D,2,0),IF($C18="SCO",VLOOKUP($D18,SCO_SERV_CONJ_052025!$A:$D,2,0),IF($C18="SINAPI",VLOOKUP($D18,SINAPI_SERV_CONJ_052025!$I:$L,2,0),IF($C18="COMPOSIÇÃO",VLOOKUP($D18,#REF!,3,0),IF($C18="COTAÇÃO",VLOOKUP($D18,#REF!,2,0),IF($C18="SBC",VLOOKUP($D18,#REF!,2,0),IF($C18="SICRO",VLOOKUP($D18,SICRO_02022!$A:$D,2,0),FALSE)))))))))) -> MAO-DE-OBRA DE CONSULTOR,PARA SERVICOS DE CONSULTORIA DE ENGENHARIA E ARQUITETURA,INCLUSIVE ENCARGOS SOCIAIS | F18: =IF($E$6="DESONERADO",IF($D18="","",IF($C18="EMOP",VLOOKUP($D18,EMOP_CONJ_03.2026!$F:$I,3,0),IF($C18="SCO",VLOOKUP($D18,SCO_SERV_CONJ_052025!$F:$I,3,0),IF($C18="SINAPI",VLOOKUP($D18,SINAPI_SERV_CONJ_052025!$I:$M,3,0),IF($C18="COMPOSIÇÃO",VLOOKUP($D18,#REF!,7,0),IF($C18="COTAÇÃO",VLOOKUP($D18,#REF!,5,0),IF($C18="SBC",VLOOKUP($D18,#REF!,3,0),IF($C18="SICRO",VLOOKUP($D18,SICRO_02022!$F:$I,3,0),FALSE)))))))),IF($E$6="NÃO DESONERADO",IF($D18="","",IF($C18="EMOP",VLOOKUP($D18,EMOP_CONJ_03.2026!$A:$D,3,0),IF($C18="SCO",VLOOKUP($D18,SCO_SERV_CONJ_052025!$A:$D,3,0),IF($C18="SINAPI",VLOOKUP($D18,SINAPI_SERV_CONJ_052025!$I:$L,3,0),IF($C18="COMPOSIÇÃO",VLOOKUP($D18,#REF!,7,0),IF($C18="COTAÇÃO",VLOOKUP($D18,#REF!,5,0),IF($C18="SBC",VLOOKUP($D18,#REF!,3,0),FALSOSE($C18="SICRO",VLOOKUP($D18,SICRO_02022!$A:$D,3,0),FALSE)))))))))) -> MES | G18: =VLOOKUP($B18,M.CÁLCULO!$A:$Q,16,0) -> 12 | H18: =IF($E$6="DESONERADO",IF($D18="","",IF($C18="EMOP",VLOOKUP($D18,EMOP_CONJ_03.2026!$F:$I,4,0),IF($C18="SCO",VLOOKUP($D18,SCO_SERV_CONJ_052025!$F:$I,4,0),IF($C18="SINAPI",VLOOKUP($D18,SINAPI_SERV_CONJ_052025!$I:$M,5,0),IF($C18="COMPOSIÇÃO",VLOOKUP($D18,#REF!,9,0),IF($C18="COTAÇÃO",VLOOKUP($D18,#REF!,8,0),IF($C18="SBC",VLOOKUP($D18,#REF!,4,0),IF($C18="SICRO",VLOOKUP($D18,SICRO_02022!$F:$I,4,0),FALSE)))))))),IF($E$6="NÃO DESONERADO",IF($D18="","",IF($C18="EMOP",VLOOKUP($D18,EMOP_CONJ_03.2026!$A:$D,4,0),IF($C18="SCO",VLOOKUP($D18,SCO_SERV_CONJ_052025!$A:$D,4,0),IF($C18="SINAPI",VLOOKUP($D18,SINAPI_SERV_CONJ_052025!$I:$L,4,0),IF($C18="COMPOSIÇÃO",VLOOKUP($D18,#REF!,9,0),IF($C18="COTAÇÃO",VLOOKUP($D18,#REF!,8,0),IF($C18="SBC",VLOOKUP($D18,#REF!,4,0),IF($C18="SICRO",VLOOKUP($D18,SICRO_02022!$A:$D,4,0),FALSE)))))))))) -> 72434.56 | I18: 869214.72 | J18: 88478.815 | K18: 1061745.78
A19: SUBTOTAL | B19: 2.0 | E19: =M.CÁLCULO!E39 -> CONTROLE TECNOLÓGICO | I19: =SUMIF($A:$A,$B19,$I:$I) -> 1487197.41 | K19: =SUMIF($A:$A,$B19,$K:$K) -> 1816611.37
A20: 2.0 | B20: 2.1 | C20: =VLOOKUP(B20,M.CÁLCULO!$A:$P,2,0) -> EMOP | D20: =IF($E$6="NÃO DESONERADO",VLOOKUP($B20,M.CÁLCULO!$A:$Q,3,FALSE),IF($E$6="DESONERADO",VLOOKUP($B20,M.CÁLCULO!$A:$Q,4,FALSE),FALSE)) -> 01.001.0040-0 | E20: =IF($E$6="DESONERADO",IF($D20="","",IF($C20="EMOP",VLOOKUP($D20,EMOP_CONJ_03.2026!$F:$I,2,0),IF($C20="SCO",VLOOKUP($D20,SCO_SERV_CONJ_052025!$F:$I,2,0),IF($C20="SINAPI",VLOOKUP($D20,SINAPI_SERV_CONJ_052025!$I:$M,2,0),IF($C20="COMPOSIÇÃO",VLOOKUP($D20,#REF!,4,0),IF($C20="COTAÇÃO",VLOOKUP($D20,#REF!,2,0),IF($C20="SBC",VLOOKUP($D20,#REF!,2,0),IF($C20="SICRO",VLOOKUP($D20,SICRO_02022!$F:$I,2,0),FALSE)))))))),IF($E$6="NÃO DESONERADO",IF($D20="","",IF($C20="EMOP",VLOOKUP($D20,EMOP_CONJ_03.2026!$A:$D,2,0),IF($C20="SCO",VLOOKUP($D20,SCO_SERV_CONJ_052025!$A:$D,2,0),IF($C20="SINAPI",VLOOKUP($D20,SINAPI_SERV_CONJ_052025!$I:$L,2,0),IF($C20="COMPOSIÇÃO",VLOOKUP($D20,#REF!,3,0),IF($C20="COTAÇÃO",VLOOKUP($D20,#REF!,2,0),IF($C20="SBC",VLOOKUP($D20,#REF!,2,0),IF($C20="SICRO",VLOOKUP($D20,SICRO_02022!$A:$D,2,0),FALSE)))))))))) -> SONDAGEM MANUAL,COM TRADO CAVADEIRA,POR METRO LINEAR OU FRACAO | F20: =IF($E$6="DESONERADO",IF($D20="","",IF($C20="EMOP",VLOOKUP($D20,EMOP_CONJ_03.2026!$F:$I,3,0),IF($C20="SCO",VLOOKUP($D20,SCO_SERV_CONJ_052025!$F:$I,3,0),IF($C20="SINAPI",VLOOKUP($D20,SINAPI_SERV_CONJ_052025!$I:$M,3,0),IF($C20="COMPOSIÇÃO",VLOOKUP($D20,#REF!,7,0),IF($C20="COTAÇÃO",VLOOKUP($D20,#REF!,5,0),IF($C20="SBC",VLOOKUP($D20,#REF!,3,0),IF($C20="SICRO",VLOOKUP($D20,SICRO_02022!$F:$I,3,0),FALSE)))))))),IF($E$6="NÃO DESONERADO",IF($D20="","",IF($C20="EMOP",VLOOKUP($D20,EMOP_CONJ_03.2026!$A:$D,3,0),IF($C20="SCO",VLOOKUP($D20,SCO_SERV_CONJ_052025!$A:$D,3,0),IF($C20="SINAPI",VLOOKUP($D20,SINAPI_SERV_CONJ_052025!$I:$L,3,0),IF($C20="COMPOSIÇÃO",VLOOKUP($D20,#REF!,7,0),IF($C20="COTAÇÃO",VLOOKUP($D20,#REF!,5,0),IF($C20="SBC",VLOOKUP($D20,#REF!,3,0),FALSOSE($C20="SICRO",VLOOKUP($D20,SICRO_02022!$A:$D,3,0),FALSE)))))))))) -> M | G20: =VLOOKUP($B20,M.CÁLCULO!$A:$Q,16,0) -> 466 | H20: =IF($E$6="DESONERADO",IF($D20="","",IF($C20="EMOP",VLOOKUP($D20,EMOP_CONJ_03.2026!$F:$I,4,0),IF($C20="SCO",VLOOKUP($D20,SCO_SERV_CONJ_052025!$F:$I,4,0),IF($C20="SINAPI",VLOOKUP($D20,SINAPI_SERV_CONJ_052025!$I:$M,5,0),IF($C20="COMPOSIÇÃO",VLOOKUP($D20,#REF!,9,0),IF($C20="COTAÇÃO",VLOOKUP($D20,#REF!,8,0),IF($C20="SBC",VLOOKUP($D20,#REF!,4,0),IF($C20="SICRO",VLOOKUP($D20,SICRO_02022!$F:$I,4,0),FALSE)))))))),IF($E$6="NÃO DESONERADO",IF($D20="","",IF($C20="EMOP",VLOOKUP($D20,EMOP_CONJ_03.2026!$A:$D,4,0),IF($C20="SCO",VLOOKUP($D20,SCO_SERV_CONJ_052025!$A:$D,4,0),IF($C20="SINAPI",VLOOKUP($D20,SINAPI_SERV_CONJ_052025!$I:$L,4,0),IF($C20="COMPOSIÇÃO",VLOOKUP($D20,#REF!,9,0),IF($C20="COTAÇÃO",VLOOKUP($D20,#REF!,8,0),IF($C20="SBC",VLOOKUP($D20,#REF!,4,0),IF($C20="SICRO",VLOOKUP($D20,SICRO_02022!$A:$D,4,0),FALSE)))))))))) -> 219.25 | I20: 102170.5 | J20: =TRUNC(H20*(1+$K$8),4) -> 267.8138 | K20: 124801.23
A21: 2.0 | B21: 2.2 | C21: =VLOOKUP(B21,M.CÁLCULO!$A:$P,2,0) -> EMOP | D21: =IF($E$6="NÃO DESONERADO",VLOOKUP($B21,M.CÁLCULO!$A:$Q,3,FALSE),IF($E$6="DESONERADO",VLOOKUP($B21,M.CÁLCULO!$A:$Q,4,FALSE),FALSE)) -> 01.001.0042-0 | E21: =IF($E$6="DESONERADO",IF($D21="","",IF($C21="EMOP",VLOOKUP($D21,EMOP_CONJ_03.2026!$F:$I,2,0),IF($C21="SCO",VLOOKUP($D21,SCO_SERV_CONJ_052025!$F:$I,2,0),IF($C21="SINAPI",VLOOKUP($D21,SINAPI_SERV_CONJ_052025!$I:$M,2,0),IF($C21="COMPOSIÇÃO",VLOOKUP($D21,#REF!,4,0),IF($C21="COTAÇÃO",VLOOKUP($D21,#REF!,2,0),IF($C21="SBC",VLOOKUP($D21,#REF!,2,0),IF($C21="SICRO",VLOOKUP($D21,SICRO_02022!$F:$I,2,0),FALSE)))))))),IF($E$6="NÃO DESONERADO",IF($D21="","",IF($C21="EMOP",VLOOKUP($D21,EMOP_CONJ_03.2026!$A:$D,2,0),IF($C21="SCO",VLOOKUP($D21,SCO_SERV_CONJ_052025!$A:$D,2,0),IF($C21="SINAPI",VLOOKUP($D21,SINAPI_SERV_CONJ_052025!$I:$L,2,0),IF($C21="COMPOSIÇÃO",VLOOKUP($D21,#REF!,3,0),IF($C21="COTAÇÃO",VLOOKUP($D21,#REF!,2,0),IF($C21="SBC",VLOOKUP($D21,#REF!,2,0),IF($C21="SICRO",VLOOKUP($D21,SICRO_02022!$A:$D,2,0),FALSE)))))))))) -> SONDAGEM MANUAL,COM PA E PICARETA,POR METRO LINEAR OU FRACAO | F21: =IF($E$6="DESONERADO",IF($D21="","",IF($C21="EMOP",VLOOKUP($D21,EMOP_CONJ_03.2026!$F:$I,3,0),IF($C21="SCO",VLOOKUP($D21,SCO_SERV_CONJ_052025!$F:$I,3,0),IF($C21="SINAPI",VLOOKUP($D21,SINAPI_SERV_CONJ_052025!$I:$M,3,0),IF($C21="COMPOSIÇÃO",VLOOKUP($D21,#REF!,7,0),IF($C21="COTAÇÃO",VLOOKUP($D21,#REF!,5,0),IF($C21="SBC",VLOOKUP($D21,#REF!,3,0),IF($C21="SICRO",VLOOKUP($D21,SICRO_02022!$F:$I,3,0),FALSE)))))))),IF($E$6="NÃO DESONERADO",IF($D21="","",IF($C21="EMOP",VLOOKUP($D21,EMOP_CONJ_03.2026!$A:$D,3,0),IF($C21="SCO",VLOOKUP($D21,SCO_SERV_CONJ_052025!$A:$D,3,0),IF($C21="SINAPI",VLOOKUP($D21,SINAPI_SERV_CONJ_052025!$I:$L,3,0),IF($C21="COMPOSIÇÃO",VLOOKUP($D21,#REF!,7,0),IF($C21="COTAÇÃO",VLOOKUP($D21,#REF!,5,0),IF($C21="SBC",VLOOKUP($D21,#REF!,3,0),FALSOSE($C21="SICRO",VLOOKUP($D21,SICRO_02022!$A:$D,3,0),FALSE)))))))))) -> M | G21: =VLOOKUP($B21,M.CÁLCULO!$A:$Q,16,0) -> 233 | H21: =IF($E$6="DESONERADO",IF($D21="","",IF($C21="EMOP",VLOOKUP($D21,EMOP_CONJ_03.2026!$F:$I,4,0),IF($C21="SCO",VLOOKUP($D21,SCO_SERV_CONJ_052025!$F:$I,4,0),IF($C21="SINAPI",VLOOKUP($D21,SINAPI_SERV_CONJ_052025!$I:$M,5,0),IF($C21="COMPOSIÇÃO",VLOOKUP($D21,#REF!,9,0),IF($C21="COTAÇÃO",VLOOKUP($D21,#REF!,8,0),IF($C21="SBC",VLOOKUP($D21,#REF!,4,0),IF($C21="SICRO",VLOOKUP($D21,SICRO_02022!$F:$I,4,0),FALSE)))))))),IF($E$6="NÃO DESONERADO",IF($D21="","",IF($C21="EMOP",VLOOKUP($D21,EMOP_CONJ_03.2026!$A:$D,4,0),IF($C21="SCO",VLOOKUP($D21,SCO_SERV_CONJ_052025!$A:$D,4,0),IF($C21="SINAPI",VLOOKUP($D21,SINAPI_SERV_CONJ_052025!$I:$L,4,0),IF($C21="COMPOSIÇÃO",VLOOKUP($D21,#REF!,9,0),IF($C21="COTAÇÃO",VLOOKUP($D21,#REF!,8,0),IF($C21="SBC",VLOOKUP($D21,#REF!,4,0),IF($C21="SICRO",VLOOKUP($D21,SICRO_02022!$A:$D,4,0),FALSE)))))))))) -> 228.03 | I21: 53130.99 | J21: 278.5386 | K21: 64899.49
A22: 2.0 | B22: 2.3 | C22: =VLOOKUP(B22,M.CÁLCULO!$A:$P,2,0) -> EMOP | D22: =IF($E$6="NÃO DESONERADO",VLOOKUP($B22,M.CÁLCULO!$A:$Q,3,FALSE),IF($E$6="DESONERADO",VLOOKUP($B22,M.CÁLCULO!$A:$Q,4,FALSE),FALSE)) -> 01.001.0060-0 | E22: =IF($E$6="DESONERADO",IF($D22="","",IF($C22="EMOP",VLOOKUP($D22,EMOP_CONJ_03.2026!$F:$I,2,0),IF($C22="SCO",VLOOKUP($D22,SCO_SERV_CONJ_052025!$F:$I,2,0),IF($C22="SINAPI",VLOOKUP($D22,SINAPI_SERV_CONJ_052025!$I:$M,2,0),IF($C22="COMPOSIÇÃO",VLOOKUP($D22,#REF!,4,0),IF($C22="COTAÇÃO",VLOOKUP($D22,#REF!,2,0),IF($C22="SBC",VLOOKUP($D22,#REF!,2,0),IF($C22="SICRO",VLOOKUP($D22,SICRO_02022!$F:$I,2,0),FALSE)))))))),IF($E$6="NÃO DESONERADO",IF($D22="","",IF($C22="EMOP",VLOOKUP($D22,EMOP_CONJ_03.2026!$A:$D,2,0),IF($C22="SCO",VLOOKUP($D22,SCO_SERV_CONJ_052025!$A:$D,2,0),IF($C22="SINAPI",VLOOKUP($D22,SINAPI_SERV_CONJ_052025!$I:$L,2,0),IF($C22="COMPOSIÇÃO",VLOOKUP($D22,#REF!,3,0),IF($C22="COTAÇÃO",VLOOKUP($D22,#REF!,2,0),IF($C22="SBC",VLOOKUP($D22,#REF!,2,0),IF($C22="SICRO",VLOOKUP($D22,SICRO_02022!$A:$D,2,0),FALSE)))))))))) -> AMOSTRA DE SOLO - PREPARACAO PARA ENSAIOS DE COMPACTACAO E ENSAIOS DE CARACTERIZACAO | F22: =IF($E$6="DESONERADO",IF($D22="","",IF($C22="EMOP",VLOOKUP($D22,EMOP_CONJ_03.2026!$F:$I,3,0),IF($C22="SCO",VLOOKUP($D22,SCO_SERV_CONJ_052025!$F:$I,3,0),IF($C22="SINAPI",VLOOKUP($D22,SINAPI_SERV_CONJ_052025!$I:$M,3,0),IF($C22="COMPOSIÇÃO",VLOOKUP($D22,#REF!,7,0),IF($C22="COTAÇÃO",VLOOKUP($D22,#REF!,5,0),IF($C22="SBC",VLOOKUP($D22,#REF!,3,0),IF($C22="SICRO",VLOOKUP($D22,SICRO_02022!$F:$I,3,0),FALSE)))))))),IF($E$6="NÃO DESONERADO",IF($D22="","",IF($C22="EMOP",VLOOKUP($D22,EMOP_CONJ_03.2026!$A:$D,3,0),IF($C22="SCO",VLOOKUP($D22,SCO_SERV_CONJ_052025!$A:$D,3,0),IF($C22="SINAPI",VLOOKUP($D22,SINAPI_SERV_CONJ_052025!$I:$L,3,0),IF($C22="COMPOSIÇÃO",VLOOKUP($D22,#REF!,7,0),IF($C22="COTAÇÃO",VLOOKUP($D22,#REF!,5,0),IF($C22="SBC",VLOOKUP($D22,#REF!,3,0),FALSOSE($C22="SICRO",VLOOKUP($D22,SICRO_02022!$A:$D,3,0),FALSE)))))))))) -> UN | G22: =VLOOKUP($B22,M.CÁLCULO!$A:$Q,16,0) -> 155 | H22: =IF($E$6="DESONERADO",IF($D22="","",IF($C22="EMOP",VLOOKUP($D22,EMOP_CONJ_03.2026!$F:$I,4,0),IF($C22="SCO",VLOOKUP($D22,SCO_SERV_CONJ_052025!$F:$I,4,0),IF($C22="SINAPI",VLOOKUP($D22,SINAPI_SERV_CONJ_052025!$I:$M,5,0),IF($C22="COMPOSIÇÃO",VLOOKUP($D22,#REF!,9,0),IF($C22="COTAÇÃO",VLOOKUP($D22,#REF!,8,0),IF($C22="SBC",VLOOKUP($D22,#REF!,4,0),IF($C22="SICRO",VLOOKUP($D22,SICRO_02022!$F:$I,4,0),FALSE)))))))),IF($E$6="NÃO DESONERADO",IF($D22="","",IF($C22="EMOP",VLOOKUP($D22,EMOP_CONJ_03.2026!$A:$D,4,0),IF($C22="SCO",VLOOKUP($D22,SCO_SERV_CONJ_052025!$A:$D,4,0),IF($C22="SINAPI",VLOOKUP($D22,SINAPI_SERV_CONJ_052025!$I:$L,4,0),IF($C22="COMPOSIÇÃO",VLOOKUP($D22,#REF!,9,0),IF($C22="COTAÇÃO",VLOOKUP($D22,#REF!,8,0),IF($C22="SBC",VLOOKUP($D22,#REF!,4,0),IF($C22="SICRO",VLOOKUP($D22,SICRO_02022!$A:$D,4,0),FALSE)))))))))) -> 619.08 | I22: =TRUNC(G22*H22,2) -> 95957.4 | J22: 756.2062 | K22: =TRUNC(G22*J22,2) -> 117211.96
A23: 2.0 | B23: 2.4 | C23: =VLOOKUP(B23,M.CÁLCULO!$A:$P,2,0) -> EMOP | D23: =IF($E$6="NÃO DESONERADO",VLOOKUP($B23,M.CÁLCULO!$A:$Q,3,FALSE),IF($E$6="DESONERADO",VLOOKUP($B23,M.CÁLCULO!$A:$Q,4,FALSE),FALSE)) -> 01.001.0001-0 | E23: =IF($E$6="DESONERADO",IF($D23="","",IF($C23="EMOP",VLOOKUP($D23,EMOP_CONJ_03.2026!$F:$I,2,0),IF($C23="SCO",VLOOKUP($D23,SCO_SERV_CONJ_052025!$F:$I,2,0),IF($C23="SINAPI",VLOOKUP($D23,SINAPI_SERV_CONJ_052025!$I:$M,2,0),IF($C23="COMPOSIÇÃO",VLOOKUP($D23,#REF!,4,0),IF($C23="COTAÇÃO",VLOOKUP($D23,#REF!,2,0),IF($C23="SBC",VLOOKUP($D23,#REF!,2,0),IF($C23="SICRO",VLOOKUP($D23,SICRO_02022!$F:$I,2,0),FALSE)))))))),IF($E$6="NÃO DESONERADO",IF($D23="","",IF($C23="EMOP",VLOOKUP($D23,EMOP_CONJ_03.2026!$A:$D,2,0),IF($C23="SCO",VLOOKUP($D23,SCO_SERV_CONJ_052025!$A:$D,2,0),IF($C23="SINAPI",VLOOKUP($D23,SINAPI_SERV_CONJ_052025!$I:$L,2,0),IF($C23="COMPOSIÇÃO",VLOOKUP($D23,#REF!,3,0),IF($C23="COTAÇÃO",VLOOKUP($D23,#REF!,2,0),IF($C23="SBC",VLOOKUP($D23,#REF!,2,0),IF($C23="SICRO",VLOOKUP($D23,SICRO_02022!$A:$D,2,0),FALSE)))))))))) -> LIMITE DE PLASTICIDADE | F23: =IF($E$6="DESONERADO",IF($D23="","",IF($C23="EMOP",VLOOKUP($D23,EMOP_CONJ_03.2026!$F:$I,3,0),IF($C23="SCO",VLOOKUP($D23,SCO_SERV_CONJ_052025!$F:$I,3,0),IF($C23="SINAPI",VLOOKUP($D23,SINAPI_SERV_CONJ_052025!$I:$M,3,0),IF($C23="COMPOSIÇÃO",VLOOKUP($D23,#REF!,7,0),IF($C23="COTAÇÃO",VLOOKUP($D23,#REF!,5,0),IF($C23="SBC",VLOOKUP($D23,#REF!,3,0),IF($C23="SICRO",VLOOKUP($D23,SICRO_02022!$F:$I,3,0),FALSE)))))))),IF($E$6="NÃO DESONERADO",IF($D23="","",IF($C23="EMOP",VLOOKUP($D23,EMOP_CONJ_03.2026!$A:$D,3,0),IF($C23="SCO",VLOOKUP($D23,SCO_SERV_CONJ_052025!$A:$D,3,0),IF($C23="SINAPI",VLOOKUP($D23,SINAPI_SERV_CONJ_052025!$I:$L,3,0),IF($C23="COMPOSIÇÃO",VLOOKUP($D23,#REF!,7,0),IF($C23="COTAÇÃO",VLOOKUP($D23,#REF!,5,0),IF($C23="SBC",VLOOKUP($D23,#REF!,3,0),FALSOSE($C23="SICRO",VLOOKUP($D23,SICRO_02022!$A:$D,3,0),FALSE)))))))))) -> UN | G23: =VLOOKUP($B23,M.CÁLCULO!$A:$Q,16,0) -> 155 | H23: =IF($E$6="DESONERADO",IF($D23="","",IF($C23="EMOP",VLOOKUP($D23,EMOP_CONJ_03.2026!$F:$I,4,0),IF($C23="SCO",VLOOKUP($D23,SCO_SERV_CONJ_052025!$F:$I,4,0),IF($C23="SINAPI",VLOOKUP($D23,SINAPI_SERV_CONJ_052025!$I:$M,5,0),IF($C23="COMPOSIÇÃO",VLOOKUP($D23,#REF!,9,0),IF($C23="COTAÇÃO",VLOOKUP($D23,#REF!,8,0),IF($C23="SBC",VLOOKUP($D23,#REF!,4,0),IF($C23="SICRO",VLOOKUP($D23,SICRO_02022!$F:$I,4,0),FALSE)))))))),IF($E$6="NÃO DESONERADO",IF($D23="","",IF($C23="EMOP",VLOOKUP($D23,EMOP_CONJ_03.2026!$A:$D,4,0),IF($C23="SCO",VLOOKUP($D23,SCO_SERV_CONJ_052025!$A:$D,4,0),IF($C23="SINAPI",VLOOKUP($D23,SINAPI_SERV_CONJ_052025!$I:$L,4,0),IF($C23="COMPOSIÇÃO",VLOOKUP($D23,#REF!,9,0),IF($C23="COTAÇÃO",VLOOKUP($D23,#REF!,8,0),IF($C23="SBC",VLOOKUP($D23,#REF!,4,0),IF($C23="SICRO",VLOOKUP($D23,SICRO_02022!$A:$D,4,0),FALSE)))))))))) -> 205.08 | I23: =TRUNC(G23*H23,2) -> 31787.4 | J23: 250.5052 | K23: =TRUNC(G23*J23,2) -> 38828.3
A24: 2.0 | B24: 2.5 | C24: =VLOOKUP(B24,M.CÁLCULO!$A:$P,2,0) -> EMOP | D24: =IF($E$6="NÃO DESONERADO",VLOOKUP($B24,M.CÁLCULO!$A:$Q,3,FALSE),IF($E$6="DESONERADO",VLOOKUP($B24,M.CÁLCULO!$A:$Q,4,FALSE),FALSE)) -> 01.001.0002-0 | E24: =IF($E$6="DESONERADO",IF($D24="","",IF($C24="EMOP",VLOOKUP($D24,EMOP_CONJ_03.2026!$F:$I,2,0),IF($C24="SCO",VLOOKUP($D24,SCO_SERV_CONJ_052025!$F:$I,2,0),IF($C24="SINAPI",VLOOKUP($D24,SINAPI_SERV_CONJ_052025!$I:$M,2,0),IF($C24="COMPOSIÇÃO",VLOOKUP($D24,#REF!,4,0),IF($C24="COTAÇÃO",VLOOKUP($D24,#REF!,2,0),IF($C24="SBC",VLOOKUP($D24,#REF!,2,0),IF($C24="SICRO",VLOOKUP($D24,SICRO_02022!$F:$I,2,0),FALSE)))))))),IF($E$6="NÃO DESONERADO",IF($D24="","",IF($C24="EMOP",VLOOKUP($D24,EMOP_CONJ_03.2026!$A:$D,2,0),IF($C24="SCO",VLOOKUP($D24,SCO_SERV_CONJ_052025!$A:$D,2,0),IF($C24="SINAPI",VLOOKUP($D24,SINAPI_SERV_CONJ_052025!$I:$L,2,0),IF($C24="COMPOSIÇÃO",VLOOKUP($D24,#REF!,3,0),IF($C24="COTAÇÃO",VLOOKUP($D24,#REF!,2,0),IF($C24="SBC",VLOOKUP($D24,#REF!,2,0),IF($C24="SICRO",VLOOKUP($D24,SICRO_02022!$A:$D,2,0),FALSE)))))))))) -> LIMITE DE LIQUIDEZ | F24: =IF($E$6="DESONERADO",IF($D24="","",IF($C24="EMOP",VLOOKUP($D24,EMOP_CONJ_03.2026!$F:$I,3,0),IF($C24="SCO",VLOOKUP($D24,SCO_SERV_CONJ_052025!$F:$I,3,0),IF($C24="SINAPI",VLOOKUP($D24,SINAPI_SERV_CONJ_052025!$I:$M,3,0),IF($C24="COMPOSIÇÃO",VLOOKUP($D24,#REF!,7,0),IF($C24="COTAÇÃO",VLOOKUP($D24,#REF!,5,0),IF($C24="SBC",VLOOKUP($D24,#REF!,3,0),IF($C24="SICRO",VLOOKUP($D24,SICRO_02022!$F:$I,3,0),FALSE)))))))),IF($E$6="NÃO DESONERADO",IF($D24="","",IF($C24="EMOP",VLOOKUP($D24,EMOP_CONJ_03.2026!$A:$D,3,0),IF($C24="SCO",VLOOKUP($D24,SCO_SERV_CONJ_052025!$A:$D,3,0),IF($C24="SINAPI",VLOOKUP($D24,SINAPI_SERV_CONJ_052025!$I:$L,3,0),IF($C24="COMPOSIÇÃO",VLOOKUP($D24,#REF!,7,0),IF($C24="COTAÇÃO",VLOOKUP($D24,#REF!,5,0),IF($C24="SBC",VLOOKUP($D24,#REF!,3,0),FALSOSE($C24="SICRO",VLOOKUP($D24,SICRO_02022!$A:$D,3,0),FALSE)))))))))) -> UN | G24: =VLOOKUP($B24,M.CÁLCULO!$A:$Q,16,0) -> 155 | H24: =IF($E$6="DESONERADO",IF($D24="","",IF($C24="EMOP",VLOOKUP($D24,EMOP_CONJ_03.2026!$F:$I,4,0),IF($C24="SCO",VLOOKUP($D24,SCO_SERV_CONJ_052025!$F:$I,4,0),IF($C24="SINAPI",VLOOKUP($D24,SINAPI_SERV_CONJ_052025!$I:$M,5,0),IF($C24="COMPOSIÇÃO",VLOOKUP($D24,#REF!,9,0),IF($C24="COTAÇÃO",VLOOKUP($D24,#REF!,8,0),IF($C24="SBC",VLOOKUP($D24,#REF!,4,0),IF($C24="SICRO",VLOOKUP($D24,SICRO_02022!$F:$I,4,0),FALSE)))))))),IF($E$6="NÃO DESONERADO",IF($D24="","",IF($C24="EMOP",VLOOKUP($D24,EMOP_CONJ_03.2026!$A:$D,4,0),IF($C24="SCO",VLOOKUP($D24,SCO_SERV_CONJ_052025!$A:$D,4,0),IF($C24="SINAPI",VLOOKUP($D24,SINAPI_SERV_CONJ_052025!$I:$L,4,0),IF($C24="COMPOSIÇÃO",VLOOKUP($D24,#REF!,9,0),IF($C24="COTAÇÃO",VLOOKUP($D24,#REF!,8,0),IF($C24="SBC",VLOOKUP($D24,#REF!,4,0),IF($C24="SICRO",VLOOKUP($D24,SICRO_02022!$A:$D,4,0),FALSE)))))))))) -> 205.08 | I24: 31787.4 | J24: 250.5052 | K24: 38828.3
A25: 2.0 | B25: 2.6 | C25: =VLOOKUP(B25,M.CÁLCULO!$A:$P,2,0) -> EMOP | D25: =IF($E$6="NÃO DESONERADO",VLOOKUP($B25,M.CÁLCULO!$A:$Q,3,FALSE),IF($E$6="DESONERADO",VLOOKUP($B25,M.CÁLCULO!$A:$Q,4,FALSE),FALSE)) -> 01.001.0004-0 | E25: =IF($E$6="DESONERADO",IF($D25="","",IF($C25="EMOP",VLOOKUP($D25,EMOP_CONJ_03.2026!$F:$I,2,0),IF($C25="SCO",VLOOKUP($D25,SCO_SERV_CONJ_052025!$F:$I,2,0),IF($C25="SINAPI",VLOOKUP($D25,SINAPI_SERV_CONJ_052025!$I:$M,2,0),IF($C25="COMPOSIÇÃO",VLOOKUP($D25,#REF!,4,0),IF($C25="COTAÇÃO",VLOOKUP($D25,#REF!,2,0),IF($C25="SBC",VLOOKUP($D25,#REF!,2,0),IF($C25="SICRO",VLOOKUP($D25,SICRO_02022!$F:$I,2,0),FALSE)))))))),IF($E$6="NÃO DESONERADO",IF($D25="","",IF($C25="EMOP",VLOOKUP($D25,EMOP_CONJ_03.2026!$A:$D,2,0),IF($C25="SCO",VLOOKUP($D25,SCO_SERV_CONJ_052025!$A:$D,2,0),IF($C25="SINAPI",VLOOKUP($D25,SINAPI_SERV_CONJ_052025!$I:$L,2,0),IF($C25="COMPOSIÇÃO",VLOOKUP($D25,#REF!,3,0),IF($C25="COTAÇÃO",VLOOKUP($D25,#REF!,2,0),IF($C25="SBC",VLOOKUP($D25,#REF!,2,0),IF($C25="SICRO",VLOOKUP($D25,SICRO_02022!$A:$D,2,0),FALSE)))))))))) -> ANALISE GRANULOMETRICA SEM SEDIMENTACAO (PENEIRAMENTO) | F25: =IF($E$6="DESONERADO",IF($D25="","",IF($C25="EMOP",VLOOKUP($D25,EMOP_CONJ_03.2026!$F:$I,3,0),IF($C25="SCO",VLOOKUP($D25,SCO_SERV_CONJ_052025!$F:$I,3,0),IF($C25="SINAPI",VLOOKUP($D25,SINAPI_SERV_CONJ_052025!$I:$M,3,0),IF($C25="COMPOSIÇÃO",VLOOKUP($D25,#REF!,7,0),IF($C25="COTAÇÃO",VLOOKUP($D25,#REF!,5,0),IF($C25="SBC",VLOOKUP($D25,#REF!,3,0),IF($C25="SICRO",VLOOKUP($D25,SICRO_02022!$F:$I,3,0),FALSE)))))))),IF($E$6="NÃO DESONERADO",IF($D25="","",IF($C25="EMOP",VLOOKUP($D25,EMOP_CONJ_03.2026!$A:$D,3,0),IF($C25="SCO",VLOOKUP($D25,SCO_SERV_CONJ_052025!$A:$D,3,0),IF($C25="SINAPI",VLOOKUP($D25,SINAPI_SERV_CONJ_052025!$I:$L,3,0),IF($C25="COMPOSIÇÃO",VLOOKUP($D25,#REF!,7,0),IF($C25="COTAÇÃO",VLOOKUP($D25,#REF!,5,0),IF($C25="SBC",VLOOKUP($D25,#REF!,3,0),FALSOSE($C25="SICRO",VLOOKUP($D25,SICRO_02022!$A:$D,3,0),FALSE)))))))))) -> UN | G25: =VLOOKUP($B25,M.CÁLCULO!$A:$Q,16,0) -> 155 | H25: =IF($E$6="DESONERADO",IF($D25="","",IF($C25="EMOP",VLOOKUP($D25,EMOP_CONJ_03.2026!$F:$I,4,0),IF($C25="SCO",VLOOKUP($D25,SCO_SERV_CONJ_052025!$F:$I,4,0),IF($C25="SINAPI",VLOOKUP($D25,SINAPI_SERV_CONJ_052025!$I:$M,5,0),IF($C25="COMPOSIÇÃO",VLOOKUP($D25,#REF!,9,0),IF($C25="COTAÇÃO",VLOOKUP($D25,#REF!,8,0),IF($C25="SBC",VLOOKUP($D25,#REF!,4,0),IF($C25="SICRO",VLOOKUP($D25,SICRO_02022!$F:$I,4,0),FALSE)))))))),IF($E$6="NÃO DESONERADO",IF($D25="","",IF($C25="EMOP",VLOOKUP($D25,EMOP_CONJ_03.2026!$A:$D,4,0),IF($C25="SCO",VLOOKUP($D25,SCO_SERV_CONJ_052025!$A:$D,4,0),IF($C25="SINAPI",VLOOKUP($D25,SINAPI_SERV_CONJ_052025!$I:$L,4,0),IF($C25="COMPOSIÇÃO",VLOOKUP($D25,#REF!,9,0),IF($C25="COTAÇÃO",VLOOKUP($D25,#REF!,8,0),IF($C25="SBC",VLOOKUP($D25,#REF!,4,0),IF($C25="SICRO",VLOOKUP($D25,SICRO_02022!$A:$D,4,0),FALSE)))))))))) -> 231.27 | I25: 35846.85 | J25: 282.4963 | K25: 43786.92
A26: 2.0 | B26: 2.7 | C26: =VLOOKUP(B26,M.CÁLCULO!$A:$P,2,0) -> EMOP | D26: =IF($E$6="NÃO DESONERADO",VLOOKUP($B26,M.CÁLCULO!$A:$Q,3,FALSE),IF($E$6="DESONERADO",VLOOKUP($B26,M.CÁLCULO!$A:$Q,4,FALSE),FALSE)) -> 01.001.0020-0 | E26: =IF($E$6="DESONERADO",IF($D26="","",IF($C26="EMOP",VLOOKUP($D26,EMOP_CONJ_03.2026!$F:$I,2,0),IF($C26="SCO",VLOOKUP($D26,SCO_SERV_CONJ_052025!$F:$I,2,0),IF($C26="SINAPI",VLOOKUP($D26,SINAPI_SERV_CONJ_052025!$I:$M,2,0),IF($C26="COMPOSIÇÃO",VLOOKUP($D26,#REF!,4,0),IF($C26="COTAÇÃO",VLOOKUP($D26,#REF!,2,0),IF($C26="SBC",VLOOKUP($D26,#REF!,2,0),IF($C26="SICRO",VLOOKUP($D26,SICRO_02022!$F:$I,2,0),FALSE)))))))),IF($E$6="NÃO DESONERADO",IF($D26="","",IF($C26="EMOP",VLOOKUP($D26,EMOP_CONJ_03.2026!$A:$D,2,0),IF($C26="SCO",VLOOKUP($D26,SCO_SERV_CONJ_052025!$A:$D,2,0),IF($C26="SINAPI",VLOOKUP($D26,SINAPI_SERV_CONJ_052025!$I:$L,2,0),IF($C26="COMPOSIÇÃO",VLOOKUP($D26,#REF!,3,0),IF($C26="COTAÇÃO",VLOOKUP($D26,#REF!,2,0),IF($C26="SBC",VLOOKUP($D26,#REF!,2,0),IF($C26="SICRO",VLOOKUP($D26,SICRO_02022!$A:$D,2,0),FALSE)))))))))) -> INDICE SUPORTE CALIFORNIA,POR 5 PONTOS,COMPACTACAO COM ENERGIA PROCTOR NORMAL | F26: =IF($E$6="DESONERADO",IF($D26="","",IF($C26="EMOP",VLOOKUP($D26,EMOP_CONJ_03.2026!$F:$I,3,0),IF($C26="SCO",VLOOKUP($D26,SCO_SERV_CONJ_052025!$F:$I,3,0),IF($C26="SINAPI",VLOOKUP($D26,SINAPI_SERV_CONJ_052025!$I:$M,3,0),IF($C26="COMPOSIÇÃO",VLOOKUP($D26,#REF!,7,0),IF($C26="COTAÇÃO",VLOOKUP($D26,#REF!,5,0),IF($C26="SBC",VLOOKUP($D26,#REF!,3,0),IF($C26="SICRO",VLOOKUP($D26,SICRO_02022!$F:$I,3,0),FALSE)))))))),IF($E$6="NÃO DESONERADO",IF($D26="","",IF($C26="EMOP",VLOOKUP($D26,EMOP_CONJ_03.2026!$A:$D,3,0),IF($C26="SCO",VLOOKUP($D26,SCO_SERV_CONJ_052025!$A:$D,3,0),IF($C26="SINAPI",VLOOKUP($D26,SINAPI_SERV_CONJ_052025!$I:$L,3,0),IF($C26="COMPOSIÇÃO",VLOOKUP($D26,#REF!,7,0),IF($C26="COTAÇÃO",VLOOKUP($D26,#REF!,5,0),IF($C26="SBC",VLOOKUP($D26,#REF!,3,0),FALSOSE($C26="SICRO",VLOOKUP($D26,SICRO_02022!$A:$D,3,0),FALSE)))))))))) -> UN | G26: =VLOOKUP($B26,M.CÁLCULO!$A:$Q,16,0) -> 155 | H26: =IF($E$6="DESONERADO",IF($D26="","",IF($C26="EMOP",VLOOKUP($D26,EMOP_CONJ_03.2026!$F:$I,4,0),IF($C26="SCO",VLOOKUP($D26,SCO_SERV_CONJ_052025!$F:$I,4,0),IF($C26="SINAPI",VLOOKUP($D26,SINAPI_SERV_CONJ_052025!$I:$M,5,0),IF($C26="COMPOSIÇÃO",VLOOKUP($D26,#REF!,9,0),IF($C26="COTAÇÃO",VLOOKUP($D26,#REF!,8,0),IF($C26="SBC",VLOOKUP($D26,#REF!,4,0),IF($C26="SICRO",VLOOKUP($D26,SICRO_02022!$F:$I,4,0),FALSE)))))))),IF($E$6="NÃO DESONERADO",IF($D26="","",IF($C26="EMOP",VLOOKUP($D26,EMOP_CONJ_03.2026!$A:$D,4,0),IF($C26="SCO",VLOOKUP($D26,SCO_SERV_CONJ_052025!$A:$D,4,0),IF($C26="SINAPI",VLOOKUP($D26,SINAPI_SERV_CONJ_052025!$I:$L,4,0),IF($C26="COMPOSIÇÃO",VLOOKUP($D26,#REF!,9,0),IF($C26="COTAÇÃO",VLOOKUP($D26,#REF!,8,0),IF($C26="SBC",VLOOKUP($D26,#REF!,4,0),IF($C26="SICRO",VLOOKUP($D26,SICRO_02022!$A:$D,4,0),FALSE)))))))))) -> 3274.53 | I26: =TRUNC(G26*H26,2) -> 507552.15 | J26: =TRUNC(H26*(1+$K$8),4) -> 3999.8383 | K26: =TRUNC(G26*J26,2) -> 619974.93
A27: 2.0 | B27: 2.8 | C27: =VLOOKUP(B27,M.CÁLCULO!$A:$P,2,0) -> EMOP | D27: =IF($E$6="NÃO DESONERADO",VLOOKUP($B27,M.CÁLCULO!$A:$Q,3,FALSE),IF($E$6="DESONERADO",VLOOKUP($B27,M.CÁLCULO!$A:$Q,4,FALSE),FALSE)) -> 01.001.0200-0 | E27: =IF($E$6="DESONERADO",IF($D27="","",IF($C27="EMOP",VLOOKUP($D27,EMOP_CONJ_03.2026!$F:$I,2,0),IF($C27="SCO",VLOOKUP($D27,SCO_SERV_CONJ_052025!$F:$I,2,0),IF($C27="SINAPI",VLOOKUP($D27,SINAPI_SERV_CONJ_052025!$I:$M,2,0),IF($C27="COMPOSIÇÃO",VLOOKUP($D27,#REF!,4,0),IF($C27="COTAÇÃO",VLOOKUP($D27,#REF!,2,0),IF($C27="SBC",VLOOKUP($D27,#REF!,2,0),IF($C27="SICRO",VLOOKUP($D27,SICRO_02022!$F:$I,2,0),FALSE)))))))),IF($E$6="NÃO DESONERADO",IF($D27="","",IF($C27="EMOP",VLOOKUP($D27,EMOP_CONJ_03.2026!$A:$D,2,0),IF($C27="SCO",VLOOKUP($D27,SCO_SERV_CONJ_052025!$A:$D,2,0),IF($C27="SINAPI",VLOOKUP($D27,SINAPI_SERV_CONJ_052025!$I:$L,2,0),IF($C27="COMPOSIÇÃO",VLOOKUP($D27,#REF!,3,0),IF($C27="COTAÇÃO",VLOOKUP($D27,#REF!,2,0),IF($C27="SBC",VLOOKUP($D27,#REF!,2,0),IF($C27="SICRO",VLOOKUP($D27,SICRO_02022!$A:$D,2,0),FALSE)))))))))) -> DENSIDADE APARENTE | F27: =IF($E$6="DESONERADO",IF($D27="","",IF($C27="EMOP",VLOOKUP($D27,EMOP_CONJ_03.2026!$F:$I,3,0),IF($C27="SCO",VLOOKUP($D27,SCO_SERV_CONJ_052025!$F:$I,3,0),IF($C27="SINAPI",VLOOKUP($D27,SINAPI_SERV_CONJ_052025!$I:$M,3,0),IF($C27="COMPOSIÇÃO",VLOOKUP($D27,#REF!,7,0),IF($C27="COTAÇÃO",VLOOKUP($D27,#REF!,5,0),IF($C27="SBC",VLOOKUP($D27,#REF!,3,0),IF($C27="SICRO",VLOOKUP($D27,SICRO_02022!$F:$I,3,0),FALSE)))))))),IF($E$6="NÃO DESONERADO",IF($D27="","",IF($C27="EMOP",VLOOKUP($D27,EMOP_CONJ_03.2026!$A:$D,3,0),IF($C27="SCO",VLOOKUP($D27,SCO_SERV_CONJ_052025!$A:$D,3,0),IF($C27="SINAPI",VLOOKUP($D27,SINAPI_SERV_CONJ_052025!$I:$L,3,0),IF($C27="COMPOSIÇÃO",VLOOKUP($D27,#REF!,7,0),IF($C27="COTAÇÃO",VLOOKUP($D27,#REF!,5,0),IF($C27="SBC",VLOOKUP($D27,#REF!,3,0),FALSOSE($C27="SICRO",VLOOKUP($D27,SICRO_02022!$A:$D,3,0),FALSE)))))))))) -> UN | G27: =VLOOKUP($B27,M.CÁLCULO!$A:$Q,16,0) -> 194 | H27: =IF($E$6="DESONERADO",IF($D27="","",IF($C27="EMOP",VLOOKUP($D27,EMOP_CONJ_03.2026!$F:$I,4,0),IF($C27="SCO",VLOOKUP($D27,SCO_SERV_CONJ_052025!$F:$I,4,0),IF($C27="SINAPI",VLOOKUP($D27,SINAPI_SERV_CONJ_052025!$I:$M,5,0),IF($C27="COMPOSIÇÃO",VLOOKUP($D27,#REF!,9,0),IF($C27="COTAÇÃO",VLOOKUP($D27,#REF!,8,0),IF($C27="SBC",VLOOKUP($D27,#REF!,4,0),IF($C27="SICRO",VLOOKUP($D27,SICRO_02022!$F:$I,4,0),FALSE)))))))),IF($E$6="NÃO DESONERADO",IF($D27="","",IF($C27="EMOP",VLOOKUP($D27,EMOP_CONJ_03.2026!$A:$D,4,0),IF($C27="SCO",VLOOKUP($D27,SCO_SERV_CONJ_052025!$A:$D,4,0),IF($C27="SINAPI",VLOOKUP($D27,SINAPI_SERV_CONJ_052025!$I:$L,4,0),IF($C27="COMPOSIÇÃO",VLOOKUP($D27,#REF!,9,0),IF($C27="COTAÇÃO",VLOOKUP($D27,#REF!,8,0),IF($C27="SBC",VLOOKUP($D27,#REF!,4,0),IF($C27="SICRO",VLOOKUP($D27,SICRO_02022!$A:$D,4,0),FALSE)))))))))) -> 192.07 | I27: 37261.58 | J27: 234.6135 | K27: 45515.01
A28: 2.0 | B28: 2.9 | C28: =VLOOKUP(B28,M.CÁLCULO!$A:$P,2,0) -> EMOP | D28: =IF($E$6="NÃO DESONERADO",VLOOKUP($B28,M.CÁLCULO!$A:$Q,3,FALSE),IF($E$6="DESONERADO",VLOOKUP($B28,M.CÁLCULO!$A:$Q,4,FALSE),FALSE)) -> 01.001.0201-0 | E28: =IF($E$6="DESONERADO",IF($D28="","",IF($C28="EMOP",VLOOKUP($D28,EMOP_CONJ_03.2026!$F:$I,2,0),IF($C28="SCO",VLOOKUP($D28,SCO_SERV_CONJ_052025!$F:$I,2,0),IF($C28="SINAPI",VLOOKUP($D28,SINAPI_SERV_CONJ_052025!$I:$M,2,0),IF($C28="COMPOSIÇÃO",VLOOKUP($D28,#REF!,4,0),IF($C28="COTAÇÃO",VLOOKUP($D28,#REF!,2,0),IF($C28="SBC",VLOOKUP($D28,#REF!,2,0),IF($C28="SICRO",VLOOKUP($D28,SICRO_02022!$F:$I,2,0),FALSE)))))))),IF($E$6="NÃO DESONERADO",IF($D28="","",IF($C28="EMOP",VLOOKUP($D28,EMOP_CONJ_03.2026!$A:$D,2,0),IF($C28="SCO",VLOOKUP($D28,SCO_SERV_CONJ_052025!$A:$D,2,0),IF($C28="SINAPI",VLOOKUP($D28,SINAPI_SERV_CONJ_052025!$I:$L,2,0),IF($C28="COMPOSIÇÃO",VLOOKUP($D28,#REF!,3,0),IF($C28="COTAÇÃO",VLOOKUP($D28,#REF!,2,0),IF($C28="SBC",VLOOKUP($D28,#REF!,2,0),IF($C28="SICRO",VLOOKUP($D28,SICRO_02022!$A:$D,2,0),FALSE)))))))))) -> PERCENTAGEM DE VAZIOS RICE | F28: =IF($E$6="DESONERADO",IF($D28="","",IF($C28="EMOP",VLOOKUP($D28,EMOP_CONJ_03.2026!$F:$I,3,0),IF($C28="SCO",VLOOKUP($D28,SCO_SERV_CONJ_052025!$F:$I,3,0),IF($C28="SINAPI",VLOOKUP($D28,SINAPI_SERV_CONJ_052025!$I:$M,3,0),IF($C28="COMPOSIÇÃO",VLOOKUP($D28,#REF!,7,0),IF($C28="COTAÇÃO",VLOOKUP($D28,#REF!,5,0),IF($C28="SBC",VLOOKUP($D28,#REF!,3,0),IF($C28="SICRO",VLOOKUP($D28,SICRO_02022!$F:$I,3,0),FALSE)))))))),IF($E$6="NÃO DESONERADO",IF($D28="","",IF($C28="EMOP",VLOOKUP($D28,EMOP_CONJ_03.2026!$A:$D,3,0),IF($C28="SCO",VLOOKUP($D28,SCO_SERV_CONJ_052025!$A:$D,3,0),IF($C28="SINAPI",VLOOKUP($D28,SINAPI_SERV_CONJ_052025!$I:$L,3,0),IF($C28="COMPOSIÇÃO",VLOOKUP($D28,#REF!,7,0),IF($C28="COTAÇÃO",VLOOKUP($D28,#REF!,5,0),IF($C28="SBC",VLOOKUP($D28,#REF!,3,0),FALSOSE($C28="SICRO",VLOOKUP($D28,SICRO_02022!$A:$D,3,0),FALSE)))))))))) -> UN | G28: =VLOOKUP($B28,M.CÁLCULO!$A:$Q,16,0) -> 194 | H28: =IF($E$6="DESONERADO",IF($D28="","",IF($C28="EMOP",VLOOKUP($D28,EMOP_CONJ_03.2026!$F:$I,4,0),IF($C28="SCO",VLOOKUP($D28,SCO_SERV_CONJ_052025!$F:$I,4,0),IF($C28="SINAPI",VLOOKUP($D28,SINAPI_SERV_CONJ_052025!$I:$M,5,0),IF($C28="COMPOSIÇÃO",VLOOKUP($D28,#REF!,9,0),IF($C28="COTAÇÃO",VLOOKUP($D28,#REF!,8,0),IF($C28="SBC",VLOOKUP($D28,#REF!,4,0),IF($C28="SICRO",VLOOKUP($D28,SICRO_02022!$F:$I,4,0),FALSE)))))))),IF($E$6="NÃO DESONERADO",IF($D28="","",IF($C28="EMOP",VLOOKUP($D28,EMOP_CONJ_03.2026!$A:$D,4,0),IF($C28="SCO",VLOOKUP($D28,SCO_SERV_CONJ_052025!$A:$D,4,0),IF($C28="SINAPI",VLOOKUP($D28,SINAPI_SERV_CONJ_052025!$I:$L,4,0),IF($C28="COMPOSIÇÃO",VLOOKUP($D28,#REF!,9,0),IF($C28="COTAÇÃO",VLOOKUP($D28,#REF!,8,0),IF($C28="SBC",VLOOKUP($D28,#REF!,4,0),IF($C28="SICRO",VLOOKUP($D28,SICRO_02022!$A:$D,4,0),FALSE)))))))))) -> 324.29 | I28: 62912.26 | J28: 396.1202 | K28: 76847.31
A29: 2.0 | B29: 2.10 | C29: =VLOOKUP(B29,M.CÁLCULO!$A:$P,2,0) -> EMOP | D29: =IF($E$6="NÃO DESONERADO",VLOOKUP($B29,M.CÁLCULO!$A:$Q,3,FALSE),IF($E$6="DESONERADO",VLOOKUP($B29,M.CÁLCULO!$A:$Q,4,FALSE),FALSE)) -> 01.001.0303-0 | E29: =IF($E$6="DESONERADO",IF($D29="","",IF($C29="EMOP",VLOOKUP($D29,EMOP_CONJ_03.2026!$F:$I,2,0),IF($C29="SCO",VLOOKUP($D29,SCO_SERV_CONJ_052025!$F:$I,2,0),IF($C29="SINAPI",VLOOKUP($D29,SINAPI_SERV_CONJ_052025!$I:$M,2,0),IF($C29="COMPOSIÇÃO",VLOOKUP($D29,#REF!,4,0),IF($C29="COTAÇÃO",VLOOKUP($D29,#REF!,2,0),IF($C29="SBC",VLOOKUP($D29,#REF!,2,0),IF($C29="SICRO",VLOOKUP($D29,SICRO_02022!$F:$I,2,0),FALSE)))))))),IF($E$6="NÃO DESONERADO",IF($D29="","",IF($C29="EMOP",VLOOKUP($D29,EMOP_CONJ_03.2026!$A:$D,2,0),IF($C29="SCO",VLOOKUP($D29,SCO_SERV_CONJ_052025!$A:$D,2,0),IF($C29="SINAPI",VLOOKUP($D29,SINAPI_SERV_CONJ_052025!$I:$L,2,0),IF($C29="COMPOSIÇÃO",VLOOKUP($D29,#REF!,3,0),IF($C29="COTAÇÃO",VLOOKUP($D29,#REF!,2,0),IF($C29="SBC",VLOOKUP($D29,#REF!,2,0),IF($C29="SICRO",VLOOKUP($D29,SICRO_02022!$A:$D,2,0),FALSE)))))))))) -> EXTRACAO COM O AUXILIO DE SONDA ROTATIVA,DE CORPOS DE PROVACOM 15CM DE DIAMETRO,EM PAVIMENTOS COM REVESTIMENTO BETUMINOSO,COM ATE 10CM DE ESPESSURA,POR CORPO DE PROVA | F29: =IF($E$6="DESONERADO",IF($D29="","",IF($C29="EMOP",VLOOKUP($D29,EMOP_CONJ_03.2026!$F:$I,3,0),IF($C29="SCO",VLOOKUP($D29,SCO_SERV_CONJ_052025!$F:$I,3,0),IF($C29="SINAPI",VLOOKUP($D29,SINAPI_SERV_CONJ_052025!$I:$M,3,0),IF($C29="COMPOSIÇÃO",VLOOKUP($D29,#REF!,7,0),IF($C29="COTAÇÃO",VLOOKUP($D29,#REF!,5,0),IF($C29="SBC",VLOOKUP($D29,#REF!,3,0),IF($C29="SICRO",VLOOKUP($D29,SICRO_02022!$F:$I,3,0),FALSE)))))))),IF($E$6="NÃO DESONERADO",IF($D29="","",IF($C29="EMOP",VLOOKUP($D29,EMOP_CONJ_03.2026!$A:$D,3,0),IF($C29="SCO",VLOOKUP($D29,SCO_SERV_CONJ_052025!$A:$D,3,0),IF($C29="SINAPI",VLOOKUP($D29,SINAPI_SERV_CONJ_052025!$I:$L,3,0),IF($C29="COMPOSIÇÃO",VLOOKUP($D29,#REF!,7,0),IF($C29="COTAÇÃO",VLOOKUP($D29,#REF!,5,0),IF($C29="SBC",VLOOKUP($D29,#REF!,3,0),FALSOSE($C29="SICRO",VLOOKUP($D29,SICRO_02022!$A:$D,3,0),FALSE)))))))))) -> UN | G29: =VLOOKUP($B29,M.CÁLCULO!$A:$Q,16,0) -> 1200 | H29: =IF($E$6="DESONERADO",IF($D29="","",IF($C29="EMOP",VLOOKUP($D29,EMOP_CONJ_03.2026!$F:$I,4,0),IF($C29="SCO",VLOOKUP($D29,SCO_SERV_CONJ_052025!$F:$I,4,0),IF($C29="SINAPI",VLOOKUP($D29,SINAPI_SERV_CONJ_052025!$I:$M,5,0),IF($C29="COMPOSIÇÃO",VLOOKUP($D29,#REF!,9,0),IF($C29="COTAÇÃO",VLOOKUP($D29,#REF!,8,0),IF($C29="SBC",VLOOKUP($D29,#REF!,4,0),IF($C29="SICRO",VLOOKUP($D29,SICRO_02022!$F:$I,4,0),FALSE)))))))),IF($E$6="NÃO DESONERADO",IF($D29="","",IF($C29="EMOP",VLOOKUP($D29,EMOP_CONJ_03.2026!$A:$D,4,0),IF($C29="SCO",VLOOKUP($D29,SCO_SERV_CONJ_052025!$A:$D,4,0),IF($C29="SINAPI",VLOOKUP($D29,SINAPI_SERV_CONJ_052025!$I:$L,4,0),IF($C29="COMPOSIÇÃO",VLOOKUP($D29,#REF!,9,0),IF($C29="COTAÇÃO",VLOOKUP($D29,#REF!,8,0),IF($C29="SBC",VLOOKUP($D29,#REF!,4,0),IF($C29="SICRO",VLOOKUP($D29,SICRO_02022!$A:$D,4,0),FALSE)))))))))) -> 142.69 | I29: 171228 | J29: 174.2958 | K29: 209154.96
A30: 2.0 | B30: 2.11 | C30: =VLOOKUP(B30,M.CÁLCULO!$A:$P,2,0) -> EMOP | D30: =IF($E$6="NÃO DESONERADO",VLOOKUP($B30,M.CÁLCULO!$A:$Q,3,FALSE),IF($E$6="DESONERADO",VLOOKUP($B30,M.CÁLCULO!$A:$Q,4,FALSE),FALSE)) -> 01.001.0205-0 | E30: =IF($E$6="DESONERADO",IF($D30="","",IF($C30="EMOP",VLOOKUP($D30,EMOP_CONJ_03.2026!$F:$I,2,0),IF($C30="SCO",VLOOKUP($D30,SCO_SERV_CONJ_052025!$F:$I,2,0),IF($C30="SINAPI",VLOOKUP($D30,SINAPI_SERV_CONJ_052025!$I:$M,2,0),IF($C30="COMPOSIÇÃO",VLOOKUP($D30,#REF!,4,0),IF($C30="COTAÇÃO",VLOOKUP($D30,#REF!,2,0),IF($C30="SBC",VLOOKUP($D30,#REF!,2,0),IF($C30="SICRO",VLOOKUP($D30,SICRO_02022!$F:$I,2,0),FALSE)))))))),IF($E$6="NÃO DESONERADO",IF($D30="","",IF($C30="EMOP",VLOOKUP($D30,EMOP_CONJ_03.2026!$A:$D,2,0),IF($C30="SCO",VLOOKUP($D30,SCO_SERV_CONJ_052025!$A:$D,2,0),IF($C30="SINAPI",VLOOKUP($D30,SINAPI_SERV_CONJ_052025!$I:$L,2,0),IF($C30="COMPOSIÇÃO",VLOOKUP($D30,#REF!,3,0),IF($C30="COTAÇÃO",VLOOKUP($D30,#REF!,2,0),IF($C30="SBC",VLOOKUP($D30,#REF!,2,0),IF($C30="SICRO",VLOOKUP($D30,SICRO_02022!$A:$D,2,0),FALSE)))))))))) -> DETERMINACAO,COM AUXILIO DE SONDA ROTATIVA,DA DENSIDADE DE MISTURA COMPACTADA,POR CORPO DE PROVA | F30: =IF($E$6="DESONERADO",IF($D30="","",IF($C30="EMOP",VLOOKUP($D30,EMOP_CONJ_03.2026!$F:$I,3,0),IF($C30="SCO",VLOOKUP($D30,SCO_SERV_CONJ_052025!$F:$I,3,0),IF($C30="SINAPI",VLOOKUP($D30,SINAPI_SERV_CONJ_052025!$I:$M,3,0),IF($C30="COMPOSIÇÃO",VLOOKUP($D30,#REF!,7,0),IF($C30="COTAÇÃO",VLOOKUP($D30,#REF!,5,0),IF($C30="SBC",VLOOKUP($D30,#REF!,3,0),IF($C30="SICRO",VLOOKUP($D30,SICRO_02022!$F:$I,3,0),FALSE)))))))),IF($E$6="NÃO DESONERADO",IF($D30="","",IF($C30="EMOP",VLOOKUP($D30,EMOP_CONJ_03.2026!$A:$D,3,0),IF($C30="SCO",VLOOKUP($D30,SCO_SERV_CONJ_052025!$A:$D,3,0),IF($C30="SINAPI",VLOOKUP($D30,SINAPI_SERV_CONJ_052025!$I:$L,3,0),IF($C30="COMPOSIÇÃO",VLOOKUP($D30,#REF!,7,0),IF($C30="COTAÇÃO",VLOOKUP($D30,#REF!,5,0),IF($C30="SBC",VLOOKUP($D30,#REF!,3,0),FALSOSE($C30="SICRO",VLOOKUP($D30,SICRO_02022!$A:$D,3,0),FALSE)))))))))) -> UN | G30: =VLOOKUP($B30,M.CÁLCULO!$A:$Q,16,0) -> 1200 | H30: =IF($E$6="DESONERADO",IF($D30="","",IF($C30="EMOP",VLOOKUP($D30,EMOP_CONJ_03.2026!$F:$I,4,0),IF($C30="SCO",VLOOKUP($D30,SCO_SERV_CONJ_052025!$F:$I,4,0),IF($C30="SINAPI",VLOOKUP($D30,SINAPI_SERV_CONJ_052025!$I:$M,5,0),IF($C30="COMPOSIÇÃO",VLOOKUP($D30,#REF!,9,0),IF($C30="COTAÇÃO",VLOOKUP($D30,#REF!,8,0),IF($C30="SBC",VLOOKUP($D30,#REF!,4,0),IF($C30="SICRO",VLOOKUP($D30,SICRO_02022!$F:$I,4,0),FALSE)))))))),IF($E$6="NÃO DESONERADO",IF($D30="","",IF($C30="EMOP",VLOOKUP($D30,EMOP_CONJ_03.2026!$A:$D,4,0),IF($C30="SCO",VLOOKUP($D30,SCO_SERV_CONJ_052025!$A:$D,4,0),IF($C30="SINAPI",VLOOKUP($D30,SINAPI_SERV_CONJ_052025!$I:$L,4,0),IF($C30="COMPOSIÇÃO",VLOOKUP($D30,#REF!,9,0),IF($C30="COTAÇÃO",VLOOKUP($D30,#REF!,8,0),IF($C30="SBC",VLOOKUP($D30,#REF!,4,0),IF($C30="SICRO",VLOOKUP($D30,SICRO_02022!$A:$D,4,0),FALSE)))))))))) -> 58.03 | I30: 69636 | J30: 70.8836 | K30: 85060.32
A31: 2.0 | B31: 2.12 | C31: =VLOOKUP(B31,M.CÁLCULO!$A:$P,2,0) -> EMOP | D31: =IF($E$6="NÃO DESONERADO",VLOOKUP($B31,M.CÁLCULO!$A:$Q,3,FALSE),IF($E$6="DESONERADO",VLOOKUP($B31,M.CÁLCULO!$A:$Q,4,FALSE),FALSE)) -> 01.001.0198-0 | E31: =IF($E$6="DESONERADO",IF($D31="","",IF($C31="EMOP",VLOOKUP($D31,EMOP_CONJ_03.2026!$F:$I,2,0),IF($C31="SCO",VLOOKUP($D31,SCO_SERV_CONJ_052025!$F:$I,2,0),IF($C31="SINAPI",VLOOKUP($D31,SINAPI_SERV_CONJ_052025!$I:$M,2,0),IF($C31="COMPOSIÇÃO",VLOOKUP($D31,#REF!,4,0),IF($C31="COTAÇÃO",VLOOKUP($D31,#REF!,2,0),IF($C31="SBC",VLOOKUP($D31,#REF!,2,0),IF($C31="SICRO",VLOOKUP($D31,SICRO_02022!$F:$I,2,0),FALSE)))))))),IF($E$6="NÃO DESONERADO",IF($D31="","",IF($C31="EMOP",VLOOKUP($D31,EMOP_CONJ_03.2026!$A:$D,2,0),IF($C31="SCO",VLOOKUP($D31,SCO_SERV_CONJ_052025!$A:$D,2,0),IF($C31="SINAPI",VLOOKUP($D31,SINAPI_SERV_CONJ_052025!$I:$L,2,0),IF($C31="COMPOSIÇÃO",VLOOKUP($D31,#REF!,3,0),IF($C31="COTAÇÃO",VLOOKUP($D31,#REF!,2,0),IF($C31="SBC",VLOOKUP($D31,#REF!,2,0),IF($C31="SICRO",VLOOKUP($D31,SICRO_02022!$A:$D,2,0),FALSE)))))))))) -> DETERMINACAO DO TEOR DE BETUME | F31: =IF($E$6="DESONERADO",IF($D31="","",IF($C31="EMOP",VLOOKUP($D31,EMOP_CONJ_03.2026!$F:$I,3,0),IF($C31="SCO",VLOOKUP($D31,SCO_SERV_CONJ_052025!$F:$I,3,0),IF($C31="SINAPI",VLOOKUP($D31,SINAPI_SERV_CONJ_052025!$I:$M,3,0),IF($C31="COMPOSIÇÃO",VLOOKUP($D31,#REF!,7,0),IF($C31="COTAÇÃO",VLOOKUP($D31,#REF!,5,0),IF($C31="SBC",VLOOKUP($D31,#REF!,3,0),IF($C31="SICRO",VLOOKUP($D31,SICRO_02022!$F:$I,3,0),FALSE)))))))),IF($E$6="NÃO DESONERADO",IF($D31="","",IF($C31="EMOP",VLOOKUP($D31,EMOP_CONJ_03.2026!$A:$D,3,0),IF($C31="SCO",VLOOKUP($D31,SCO_SERV_CONJ_052025!$A:$D,3,0),IF($C31="SINAPI",VLOOKUP($D31,SINAPI_SERV_CONJ_052025!$I:$L,3,0),IF($C31="COMPOSIÇÃO",VLOOKUP($D31,#REF!,7,0),IF($C31="COTAÇÃO",VLOOKUP($D31,#REF!,5,0),IF($C31="SBC",VLOOKUP($D31,#REF!,3,0),FALSOSE($C31="SICRO",VLOOKUP($D31,SICRO_02022!$A:$D,3,0),FALSE)))))))))) -> UN | G31: =VLOOKUP($B31,M.CÁLCULO!$A:$Q,16,0) -> 194 | H31: =IF($E$6="DESONERADO",IF($D31="","",IF($C31="EMOP",VLOOKUP($D31,EMOP_CONJ_03.2026!$F:$I,4,0),IF($C31="SCO",VLOOKUP($D31,SCO_SERV_CONJ_052025!$F:$I,4,0),IF($C31="SINAPI",VLOOKUP($D31,SINAPI_SERV_CONJ_052025!$I:$M,5,0),IF($C31="COMPOSIÇÃO",VLOOKUP($D31,#REF!,9,0),IF($C31="COTAÇÃO",VLOOKUP($D31,#REF!,8,0),IF($C31="SBC",VLOOKUP($D31,#REF!,4,0),IF($C31="SICRO",VLOOKUP($D31,SICRO_02022!$F:$I,4,0),FALSE)))))))),IF($E$6="NÃO DESONERADO",IF($D31="","",IF($C31="EMOP",VLOOKUP($D31,EMOP_CONJ_03.2026!$A:$D,4,0),IF($C31="SCO",VLOOKUP($D31,SCO_SERV_CONJ_052025!$A:$D,4,0),IF($C31="SINAPI",VLOOKUP($D31,SINAPI_SERV_CONJ_052025!$I:$L,4,0),IF($C31="COMPOSIÇÃO",VLOOKUP($D31,#REF!,9,0),IF($C31="COTAÇÃO",VLOOKUP($D31,#REF!,8,0),IF($C31="SBC",VLOOKUP($D31,#REF!,4,0),IF($C31="SICRO",VLOOKUP($D31,SICRO_02022!$A:$D,4,0),FALSE)))))))))) -> 536.84 | I31: 104146.96 | J31: 655.75 | K31: 127215.5
A32: 2.0 | B32: 2.13 | C32: =VLOOKUP(B32,M.CÁLCULO!$A:$P,2,0) -> EMOP | D32: =IF($E$6="NÃO DESONERADO",VLOOKUP($B32,M.CÁLCULO!$A:$Q,3,FALSE),IF($E$6="DESONERADO",VLOOKUP($B32,M.CÁLCULO!$A:$Q,4,FALSE),FALSE)) -> 01.001.0208-0 | E32: =IF($E$6="DESONERADO",IF($D32="","",IF($C32="EMOP",VLOOKUP($D32,EMOP_CONJ_03.2026!$F:$I,2,0),IF($C32="SCO",VLOOKUP($D32,SCO_SERV_CONJ_052025!$F:$I,2,0),IF($C32="SINAPI",VLOOKUP($D32,SINAPI_SERV_CONJ_052025!$I:$M,2,0),IF($C32="COMPOSIÇÃO",VLOOKUP($D32,#REF!,4,0),IF($C32="COTAÇÃO",VLOOKUP($D32,#REF!,2,0),IF($C32="SBC",VLOOKUP($D32,#REF!,2,0),IF($C32="SICRO",VLOOKUP($D32,SICRO_02022!$F:$I,2,0),FALSE)))))))),IF($E$6="NÃO DESONERADO",IF($D32="","",IF($C32="EMOP",VLOOKUP($D32,EMOP_CONJ_03.2026!$A:$D,2,0),IF($C32="SCO",VLOOKUP($D32,SCO_SERV_CONJ_052025!$A:$D,2,0),IF($C32="SINAPI",VLOOKUP($D32,SINAPI_SERV_CONJ_052025!$I:$L,2,0),IF($C32="COMPOSIÇÃO",VLOOKUP($D32,#REF!,3,0),IF($C32="COTAÇÃO",VLOOKUP($D32,#REF!,2,0),IF($C32="SBC",VLOOKUP($D32,#REF!,2,0),IF($C32="SICRO",VLOOKUP($D32,SICRO_02022!$A:$D,2,0),FALSE)))))))))) -> DETERMINACAO DA RESISTENCIA A TRACAO POR COMPRESSAO DIAMETRAL DE MISTURAS BETUMINOSAS | F32: =IF($E$6="DESONERADO",IF($D32="","",IF($C32="EMOP",VLOOKUP($D32,EMOP_CONJ_03.2026!$F:$I,3,0),IF($C32="SCO",VLOOKUP($D32,SCO_SERV_CONJ_052025!$F:$I,3,0),IF($C32="SINAPI",VLOOKUP($D32,SINAPI_SERV_CONJ_052025!$I:$M,3,0),IF($C32="COMPOSIÇÃO",VLOOKUP($D32,#REF!,7,0),IF($C32="COTAÇÃO",VLOOKUP($D32,#REF!,5,0),IF($C32="SBC",VLOOKUP($D32,#REF!,3,0),IF($C32="SICRO",VLOOKUP($D32,SICRO_02022!$F:$I,3,0),FALSE)))))))),IF($E$6="NÃO DESONERADO",IF($D32="","",IF($C32="EMOP",VLOOKUP($D32,EMOP_CONJ_03.2026!$A:$D,3,0),IF($C32="SCO",VLOOKUP($D32,SCO_SERV_CONJ_052025!$A:$D,3,0),IF($C32="SINAPI",VLOOKUP($D32,SINAPI_SERV_CONJ_052025!$I:$L,3,0),IF($C32="COMPOSIÇÃO",VLOOKUP($D32,#REF!,7,0),IF($C32="COTAÇÃO",VLOOKUP($D32,#REF!,5,0),IF($C32="SBC",VLOOKUP($D32,#REF!,3,0),FALSOSE($C32="SICRO",VLOOKUP($D32,SICRO_02022!$A:$D,3,0),FALSE)))))))))) -> UN | G32: =VLOOKUP($B32,M.CÁLCULO!$A:$Q,16,0) -> 194 | H32: =IF($E$6="DESONERADO",IF($D32="","",IF($C32="EMOP",VLOOKUP($D32,EMOP_CONJ_03.2026!$F:$I,4,0),IF($C32="SCO",VLOOKUP($D32,SCO_SERV_CONJ_052025!$F:$I,4,0),IF($C32="SINAPI",VLOOKUP($D32,SINAPI_SERV_CONJ_052025!$I:$M,5,0),IF($C32="COMPOSIÇÃO",VLOOKUP($D32,#REF!,9,0),IF($C32="COTAÇÃO",VLOOKUP($D32,#REF!,8,0),IF($C32="SBC",VLOOKUP($D32,#REF!,4,0),IF($C32="SICRO",VLOOKUP($D32,SICRO_02022!$F:$I,4,0),FALSE)))))))),IF($E$6="NÃO DESONERADO",IF($D32="","",IF($C32="EMOP",VLOOKUP($D32,EMOP_CONJ_03.2026!$A:$D,4,0),IF($C32="SCO",VLOOKUP($D32,SCO_SERV_CONJ_052025!$A:$D,4,0),IF($C32="SINAPI",VLOOKUP($D32,SINAPI_SERV_CONJ_052025!$I:$L,4,0),IF($C32="COMPOSIÇÃO",VLOOKUP($D32,#REF!,9,0),IF($C32="COTAÇÃO",VLOOKUP($D32,#REF!,8,0),IF($C32="SBC",VLOOKUP($D32,#REF!,4,0),IF($C32="SICRO",VLOOKUP($D32,SICRO_02022!$A:$D,4,0),FALSE)))))))))) -> 202.75 | I32: 39333.5 | J32: 247.6591 | K32: 48045.86
A33: 2.0 | B33: 2.14 | C33: =VLOOKUP(B33,M.CÁLCULO!$A:$P,2,0) -> EMOP | D33: =IF($E$6="NÃO DESONERADO",VLOOKUP($B33,M.CÁLCULO!$A:$Q,3,FALSE),IF($E$6="DESONERADO",VLOOKUP($B33,M.CÁLCULO!$A:$Q,4,FALSE),FALSE)) -> 01.001.0204-0 | E33: =IF($E$6="DESONERADO",IF($D33="","",IF($C33="EMOP",VLOOKUP($D33,EMOP_CONJ_03.2026!$F:$I,2,0),IF($C33="SCO",VLOOKUP($D33,SCO_SERV_CONJ_052025!$F:$I,2,0),IF($C33="SINAPI",VLOOKUP($D33,SINAPI_SERV_CONJ_052025!$I:$M,2,0),IF($C33="COMPOSIÇÃO",VLOOKUP($D33,#REF!,4,0),IF($C33="COTAÇÃO",VLOOKUP($D33,#REF!,2,0),IF($C33="SBC",VLOOKUP($D33,#REF!,2,0),IF($C33="SICRO",VLOOKUP($D33,SICRO_02022!$F:$I,2,0),FALSE)))))))),IF($E$6="NÃO DESONERADO",IF($D33="","",IF($C33="EMOP",VLOOKUP($D33,EMOP_CONJ_03.2026!$A:$D,2,0),IF($C33="SCO",VLOOKUP($D33,SCO_SERV_CONJ_052025!$A:$D,2,0),IF($C33="SINAPI",VLOOKUP($D33,SINAPI_SERV_CONJ_052025!$I:$L,2,0),IF($C33="COMPOSIÇÃO",VLOOKUP($D33,#REF!,3,0),IF($C33="COTAÇÃO",VLOOKUP($D33,#REF!,2,0),IF($C33="SBC",VLOOKUP($D33,#REF!,2,0),IF($C33="SICRO",VLOOKUP($D33,SICRO_02022!$A:$D,2,0),FALSE)))))))))) -> AMOSTRA GRANULOMETRICA APOS EXTRACAO DO LIGANTE | F33: =IF($E$6="DESONERADO",IF($D33="","",IF($C33="EMOP",VLOOKUP($D33,EMOP_CONJ_03.2026!$F:$I,3,0),IF($C33="SCO",VLOOKUP($D33,SCO_SERV_CONJ_052025!$F:$I,3,0),IF($C33="SINAPI",VLOOKUP($D33,SINAPI_SERV_CONJ_052025!$I:$M,3,0),IF($C33="COMPOSIÇÃO",VLOOKUP($D33,#REF!,7,0),IF($C33="COTAÇÃO",VLOOKUP($D33,#REF!,5,0),IF($C33="SBC",VLOOKUP($D33,#REF!,3,0),IF($C33="SICRO",VLOOKUP($D33,SICRO_02022!$F:$I,3,0),FALSE)))))))),IF($E$6="NÃO DESONERADO",IF($D33="","",IF($C33="EMOP",VLOOKUP($D33,EMOP_CONJ_03.2026!$A:$D,3,0),IF($C33="SCO",VLOOKUP($D33,SCO_SERV_CONJ_052025!$A:$D,3,0),IF($C33="SINAPI",VLOOKUP($D33,SINAPI_SERV_CONJ_052025!$I:$L,3,0),IF($C33="COMPOSIÇÃO",VLOOKUP($D33,#REF!,7,0),IF($C33="COTAÇÃO",VLOOKUP($D33,#REF!,5,0),IF($C33="SBC",VLOOKUP($D33,#REF!,3,0),FALSOSE($C33="SICRO",VLOOKUP($D33,SICRO_02022!$A:$D,3,0),FALSE)))))))))) -> UN | G33: =VLOOKUP($B33,M.CÁLCULO!$A:$Q,16,0) -> 194 | H33: =IF($E$6="DESONERADO",IF($D33="","",IF($C33="EMOP",VLOOKUP($D33,EMOP_CONJ_03.2026!$F:$I,4,0),IF($C33="SCO",VLOOKUP($D33,SCO_SERV_CONJ_052025!$F:$I,4,0),IF($C33="SINAPI",VLOOKUP($D33,SINAPI_SERV_CONJ_052025!$I:$M,5,0),IF($C33="COMPOSIÇÃO",VLOOKUP($D33,#REF!,9,0),IF($C33="COTAÇÃO",VLOOKUP($D33,#REF!,8,0),IF($C33="SBC",VLOOKUP($D33,#REF!,4,0),IF($C33="SICRO",VLOOKUP($D33,SICRO_02022!$F:$I,4,0),FALSE)))))))),IF($E$6="NÃO DESONERADO",IF($D33="","",IF($C33="EMOP",VLOOKUP($D33,EMOP_CONJ_03.2026!$A:$D,4,0),IF($C33="SCO",VLOOKUP($D33,SCO_SERV_CONJ_052025!$A:$D,4,0),IF($C33="SINAPI",VLOOKUP($D33,SINAPI_SERV_CONJ_052025!$I:$L,4,0),IF($C33="COMPOSIÇÃO",VLOOKUP($D33,#REF!,9,0),IF($C33="COTAÇÃO",VLOOKUP($D33,#REF!,8,0),IF($C33="SBC",VLOOKUP($D33,#REF!,4,0),IF($C33="SICRO",VLOOKUP($D33,SICRO_02022!$A:$D,4,0),FALSE)))))))))) -> 203.17 | I33: 39414.98 | J33: 248.1721 | K33: 48145.38
A34: 2.0 | B34: 2.15 | C34: =VLOOKUP(B34,M.CÁLCULO!$A:$P,2,0) -> EMOP | D34: =IF($E$6="NÃO DESONERADO",VLOOKUP($B34,M.CÁLCULO!$A:$Q,3,FALSE),IF($E$6="DESONERADO",VLOOKUP($B34,M.CÁLCULO!$A:$Q,4,FALSE),FALSE)) -> 01.008.0050-0 | E34: =IF($E$6="DESONERADO",IF($D34="","",IF($C34="EMOP",VLOOKUP($D34,EMOP_CONJ_03.2026!$F:$I,2,0),IF($C34="SCO",VLOOKUP($D34,SCO_SERV_CONJ_052025!$F:$I,2,0),IF($C34="SINAPI",VLOOKUP($D34,SINAPI_SERV_CONJ_052025!$I:$M,2,0),IF($C34="COMPOSIÇÃO",VLOOKUP($D34,#REF!,4,0),IF($C34="COTAÇÃO",VLOOKUP($D34,#REF!,2,0),IF($C34="SBC",VLOOKUP($D34,#REF!,2,0),IF($C34="SICRO",VLOOKUP($D34,SICRO_02022!$F:$I,2,0),FALSE)))))))),IF($E$6="NÃO DESONERADO",IF($D34="","",IF($C34="EMOP",VLOOKUP($D34,EMOP_CONJ_03.2026!$A:$D,2,0),IF($C34="SCO",VLOOKUP($D34,SCO_SERV_CONJ_052025!$A:$D,2,0),IF($C34="SINAPI",VLOOKUP($D34,SINAPI_SERV_CONJ_052025!$I:$L,2,0),IF($C34="COMPOSIÇÃO",VLOOKUP($D34,#REF!,3,0),IF($C34="COTAÇÃO",VLOOKUP($D34,#REF!,2,0),IF($C34="SBC",VLOOKUP($D34,#REF!,2,0),IF($C34="SICRO",VLOOKUP($D34,SICRO_02022!$A:$D,2,0),FALSE)))))))))) -> MOBILIZACAO E DESMOBILIZACAO DE EQUIPAMENTO E EQUIPE DE SONDAGEM E PERFURACAO A PERCUSSAO,COM TRANSPORTE ATE 50KM | F34: =IF($E$6="DESONERADO",IF($D34="","",IF($C34="EMOP",VLOOKUP($D34,EMOP_CONJ_03.2026!$F:$I,3,0),IF($C34="SCO",VLOOKUP($D34,SCO_SERV_CONJ_052025!$F:$I,3,0),IF($C34="SINAPI",VLOOKUP($D34,SINAPI_SERV_CONJ_052025!$I:$M,3,0),IF($C34="COMPOSIÇÃO",VLOOKUP($D34,#REF!,7,0),IF($C34="COTAÇÃO",VLOOKUP($D34,#REF!,5,0),IF($C34="SBC",VLOOKUP($D34,#REF!,3,0),IF($C34="SICRO",VLOOKUP($D34,SICRO_02022!$F:$I,3,0),FALSE)))))))),IF($E$6="NÃO DESONERADO",IF($D34="","",IF($C34="EMOP",VLOOKUP($D34,EMOP_CONJ_03.2026!$A:$D,3,0),IF($C34="SCO",VLOOKUP($D34,SCO_SERV_CONJ_052025!$A:$D,3,0),IF($C34="SINAPI",VLOOKUP($D34,SINAPI_SERV_CONJ_052025!$I:$L,3,0),IF($C34="COMPOSIÇÃO",VLOOKUP($D34,#REF!,7,0),IF($C34="COTAÇÃO",VLOOKUP($D34,#REF!,5,0),IF($C34="SBC",VLOOKUP($D34,#REF!,3,0),FALSOSE($C34="SICRO",VLOOKUP($D34,SICRO_02022!$A:$D,3,0),FALSE)))))))))) -> UN | G34: =VLOOKUP($B34,M.CÁLCULO!$A:$Q,16,0) -> 12 | H34: =IF($E$6="DESONERADO",IF($D34="","",IF($C34="EMOP",VLOOKUP($D34,EMOP_CONJ_03.2026!$F:$I,4,0),IF($C34="SCO",VLOOKUP($D34,SCO_SERV_CONJ_052025!$F:$I,4,0),IF($C34="SINAPI",VLOOKUP($D34,SINAPI_SERV_CONJ_052025!$I:$M,5,0),IF($C34="COMPOSIÇÃO",VLOOKUP($D34,#REF!,9,0),IF($C34="COTAÇÃO",VLOOKUP($D34,#REF!,8,0),IF($C34="SBC",VLOOKUP($D34,#REF!,4,0),IF($C34="SICRO",VLOOKUP($D34,SICRO_02022!$F:$I,4,0),FALSE)))))))),IF($E$6="NÃO DESONERADO",IF($D34="","",IF($C34="EMOP",VLOOKUP($D34,EMOP_CONJ_03.2026!$A:$D,4,0),IF($C34="SCO",VLOOKUP($D34,SCO_SERV_CONJ_052025!$A:$D,4,0),IF($C34="SINAPI",VLOOKUP($D34,SINAPI_SERV_CONJ_052025!$I:$L,4,0),IF($C34="COMPOSIÇÃO",VLOOKUP($D34,#REF!,9,0),IF($C34="COTAÇÃO",VLOOKUP($D34,#REF!,8,0),IF($C34="SBC",VLOOKUP($D34,#REF!,4,0),IF($C34="SICRO",VLOOKUP($D34,SICRO_02022!$A:$D,4,0),FALSE)))))))))) -> 8752.62 | I34: 105031.44 | J34: 10691.3253 | K34: 128295.9
A35: SUBTOTAL | B35: 3.0 | E35: =M.CÁLCULO!E146 -> APOIO TÉCNICO | I35: =SUMIF($A:$A,$B35,$I:$I) -> 1147461.12 | K35: =SUMIF($A:$A,$B35,$K:$K) -> 1401623.28
A36: 3.0 | B36: 3.1 | C36: =VLOOKUP(B36,M.CÁLCULO!$A:$P,2,0) -> EMOP | D36: =IF($E$6="NÃO DESONERADO",VLOOKUP($B36,M.CÁLCULO!$A:$Q,3,FALSE),IF($E$6="DESONERADO",VLOOKUP($B36,M.CÁLCULO!$A:$Q,4,FALSE),FALSE)) -> 05.105.0147-0 | E36: =IF($E$6="DESONERADO",IF($D36="","",IF($C36="EMOP",VLOOKUP($D36,EMOP_CONJ_03.2026!$F:$I,2,0),IF($C36="SCO",VLOOKUP($D36,SCO_SERV_CONJ_052025!$F:$I,2,0),IF($C36="SINAPI",VLOOKUP($D36,SINAPI_SERV_CONJ_052025!$I:$M,2,0),IF($C36="COMPOSIÇÃO",VLOOKUP($D36,#REF!,4,0),IF($C36="COTAÇÃO",VLOOKUP($D36,#REF!,2,0),IF($C36="SBC",VLOOKUP($D36,#REF!,2,0),IF($C36="SICRO",VLOOKUP($D36,SICRO_02022!$F:$I,2,0),FALSE)))))))),IF($E$6="NÃO DESONERADO",IF($D36="","",IF($C36="EMOP",VLOOKUP($D36,EMOP_CONJ_03.2026!$A:$D,2,0),IF($C36="SCO",VLOOKUP($D36,SCO_SERV_CONJ_052025!$A:$D,2,0),IF($C36="SINAPI",VLOOKUP($D36,SINAPI_SERV_CONJ_052025!$I:$L,2,0),IF($C36="COMPOSIÇÃO",VLOOKUP($D36,#REF!,3,0),IF($C36="COTAÇÃO",VLOOKUP($D36,#REF!,2,0),IF($C36="SBC",VLOOKUP($D36,#REF!,2,0),IF($C36="SICRO",VLOOKUP($D36,SICRO_02022!$A:$D,2,0),FALSE)))))))))) -> MAO-DE-OBRA PARA LABORATORISTA "A",INCLUSIVE ENCARGOS SOCIAIS | F36: =IF($E$6="DESONERADO",IF($D36="","",IF($C36="EMOP",VLOOKUP($D36,EMOP_CONJ_03.2026!$F:$I,3,0),IF($C36="SCO",VLOOKUP($D36,SCO_SERV_CONJ_052025!$F:$I,3,0),IF($C36="SINAPI",VLOOKUP($D36,SINAPI_SERV_CONJ_052025!$I:$M,3,0),IF($C36="COMPOSIÇÃO",VLOOKUP($D36,#REF!,7,0),IF($C36="COTAÇÃO",VLOOKUP($D36,#REF!,5,0),IF($C36="SBC",VLOOKUP($D36,#REF!,3,0),IF($C36="SICRO",VLOOKUP($D36,SICRO_02022!$F:$I,3,0),FALSE)))))))),IF($E$6="NÃO DESONERADO",IF($D36="","",IF($C36="EMOP",VLOOKUP($D36,EMOP_CONJ_03.2026!$A:$D,3,0),IF($C36="SCO",VLOOKUP($D36,SCO_SERV_CONJ_052025!$A:$D,3,0),IF($C36="SINAPI",VLOOKUP($D36,SINAPI_SERV_CONJ_052025!$I:$L,3,0),IF($C36="COMPOSIÇÃO",VLOOKUP($D36,#REF!,7,0),IF($C36="COTAÇÃO",VLOOKUP($D36,#REF!,5,0),IF($C36="SBC",VLOOKUP($D36,#REF!,3,0),FALSOSE($C36="SICRO",VLOOKUP($D36,SICRO_02022!$A:$D,3,0),FALSE)))))))))) -> MES | G36: =VLOOKUP($B36,M.CÁLCULO!$A:$Q,16,0) -> 24 | H36: =IF($E$6="DESONERADO",IF($D36="","",IF($C36="EMOP",VLOOKUP($D36,EMOP_CONJ_03.2026!$F:$I,4,0),IF($C36="SCO",VLOOKUP($D36,SCO_SERV_CONJ_052025!$F:$I,4,0),IF($C36="SINAPI",VLOOKUP($D36,SINAPI_SERV_CONJ_052025!$I:$M,5,0),IF($C36="COMPOSIÇÃO",VLOOKUP($D36,#REF!,9,0),IF($C36="COTAÇÃO",VLOOKUP($D36,#REF!,8,0),IF($C36="SBC",VLOOKUP($D36,#REF!,4,0),IF($C36="SICRO",VLOOKUP($D36,SICRO_02022!$F:$I,4,0),FALSE)))))))),IF($E$6="NÃO DESONERADO",IF($D36="","",IF($C36="EMOP",VLOOKUP($D36,EMOP_CONJ_03.2026!$A:$D,4,0),IF($C36="SCO",VLOOKUP($D36,SCO_SERV_CONJ_052025!$A:$D,4,0),IF($C36="SINAPI",VLOOKUP($D36,SINAPI_SERV_CONJ_052025!$I:$L,4,0),IF($C36="COMPOSIÇÃO",VLOOKUP($D36,#REF!,9,0),IF($C36="COTAÇÃO",VLOOKUP($D36,#REF!,8,0),IF($C36="SBC",VLOOKUP($D36,#REF!,4,0),IF($C36="SICRO",VLOOKUP($D36,SICRO_02022!$A:$D,4,0),FALSE)))))))))) -> 7164.96 | I36: =TRUNC(G36*H36,5) -> 171959.04 | J36: =TRUNC(H36*(1+$K$8),2) -> 8751.99 | K36: =TRUNC(G36*J36,5) -> 210047.76
A37: 3.0 | B37: 3.2 | C37: =VLOOKUP(B37,M.CÁLCULO!$A:$P,2,0) -> EMOP | D37: =IF($E$6="NÃO DESONERADO",VLOOKUP($B37,M.CÁLCULO!$A:$Q,3,FALSE),IF($E$6="DESONERADO",VLOOKUP($B37,M.CÁLCULO!$A:$Q,4,FALSE),FALSE)) -> 05.105.0125-0 | E37: =IF($E$6="DESONERADO",IF($D37="","",IF($C37="EMOP",VLOOKUP($D37,EMOP_CONJ_03.2026!$F:$I,2,0),IF($C37="SCO",VLOOKUP($D37,SCO_SERV_CONJ_052025!$F:$I,2,0),IF($C37="SINAPI",VLOOKUP($D37,SINAPI_SERV_CONJ_052025!$I:$M,2,0),IF($C37="COMPOSIÇÃO",VLOOKUP($D37,#REF!,4,0),IF($C37="COTAÇÃO",VLOOKUP($D37,#REF!,2,0),IF($C37="SBC",VLOOKUP($D37,#REF!,2,0),IF($C37="SICRO",VLOOKUP($D37,SICRO_02022!$F:$I,2,0),FALSE)))))))),IF($E$6="NÃO DESONERADO",IF($D37="","",IF($C37="EMOP",VLOOKUP($D37,EMOP_CONJ_03.2026!$A:$D,2,0),IF($C37="SCO",VLOOKUP($D37,SCO_SERV_CONJ_052025!$A:$D,2,0),IF($C37="SINAPI",VLOOKUP($D37,SINAPI_SERV_CONJ_052025!$I:$L,2,0),IF($C37="COMPOSIÇÃO",VLOOKUP($D37,#REF!,3,0),IF($C37="COTAÇÃO",VLOOKUP($D37,#REF!,2,0),IF($C37="SBC",VLOOKUP($D37,#REF!,2,0),IF($C37="SICRO",VLOOKUP($D37,SICRO_02022!$A:$D,2,0),FALSE)))))))))) -> MAO-DE-OBRA DE AUXILIAR TECNICO,INCLUSIVE ENCARGOS SOCIAIS | F37: =IF($E$6="DESONERADO",IF($D37="","",IF($C37="EMOP",VLOOKUP($D37,EMOP_CONJ_03.2026!$F:$I,3,0),IF($C37="SCO",VLOOKUP($D37,SCO_SERV_CONJ_052025!$F:$I,3,0),IF($C37="SINAPI",VLOOKUP($D37,SINAPI_SERV_CONJ_052025!$I:$M,3,0),IF($C37="COMPOSIÇÃO",VLOOKUP($D37,#REF!,7,0),IF($C37="COTAÇÃO",VLOOKUP($D37,#REF!,5,0),IF($C37="SBC",VLOOKUP($D37,#REF!,3,0),IF($C37="SICRO",VLOOKUP($D37,SICRO_02022!$F:$I,3,0),FALSE)))))))),IF($E$6="NÃO DESONERADO",IF($D37="","",IF($C37="EMOP",VLOOKUP($D37,EMOP_CONJ_03.2026!$A:$D,3,0),IF($C37="SCO",VLOOKUP($D37,SCO_SERV_CONJ_052025!$A:$D,3,0),IF($C37="SINAPI",VLOOKUP($D37,SINAPI_SERV_CONJ_052025!$I:$L,3,0),IF($C37="COMPOSIÇÃO",VLOOKUP($D37,#REF!,7,0),IF($C37="COTAÇÃO",VLOOKUP($D37,#REF!,5,0),IF($C37="SBC",VLOOKUP($D37,#REF!,3,0),FALSOSE($C37="SICRO",VLOOKUP($D37,SICRO_02022!$A:$D,3,0),FALSE)))))))))) -> MES | G37: =VLOOKUP($B37,M.CÁLCULO!$A:$Q,16,0) -> 24 | H37: =IF($E$6="DESONERADO",IF($D37="","",IF($C37="EMOP",VLOOKUP($D37,EMOP_CONJ_03.2026!$F:$I,4,0),IF($C37="SCO",VLOOKUP($D37,SCO_SERV_CONJ_052025!$F:$I,4,0),IF($C37="SINAPI",VLOOKUP($D37,SINAPI_SERV_CONJ_052025!$I:$M,5,0),IF($C37="COMPOSIÇÃO",VLOOKUP($D37,#REF!,9,0),IF($C37="COTAÇÃO",VLOOKUP($D37,#REF!,8,0),IF($C37="SBC",VLOOKUP($D37,#REF!,4,0),IF($C37="SICRO",VLOOKUP($D37,SICRO_02022!$F:$I,4,0),FALSE)))))))),IF($E$6="NÃO DESONERADO",IF($D37="","",IF($C37="EMOP",VLOOKUP($D37,EMOP_CONJ_03.2026!$A:$D,4,0),IF($C37="SCO",VLOOKUP($D37,SCO_SERV_CONJ_052025!$A:$D,4,0),IF($C37="SINAPI",VLOOKUP($D37,SINAPI_SERV_CONJ_052025!$I:$L,4,0),IF($C37="COMPOSIÇÃO",VLOOKUP($D37,#REF!,9,0),IF($C37="COTAÇÃO",VLOOKUP($D37,#REF!,8,0),IF($C37="SBC",VLOOKUP($D37,#REF!,4,0),IF($C37="SICRO",VLOOKUP($D37,SICRO_02022!$A:$D,4,0),FALSE)))))))))) -> 3949.44 | I37: =TRUNC(G37*H37,5) -> 94786.56 | J37: =TRUNC(H37*(1+$K$8),2) -> 4824.24 | K37: =TRUNC(G37*J37,5) -> 115781.76
A38: 3.0 | B38: 3.3 | C38: =VLOOKUP(B38,M.CÁLCULO!$A:$P,2,0) -> EMOP | D38: =IF($E$6="NÃO DESONERADO",VLOOKUP($B38,M.CÁLCULO!$A:$Q,3,FALSE),IF($E$6="DESONERADO",VLOOKUP($B38,M.CÁLCULO!$A:$Q,4,FALSE),FALSE)) -> 05.105.0131-0 | E38: =IF($E$6="DESONERADO",IF($D38="","",IF($C38="EMOP",VLOOKUP($D38,EMOP_CONJ_03.2026!$F:$I,2,0),IF($C38="SCO",VLOOKUP($D38,SCO_SERV_CONJ_052025!$F:$I,2,0),IF($C38="SINAPI",VLOOKUP($D38,SINAPI_SERV_CONJ_052025!$I:$M,2,0),IF($C38="COMPOSIÇÃO",VLOOKUP($D38,#REF!,4,0),IF($C38="COTAÇÃO",VLOOKUP($D38,#REF!,2,0),IF($C38="SBC",VLOOKUP($D38,#REF!,2,0),IF($C38="SICRO",VLOOKUP($D38,SICRO_02022!$F:$I,2,0),FALSE)))))))),IF($E$6="NÃO DESONERADO",IF($D38="","",IF($C38="EMOP",VLOOKUP($D38,EMOP_CONJ_03.2026!$A:$D,2,0),IF($C38="SCO",VLOOKUP($D38,SCO_SERV_CONJ_052025!$A:$D,2,0),IF($C38="SINAPI",VLOOKUP($D38,SINAPI_SERV_CONJ_052025!$I:$L,2,0),IF($C38="COMPOSIÇÃO",VLOOKUP($D38,#REF!,3,0),IF($C38="COTAÇÃO",VLOOKUP($D38,#REF!,2,0),IF($C38="SBC",VLOOKUP($D38,#REF!,2,0),IF($C38="SICRO",VLOOKUP($D38,SICRO_02022!$A:$D,2,0),FALSE)))))))))) -> MAO-DE-OBRA DE ENGENHEIRO OU ARQUITETO SENIOR,INCLUSIVE ENCARGOS SOCIAIS | F38: =IF($E$6="DESONERADO",IF($D38="","",IF($C38="EMOP",VLOOKUP($D38,EMOP_CONJ_03.2026!$F:$I,3,0),IF($C38="SCO",VLOOKUP($D38,SCO_SERV_CONJ_052025!$F:$I,3,0),IF($C38="SINAPI",VLOOKUP($D38,SINAPI_SERV_CONJ_052025!$I:$M,3,0),IF($C38="COMPOSIÇÃO",VLOOKUP($D38,#REF!,7,0),IF($C38="COTAÇÃO",VLOOKUP($D38,#REF!,5,0),IF($C38="SBC",VLOOKUP($D38,#REF!,3,0),IF($C38="SICRO",VLOOKUP($D38,SICRO_02022!$F:$I,3,0),FALSE)))))))),IF($E$6="NÃO DESONERADO",IF($D38="","",IF($C38="EMOP",VLOOKUP($D38,EMOP_CONJ_03.2026!$A:$D,3,0),IF($C38="SCO",VLOOKUP($D38,SCO_SERV_CONJ_052025!$A:$D,3,0),IF($C38="SINAPI",VLOOKUP($D38,SINAPI_SERV_CONJ_052025!$I:$L,3,0),IF($C38="COMPOSIÇÃO",VLOOKUP($D38,#REF!,7,0),IF($C38="COTAÇÃO",VLOOKUP($D38,#REF!,5,0),IF($C38="SBC",VLOOKUP($D38,#REF!,3,0),FALSOSE($C38="SICRO",VLOOKUP($D38,SICRO_02022!$A:$D,3,0),FALSE)))))))))) -> MES | G38: =VLOOKUP($B38,M.CÁLCULO!$A:$Q,16,0) -> 12 | H38: =IF($E$6="DESONERADO",IF($D38="","",IF($C38="EMOP",VLOOKUP($D38,EMOP_CONJ_03.2026!$F:$I,4,0),IF($C38="SCO",VLOOKUP($D38,SCO_SERV_CONJ_052025!$F:$I,4,0),IF($C38="SINAPI",VLOOKUP($D38,SINAPI_SERV_CONJ_052025!$I:$M,5,0),IF($C38="COMPOSIÇÃO",VLOOKUP($D38,#REF!,9,0),IF($C38="COTAÇÃO",VLOOKUP($D38,#REF!,8,0),IF($C38="SBC",VLOOKUP($D38,#REF!,4,0),IF($C38="SICRO",VLOOKUP($D38,SICRO_02022!$F:$I,4,0),FALSE)))))))),IF($E$6="NÃO DESONERADO",IF($D38="","",IF($C38="EMOP",VLOOKUP($D38,EMOP_CONJ_03.2026!$A:$D,4,0),IF($C38="SCO",VLOOKUP($D38,SCO_SERV_CONJ_052025!$A:$D,4,0),IF($C38="SINAPI",VLOOKUP($D38,SINAPI_SERV_CONJ_052025!$I:$L,4,0),IF($C38="COMPOSIÇÃO",VLOOKUP($D38,#REF!,9,0),IF($C38="COTAÇÃO",VLOOKUP($D38,#REF!,8,0),IF($C38="SBC",VLOOKUP($D38,#REF!,4,0),IF($C38="SICRO",VLOOKUP($D38,SICRO_02022!$A:$D,4,0),FALSE)))))))))) -> 48700.96 | I38: 584411.52 | J38: 59488.22 | K38: 713858.64
A39: 3.0 | B39: 3.4 | C39: =VLOOKUP(B39,M.CÁLCULO!$A:$P,2,0) -> EMOP | D39: =IF($E$6="NÃO DESONERADO",VLOOKUP($B39,M.CÁLCULO!$A:$Q,3,FALSE),IF($E$6="DESONERADO",VLOOKUP($B39,M.CÁLCULO!$A:$Q,4,FALSE),FALSE)) -> 19.004.0402-0 | E39: =IF($E$6="DESONERADO",IF($D39="","",IF($C39="EMOP",VLOOKUP($D39,EMOP_CONJ_03.2026!$F:$I,2,0),IF($C39="SCO",VLOOKUP($D39,SCO_SERV_CONJ_052025!$F:$I,2,0),IF($C39="SINAPI",VLOOKUP($D39,SINAPI_SERV_CONJ_052025!$I:$M,2,0),IF($C39="COMPOSIÇÃO",VLOOKUP($D39,#REF!,4,0),IF($C39="COTAÇÃO",VLOOKUP($D39,#REF!,2,0),IF($C39="SBC",VLOOKUP($D39,#REF!,2,0),IF($C39="SICRO",VLOOKUP($D39,SICRO_02022!$F:$I,2,0),FALSE)))))))),IF($E$6="NÃO DESONERADO",IF($D39="","",IF($C39="EMOP",VLOOKUP($D39,EMOP_CONJ_03.2026!$A:$D,2,0),IF($C39="SCO",VLOOKUP($D39,SCO_SERV_CONJ_052025!$A:$D,2,0),IF($C39="SINAPI",VLOOKUP($D39,SINAPI_SERV_CONJ_052025!$I:$L,2,0),IF($C39="COMPOSIÇÃO",VLOOKUP($D39,#REF!,3,0),IF($C39="COTAÇÃO",VLOOKUP($D39,#REF!,2,0),IF($C39="SBC",VLOOKUP($D39,#REF!,2,0),IF($C39="SICRO",VLOOKUP($D39,SICRO_02022!$A:$D,2,0),FALSE)))))))))) -> CAMIONETE TIPO PICK-UP,COM CABINE SIMPLES E CACAMBA,TIPO LEVE,MOTOR BICOMBUSTIVEL (GASOLINA E ALCOOL) DE 1,6 LITROS,INCLUSIVE MOTORISTA E COMBUSTIVEL | F39: =IF($E$6="DESONERADO",IF($D39="","",IF($C39="EMOP",VLOOKUP($D39,EMOP_CONJ_03.2026!$F:$I,3,0),IF($C39="SCO",VLOOKUP($D39,SCO_SERV_CONJ_052025!$F:$I,3,0),IF($C39="SINAPI",VLOOKUP($D39,SINAPI_SERV_CONJ_052025!$I:$M,3,0),IF($C39="COMPOSIÇÃO",VLOOKUP($D39,#REF!,7,0),IF($C39="COTAÇÃO",VLOOKUP($D39,#REF!,5,0),IF($C39="SBC",VLOOKUP($D39,#REF!,3,0),IF($C39="SICRO",VLOOKUP($D39,SICRO_02022!$F:$I,3,0),FALSE)))))))),IF($E$6="NÃO DESONERADO",IF($D39="","",IF($C39="EMOP",VLOOKUP($D39,EMOP_CONJ_03.2026!$A:$D,3,0),IF($C39="SCO",VLOOKUP($D39,SCO_SERV_CONJ_052025!$A:$D,3,0),IF($C39="SINAPI",VLOOKUP($D39,SINAPI_SERV_CONJ_052025!$I:$L,3,0),IF($C39="COMPOSIÇÃO",VLOOKUP($D39,#REF!,7,0),IF($C39="COTAÇÃO",VLOOKUP($D39,#REF!,5,0),IF($C39="SBC",VLOOKUP($D39,#REF!,3,0),FALSOSE($C39="SICRO",VLOOKUP($D39,SICRO_02022!$A:$D,3,0),FALSE)))))))))) -> MES | G39: =VLOOKUP($B39,M.CÁLCULO!$A:$Q,16,0) -> 24 | H39: =IF($E$6="DESONERADO",IF($D39="","",IF($C39="EMOP",VLOOKUP($D39,EMOP_CONJ_03.2026!$F:$I,4,0),IF($C39="SCO",VLOOKUP($D39,SCO_SERV_CONJ_052025!$F:$I,4,0),IF($C39="SINAPI",VLOOKUP($D39,SINAPI_SERV_CONJ_052025!$I:$M,5,0),IF($C39="COMPOSIÇÃO",VLOOKUP($D39,#REF!,9,0),IF($C39="COTAÇÃO",VLOOKUP($D39,#REF!,8,0),IF($C39="SBC",VLOOKUP($D39,#REF!,4,0),IF($C39="SICRO",VLOOKUP($D39,SICRO_02022!$F:$I,4,0),FALSE)))))))),IF($E$6="NÃO DESONERADO",IF($D39="","",IF($C39="EMOP",VLOOKUP($D39,EMOP_CONJ_03.2026!$A:$D,4,0),IF($C39="SCO",VLOOKUP($D39,SCO_SERV_CONJ_052025!$A:$D,4,0),IF($C39="SINAPI",VLOOKUP($D39,SINAPI_SERV_CONJ_052025!$I:$L,4,0),IF($C39="COMPOSIÇÃO",VLOOKUP($D39,#REF!,9,0),IF($C39="COTAÇÃO",VLOOKUP($D39,#REF!,8,0),IF($C39="SBC",VLOOKUP($D39,#REF!,4,0),IF($C39="SICRO",VLOOKUP($D39,SICRO_02022!$A:$D,4,0),FALSE)))))))))) -> 12346 | I39: 296304 | J39: 15080.63 | K39: 361935.12
A40: SUBTOTAL | B40: 4.0 | E40: =M.CÁLCULO!E167 -> ADMINISTRAÇÃO LOCAL | I40: =SUMIF($A:$A,$B40,$I:$I) -> 619445.7561 | K40: =SUMIF($A:$A,$B40,$K:$K) -> 756614.7486 | O40: =K40/(K35+K19+K13) -> 0.03999999999
A41: 4.0 | B41: 4.1 | C41: =VLOOKUP(B41,M.CÁLCULO!$A:$P,2,0) -> EMOP | D41: =IF($E$6="NÃO DESONERADO",VLOOKUP($B41,M.CÁLCULO!$A:$Q,3,FALSE),IF($E$6="DESONERADO",VLOOKUP($B41,M.CÁLCULO!$A:$Q,4,FALSE),FALSE)) -> 05.100.0900-0 | E41: =IF($E$6="DESONERADO",IF($D41="","",IF($C41="EMOP",VLOOKUP($D41,EMOP_CONJ_03.2026!$F:$I,2,0),IF($C41="SCO",VLOOKUP($D41,SCO_SERV_CONJ_052025!$F:$I,2,0),IF($C41="SINAPI",VLOOKUP($D41,SINAPI_SERV_CONJ_052025!$I:$M,2,0),IF($C41="COMPOSIÇÃO",VLOOKUP($D41,#REF!,4,0),IF($C41="COTAÇÃO",VLOOKUP($D41,#REF!,2,0),IF($C41="SBC",VLOOKUP($D41,#REF!,2,0),IF($C41="SICRO",VLOOKUP($D41,SICRO_02022!$F:$I,2,0),FALSE)))))))),IF($E$6="NÃO DESONERADO",IF($D41="","",IF($C41="EMOP",VLOOKUP($D41,EMOP_CONJ_03.2026!$A:$D,2,0),IF($C41="SCO",VLOOKUP($D41,SCO_SERV_CONJ_052025!$A:$D,2,0),IF($C41="SINAPI",VLOOKUP($D41,SINAPI_SERV_CONJ_052025!$I:$L,2,0),IF($C41="COMPOSIÇÃO",VLOOKUP($D41,#REF!,3,0),IF($C41="COTAÇÃO",VLOOKUP($D41,#REF!,2,0),IF($C41="SBC",VLOOKUP($D41,#REF!,2,0),IF($C41="SICRO",VLOOKUP($D41,SICRO_02022!$A:$D,2,0),FALSE)))))))))) -> UNIDADE REF.P/COMPL.ADM LOCAL,CONSID:CONSUMO AGUA,TEL.ENERGIA ELETR.MAT.LIMPEZA ESCRITORIO,COMPUTADORES LICENCA OBRA,MOVEIS UTENSILIOS,AR COND.BEBEDOURO,ART,RRT,FOTOGRAFIAS,UNIFORMES,DARIAS,EXAMES ADMISSIONAIS,PERIODICOS E DEMISSIONAIS,CURSOS CAPACITACAO/TREINAMENTO ITENS COMPLEMENTEM DESP.NECESS.EXCL.DESP.C/CAFE MANHA,REFEICAO,CESTA BASICA E VALE TRANSPORTE | F41: =IF($E$6="DESONERADO",IF($D41="","",IF($C41="EMOP",VLOOKUP($D41,EMOP_CONJ_03.2026!$F:$I,3,0),IF($C41="SCO",VLOOKUP($D41,SCO_SERV_CONJ_052025!$F:$I,3,0),IF($C41="SINAPI",VLOOKUP($D41,SINAPI_SERV_CONJ_052025!$I:$M,3,0),IF($C41="COMPOSIÇÃO",VLOOKUP($D41,#REF!,7,0),IF($C41="COTAÇÃO",VLOOKUP($D41,#REF!,5,0),IF($C41="SBC",VLOOKUP($D41,#REF!,3,0),IF($C41="SICRO",VLOOKUP($D41,SICRO_02022!$F:$I,3,0),FALSE)))))))),IF($E$6="NÃO DESONERADO",IF($D41="","",IF($C41="EMOP",VLOOKUP($D41,EMOP_CONJ_03.2026!$A:$D,3,0),IF($C41="SCO",VLOOKUP($D41,SCO_SERV_CONJ_052025!$A:$D,3,0),IF($C41="SINAPI",VLOOKUP($D41,SINAPI_SERV_CONJ_052025!$I:$L,3,0),IF($C41="COMPOSIÇÃO",VLOOKUP($D41,#REF!,7,0),IF($C41="COTAÇÃO",VLOOKUP($D41,#REF!,5,0),IF($C41="SBC",VLOOKUP($D41,#REF!,3,0),FALSOSE($C41="SICRO",VLOOKUP($D41,SICRO_02022!$A:$D,3,0),FALSE)))))))))) -> UR | G41: =M.CÁLCULO!N171 -> 16809.92554 | H41: =IF($E$6="DESONERADO",IF($D41="","",IF($C41="EMOP",VLOOKUP($D41,EMOP_CONJ_03.2026!$F:$I,4,0),IF($C41="SCO",VLOOKUP($D41,SCO_SERV_CONJ_052025!$F:$I,4,0),IF($C41="SINAPI",VLOOKUP($D41,SINAPI_SERV_CONJ_052025!$I:$M,5,0),IF($C41="COMPOSIÇÃO",VLOOKUP($D41,#REF!,9,0),IF($C41="COTAÇÃO",VLOOKUP($D41,#REF!,8,0),IF($C41="SBC",VLOOKUP($D41,#REF!,4,0),IF($C41="SICRO",VLOOKUP($D41,SICRO_02022!$F:$I,4,0),FALSE)))))))),IF($E$6="NÃO DESONERADO",IF($D41="","",IF($C41="EMOP",VLOOKUP($D41,EMOP_CONJ_03.2026!$A:$D,4,0),IF($C41="SCO",VLOOKUP($D41,SCO_SERV_CONJ_052025!$A:$D,4,0),IF($C41="SINAPI",VLOOKUP($D41,SINAPI_SERV_CONJ_052025!$I:$L,4,0),IF($C41="COMPOSIÇÃO",VLOOKUP($D41,#REF!,9,0),IF($C41="COTAÇÃO",VLOOKUP($D41,#REF!,8,0),IF($C41="SBC",VLOOKUP($D41,#REF!,4,0),IF($C41="SICRO",VLOOKUP($D41,SICRO_02022!$A:$D,4,0),FALSE)))))))))) -> 36.85 | I41: =TRUNC(G41*H41,5) -> 619445.7561 | J41: =TRUNC(H41*(1+$K$8),2) -> 45.01 | K41: =TRUNC(G41*J41,5) -> 756614.7486
B42: ------------------------------- TOTAL DO ORÇAMENTO (C/ ADM E ENCARGOS COMPLEMENTARES) ------------------------------------- | H42: SEM BDI | I42: =I35+I19+I13+I40 -> 16105074.11 | J42: COM BDI | K42: =K35+K19+K13+K40 -> 19671983.47

Sheet CRONOGRAMA
B1: PRAZO: | C1: =M.CÁLCULO!M5 -> 12
B2: OBRA: | C2: =M.CÁLCULO!B3 -> CONTRATAÇÃO DE EMPRESA ESPECIALIZADA PARA ELABORAÇÃO DE PROJETOS DE INFRAESTRUTURA
B3: LOCAL: | C3: =M.CÁLCULO!B4 -> SAQUAREMA - RJ
B5: CRONOGRAMA FÍSICO-FINANCEIRO
B7: ITEM | C7: DESCRIÇÃO | D7: TOTAL | E7: % | G7: MÊS 1 | J7: MÊS 2 | M7: MÊS 3 | Q7: =SUM(D9:D16)-D17 -> 0 | T7: ZERO CORRETO
G8: Período | H8: Acumulado | J8: Período | K8: Acumulado | M8: Período | N8: Acumulado
B9: 1.0 | C9: =ORÇ_ONE!E13 -> PROJETOS | D9: =ORÇ_ONE!K13 -> 15697134.07 | E9: =ROUND(D9/$D$17,5) -> 0.79794 | G9: =1/12 -> 0.08333333333 | H9: =G9 -> 0.08333333333 | J9: =1/12 -> 0.08333333333 | K9: =J9+H9 -> 0.1666666667 | M9: =1/12 -> 0.08333333333 | N9: =M9+K9 -> 0.25 | Q9: =G10+J10+M10+G24+J24+M24+G38+J38+M38+G52+J52+M52 -> 15697134.07
G10: =ROUND($G$9*$D$9,5) -> 1308094.506 | H10: 1308094.506 | J10: =ROUND($G$9*$D$9,5) -> 1308094.506 | K10: 2616189.012 | M10: =ROUND($G$9*$D$9,5) -> 1308094.506 | N10: 3924283.517
B11: 2.0 | C11: =ORÇ_ONE!E19 -> CONTROLE TECNOLÓGICO | D11: =ORÇ_ONE!K19 -> 1816611.37 | E11: =ROUND(D11/$D$17,5) -> 0.09235 | G11: =1/12 -> 0.08333333333 | H11: =G11 -> 0.08333333333 | J11: =1/12 -> 0.08333333333 | K11: =J11+H11 -> 0.1666666667 | M11: =1/12 -> 0.08333333333 | N11: =M11+K11 -> 0.25 | Q11: =G12+J12+M12+G26+J26+M26+G40+J40+M40+G54+J54+M54 -> 1816611.37
G12: =ROUND($G$11*$D$11,5) -> 151384.2808 | H12: 151384.2808 | J12: =ROUND($G$11*$D$11,5) -> 151384.2808 | K12: 302768.5617 | M12: =ROUND($G$11*$D$11,5) -> 151384.2808 | N12: =M12+K12 -> 454152.8425
B13: 3.0 | C13: =ORÇ_ONE!E35 -> APOIO TÉCNICO | D13: =ORÇ_ONE!K35 -> 1401623.28 | E13: =ROUND(D13/$D$17,5) -> 0.07125 | G13: =1/12 -> 0.08333333333 | H13: =G13 -> 0.08333333333 | J13: =1/12 -> 0.08333333333 | K13: =J13+H13 -> 0.1666666667 | M13: =1/12 -> 0.08333333333 | N13: =M13+K13 -> 0.25 | Q13: =G14+J14+M14+G28+J28+M28+G42+J42+M42+G56+J56+M56 -> 1401623.28
G14: =ROUND($G$13*$D$13,5) -> 116801.94 | H14: 116801.94 | J14: =ROUND($G$13*$D$13,5) -> 116801.94 | K14: 233603.88 | M14: =ROUND($G$13*$D$13,5) -> 116801.94 | N14: 350405.82
B15: 4.0 | C15: =ORÇ_ONE!E40 -> ADMINISTRAÇÃO LOCAL | D15: =ORÇ_ONE!K40 -> 756614.7486 | E15: =ROUND(D15/$D$17,5) -> 0.03846 | G15: =1/12 -> 0.08333333333 | H15: =G15 -> 0.08333333333 | J15: =1/12 -> 0.08333333333 | K15: =J15+H15 -> 0.1666666667 | M15: =1/12 -> 0.08333333333 | N15: =M15+K15 -> 0.25 | Q15: =G16+J16+M16+G30+J30+M30+G44+J44+M44+G58+J58+M58 -> 756614.7486
G16: =ROUND($G$15*$D$15,5) -> 63051.22905 | H16: 63051.22905 | J16: =ROUND($G$15*$D$15,5) -> 63051.22905 | K16: 126102.4581 | M16: =ROUND($G$15*$D$15,5) -> 63051.22905 | N16: 189153.6872
B17: TOTAL DO ORÇAMENTO | D17: =SUM(D9:D16) -> 19671983.47 | E17: =SUM(E9:E16) -> 1 | G17: =G19/$D$17 -> 0.08333333333 | H17: =G17 -> 0.08333333333 | J17: =J19/$D$17 -> 0.08333333333 | K17: =H17+J17 -> 0.1666666667 | M17: =M19/$D$17 -> 0.08333333333 | N17: =K17+M17 -> 0.25 | Q17: =SUM(Q9:Q15) -> 19671983.47 | R17: =D17-Q17 -> 3.000721335e-05 | T17: ZERO CORRETO
G19: =G10+G12+G14+G16 -> 1639331.956 | H19: =G19 -> 1639331.956 | J19: =J10+J12+J14+J16 -> 1639331.956 | K19: =J19+H19 -> 3278663.911 | M19: =M10+M12+M14+M16 -> 1639331.956 | N19: =K19+M19 -> 4917995.867
E21: ITEM | G21: MÊS 4 | J21: MÊS 5 | M21: MÊS 6
G22: Período | H22: Acumulado | J22: Período | K22: Acumulado | M22: Período | N22: Acumulado
D23: =C9 -> PROJETOS | E23: 1.0 | G23: =1/12 -> 0.08333333333 | H23: =G23+N9 -> 0.3333333333 | J23: =1/12 -> 0.08333333333 | K23: =J23+H23 -> 0.4166666667 | M23: =1/12 -> 0.08333333333 | N23: =M23+K23 -> 0.5
G24: =ROUND($G$9*$D$9,5) -> 1308094.506 | H24: 5232378.023 | J24: =ROUND($G$9*$D$9,5) -> 1308094.506 | K24: 6540472.529 | M24: =ROUND($G$9*$D$9,5) -> 1308094.506 | N24: 7848567.035
D25: =C11 -> CONTROLE TECNOLÓGICO | E25: 2.0 | G25: =1/12 -> 0.08333333333 | H25: 0.3333333333 | J25: =1/12 -> 0.08333333333 | K25: 0.4166666667 | M25: =1/12 -> 0.08333333333 | N25: 0.5
G26: =ROUND($G$11*$D$11,5) -> 151384.2808 | H26: 605537.1233 | J26: =ROUND($G$11*$D$11,5) -> 151384.2808 | K26: 756921.4042 | M26: =ROUND($G$11*$D$11,5) -> 151384.2808 | N26: 908305.685
D27: =C13 -> APOIO TÉCNICO | E27: 3.0 | G27: =1/12 -> 0.08333333333 | H27: 0.3333333333 | J27: =1/12 -> 0.08333333333 | K27: 0.4166666667 | M27: =1/12 -> 0.08333333333 | N27: 0.5
G28: =ROUND($G$13*$D$13,5) -> 116801.94 | H28: 467207.76 | J28: =ROUND($G$13*$D$13,5) -> 116801.94 | K28: 584009.7 | M28: =ROUND($G$13*$D$13,5) -> 116801.94 | N28: 700811.64
D29: =C15 -> ADMINISTRAÇÃO LOCAL | E29: 4.0 | G29: =1/12 -> 0.08333333333 | H29: 0.3333333333 | J29: =1/12 -> 0.08333333333 | K29: =J29+H29 -> 0.4166666667 | M29: =1/12 -> 0.08333333333 | N29: =M29+K29 -> 0.5
G30: =ROUND($G$15*$D$15,5) -> 63051.22905 | H30: 252204.9162 | J30: =ROUND($G$15*$D$15,5) -> 63051.22905 | K30: 315256.1453 | M30: =ROUND($G$15*$D$15,5) -> 63051.22905 | N30: 378307.3743
G31: =G33/$D$17 -> 0.08333333333 | H31: 0.3333333333 | J31: =J33/$D$17 -> 0.08333333333 | K31: =H31+J31 -> 0.4166666667 | M31: =M33/$D$17 -> 0.08333333333 | N31: =K31+M31 -> 0.5
G33: =G24+G26+G28+G30 -> 1639331.956 | H33: =G33+N19 -> 6557327.823 | J33: =J24+J26+J28+J30 -> 1639331.956 | K33: =J33+H33 -> 8196659.779 | M33: =M24+M26+M28+M30 -> 1639331.956 | N33: =M33+K33 -> 9835991.734
E35: ITEM | G35: MÊS 7 | J35: MÊS 8 | M35: MÊS 9
G36: Período | H36: Acumulado | J36: Período | K36: Acumulado | M36: Período | N36: Acumulado
D37: =D23 -> PROJETOS | E37: 1.0 | G37: =1/12 -> 0.08333333333 | H37: =G37+N23 -> 0.5833333333 | J37: =1/12 -> 0.08333333333 | K37: =J37+H37 -> 0.6666666667 | M37: =1/12 -> 0.08333333333 | N37: =M37+K37 -> 0.75
G38: =ROUND($G$9*$D$9,5) -> 1308094.506 | H38: 9156661.541 | J38: =ROUND($G$9*$D$9,5) -> 1308094.506 | K38: 10464756.05 | M38: =ROUND($G$9*$D$9,5) -> 1308094.506 | N38: 11772850.55
D39: =D25 -> CONTROLE TECNOLÓGICO | E39: 2.0 | G39: =1/12 -> 0.08333333333 | H39: 0.5833333333 | J39: =1/12 -> 0.08333333333 | K39: 0.6666666667 | M39: =1/12 -> 0.08333333333 | N39: 0.75
G40: =ROUND($G$11*$D$11,5) -> 151384.2808 | H40: 1059689.966 | J40: =ROUND($G$11*$D$11,5) -> 151384.2808 | K40: 1211074.247 | M40: =ROUND($G$11*$D$11,5) -> 151384.2808 | N40: 1362458.527
D41: =D27 -> APOIO TÉCNICO | E41: 3.0 | G41: =1/12 -> 0.08333333333 | H41: 0.5833333333 | J41: =1/12 -> 0.08333333333 | K41: 0.6666666667 | M41: =1/12 -> 0.08333333333 | N41: 0.75
G42: =ROUND($G$13*$D$13,5) -> 116801.94 | H42: 817613.58 | J42: =ROUND($G$13*$D$13,5) -> 116801.94 | K42: 934415.52 | M42: =ROUND($G$13*$D$13,5) -> 116801.94 | N42: 1051217.46
D43: =D29 -> ADMINISTRAÇÃO LOCAL | E43: 4.0 | G43: =1/12 -> 0.08333333333 | H43: 0.5833333333 | J43: =1/12 -> 0.08333333333 | K43: =J43+H43 -> 0.6666666667 | M43: =1/12 -> 0.08333333333 | N43: =M43+K43 -> 0.75
G44: =ROUND($G$15*$D$15,5) -> 63051.22905 | H44: 441358.6034 | J44: =ROUND($G$15*$D$15,5) -> 63051.22905 | K44: 504409.8324 | M44: =ROUND($G$15*$D$15,5) -> 63051.22905 | N44: 567461.0615
G45: =G47/$D$17 -> 0.08333333333 | H45: =N31+G45 -> 0.5833333333 | J45: =J47/$D$17 -> 0.08333333333 | K45: =H45+J45 -> 0.6666666667 | M45: =M47/$D$17 -> 0.08333333333 | N45: =K45+M45 -> 0.75
G47: =G38+G40+G42+G44 -> 1639331.956 | H47: =N33+G47 -> 11475323.69 | J47: =J38+J40+J42+J44 -> 1639331.956 | K47: =H47+J47 -> 13114655.65 | M47: =M38+M40+M42+M44 -> 1639331.956 | N47: =K47+M47 -> 14753987.6
E49: ITEM | G49: MÊS 10 | J49: MÊS 11 | M49: MÊS 12
G50: Período | H50: Acumulado | J50: Período | K50: Acumulado | M50: Período | N50: Acumulado
D51: =D37 -> PROJETOS | E51: 1.0 | G51: =1/12 -> 0.08333333333 | H51: =G51+N37 -> 0.8333333333 | J51: =1/12 -> 0.08333333333 | K51: =J51+H51 -> 0.9166666667 | M51: =1/12 -> 0.08333333333 | N51: =M51+K51 -> 1
G52: =ROUND($G$9*$D$9,5) -> 1308094.506 | H52: 13080945.06 | J52: =ROUND($G$9*$D$9,5) -> 1308094.506 | K52: 14389039.56 | M52: =ROUND($G$9*$D$9,5) -> 1308094.506 | N52: 15697134.07
D53: =D39 -> CONTROLE TECNOLÓGICO | E53: 2.0 | G53: =1/12 -> 0.08333333333 | H53: 0.8333333333 | J53: =1/12 -> 0.08333333333 | K53: 0.9166666667 | M53: =1/12 -> 0.08333333333 | N53: 1
G54: =ROUND($G$11*$D$11,5) -> 151384.2808 | H54: 1513842.808 | J54: =ROUND($G$11*$D$11,5) -> 151384.2808 | K54: 1665227.089 | M54: =ROUND($G$11*$D$11,5) -> 151384.2808 | N54: 1816611.37
D55: =D41 -> APOIO TÉCNICO | E55: 3.0 | G55: =1/12 -> 0.08333333333 | H55: 0.8333333333 | J55: =1/12 -> 0.08333333333 | K55: 0.9166666667 | M55: =1/12 -> 0.08333333333 | N55: 1
G56: =ROUND($G$13*$D$13,5) -> 116801.94 | H56: 1168019.4 | J56: =ROUND($G$13*$D$13,5) -> 116801.94 | K56: 1284821.34 | M56: =ROUND($G$13*$D$13,5) -> 116801.94 | N56: 1401623.28
D57: =D43 -> ADMINISTRAÇÃO LOCAL | E57: 4.0 | G57: =1/12 -> 0.08333333333 | H57: 0.8333333333 | J57: =1/12 -> 0.08333333333 | K57: =J57+H57 -> 0.9166666667 | M57: =1/12 -> 0.08333333333 | N57: =M57+K57 -> 1
G58: =ROUND($G$15*$D$15,5) -> 63051.22905 | H58: 630512.2905 | J58: =ROUND($G$15*$D$15,5) -> 63051.22905 | K58: 693563.5195 | M58: =ROUND($G$15*$D$15,5) -> 63051.22905 | N58: 756614.7486
G59: =G61/$D$17 -> 0.08333333333 | H59: =N45+G59 -> 0.8333333333 | J59: =J61/$D$17 -> 0.08333333333 | K59: =H59+J59 -> 0.9166666667 | M59: =M61/$D$17 -> 0.08333333333 | N59: =K59+M59 -> 1
G61: =G52+G54+G56+G58 -> 1639331.956 | H61: =N47+G61 -> 16393319.56 | J61: =J52+J54+J56+J58 -> 1639331.956 | K61: =H61+J61 -> 18032651.51 | M61: =M52+M54+M56+M58 -> 1639331.956 | N61: =K61+M61 -> 19671983.47

Sheet CATEGORIAS (hidden)
B2: PESQUISA NO CATÁLOGO EMOP
B4: 01 | C4: SERVIÇOS DE ESCRITÓRIO, LABORATÓRIO E CAMPO
B5: 02 | C5: CANTEIRO DE OBRA
B6: 03 | C6: MOVIMENTO DE TERRA
B7: 04 | C7: TRANSPORTES
B8: 05 | C8: SERVIÇOS COMPLEMENTARES
B9: 06 | C9: GALERIAS, DRENOS E CONEXOS
B10: 07 | C10: ARGAMASSAS, INJEÇÕES E CONSOLIDAÇÕES
B11: 08 | C11: BASES E PAVIMENTOS
B12: 09 | C12: SERVIÇOS DE PARQUES E JARDINS
B13: 10 | C13: FUNDAÇÕES
B14: 11 | C14: ESTRUTURAS
B15: 12 | C15: ALVENARIAS E DIVISÓRIAS
B16: 13 | C16: REVESTIMENTO DE PAREDES, TETOS E PISOS
B17: 14 | C17: ESQUADRIAS DE PVC, FERRO, ALUMÍNIO OU MADEIRA, VIDRAÇAS E FERRAGENS
B18: 15 | C18: INSTALAÇÕES ELÉTRICAS, HIDRÁULICAS, SANITÁRIAS E MECÂNICAS
B19: 16 | C19: COBERTURAS, ISOLAMENTOS E IMPERMEABILIZAÇÕES
B20: 17 | C20: PINTURAS
B21: 18 | C21: APARELHOS HIDRÁULICOS, SANITÁRIOS, ELÉTRICOS, MECÂNICOS E ESPORTIVOS
B22: 19 | C22: ALUGUEL DE EQUIPAMENTOS
B23: 20 | C23: CUSTOS RODOVIÁRIOS
B24: 21 | C24: ILUMINAÇÃO PÚBLICA
B25: 22 | C25: REFLORESTAMENTO E EXPLORAÇÃO FLORESTAL
B26: ADM | C26: ADMINISTRAÇÃO LOCAL

Sheet COMP_BDI
A1: COMPOSIÇÃO DA TAXA DE BENEFÍCIOS E DESPESAS INDIRETAS | O1: DESONERADO
E2: <--- PREENCHER AQUI | O2: NÃO DESONERADO
A3: NÃO DESONERADO (CUSTO ADMINISTRATIVO MENOR)
A4: OBRA: | B4: =M.CÁLCULO!B3 -> CONTRATAÇÃO DE EMPRESA ESPECIALIZADA PARA ELABORAÇÃO DE PROJETOS DE INFRAESTRUTURA | O4: CONSTRUÇÃO DE EDIFICAÇÕES OU SIMILARES
A5: LOCAL: | B5: =M.CÁLCULO!B4 -> SAQUAREMA - RJ | O5: CONSTRUÇÃO DE RODOVIAS E FERROVIAS
A6: Grupo A | B6: Despesas indiretas | E6: 1º | F6: 2º | G6: 3º | O6: CONSTRUÇÃO E MANUTENÇÃO DE ESTAÇÕES E REDES DE DISTRIBUIÇÃO DE ENERGIA ELÉTRICA
O7: OBRAS PORTUÁRIAS, MARÍTIMAS E FLUVIAIS
A8: AC | B8: Administração Central | C8: 4.49 | E8: 1.5 | F8: 3.45 | G8: 4.49 | O8: CUSTO ADMINISTRATIVO MENOR
O9: SERVIÇOS
A10: SG | B10: Seguro + Garantia | C10: 0.82 | E10: 0.3 | F10: 0.48 | G10: 0.82
A12: R | B12: Risco | C12: 0.89 | E12: 0.56 | F12: 0.85 | G12: 0.89
B14: Total do grupo A | C14: =SUM(C7:C13) -> 6.2
E15: ACÓRDÃO TCU Nº 2622/2013
A16: Grupo B | B16: Bonificação | E16: 1º | F16: 2º | G16: 3º
A18: DF | B18: Despesas Financeiras | C18: 1.1 | E18: 0.85 | F18: 0.85 | G18: 1.11
B19: Total do grupo B | C19: =SUM(C17:C18) -> 1.1
E20: ACÓRDÃO TCU Nº 2622/2013
A21: Grupo C | B21: Bonificação | E21: 1º | F21: 2º | G21: 3º
E22: 3.5 | F22: 5.11 | G22: 6.22
A23: L | B23: Lucro | C23: 6.21
B24: Total do grupo C | C24: =SUM(C22:C23) -> 6.21
E25: ACÓRDÃO TCU Nº 2622/2013
A26: Grupo D | B26: Impostos | E26: 1º | F26: 2º | G26: 3º
A28: C.1 | B28: PIS | C28: 0.65 | E28: 0.65 | F28: 0.65 | G28: 0.65
A30: C.2 | B30: COFINS | C30: 3 | E30: 3 | F30: 3 | G30: 3
A32: C.3 | B32: ISSQN | C32: =(C38*C39) -> 3
A34: C.4 | B34: INSS | C34: 0
B36: Total do grupo D | C36: =SUM(C28:C35) -> 6.65
A38: ISS | B38: Alíquota do ISS utilizada pelo município de Saquarema | C38: 5
A39: % | B39: Estimativa de percentual da base de cálculo para o ISS, baseada na legislação tributária municipal | C39: 0.6
A41: Fórmula para o cálculo do B.D.I. ( benefícios e despesas indiretas ) | E41: ACÓRDÃO TCU Nº 2622/2013
E42: 1º | F42: 2º | G42: 3º
A43: BDI | B43: = (((1+AC+S+R+G)*(1+DF)*(1+L))/(1-I))-1 | C43: =IF(C36="ERRO","ERRO",TRUNC((((1+C14/100)*(1+C19/100)*(1+C24/100))/(1-C36/100))-1,4)) -> 0.2215 | E43: 11.1 | F43: 14.02 | G43: 16.8
E44: OBSERVAÇÃO OS VALORES SE REFEREM AO NÃO DESONERADO
A45: Saquarema, __________ de __________________ de 20__.

Sheet DADOS (hidden)
C2: TERMOS PARA CONCATENAR | E2: TIPO DE BDI | F2: TIPO DE OBRA | G2: ITEM | H2: 1º QUARTIL | I2: 2º QUARTIL | J2: 3º QUARTIL
A3: CONTRIBUIÇÃO PREVIDÊNCIÁRIA | E3: SERVIÇOS | F3: CONSTRUÇÃO DE EDIFICAÇÕES OU SIMILARES | G3: AC | H3: 3 | I3: 4 | J3: 5
A4: DESONERADO | C4: COMP-SAQ/ | E4: SERVIÇOS | F4: CONSTRUÇÃO DE EDIFICAÇÕES OU SIMILARES | G4: SG | H4: 0.8 | I4: 0.8 | J4: 1
A5: NÃO DESONERADO | E5: SERVIÇOS | F5: CONSTRUÇÃO DE EDIFICAÇÕES OU SIMILARES | G5: R | H5: 0.97 | I5: 1.27 | J5: 1.27
E6: SERVIÇOS | F6: CONSTRUÇÃO DE EDIFICAÇÕES OU SIMILARES | G6: DF | H6: 0.59 | I6: 1.23 | J6: 1.39
E7: SERVIÇOS | F7: CONSTRUÇÃO DE EDIFICAÇÕES OU SIMILARES | G7: L | H7: 6.16 | I7: 7.4 | J7: 8.96
A8: ACÓRDÃO TCU 2622 | E8: SERVIÇOS | F8: CONSTRUÇÃO DE RODOVIAS E FERROVIAS | G8: AC | H8: 3.8 | I8: 4.01 | J8: 5.5
A9: CONSTRUÇÃO DE EDIFICAÇÕES OU SIMILARES | E9: SERVIÇOS | F9: CONSTRUÇÃO DE RODOVIAS E FERROVIAS | G9: SG | H9: 0.32 | I9: 0.4 | J9: 0.74
A10: CONSTRUÇÃO DE RODOVIAS E FERROVIAS | E10: SERVIÇOS | F10: CONSTRUÇÃO DE RODOVIAS E FERROVIAS | G10: R | H10: 0.5 | I10: 0.56 | J10: 0.97
A11: CONSTRUÇÃO DE REDES DE ABASTECIMENTO DE ÁGUA, ESGOTO E CONSTRUÇÕES CORRELATAS | E11: SERVIÇOS | F11: CONSTRUÇÃO DE RODOVIAS E FERROVIAS | G11: DF | H11: 1.02 | I11: 1.11 | J11: 1.21
A12: CONSTRUÇÃO E MANUTENÇÃO DE ESTAÇÕES E REDES DE DISTRIBUIÇÃO DE ENERGIA ELÉTRICA | E12: SERVIÇOS | F12: CONSTRUÇÃO DE RODOVIAS E FERROVIAS | G12: L | H12: 6.64 | I12: 7.3 | J12: 8.69
A13: OBRAS PORTUÁRIAS, MARÍTIMAS E FLUVIAIS | E13: SERVIÇOS | F13: CONSTRUÇÃO DE REDES DE ABASTECIMENTO DE ÁGUA, ESGOTO E CONSTRUÇÕES CORRELATAS | G13: AC | H13: 3.43 | I13: 4.93 | J13: 6.71
A14: CUSTO ADMINISTRATIVO MENOR | E14: SERVIÇOS | F14: CONSTRUÇÃO DE REDES DE ABASTECIMENTO DE ÁGUA, ESGOTO E CONSTRUÇÕES CORRELATAS | G14: SG | H14: 0.28 | I14: 0.49 | J14: 0.75
A15: SERVIÇOS | E15: SERVIÇOS | F15: CONSTRUÇÃO DE REDES DE ABASTECIMENTO DE ÁGUA, ESGOTO E CONSTRUÇÕES CORRELATAS | G15: R | H15: 1 | I15: 1.39 | J15: 1.74
E16: SERVIÇOS | F16: CONSTRUÇÃO DE REDES DE ABASTECIMENTO DE ÁGUA, ESGOTO E CONSTRUÇÕES CORRELATAS | G16: DF | H16: 0.94 | I16: 0.99 | J16: 1.17
E17: SERVIÇOS | F17: CONSTRUÇÃO DE REDES DE ABASTECIMENTO DE ÁGUA, ESGOTO E CONSTRUÇÕES CORRELATAS | G17: L | H17: 6.74 | I17: 8.04 | J17: 9.4
A18: TIPO | E18: SERVIÇOS | F18: CONSTRUÇÃO E MANUTENÇÃO DE ESTAÇÕES E REDES DE DISTRIBUIÇÃO DE ENERGIA ELÉTRICA | G18: AC | H18: 5.29 | I18: 5.92 | J18: 7.93
A19: COMPOSIÇÃO | E19: SERVIÇOS | F19: CONSTRUÇÃO E MANUTENÇÃO DE ESTAÇÕES E REDES DE DISTRIBUIÇÃO DE ENERGIA ELÉTRICA | G19: SG | H19: 0.25 | I19: 0.51 | J19: 0.56
A20: INSUMO | E20: SERVIÇOS | F20: CONSTRUÇÃO E MANUTENÇÃO DE ESTAÇÕES E REDES DE DISTRIBUIÇÃO DE ENERGIA ELÉTRICA | G20: R | H20: 1 | I20: 1.48 | J20: 1.97
A21: COTAÇÃO | E21: SERVIÇOS | F21: CONSTRUÇÃO E MANUTENÇÃO DE ESTAÇÕES E REDES DE DISTRIBUIÇÃO DE ENERGIA ELÉTRICA | G21: DF | H21: 1.01 | I21: 1.07 | J21: 1.11
A22: INSUMO | E22: SERVIÇOS | F22: CONSTRUÇÃO E MANUTENÇÃO DE ESTAÇÕES E REDES DE DISTRIBUIÇÃO DE ENERGIA ELÉTRICA | G22: L | H22: 8 | I22: 8.31 | J22: 9.51
E23: SERVIÇOS | F23: OBRAS PORTUÁRIAS, MARÍTIMAS E FLUVIAIS | G23: AC | H23: 4 | I23: 5.52 | J23: 7.85
E24: SERVIÇOS | F24: OBRAS PORTUÁRIAS, MARÍTIMAS E FLUVIAIS | G24: SG | H24: 0.81 | I24: 1.22 | J24: 1.99
A25: TABELAS | C25: TABELA MEM | E25: SERVIÇOS | F25: OBRAS PORTUÁRIAS, MARÍTIMAS E FLUVIAIS | G25: R | H25: 1.46 | I25: 2.32 | J25: 3.16
A26: COMPOSIÇÃO MONTADA | C26: COMPOSIÇÃO | E26: SERVIÇOS | F26: OBRAS PORTUÁRIAS, MARÍTIMAS E FLUVIAIS | G26: DF | H26: 0.94 | I26: 1.02 | J26: 1.33
A27: COTAÇÃO | C27: COTAÇÃO | E27: SERVIÇOS | F27: OBRAS PORTUÁRIAS, MARÍTIMAS E FLUVIAIS | G27: L | H27: 7.14 | I27: 8.4 | J27: 10.43
A28: EMOP | C28: EMOP | E28: CUSTO ADMINISTRATIVO MENOR | F28: CUSTO ADMINISTRATIVO MENOR | G28: AC | H28: 1.5 | I28: 3.45 | J28: 4.49
A29: SBC | C29: SBC | E29: CUSTO ADMINISTRATIVO MENOR | F29: CUSTO ADMINISTRATIVO MENOR | G29: SG | H29: 0.3 | I29: 0.48 | J29: 0.82
A30: SCO | C30: SCO | E30: CUSTO ADMINISTRATIVO MENOR | F30: CUSTO ADMINISTRATIVO MENOR | G30: R | H30: 0.56 | I30: 0.85 | J30: 0.89
A31: SINAPI | C31: SINAPI | E31: CUSTO ADMINISTRATIVO MENOR | F31: CUSTO ADMINISTRATIVO MENOR | G31: DF | H31: 0.85 | I31: 0.85 | J31: 1.11
A32: SICRO | C32: SICRO | E32: CUSTO ADMINISTRATIVO MENOR | F32: CUSTO ADMINISTRATIVO MENOR | G32: L | H32: 3.5 | I32: 5.11 | J32: 6.22
E33: BDI | F33: CONSTRUÇÃO DE EDIFICAÇÕES OU SIMILARES | H33: 20.34 | I33: 22.12 | J33: 25
A34: STATUS DE MODIFICAÇÃO DO INSUMO OU SERVIÇOS NAS COMPOSIÇÕES DE CUSTOS UNITÁRIOS | E34: BDI | F34: CONSTRUÇÃO DE RODOVIAS E FERROVIAS | H34: 19.6 | I34: 20.97 | J34: 24.23
A35: MODIFICADO | E35: BDI | F35: CONSTRUÇÃO DE REDES DE ABASTECIMENTO DE ÁGUA, ESGOTO E CONSTRUÇÕES CORRELATAS | H35: 20.76 | I35: 24.18 | J35: 26.44
A36: SUPRIMIDO | E36: BDI | F36: CONSTRUÇÃO E MANUTENÇÃO DE ESTAÇÕES E REDES DE DISTRIBUIÇÃO DE ENERGIA ELÉTRICA | H36: 24 | I36: 25.84 | J36: 27.86
A37: ACRESCIDO | E37: BDI | F37: OBRAS PORTUÁRIAS, MARÍTIMAS E FLUVIAIS | H37: 22.8 | I37: 27.48 | J37: 30.95
A38: EVIDENCIADO | E38: CUSTO ADMINISTRATIVO MENOR | F38: CUSTO ADMINISTRATIVO MENOR | H38: 11.1 | I38: 14.02 | J38: 16.8
A39: NÃO ALTERADO
A42: VERIFICAÇÃO DE PREÇO
A43: COTAÇÃO REVISAR
A44: COTAÇÃO OK
A45: TABELA
A48: VALIDAÇÃO DE IMPRESSÃO
A49: SIM
A50: NÃO

Sheet RESUMO CURVA ABC
C1: TIPO DE CONTRIBUIÇÃO PREVIDÊNCIÁRIA: | E1: =M.CÁLCULO!O6 -> NÃO DESONERADO
C2: RESUMO - CURVA ABC
A3: ITEM | B3: CÓDIGO | C3: DESCRIÇÃO | D3: UNIDADE | E3: TOTAL COM BDI
A4: 1.1 | B4: =IF($E$1="NÃO DESONERADO",VLOOKUP($A4,ORÇ_ONE!$B:$K,3,FALSE),VLOOKUP($A4,#REF!,3,FALSE)) -> 01.016.0082-0 | C4: =IF($E$1="NÃO DESONERADO",VLOOKUP($A4,ORÇ_ONE!$B:$K,4,FALSE),VLOOKUP($A4,#REF!,4,FALSE)) -> LEVANTAMENTO PLANIALTIMETRICO CADASTRAL DE AREA URBANA OU SUBURBANA,DESTINADA A REGULARIZACAO FUNDIARIA,PROJETOS VIARIOSE DE INFRAESTRUTURA,URBANIZAZAO E ASSEMELHADOS,UTILIZANDO POLIGONAL III PAC,DESENHO NA ESCALA DE 1:250 A 1:100 EM AREASMEDIANAMENTE OCUPADAS(ATE 50% DAS QUADRAS),EM AREAS ACIMA DE10000M2 | D4: =IF($E$1="NÃO DESONERADO",VLOOKUP($A4,ORÇ_ONE!$B:$K,5,FALSE),VLOOKUP($A4,#REF!,5,FALSE)) -> M2 | E4: =IF($E$1="NÃO DESONERADO",VLOOKUP($A4,ORÇ_ONE!$B:$K,10,FALSE),VLOOKUP($A4,#REF!,10,FALSE)) -> 2103360
A5: 1.2 | B5: =IF($E$1="NÃO DESONERADO",VLOOKUP($A5,ORÇ_ONE!$B:$K,3,FALSE),VLOOKUP($A5,#REF!,3,FALSE)) -> 01.050.0157-0 | C5: =IF($E$1="NÃO DESONERADO",VLOOKUP($A5,ORÇ_ONE!$B:$K,4,FALSE),VLOOKUP($A5,#REF!,4,FALSE)) -> PROJETO EXECUTIVO DE SISTEMA DE DRENAGEM ACIMA DE 20.000M2,APRESENTADO NOS PADROES DA CONTRATANTE | D5: =IF($E$1="NÃO DESONERADO",VLOOKUP($A5,ORÇ_ONE!$B:$K,5,FALSE),VLOOKUP($A5,#REF!,5,FALSE)) -> M2 | E5: =IF($E$1="NÃO DESONERADO",VLOOKUP($A5,ORÇ_ONE!$B:$K,10,FALSE),VLOOKUP($A5,#REF!,10,FALSE)) -> 4488750
A6: 1.3 | B6: =IF($E$1="NÃO DESONERADO",VLOOKUP($A6,ORÇ_ONE!$B:$K,3,FALSE),VLOOKUP($A6,#REF!,3,FALSE)) -> 01.050.0165-0 | C6: =IF($E$1="NÃO DESONERADO",VLOOKUP($A6,ORÇ_ONE!$B:$K,4,FALSE),VLOOKUP($A6,#REF!,4,FALSE)) -> PROJETO EXECUTIVO PARA URBANIZACAO/REURBANIZACAO (GEOMETRICO,CORTES E DETALHES) PARA TRATAMENTO PAISAGISTICO DE AREAS PUBLICAS,APRESENTADO NOS PADROES DA CONTRATANTE,INCLUSIVE AS OPERACOES PERTINENTES E A COORDENACAO DOS PROJETOS COMPLEMENTARES | D6: =IF($E$1="NÃO DESONERADO",VLOOKUP($A6,ORÇ_ONE!$B:$K,5,FALSE),VLOOKUP($A6,#REF!,5,FALSE)) -> HA | E6: =IF($E$1="NÃO DESONERADO",VLOOKUP($A6,ORÇ_ONE!$B:$K,10,FALSE),VLOOKUP($A6,#REF!,10,FALSE)) -> 6344746.32
A7: 1.4 | B7: =IF($E$1="NÃO DESONERADO",VLOOKUP($A7,ORÇ_ONE!$B:$K,3,FALSE),VLOOKUP($A7,#REF!,3,FALSE)) -> 01.050.0300-0 | C7: =IF($E$1="NÃO DESONERADO",VLOOKUP($A7,ORÇ_ONE!$B:$K,4,FALSE),VLOOKUP($A7,#REF!,4,FALSE)) -> RELATORIO FINAL DE OBRAS OU SERVICOS DE ENGENHARIA,REGISTROFOTOGRAFICO DOS SERVICOS,ACOMPANHADO DE LEGENDAS E INDICACAODA LOCALIZACAO,INFORMACOES CONTRATUAIS,PLANILHA ORCAMENTARIA E DESCRICAO DO ESCOPO DOS SERVICOS REALIZADOS,CONF.RECOMENDACOES E ESPECIFICACOES DO ORGAO CONTRATANTE.O ITEM DEVERA SER MEDIDO PELO NUMERO PRANCHAS ORIGINAIS COMPOE RELATORIO | D7: =IF($E$1="NÃO DESONERADO",VLOOKUP($A7,ORÇ_ONE!$B:$K,5,FALSE),VLOOKUP($A7,#REF!,5,FALSE)) -> UN | E7: =IF($E$1="NÃO DESONERADO",VLOOKUP($A7,ORÇ_ONE!$B:$K,10,FALSE),VLOOKUP($A7,#REF!,10,FALSE)) -> 1698531.97
A8: 1.5 | B8: =IF($E$1="NÃO DESONERADO",VLOOKUP($A8,ORÇ_ONE!$B:$K,3,FALSE),VLOOKUP($A8,#REF!,3,FALSE)) -> 01.050.0724-0 | C8: =IF($E$1="NÃO DESONERADO",VLOOKUP($A8,ORÇ_ONE!$B:$K,4,FALSE),VLOOKUP($A8,#REF!,4,FALSE)) -> MAO-DE-OBRA DE CONSULTOR,PARA SERVICOS DE CONSULTORIA DE ENGENHARIA E ARQUITETURA,INCLUSIVE ENCARGOS SOCIAIS | D8: =IF($E$1="NÃO DESONERADO",VLOOKUP($A8,ORÇ_ONE!$B:$K,5,FALSE),VLOOKUP($A8,#REF!,5,FALSE)) -> MES | E8: =IF($E$1="NÃO DESONERADO",VLOOKUP($A8,ORÇ_ONE!$B:$K,10,FALSE),VLOOKUP($A8,#REF!,10,FALSE)) -> 1061745.78
A9: 2.1 | B9: =IF($E$1="NÃO DESONERADO",VLOOKUP($A9,ORÇ_ONE!$B:$K,3,FALSE),VLOOKUP($A9,#REF!,3,FALSE)) -> 01.001.0040-0 | C9: =IF($E$1="NÃO DESONERADO",VLOOKUP($A9,ORÇ_ONE!$B:$K,4,FALSE),VLOOKUP($A9,#REF!,4,FALSE)) -> SONDAGEM MANUAL,COM TRADO CAVADEIRA,POR METRO LINEAR OU FRACAO | D9: =IF($E$1="NÃO DESONERADO",VLOOKUP($A9,ORÇ_ONE!$B:$K,5,FALSE),VLOOKUP($A9,#REF!,5,FALSE)) -> M | E9: =IF($E$1="NÃO DESONERADO",VLOOKUP($A9,ORÇ_ONE!$B:$K,10,FALSE),VLOOKUP($A9,#REF!,10,FALSE)) -> 124801.23
A10: 2.2 | B10: =IF($E$1="NÃO DESONERADO",VLOOKUP($A10,ORÇ_ONE!$B:$K,3,FALSE),VLOOKUP($A10,#REF!,3,FALSE)) -> 01.001.0042-0 | C10: =IF($E$1="NÃO DESONERADO",VLOOKUP($A10,ORÇ_ONE!$B:$K,4,FALSE),VLOOKUP($A10,#REF!,4,FALSE)) -> SONDAGEM MANUAL,COM PA E PICARETA,POR METRO LINEAR OU FRACAO | D10: =IF($E$1="NÃO DESONERADO",VLOOKUP($A10,ORÇ_ONE!$B:$K,5,FALSE),VLOOKUP($A10,#REF!,5,FALSE)) -> M | E10: =IF($E$1="NÃO DESONERADO",VLOOKUP($A10,ORÇ_ONE!$B:$K,10,FALSE),VLOOKUP($A10,#REF!,10,FALSE)) -> 64899.49
A11: 2.3 | B11: =IF($E$1="NÃO DESONERADO",VLOOKUP($A11,ORÇ_ONE!$B:$K,3,FALSE),VLOOKUP($A11,#REF!,3,FALSE)) -> 01.001.0060-0 | C11: =IF($E$1="NÃO DESONERADO",VLOOKUP($A11,ORÇ_ONE!$B:$K,4,FALSE),VLOOKUP($A11,#REF!,4,FALSE)) -> AMOSTRA DE SOLO - PREPARACAO PARA ENSAIOS DE COMPACTACAO E ENSAIOS DE CARACTERIZACAO | D11: =IF($E$1="NÃO DESONERADO",VLOOKUP($A11,ORÇ_ONE!$B:$K,5,FALSE),VLOOKUP($A11,#REF!,5,FALSE)) -> UN | E11: =IF($E$1="NÃO DESONERADO",VLOOKUP($A11,ORÇ_ONE!$B:$K,10,FALSE),VLOOKUP($A11,#REF!,10,FALSE)) -> 117211.96
A12: 2.4 | B12: =IF($E$1="NÃO DESONERADO",VLOOKUP($A12,ORÇ_ONE!$B:$K,3,FALSE),VLOOKUP($A12,#REF!,3,FALSE)) -> 01.001.0001-0 | C12: =IF($E$1="NÃO DESONERADO",VLOOKUP($A12,ORÇ_ONE!$B:$K,4,FALSE),VLOOKUP($A12,#REF!,4,FALSE)) -> LIMITE DE PLASTICIDADE | D12: =IF($E$1="NÃO DESONERADO",VLOOKUP($A12,ORÇ_ONE!$B:$K,5,FALSE),VLOOKUP($A12,#REF!,5,FALSE)) -> UN | E12: =IF($E$1="NÃO DESONERADO",VLOOKUP($A12,ORÇ_ONE!$B:$K,10,FALSE),VLOOKUP($A12,#REF!,10,FALSE)) -> 38828.3
A13: 2.5 | B13: =IF($E$1="NÃO DESONERADO",VLOOKUP($A13,ORÇ_ONE!$B:$K,3,FALSE),VLOOKUP($A13,#REF!,3,FALSE)) -> 01.001.0002-0 | C13: =IF($E$1="NÃO DESONERADO",VLOOKUP($A13,ORÇ_ONE!$B:$K,4,FALSE),VLOOKUP($A13,#REF!,4,FALSE)) -> LIMITE DE LIQUIDEZ | D13: =IF($E$1="NÃO DESONERADO",VLOOKUP($A13,ORÇ_ONE!$B:$K,5,FALSE),VLOOKUP($A13,#REF!,5,FALSE)) -> UN | E13: =IF($E$1="NÃO DESONERADO",VLOOKUP($A13,ORÇ_ONE!$B:$K,10,FALSE),VLOOKUP($A13,#REF!,10,FALSE)) -> 38828.3
A14: 2.6 | B14: =IF($E$1="NÃO DESONERADO",VLOOKUP($A14,ORÇ_ONE!$B:$K,3,FALSE),VLOOKUP($A14,#REF!,3,FALSE)) -> 01.001.0004-0 | C14: =IF($E$1="NÃO DESONERADO",VLOOKUP($A14,ORÇ_ONE!$B:$K,4,FALSE),VLOOKUP($A14,#REF!,4,FALSE)) -> ANALISE GRANULOMETRICA SEM SEDIMENTACAO (PENEIRAMENTO) | D14: =IF($E$1="NÃO DESONERADO",VLOOKUP($A14,ORÇ_ONE!$B:$K,5,FALSE),VLOOKUP($A14,#REF!,5,FALSE)) -> UN | E14: =IF($E$1="NÃO DESONERADO",VLOOKUP($A14,ORÇ_ONE!$B:$K,10,FALSE),VLOOKUP($A14,#REF!,10,FALSE)) -> 43786.92
A15: 2.7 | B15: =IF($E$1="NÃO DESONERADO",VLOOKUP($A15,ORÇ_ONE!$B:$K,3,FALSE),VLOOKUP($A15,#REF!,3,FALSE)) -> 01.001.0020-0 | C15: =IF($E$1="NÃO DESONERADO",VLOOKUP($A15,ORÇ_ONE!$B:$K,4,FALSE),VLOOKUP($A15,#REF!,4,FALSE)) -> INDICE SUPORTE CALIFORNIA,POR 5 PONTOS,COMPACTACAO COM ENERGIA PROCTOR NORMAL | D15: =IF($E$1="NÃO DESONERADO",VLOOKUP($A15,ORÇ_ONE!$B:$K,5,FALSE),VLOOKUP($A15,#REF!,5,FALSE)) -> UN | E15: =IF($E$1="NÃO DESONERADO",VLOOKUP($A15,ORÇ_ONE!$B:$K,10,FALSE),VLOOKUP($A15,#REF!,10,FALSE)) -> 619974.93
A16: 2.8 | B16: =IF($E$1="NÃO DESONERADO",VLOOKUP($A16,ORÇ_ONE!$B:$K,3,FALSE),VLOOKUP($A16,#REF!,3,FALSE)) -> 01.001.0200-0 | C16: =IF($E$1="NÃO DESONERADO",VLOOKUP($A16,ORÇ_ONE!$B:$K,4,FALSE),VLOOKUP($A16,#REF!,4,FALSE)) -> DENSIDADE APARENTE | D16: =IF($E$1="NÃO DESONERADO",VLOOKUP($A16,ORÇ_ONE!$B:$K,5,FALSE),VLOOKUP($A16,#REF!,5,FALSE)) -> UN | E16: =IF($E$1="NÃO DESONERADO",VLOOKUP($A16,ORÇ_ONE!$B:$K,10,FALSE),VLOOKUP($A16,#REF!,10,FALSE)) -> 45515.01
A17: 2.9 | B17: =IF($E$1="NÃO DESONERADO",VLOOKUP($A17,ORÇ_ONE!$B:$K,3,FALSE),VLOOKUP($A17,#REF!,3,FALSE)) -> 01.001.0201-0 | C17: =IF($E$1="NÃO DESONERADO",VLOOKUP($A17,ORÇ_ONE!$B:$K,4,FALSE),VLOOKUP($A17,#REF!,4,FALSE)) -> PERCENTAGEM DE VAZIOS RICE | D17: =IF($E$1="NÃO DESONERADO",VLOOKUP($A17,ORÇ_ONE!$B:$K,5,FALSE),VLOOKUP($A17,#REF!,5,FALSE)) -> UN | E17: =IF($E$1="NÃO DESONERADO",VLOOKUP($A17,ORÇ_ONE!$B:$K,10,FALSE),VLOOKUP($A17,#REF!,10,FALSE)) -> 76847.31
A18: 2.10 | B18: =IF($E$1="NÃO DESONERADO",VLOOKUP($A18,ORÇ_ONE!$B:$K,3,FALSE),VLOOKUP($A18,#REF!,3,FALSE)) -> 01.001.0303-0 | C18: =IF($E$1="NÃO DESONERADO",VLOOKUP($A18,ORÇ_ONE!$B:$K,4,FALSE),VLOOKUP($A18,#REF!,4,FALSE)) -> EXTRACAO COM O AUXILIO DE SONDA ROTATIVA,DE CORPOS DE PROVACOM 15CM DE DIAMETRO,EM PAVIMENTOS COM REVESTIMENTO BETUMINOSO,COM ATE 10CM DE ESPESSURA,POR CORPO DE PROVA | D18: =IF($E$1="NÃO DESONERADO",VLOOKUP($A18,ORÇ_ONE!$B:$K,5,FALSE),VLOOKUP($A18,#REF!,5,FALSE)) -> UN | E18: =IF($E$1="NÃO DESONERADO",VLOOKUP($A18,ORÇ_ONE!$B:$K,10,FALSE),VLOOKUP($A18,#REF!,10,FALSE)) -> 209154.96
A19: 2.11 | B19: =IF($E$1="NÃO DESONERADO",VLOOKUP($A19,ORÇ_ONE!$B:$K,3,FALSE),VLOOKUP($A19,#REF!,3,FALSE)) -> 01.001.0205-0 | C19: =IF($E$1="NÃO DESONERADO",VLOOKUP($A19,ORÇ_ONE!$B:$K,4,FALSE),VLOOKUP($A19,#REF!,4,FALSE)) -> DETERMINACAO,COM AUXILIO DE SONDA ROTATIVA,DA DENSIDADE DE MISTURA COMPACTADA,POR CORPO DE PROVA | D19: =IF($E$1="NÃO DESONERADO",VLOOKUP($A19,ORÇ_ONE!$B:$K,5,FALSE),VLOOKUP($A19,#REF!,5,FALSE)) -> UN | E19: =IF($E$1="NÃO DESONERADO",VLOOKUP($A19,ORÇ_ONE!$B:$K,10,FALSE),VLOOKUP($A19,#REF!,10,FALSE)) -> 85060.32
A20: 2.12 | B20: =IF($E$1="NÃO DESONERADO",VLOOKUP($A20,ORÇ_ONE!$B:$K,3,FALSE),VLOOKUP($A20,#REF!,3,FALSE)) -> 01.001.0198-0 | C20: =IF($E$1="NÃO DESONERADO",VLOOKUP($A20,ORÇ_ONE!$B:$K,4,FALSE),VLOOKUP($A20,#REF!,4,FALSE)) -> DETERMINACAO DO TEOR DE BETUME | D20: =IF($E$1="NÃO DESONERADO",VLOOKUP($A20,ORÇ_ONE!$B:$K,5,FALSE),VLOOKUP($A20,#REF!,5,FALSE)) -> UN | E20: =IF($E$1="NÃO DESONERADO",VLOOKUP($A20,ORÇ_ONE!$B:$K,10,FALSE),VLOOKUP($A20,#REF!,10,FALSE)) -> 127215.5
A21: 2.13 | B21: =IF($E$1="NÃO DESONERADO",VLOOKUP($A21,ORÇ_ONE!$B:$K,3,FALSE),VLOOKUP($A21,#REF!,3,FALSE)) -> 01.001.0208-0 | C21: =IF($E$1="NÃO DESONERADO",VLOOKUP($A21,ORÇ_ONE!$B:$K,4,FALSE),VLOOKUP($A21,#REF!,4,FALSE)) -> DETERMINACAO DA RESISTENCIA A TRACAO POR COMPRESSAO DIAMETRAL DE MISTURAS BETUMINOSAS | D21: =IF($E$1="NÃO DESONERADO",VLOOKUP($A21,ORÇ_ONE!$B:$K,5,FALSE),VLOOKUP($A21,#REF!,5,FALSE)) -> UN | E21: =IF($E$1="NÃO DESONERADO",VLOOKUP($A21,ORÇ_ONE!$B:$K,10,FALSE),VLOOKUP($A21,#REF!,10,FALSE)) -> 48045.86
A22: 2.14 | B22: =IF($E$1="NÃO DESONERADO",VLOOKUP($A22,ORÇ_ONE!$B:$K,3,FALSE),VLOOKUP($A22,#REF!,3,FALSE)) -> 01.001.0204-0 | C22: =IF($E$1="NÃO DESONERADO",VLOOKUP($A22,ORÇ_ONE!$B:$K,4,FALSE),VLOOKUP($A22,#REF!,4,FALSE)) -> AMOSTRA GRANULOMETRICA APOS EXTRACAO DO LIGANTE | D22: =IF($E$1="NÃO DESONERADO",VLOOKUP($A22,ORÇ_ONE!$B:$K,5,FALSE),VLOOKUP($A22,#REF!,5,FALSE)) -> UN | E22: =IF($E$1="NÃO DESONERADO",VLOOKUP($A22,ORÇ_ONE!$B:$K,10,FALSE),VLOOKUP($A22,#REF!,10,FALSE)) -> 48145.38
A23: 2.15 | B23: =IF($E$1="NÃO DESONERADO",VLOOKUP($A23,ORÇ_ONE!$B:$K,3,FALSE),VLOOKUP($A23,#REF!,3,FALSE)) -> 01.008.0050-0 | C23: =IF($E$1="NÃO DESONERADO",VLOOKUP($A23,ORÇ_ONE!$B:$K,4,FALSE),VLOOKUP($A23,#REF!,4,FALSE)) -> MOBILIZACAO E DESMOBILIZACAO DE EQUIPAMENTO E EQUIPE DE SONDAGEM E PERFURACAO A PERCUSSAO,COM TRANSPORTE ATE 50KM | D23: =IF($E$1="NÃO DESONERADO",VLOOKUP($A23,ORÇ_ONE!$B:$K,5,FALSE),VLOOKUP($A23,#REF!,5,FALSE)) -> UN | E23: =IF($E$1="NÃO DESONERADO",VLOOKUP($A23,ORÇ_ONE!$B:$K,10,FALSE),VLOOKUP($A23,#REF!,10,FALSE)) -> 128295.9
A24: 3.1 | B24: =IF($E$1="NÃO DESONERADO",VLOOKUP($A24,ORÇ_ONE!$B:$K,3,FALSE),VLOOKUP($A24,#REF!,3,FALSE)) -> 05.105.0147-0 | C24: =IF($E$1="NÃO DESONERADO",VLOOKUP($A24,ORÇ_ONE!$B:$K,4,FALSE),VLOOKUP($A24,#REF!,4,FALSE)) -> MAO-DE-OBRA PARA LABORATORISTA "A",INCLUSIVE ENCARGOS SOCIAIS | D24: =IF($E$1="NÃO DESONERADO",VLOOKUP($A24,ORÇ_ONE!$B:$K,5,FALSE),VLOOKUP($A24,#REF!,5,FALSE)) -> MES | E24: =IF($E$1="NÃO DESONERADO",VLOOKUP($A24,ORÇ_ONE!$B:$K,10,FALSE),VLOOKUP($A24,#REF!,10,FALSE)) -> 210047.76
A25: 3.2 | B25: =IF($E$1="NÃO DESONERADO",VLOOKUP($A25,ORÇ_ONE!$B:$K,3,FALSE),VLOOKUP($A25,#REF!,3,FALSE)) -> 05.105.0125-0 | C25: =IF($E$1="NÃO DESONERADO",VLOOKUP($A25,ORÇ_ONE!$B:$K,4,FALSE),VLOOKUP($A25,#REF!,4,FALSE)) -> MAO-DE-OBRA DE AUXILIAR TECNICO,INCLUSIVE ENCARGOS SOCIAIS | D25: =IF($E$1="NÃO DESONERADO",VLOOKUP($A25,ORÇ_ONE!$B:$K,5,FALSE),VLOOKUP($A25,#REF!,5,FALSE)) -> MES | E25: =IF($E$1="NÃO DESONERADO",VLOOKUP($A25,ORÇ_ONE!$B:$K,10,FALSE),VLOOKUP($A25,#REF!,10,FALSE)) -> 115781.76
A26: 3.3 | B26: =IF($E$1="NÃO DESONERADO",VLOOKUP($A26,ORÇ_ONE!$B:$K,3,FALSE),VLOOKUP($A26,#REF!,3,FALSE)) -> 05.105.0131-0 | C26: =IF($E$1="NÃO DESONERADO",VLOOKUP($A26,ORÇ_ONE!$B:$K,4,FALSE),VLOOKUP($A26,#REF!,4,FALSE)) -> MAO-DE-OBRA DE ENGENHEIRO OU ARQUITETO SENIOR,INCLUSIVE ENCARGOS SOCIAIS | D26: =IF($E$1="NÃO DESONERADO",VLOOKUP($A26,ORÇ_ONE!$B:$K,5,FALSE),VLOOKUP($A26,#REF!,5,FALSE)) -> MES | E26: =IF($E$1="NÃO DESONERADO",VLOOKUP($A26,ORÇ_ONE!$B:$K,10,FALSE),VLOOKUP($A26,#REF!,10,FALSE)) -> 713858.64
A27: 3.4 | B27: =IF($E$1="NÃO DESONERADO",VLOOKUP($A27,ORÇ_ONE!$B:$K,3,FALSE),VLOOKUP($A27,#REF!,3,FALSE)) -> 19.004.0402-0 | C27: =IF($E$1="NÃO DESONERADO",VLOOKUP($A27,ORÇ_ONE!$B:$K,4,FALSE),VLOOKUP($A27,#REF!,4,FALSE)) -> CAMIONETE TIPO PICK-UP,COM CABINE SIMPLES E CACAMBA,TIPO LEVE,MOTOR BICOMBUSTIVEL (GASOLINA E ALCOOL) DE 1,6 LITROS,INCLUSIVE MOTORISTA E COMBUSTIVEL | D27: =IF($E$1="NÃO DESONERADO",VLOOKUP($A27,ORÇ_ONE!$B:$K,5,FALSE),VLOOKUP($A27,#REF!,5,FALSE)) -> MES | E27: =IF($E$1="NÃO DESONERADO",VLOOKUP($A27,ORÇ_ONE!$B:$K,10,FALSE),VLOOKUP($A27,#REF!,10,FALSE)) -> 361935.12
A28: 4.1 | B28: =IF($E$1="NÃO DESONERADO",VLOOKUP($A28,ORÇ_ONE!$B:$K,3,FALSE),VLOOKUP($A28,#REF!,3,FALSE)) -> 05.100.0900-0 | C28: =IF($E$1="NÃO DESONERADO",VLOOKUP($A28,ORÇ_ONE!$B:$K,4,FALSE),VLOOKUP($A28,#REF!,4,FALSE)) -> UNIDADE REF.P/COMPL.ADM LOCAL,CONSID:CONSUMO AGUA,TEL.ENERGIA ELETR.MAT.LIMPEZA ESCRITORIO,COMPUTADORES LICENCA OBRA,MOVEIS UTENSILIOS,AR COND.BEBEDOURO,ART,RRT,FOTOGRAFIAS,UNIFORMES,DARIAS,EXAMES ADMISSIONAIS,PERIODICOS E DEMISSIONAIS,CURSOS CAPACITACAO/TREINAMENTO ITENS COMPLEMENTEM DESP.NECESS.EXCL.DESP.C/CAFE MANHA,REFEICAO,CESTA BASICA E VALE TRANSPORTE | D28: =IF($E$1="NÃO DESONERADO",VLOOKUP($A28,ORÇ_ONE!$B:$K,5,FALSE),VLOOKUP($A28,#REF!,5,FALSE)) -> UR | E28: =IF($E$1="NÃO DESONERADO",VLOOKUP($A28,ORÇ_ONE!$B:$K,10,FALSE),VLOOKUP($A28,#REF!,10,FALSE)) -> 756614.7486
E29: =SUM(E4:E28) -> 19671983.47

Sheet CURVA ABC
A1: CURVA ABC
A2: ORDEM | B2: CÓDIGO | C2: DESCRIÇÃO | D2: UNIDADE | E2: TOTAL C/BDI | F2: PARTICIPAÇÃO | G2: PARTICIPAÇÃO ACUMULADA | H2: CLASSIFICAÇÃO ABC
A3: 1 | B3: 01.050.0165-0 | C3: PROJETO EXECUTIVO PARA URBANIZACAO/REURBANIZACAO (GEOMETRICO,CORTES E DETALHES) PARA TRATAMENTO PAISAGISTICO DE AREAS PUBLICAS,APRESENTADO NOS PADROES DA CONTRATANTE,INCLUSIVE AS OPERACOES PERTINENTES E A COORDENACAO DOS PROJETOS COMPLEMENTARES | D3: HA | E3: 6344746.32 | F3: 0.3225270258 | G3: 0.3225270258 | H3: A
A4: 2 | B4: 01.050.0157-0 | C4: PROJETO EXECUTIVO DE SISTEMA DE DRENAGEM ACIMA DE 20.000M2,APRESENTADO NOS PADROES DA CONTRATANTE | D4: M2 | E4: 4488750 | F4: 0.2281798379 | G4: 0.5507068638 | H4: A
A5: 3 | B5: 01.016.0082-0 | C5: LEVANTAMENTO PLANIALTIMETRICO CADASTRAL DE AREA URBANA OU SUBURBANA,DESTINADA A REGULARIZACAO FUNDIARIA,PROJETOS VIARIOSE DE INFRAESTRUTURA,URBANIZAZAO E ASSEMELHADOS,UTILIZANDO POLIGONAL III PAC,DESENHO NA ESCALA DE 1:250 A 1:100 EM AREASMEDIANAMENTE OCUPADAS(ATE 50% DAS QUADRAS),EM AREAS ACIMA DE10000M2 | D5: M2 | E5: 2103360 | F5: 0.1069216027 | G5: 0.6576284664 | H5: A
A6: 4 | B6: 01.050.0300-0 | C6: RELATORIO FINAL DE OBRAS OU SERVICOS DE ENGENHARIA,REGISTROFOTOGRAFICO DOS SERVICOS,ACOMPANHADO DE LEGENDAS E INDICACAODA LOCALIZACAO,INFORMACOES CONTRATUAIS,PLANILHA ORCAMENTARIA E DESCRICAO DO ESCOPO DOS SERVICOS REALIZADOS,CONF.RECOMENDACOES E ESPECIFICACOES DO ORGAO CONTRATANTE.O ITEM DEVERA SER MEDIDO PELO NUMERO PRANCHAS ORIGINAIS COMPOE RELATORIO | D6: UN | E6: 1698531.97 | F6: 0.08634268998 | G6: 0.7439711564 | H6: A
A7: 5 | B7: 01.050.0724-0 | C7: MAO-DE-OBRA DE CONSULTOR,PARA SERVICOS DE CONSULTORIA DE ENGENHARIA E ARQUITETURA,INCLUSIVE ENCARGOS SOCIAIS | D7: MES | E7: 1061745.78 | F7: 0.05397248232 | G7: 0.7979436387 | H7: A
A8: 6 | B8: 05.100.0900-0 | C8: UNIDADE REF.P/COMPL.ADM LOCAL,CONSID:CONSUMO AGUA,TEL.ENERGIA ELETR.MAT.LIMPEZA ESCRITORIO,COMPUTADORES LICENCA OBRA,MOVEIS UTENSILIOS,AR COND.BEBEDOURO,ART,RRT,FOTOGRAFIAS,UNIFORMES,DARIAS,EXAMES ADMISSIONAIS,PERIODICOS E DEMISSIONAIS,CURSOS CAPACITACAO/TREINAMENTO ITENS COMPLEMENTEM DESP.NECESS.EXCL.DESP.C/CAFE MANHA,REFEICAO,CESTA BASICA E VALE TRANSPORTE | D8: UR | E8: 756614.7486 | F8: 0.03846153845 | G8: 0.8364051772 | H8: B
A9: 7 | B9: 05.105.0131-0 | C9: MAO-DE-OBRA DE ENGENHEIRO OU ARQUITETO SENIOR,INCLUSIVE ENCARGOS SOCIAIS | D9: MES | E9: 713858.64 | F9: 0.03628808662 | G9: 0.8726932638 | H9: B
A10: 8 | B10: 01.001.0020-0 | C10: INDICE SUPORTE CALIFORNIA,POR 5 PONTOS,COMPACTACAO COM ENERGIA PROCTOR NORMAL | D10: UN | E10: 619974.93 | F10: 0.03151562886 | G10: 0.9042088927 | H10: B
A11: 9 | B11: 19.004.0402-0 | C11: CAMIONETE TIPO PICK-UP,COM CABINE SIMPLES E CACAMBA,TIPO LEVE,MOTOR BICOMBUSTIVEL (GASOLINA E ALCOOL) DE 1,6 LITROS,INCLUSIVE MOTORISTA E COMBUSTIVEL | D11: MES | E11: 361935.12 | F11: 0.01839850672 | G11: 0.9226073994 | H11: B
A12: 10 | B12: 05.105.0147-0 | C12: MAO-DE-OBRA PARA LABORATORISTA "A",INCLUSIVE ENCARGOS SOCIAIS | D12: MES | E12: 210047.76 | F12: 0.01067750796 | G12: 0.9332849073 | H12: B
A13: 11 | B13: 01.001.0303-0 | C13: EXTRACAO COM O AUXILIO DE SONDA ROTATIVA,DE CORPOS DE PROVACOM 15CM DE DIAMETRO,EM PAVIMENTOS COM REVESTIMENTO BETUMINOSO,COM ATE 10CM DE ESPESSURA,POR CORPO DE PROVA | D13: UN | E13: 209154.96 | F13: 0.01063212362 | G13: 0.943917031 | H13: B
A14: 12 | B14: 01.008.0050-0 | C14: MOBILIZACAO E DESMOBILIZACAO DE EQUIPAMENTO E EQUIPE DE SONDAGEM E PERFURACAO A PERCUSSAO,COM TRANSPORTE ATE 50KM | D14: UN | E14: 128295.9 | F14: 0.006521757209 | G14: 0.9504387882 | H14: C
A15: 13 | B15: 01.001.0198-0 | C15: DETERMINACAO DO TEOR DE BETUME | D15: UN | E15: 127215.5 | F15: 0.006466836463 | G15: 0.9569056246 | H15: C
A16: 14 | B16: 01.001.0040-0 | C16: SONDAGEM MANUAL,COM TRADO CAVADEIRA,POR METRO LINEAR OU FRACAO | D16: M | E16: 124801.23 | F16: 0.00634411015 | G16: 0.9632497348 | H16: C
A17: 15 | B17: 01.001.0060-0 | C17: AMOSTRA DE SOLO - PREPARACAO PARA ENSAIOS DE COMPACTACAO E ENSAIOS DE CARACTERIZACAO | D17: UN | E17: 117211.96 | F17: 0.005958319363 | G17: 0.9692080541 | H17: C
A18: 16 | B18: 05.105.0125-0 | C18: MAO-DE-OBRA DE AUXILIAR TECNICO,INCLUSIVE ENCARGOS SOCIAIS | D18: MES | E18: 115781.76 | F18: 0.005885616983 | G18: 0.9750936711 | H18: C
A19: 17 | B19: 01.001.0205-0 | C19: DETERMINACAO,COM AUXILIO DE SONDA ROTATIVA,DA DENSIDADE DE MISTURA COMPACTADA,POR CORPO DE PROVA | D19: UN | E19: 85060.32 | F19: 0.00432393206 | G19: 0.9794176032 | H19: C
A20: 18 | B20: 01.001.0201-0 | C20: PERCENTAGEM DE VAZIOS RICE | D20: UN | E20: 76847.31 | F20: 0.003906434251 | G20: 0.9833240374 | H20: C
A21: 19 | B21: 01.001.0042-0 | C21: SONDAGEM MANUAL,COM PA E PICARETA,POR METRO LINEAR OU FRACAO | D21: M | E21: 64899.49 | F21: 0.003299082175 | G21: 0.9866231196 | H21: C
A22: 20 | B22: 01.001.0204-0 | C22: AMOSTRA GRANULOMETRICA APOS EXTRACAO DO LIGANTE | D22: UN | E22: 48145.38 | F22: 0.002447408523 | G22: 0.9890705281 | H22: C
A23: 21 | B23: 01.001.0208-0 | C23: DETERMINACAO DA RESISTENCIA A TRACAO POR COMPRESSAO DIAMETRAL DE MISTURAS BETUMINOSAS | D23: UN | E23: 48045.86 | F23: 0.002442349551 | G23: 0.9915128777 | H23: C
A24: 22 | B24: 01.001.0200-0 | C24: DENSIDADE APARENTE | D24: UN | E24: 45515.01 | F24: 0.002313697044 | G24: 0.9938265747 | H24: C
A25: 23 | B25: 01.001.0004-0 | C25: ANALISE GRANULOMETRICA SEM SEDIMENTACAO (PENEIRAMENTO) | D25: UN | E25: 43786.92 | F25: 0.00222585181 | G25: 0.9960524265 | H25: C
A26: 24 | B26: 01.001.0002-0 | C26: LIMITE DE LIQUIDEZ | D26: UN | E26: 38828.3 | F26: 0.001973786734 | G26: 0.9980262133 | H26: C
A27: 25 | B27: 01.001.0001-0 | C27: LIMITE DE PLASTICIDADE | D27: UN | E27: 38828.3 | F27: 0.001973786734 | G27: 1 | H27: C
D28: TOTAL DO ORÇAMENTO COM BDI E ADM LOCAL: | E28: =SUM(E3:E27) -> 19671983.47

Sheet EMOP_CONJ_03.2026
A1: NÃO DESONERADO - EMOP | F1: DESONERADO - EMOP
A2: CÓDIGO | B2: DESCRIÇÃO | C2: UNID | D2: PREÇOS 03/2026 | F2: CÓDIGO | G2: DESCRIÇÃO | H2: UNID | I2: PREÇOS 03/2026
A3: 01.001.0001-0 | B3: LIMITE DE PLASTICIDADE | C3: UN | D3: 205.08 | F3: 01.001.0001-A | G3: LIMITE DE PLASTICIDADE | H3: UN | I3: 196.18
A4: 01.001.0002-0 | B4: LIMITE DE LIQUIDEZ | C4: UN | D4: 205.08 | F4: 01.001.0002-A | G4: LIMITE DE LIQUIDEZ | H4: UN | I4: 196.18
A5: 01.001.0003-0 | B5: LIMITE DE CONTRACAO | C5: UN | D5: 119.72 | F5: 01.001.0003-A | G5: LIMITE DE CONTRACAO | H5: UN | I5: 114.52
A6: 01.001.0004-0 | B6: ANALISE GRANULOMETRICA SEM SEDIMENTACAO (PENEIRAMENTO) | C6: UN | D6: 231.27 | F6: 01.001.0004-A | G6: ANALISE GRANULOMETRICA SEM SEDIMENTACAO (PENEIRAMENTO) | H6: UN | I6: 221.23
A7: 01.001.0005-0 | B7: ANALISE GRANULOMETRICA COM SEDIMENTACAO | C7: UN | D7: 536.84 | F7: 01.001.0005-A | G7: ANALISE GRANULOMETRICA COM SEDIMENTACAO | H7: UN | I7: 513.55
A8: 01.001.0006-0 | B8: MASSA ESPECIFICA REAL | C8: UN | D8: 283.2 | F8: 01.001.0006-A | G8: MASSA ESPECIFICA REAL | H8: UN | I8: 270.91
A9: 01.001.0007-0 | B9: MASSA ESPECIFICA APARENTE "IN SITU" | C9: UN | D9: 114.01 | F9: 01.001.0007-A | G9: MASSA ESPECIFICA APARENTE "IN SITU" | H9: UN | I9: 109.06
A10: 01.001.0008-0 | B10: UMIDADE NATURAL EM ESTUFA | C10: UN | D10: 106.66 | F10: 01.001.0008-A | G10: UMIDADE NATURAL EM ESTUFA | H10: UN | I10: 102.03
A11: 01.001.0009-0 | B11: EQUIVALENTE DE AREIA | C11: UN | D11: 253.77 | F11: 01.001.0009-A | G11: EQUIVALENTE DE AREIA | H11: UN | I11: 242.76
A12: 01.001.0010-0 | B12: UMIDADE PELO METODO EXPEDITO "SPEEDY" | C12: UN | D12: 71.71 | F12: 01.001.0010-A | G12: UMIDADE PELO METODO EXPEDITO "SPEEDY" | H12: UN | I12: 68.6
A13: 01.001.0011-0 | B13: COMPACTACAO: ENERGIA PROCTOR NORMAL | C13: UN | D13: 447.49 | F13: 01.001.0011-A | G13: COMPACTACAO: ENERGIA PROCTOR NORMAL | H13: UN | I13: 428.07
A14: 01.001.0012-0 | B14: COMPACTACAO: ENERGIA AASHTO INTERMEDIARIA | C14: UN | D14: 536.84 | F14: 01.001.0012-A | G14: COMPACTACAO: ENERGIA AASHTO INTERMEDIARIA | H14: UN | I14: 513.55
A15: 01.001.0013-0 | B15: COMPACTACAO: ENERGIA AASHTO MODIFICADA | C15: UN | D15: 864 | F15: 01.001.0013-A | G15: COMPACTACAO: ENERGIA AASHTO MODIFICADA | H15: UN | I15: 826.5
A16: 01.001.0014-0 | B16: INDICE SUPORTE CALIFORNIA,POR 1 PONTO,COMPACTACAO COM ENERGIA PROCTOR NORMAL | C16: UN | D16: 986.26 | F16: 01.001.0014-A | G16: INDICE SUPORTE CALIFORNIA,POR 1 PONTO,COMPACTACAO COM ENERGIA PROCTOR NORMAL | H16: UN | I16: 943.46
A17: 01.001.0015-0 | B17: INDICE SUPORTE CALIFORNIA,POR 1 PONTO,COMPACTACAO COM ENERGIA AASHTO INTERMEDIARIA | C17: UN | D17: 1291.9 | F17: 01.001.0015-A | G17: INDICE SUPORTE CALIFORNIA,POR 1 PONTO,COMPACTACAO COM ENERGIA AASHTO INTERMEDIARIA | H17: UN | I17: 1235.84
A18: 01.001.0016-0 | B18: INDICE SUPORTE CALIFORNIA,POR 1 PONTO,COMPACTACAO COM ENERGIA AASHTO MODIFICADA | C18: UN | D18: 1291.9 | F18: 01.001.0016-A | G18: INDICE SUPORTE CALIFORNIA,POR 1 PONTO,COMPACTACAO COM ENERGIA AASHTO MODIFICADA | H18: UN | I18: 1235.84
A19: 01.001.0017-0 | B19: INDICE SUPORTE CALIFORNIA,POR 3 PONTOS,COMPACTACAO COM ENERGIA PROCTOR NORMAL | C19: UN | D19: 2067.3 | F19: 01.001.0017-A | G19: INDICE SUPORTE CALIFORNIA,POR 3 PONTOS,COMPACTACAO COM ENERGIA PROCTOR NORMAL | H19: UN | I19: 1977.59
A20: 01.001.0018-0 | B20: INDICE SUPORTE CALIFORNIA,POR 3 PONTOS,COMPACTACAO COM ENERGIA AASHTO INTERMEDIARIA | C20: UN | D20: 2239.75 | F20: 01.001.0018-A | G20: INDICE SUPORTE CALIFORNIA,POR 3 PONTOS,COMPACTACAO COM ENERGIA AASHTO INTERMEDIARIA | H20: UN | I20: 2142.56
A21: 01.001.0019-0 | B21: INDICE SUPORTE CALIFORNIA,POR 3 PONTOS,COMPACTACAO COM ENERGIA AASHTO MODIFICADA | C21: UN | D21: 2412.21 | F21: 01.001.0019-A | G21: INDICE SUPORTE CALIFORNIA,POR 3 PONTOS,COMPACTACAO COM ENERGIA AASHTO MODIFICADA | H21: UN | I21: 2307.54
A22: 01.001.0020-0 | B22: INDICE SUPORTE CALIFORNIA,POR 5 PONTOS,COMPACTACAO COM ENERGIA PROCTOR NORMAL | C22: UN | D22: 3274.53 | F22: 01.001.0020-A | G22: INDICE SUPORTE CALIFORNIA,POR 5 PONTOS,COMPACTACAO COM ENERGIA PROCTOR NORMAL | H22: UN | I22: 3132.44
A23: 01.001.0021-0 | B23: INDICE SUPORTE CALIFORNIA,POR 5 PONTOS,COMPACTACAO COM ENERGIA AASHTO INTERMEDIARIA | C23: UN | D23: 3617.22 | F23: 01.001.0021-A | G23: INDICE SUPORTE CALIFORNIA,POR 5 PONTOS,COMPACTACAO COM ENERGIA AASHTO INTERMEDIARIA | H23: UN | I23: 3460.25
A24: 01.001.0022-0 | B24: INDICE SUPORTE CALIFORNIA,POR 5 PONTOS,COMPACTACAO COM ENERGIA AASHTO MODIFICADA | C24: UN | D24: 3789.68 | F24: 01.001.0022-A | G24: INDICE SUPORTE CALIFORNIA,POR 5 PONTOS,COMPACTACAO COM ENERGIA AASHTO MODIFICADA | H24: UN | I24: 3625.23
A25: 01.001.0023-0 | B25: PERMEABILIDADE EM AMOSTRA NATURAL | C25: UN | D25: 1247.37 | F25: 01.001.0023-A | G25: PERMEABILIDADE EM AMOSTRA NATURAL | H25: UN | I25: 1193.24
A26: 01.001.0024-0 | B26: PERMEABILIDADE EM AMOSTRA MOLDADA ARGILOSA | C26: UN | D26: 1247.37 | F26: 01.001.0024-A | G26: PERMEABILIDADE EM AMOSTRA MOLDADA ARGILOSA | H26: UN | I26: 1193.24
A27: 01.001.0025-0 | B27: PERMEABILIDADE EM AMOSTRA DE AREIA | C27: UN | D27: 1207.35 | F27: 01.001.0025-A | G27: PERMEABILIDADE EM AMOSTRA DE AREIA | H27: UN | I27: 1154.95
A28: 01.001.0026-0 | B28: COMPRESSAO SIMPLES EM AMOSTRA NATURAL,POR CORPO DE PROVA | C28: UN | D28: 804.9 | F28: 01.001.0026-A | G28: COMPRESSAO SIMPLES EM AMOSTRA NATURAL,POR CORPO DE PROVA | H28: UN | I28: 769.97
A29: 01.001.0027-0 | B29: COMPRESSAO SIMPLES EM AMOSTRA MOLDADA,POR CORPO DE PROVA | C29: UN | D29: 804.9 | F29: 01.001.0027-A | G29: COMPRESSAO SIMPLES EM AMOSTRA MOLDADA,POR CORPO DE PROVA | H29: UN | I29: 769.97
A30: 01.001.0028-0 | B30: ADENSAMENTO EM AMOSTRA NATURAL | C30: UN | D30: 2539.46 | F30: 01.001.0028-A | G30: ADENSAMENTO EM AMOSTRA NATURAL | H30: UN | I30: 2429.26
A31: 01.001.0029-0 | B31: ADENSAMENTO EM AMOSTRA MOLDADA | C31: UN | D31: 2539.46 | F31: 01.001.0029-A | G31: ADENSAMENTO EM AMOSTRA MOLDADA | H31: UN | I31: 2429.26
A32: 01.001.0030-0 | B32: ADENSAMENTO:PAR DE ENSAIOS PARA DETERMINACAO DO FATOR DE CORRECAO DE COEFICIENTE DE RECALQUE | C32: UN | D32: 2941.91 | F32: 01.001.0030-A | G32: ADENSAMENTO:PAR DE ENSAIOS PARA DETERMINACAO DO FATOR DE CORRECAO DE COEFICIENTE DE RECALQUE | H32: UN | I32: 2814.25
A33: 01.001.0032-0 | B33: CISALHAMENTO LENTO OU RAPIDO,POR CORPO DE PROVA | C33: UN | D33: 558.73 | F33: 01.001.0032-A | G33: CISALHAMENTO LENTO OU RAPIDO,POR CORPO DE PROVA | H33: UN | I33: 534.48
A34: 01.001.0034-0 | B34: TRIAXIAL DRENADO,EM AMOSTRAS NATURAL OU MOLDADA,POR CORPO DEPROVA | C34: UN | D34: 1632.68 | F34: 01.001.0034-A | G34: TRIAXIAL DRENADO,EM AMOSTRAS NATURAL OU MOLDADA,POR CORPO DEPROVA | H34: UN | I34: 1561.83
A35: 01.001.0036-0 | B35: TRIAXIAL NAO DRENADO,EM AMOSTRAS NATURAL OU MOLDADA,POR CORPO DE PROVA | C35: UN | D35: 1004.54 | F35: 01.001.0036-A | G35: TRIAXIAL NAO DRENADO,EM AMOSTRAS NATURAL OU MOLDADA,POR CORPO DE PROVA | H35: UN | I35: 960.95
A36: 01.001.0037-0 | B36: TRIAXIAL NAO DRENADO,PRE-ADENSADO,EM AMOSTRAS NATURAL OU MOLDADA,POR CORPO DE PROVA | C36: UN | D36: 1229.22 | F36: 01.001.0037-A | G36: TRIAXIAL NAO DRENADO,PRE-ADENSADO,EM AMOSTRAS NATURAL OU MOLDADA,POR CORPO DE PROVA | H36: UN | I36: 1175.88
A37: 01.001.0039-0 | B37: DURABILIDADE POR MOLHAGEM E SECAGEM,EM SOLO-CIMENTO,POR ENSAIO | C37: UN | D37: 1577.3 | F37: 01.001.0039-A | G37: DURABILIDADE POR MOLHAGEM E SECAGEM,EM SOLO-CIMENTO,POR ENSAIO | H37: UN | I37: 1508.85
A38: 01.001.0040-0 | B38: SONDAGEM MANUAL,COM TRADO CAVADEIRA,POR METRO LINEAR OU FRACAO | C38: M | D38: 219.25 | F38: 01.001.0040-A | G38: SONDAGEM MANUAL,COM TRADO CAVADEIRA,POR METRO LINEAR OU FRACAO | H38: M | I38: 209.01
A39: 01.001.0042-0 | B39: SONDAGEM MANUAL,COM PA E PICARETA,POR METRO LINEAR OU FRACAO | C39: M | D39: 228.03 | F39: 01.001.0042-A | G39: SONDAGEM MANUAL,COM PA E PICARETA,POR METRO LINEAR OU FRACAO | H39: M | I39: 217.19
A40: 01.001.0043-0 | B40: SONDAGEM DE RECONHECIMENTO A TRADO MANUAL DE 4".PARA TRADO DE 6",ACRESCENTAR 50% AO VALOR DESTE ITEM | C40: M | D40: 111.88 | F40: 01.001.0043-A | G40: SONDAGEM DE RECONHECIMENTO A TRADO MANUAL DE 4".PARA TRADO DE 6",ACRESCENTAR 50% AO VALOR DESTE ITEM | H40: M | I40: 104.37
A41: 01.001.0044-0 | B41: SONDAGEM EXPEDITA,DE SIMPLES RECONHECIMENTO A PERCUSSAO,EXCLUSIVAMENTE POR LAVAGEM,DIAMETRO DE 2",INCLUSIVE DESLOCAMENTOE INSTALACAO | C41: M | D41: 88.76 | F41: 01.001.0044-A | G41: SONDAGEM EXPEDITA,DE SIMPLES RECONHECIMENTO A PERCUSSAO,EXCLUSIVAMENTE POR LAVAGEM,DIAMETRO DE 2",INCLUSIVE DESLOCAMENTOE INSTALACAO | H41: M | I41: 82.81
A42: 01.001.0046-0 | B42: FRACIONAMENTO QUIMICO (METODO ROSTLER) | C42: UN | D42: 228.82 | F42: 01.001.0046-A | G42: FRACIONAMENTO QUIMICO (METODO ROSTLER) | H42: UN | I42: 218.89
A43: 01.001.0047-0 | B43: ENSAIO DE PALHETA("VANE TEST")REALIZADO NO CAMPO,EXCLUSIVE PERFURACAO | C43: UN | D43: 216.6 | F43: 01.001.0047-A | G43: ENSAIO DE PALHETA("VANE TEST")REALIZADO NO CAMPO,EXCLUSIVE PERFURACAO | H43: UN | I43: 202.12
A44: 01.001.0048-0 | B44: ENSAIO DE PALHETA("VANE TEST"),REALIZADO EM LABORATORIO | C44: UN | D44: 145.86 | F44: 01.001.0048-A | G44: ENSAIO DE PALHETA("VANE TEST"),REALIZADO EM LABORATORIO | H44: UN | I44: 136.13
A45: 01.001.0049-0 | B45: CLASSIFICACAO MACROSCOPICA DE AMOSTRAS DE SONDAGEM ROTATIVA | C45: M | D45: 401.55 | F45: 01.001.0049-A | G45: CLASSIFICACAO MACROSCOPICA DE AMOSTRAS DE SONDAGEM ROTATIVA | H45: M | I45: 384.13
A46: 01.001.0050-0 | B46: CLASSIFICACAO MACROSCOPICA DE AMOSTRAS DE SONDAGEM ROTATIVA,COM LAMINA DE ROCHA | C46: M | D46: 3743.68 | F46: 01.001.0050-A | G46: CLASSIFICACAO MACROSCOPICA DE AMOSTRAS DE SONDAGEM ROTATIVA,COM LAMINA DE ROCHA | H46: M | I46: 3581.22
A47: 01.001.0051-0 | B47: BRITAGEM EM LABORATORIO,DE BLOCOS DE ROCHA,MATACOES OU TESTEMUNHOS DE SONDAGEM ROTATIVA,POR AMOSTRA REPRESENTATIVA | C47: UN | D47: 374.83 | F47: 01.001.0051-A | G47: BRITAGEM EM LABORATORIO,DE BLOCOS DE ROCHA,MATACOES OU TESTEMUNHOS DE SONDAGEM ROTATIVA,POR AMOSTRA REPRESENTATIVA | H47: UN | I47: 358.57
A48: 01.001.0052-0 | B48: MINI-CBR E EXPANSAO DE SOLO COMPACTADO EM EQUIPAMENTO MINIATURA | C48: UN | D48: 123.81 | F48: 01.001.0052-A | G48: MINI-CBR E EXPANSAO DE SOLO COMPACTADO EM EQUIPAMENTO MINIATURA | H48: UN | I48: 118.44
A49: 01.001.0053-0 | B49: MINI-MCV - SOLO COMPACTADO EM EQUIPAMENTO MINIATURA | C49: UN | D49: 123.81 | F49: 01.001.0053-A | G49: MINI-MCV - SOLO COMPACTADO EM EQUIPAMENTO MINIATURA | H49: UN | I49: 118.44
A50: 01.001.0054-0 | B50: DETERMINACAO DA PERDA DE MASSA POR IMERSAO DE SOLOS COMPACTADOS EM EQUIPAMENTO MINIATURA | C50: UN | D50: 123.81 | F50: 01.001.0054-A | G50: DETERMINACAO DA PERDA DE MASSA POR IMERSAO DE SOLOS COMPACTADOS EM EQUIPAMENTO MINIATURA | H50: UN | I50: 118.44
A51: 01.001.0055-0 | B51: EXTRACAO DE AMOSTRA INDEFORMADA EM BLOCOS DE 30X30X30CM,INCLUSIVE EMBALAGEM DE MADEIRA,EXCLUSIVE TRANSPORTE | C51: UN | D51: 970.08 | F51: 01.001.0055-A | G51: EXTRACAO DE AMOSTRA INDEFORMADA EM BLOCOS DE 30X30X30CM,INCLUSIVE EMBALAGEM DE MADEIRA,EXCLUSIVE TRANSPORTE | H51: UN | I51: 927.98
A52: 01.001.0056-0 | B52: CLASSIFICACAO DE SOLOS TROPICAIS PARA FINALIDADES RODOVIARIAS,UTILIZANDO CORPOS DE PROVA COMPACTADOS EM EQUIPAMENTO MINIATURA | C52: UN | D52: 124.67 | F52: 01.001.0056-A | G52: CLASSIFICACAO DE SOLOS TROPICAIS PARA FINALIDADES RODOVIARIAS,UTILIZANDO CORPOS DE PROVA COMPACTADOS EM EQUIPAMENTO MINIATURA | H52: UN | I52: 119.26
A53: 01.001.0057-0 | B53: EXTRACAO DE AMOSTRA INDEFORMADA EM ANEL BISELADO,EXCLUSIVE TRANSPORTE | C53: UN | D53: 535.49 | F53: 01.001.0057-A | G53: EXTRACAO DE AMOSTRA INDEFORMADA EM ANEL BISELADO,EXCLUSIVE TRANSPORTE | H53: UN | I53: 512.25
A54: 01.001.0059-0 | B54: EXTRACAO DE AMOSTRA TIPO "SHELBY" DURANTE SERVICO DE SONDAGEM DO SOLO,EXCLUSIVE TRANSPORTE | C54: UN | D54: 224.18 | F54: 01.001.0059-A | G54: EXTRACAO DE AMOSTRA TIPO "SHELBY" DURANTE SERVICO DE SONDAGEM DO SOLO,EXCLUSIVE TRANSPORTE | H54: UN | I54: 214.22
A55: 01.001.0060-0 | B55: AMOSTRA DE SOLO - PREPARACAO PARA ENSAIOS DE COMPACTACAO E ENSAIOS DE CARACTERIZACAO | C55: UN | D55: 619.08 | F55: 01.001.0060-A | G55: AMOSTRA DE SOLO - PREPARACAO PARA ENSAIOS DE COMPACTACAO E ENSAIOS DE CARACTERIZACAO | H55: UN | I55: 592.21
A56: 01.001.0061-0 | B56: GRAOS DE SOLOS QUE PASSAM NA PENEIRA DE MALHA 4,8MM - DETERMINACAO DA MASSA ESPECIFICA | C56: UN | D56: 124.67 | F56: 01.001.0061-A | G56: GRAOS DE SOLOS QUE PASSAM NA PENEIRA DE MALHA 4,8MM - DETERMINACAO DA MASSA ESPECIFICA | H56: UN | I56: 119.26
A57: 01.001.0062-0 | B57: ADENSAMENTO UNIDIMENSIONAL | C57: UN | D57: 124.67 | F57: 01.001.0062-A | G57: ADENSAMENTO UNIDIMENSIONAL | H57: UN | I57: 119.26
A58: 01.001.0063-0 | B58: METODO RIEDEL-WEBER(AGREGADO GRAUDO) | C58: UN | D58: 124.67 | F58: 01.001.0063-A | G58: METODO RIEDEL-WEBER(AGREGADO GRAUDO) | H58: UN | I58: 119.26
A59: 01.001.0064-0 | B59: COMPACTACAO DE SOLO EM EQUIPAMENTO MINIATURA | C59: UN | D59: 124.67 | F59: 01.001.0064-A | G59: COMPACTACAO DE SOLO EM EQUIPAMENTO MINIATURA | H59: UN | I59: 119.26
A60: 01.001.0065-0 | B60: ENSAIO DE PERDA D'AGUA DURANTE A SONDAGEM ROTATIVA EM ROCHA,CONSTANDO DE 3 ESTAGIOS DE PRESSAO | C60: UN | D60: 228.78 | F60: 01.001.0065-A | G60: ENSAIO DE PERDA D'AGUA DURANTE A SONDAGEM ROTATIVA EM ROCHA,CONSTANDO DE 3 ESTAGIOS DE PRESSAO | H60: UN | I60: 213.54
A61: 01.001.0066-0 | B61: ENSAIO DE PERDA D'AGUA DURANTE A SONDAGEM ROTATIVA EM ROCHA,CONSTANDO DE 5 ESTAGIOS DE PRESSAO | C61: UN | D61: 317.64 | F61: 01.001.0066-A | G61: ENSAIO DE PERDA D'AGUA DURANTE A SONDAGEM ROTATIVA EM ROCHA,CONSTANDO DE 5 ESTAGIOS DE PRESSAO | H61: UN | I61: 296.48
A62: 01.001.0068-0 | B62: ENSAIO DE PENETRACAO TIPO "DEEP SOUNDING" | C62: M | D62: 662.96 | F62: 01.001.0068-A | G62: ENSAIO DE PENETRACAO TIPO "DEEP SOUNDING" | H62: M | I62: 633.49
A63: 01.001.0069-0 | B63: ENSAIO DE INFILTRACAO EM SOLO | C63: UN | D63: 533.75 | F63: 01.001.0069-A | G63: ENSAIO DE INFILTRACAO EM SOLO | H63: UN | I63: 510.98
A64: 01.001.0071-0 | B64: ENSAIO DE CARACTERIZACAO GEOTECNICA DE SOLOS,COM UTILIZACAODE DILATOMETRO,EXCLUSIVE PERFURACAO | C64: UN | D64: 660.58 | F64: 01.001.0071-A | G64: ENSAIO DE CARACTERIZACAO GEOTECNICA DE SOLOS,COM UTILIZACAODE DILATOMETRO,EXCLUSIVE PERFURACAO | H64: UN | I64: 631.91
A65: 01.001.0073-0 | B65: ENSAIO DE PENETRACAO TIPO SPT | C65: UN | D65: 158.53 | F65: 01.001.0073-A | G65: ENSAIO DE PENETRACAO TIPO SPT | H65: UN | I65: 151.48
A66: 01.001.0075-1 | B66: PERFURACAO MANUAL DE SOLO,A TRADO ATE 6" | C66: M | D66: 16.45 | F66: 01.001.0075-B | G66: PERFURACAO MANUAL DE SOLO,A TRADO ATE 6" | H66: M | I66: 15.34
A67: 01.001.0076-0 | B67: PERFURACAO MANUAL DE SOLO,A TRADO ATE 8" | C67: M | D67: 20.84 | F67: 01.001.0076-A | G67: PERFURACAO MANUAL DE SOLO,A TRADO ATE 8" | H67: M | I67: 19.44
A68: 01.001.0077-0 | B68: PERFURACAO MANUAL DE SOLO,A TRADO ATE 10" | C68: M | D68: 25.22 | F68: 01.001.0077-A | G68: PERFURACAO MANUAL DE SOLO,A TRADO ATE 10" | H68: M | I68: 23.53
A69: 01.001.0078-0 | B69: PERFURACAO MANUAL DE SOLO,A TRADO ACIMA DE 10" | C69: M | D69: 30.71 | F69: 01.001.0078-A | G69: PERFURACAO MANUAL DE SOLO,A TRADO ACIMA DE 10" | H69: M | I69: 28.65
A70: 01.001.0081-0 | B70: ANALISE GRANULOMETRICA EM AGREGADO MIUDO | C70: UN | D70: 205.03 | F70: 01.001.0081-A | G70: ANALISE GRANULOMETRICA EM AGREGADO MIUDO | H70: UN | I70: 196.13
A71: 01.001.0082-0 | B71: ANALISE GRANULOMETRICA EM AGREGADO GRAUDO | C71: UN | D71: 162.19 | F71: 01.001.0082-A | G71: ANALISE GRANULOMETRICA EM AGREGADO GRAUDO | H71: UN | I71: 155.15
A72: 01.001.0083-0 | B72: AVALIACAO DAS IMPUREZAS ORGANICAS DAS AREIAS | C72: UN | D72: 205.03 | F72: 01.001.0083-A | G72: AVALIACAO DAS IMPUREZAS ORGANICAS DAS AREIAS | H72: UN | I72: 196.13
A73: 01.001.0084-0 | B73: QUALIDADE DA AREIA COM ANALISE GRANULOMETRICA E INDICE DE MATERIA ORGANICA | C73: UN | D73: 4500.94 | F73: 01.001.0084-A | G73: QUALIDADE DA AREIA COM ANALISE GRANULOMETRICA E INDICE DE MATERIA ORGANICA | H73: UN | I73: 4305.63
A74: 01.001.0085-0 | B74: TEOR DE ARGILA EM TORROES(AGREGADO MIUDO) | C74: UN | D74: 205.03 | F74: 01.001.0085-A | G74: TEOR DE ARGILA EM TORROES(AGREGADO MIUDO) | H74: UN | I74: 196.13
A75: 01.001.0086-0 | B75: TEOR DE ARGILA EM TORROES(AGREGADO GRAUDO) | C75: UN | D75: 205.03 | F75: 01.001.0086-A | G75: TEOR DE ARGILA EM TORROES(AGREGADO GRAUDO) | H75: UN | I75: 196.13
A76: 01.001.0087-0 | B76: TEOR DE MATERIAIS PULVERULENTOS(AGREGADO MIUDO) | C76: UN | D76: 162.36 | F76: 01.001.0087-A | G76: TEOR DE MATERIAIS PULVERULENTOS(AGREGADO MIUDO) | H76: UN | I76: 155.32
A77: 01.001.0088-0 | B77: TEOR DE MATERIAIS PULVERULENTOS(AGREGADO GRAUDO) | C77: UN | D77: 222.17 | F77: 01.001.0088-A | G77: TEOR DE MATERIAIS PULVERULENTOS(AGREGADO GRAUDO) | H77: UN | I77: 212.52
A78: 01.001.0089-0 | B78: DENSIDADE REAL(AGREGADO MIUDO) | C78: UN | D78: 59.8 | F78: 01.001.0089-A | G78: DENSIDADE REAL(AGREGADO MIUDO) | H78: UN | I78: 57.2
A79: 01.001.0090-0 | B79: DENSIDADE REAL(AGREGADO GRAUDO) | C79: UN | D79: 119.63 | F79: 01.001.0090-A | G79: DENSIDADE REAL(AGREGADO GRAUDO) | H79: UN | I79: 114.44
A80: 01.001.0091-0 | B80: DENSIDADE APARENTE(AGREGADO MIUDO) | C80: UN | D80: 59.8 | F80: 01.001.0091-A | G80: DENSIDADE APARENTE(AGREGADO MIUDO) | H80: UN | I80: 57.2
A81: 01.001.0092-0 | B81: DENSIDADE APARENTE(AGREGADO GRAUDO) | C81: UN | D81: 119.63 | F81: 01.001.0092-A | G81: DENSIDADE APARENTE(AGREGADO GRAUDO) | H81: UN | I81: 114.44
A82: 01.001.0093-0 | B82: DESGASTE A ABRASAO "LOS ANGELES" | C82: UN | D82: 864 | F82: 01.001.0093-A | G82: DESGASTE A ABRASAO "LOS ANGELES" | H82: UN | I82: 826.5
A83: 01.001.0094-0 | B83: ESMAGAMENTO | C83: UN | D83: 788.05 | F83: 01.001.0094-A | G83: ESMAGAMENTO | H83: UN | I83: 753.85
A84: 01.001.0095-0 | B84: RESISTENCIA AO IMPACTO "TRETON" | C84: UN | D84: 788.05 | F84: 01.001.0095-A | G84: RESISTENCIA AO IMPACTO "TRETON" | H84: UN | I84: 753.85
A85: 01.001.0096-0 | B85: INDICE DE FORMA(CUBICIDADE) | C85: UN | D85: 559.26 | F85: 01.001.0096-A | G85: INDICE DE FORMA(CUBICIDADE) | H85: UN | I85: 534.99
A86: 01.001.0097-0 | B86: QUALIDADE DE AGREGADO PELO USO DE SOLUCAO DE SULFATO DE SODIO OU MAGNESIO,EM AGREGADO MIUDO | C86: UN | D86: 1291.9 | F86: 01.001.0097-A | G86: QUALIDADE DE AGREGADO PELO USO DE SOLUCAO DE SULFATO DE SODIO OU MAGNESIO,EM AGREGADO MIUDO | H86: UN | I86: 1235.84
A87: 01.001.0098-0 | B87: QUALIDADE DE AGREGADO PELO USO DE SOLUCAO DE SULFATO DE SODIO OU MAGNESIO,EM AGREGADO GRAUDO | C87: UN | D87: 1789.37 | F87: 01.001.0098-A | G87: QUALIDADE DE AGREGADO PELO USO DE SOLUCAO DE SULFATO DE SODIO OU MAGNESIO,EM AGREGADO GRAUDO | H87: UN | I87: 1711.72
A88: 01.001.0121-0 | B88: REMATE OU CAPEAMENTO DE CORPO DE PROVA CILINDRICO,DE 15X30CMPOR TOPO | C88: UN | D88: 17 | F88: 01.001.0121-A | G88: REMATE OU CAPEAMENTO DE CORPO DE PROVA CILINDRICO,DE 15X30CMPOR TOPO | H88: UN | I88: 16.26
A89: 01.001.0123-0 | B89: RESISTENCIA A COMPRESSAO DE CORPO DE PROVA CILINDRICO DE 15X30CM,POR CORPO DE PROVA | C89: UN | D89: 51.42 | F89: 01.001.0123-A | G89: RESISTENCIA A COMPRESSAO DE CORPO DE PROVA CILINDRICO DE 15X30CM,POR CORPO DE PROVA | H89: UN | I89: 49.18
A90: 01.001.0124-0 | B90: RESISTENCIA A COMPRESSAO SIMPLES DE CORPO DE PROVA DE ARGAMASSA DE CONCRETO,COM 5X10CM,POR CORPO DE PROVA | C90: UN | D90: 132.64 | F90: 01.001.0124-A | G90: RESISTENCIA A COMPRESSAO SIMPLES DE CORPO DE PROVA DE ARGAMASSA DE CONCRETO,COM 5X10CM,POR CORPO DE PROVA | H90: UN | I90: 126.89
A91: 01.001.0125-0 | B91: RESISTENCIA A TRACAO,NA FLEXAO,EM CORPO DE PROVA PRISMATICO,COM ESFORCO ATE 5T | C91: UN | D91: 234.69 | F91: 01.001.0125-A | G91: RESISTENCIA A TRACAO,NA FLEXAO,EM CORPO DE PROVA PRISMATICO,COM ESFORCO ATE 5T | H91: UN | I91: 224.51
A92: 01.001.0126-0 | B92: RESISTENCIA A TRACAO,NA FLEXAO,EM CORPO DE PROVA PRISMATICO,COM ESFORCO DE 5 ATE 30T | C92: UN | D92: 234.69 | F92: 01.001.0126-A | G92: RESISTENCIA A TRACAO,NA FLEXAO,EM CORPO DE PROVA PRISMATICO,COM ESFORCO DE 5 ATE 30T | H92: UN | I92: 224.51
A93: 01.001.0127-0 | B93: RESISTENCIA A TRACAO,NA FLEXAO,EM CORPO DE PROVA PRISMATICO,COM ESFORCO DE 30 ATE 200T | C93: UN | D93: 234.69 | F93: 01.001.0127-A | G93: RESISTENCIA A TRACAO,NA FLEXAO,EM CORPO DE PROVA PRISMATICO,COM ESFORCO DE 30 ATE 200T | H93: UN | I93: 224.51
A94: 01.001.0128-0 | B94: RESISTENCIA A COMPRESSAO SIMPLES DE CORPO DE PROVA,COM AUXILIO DE ESCLEROMETRO,POR CORPO DE PROVA | C94: UN | D94: 71.42 | F94: 01.001.0128-A | G94: RESISTENCIA A COMPRESSAO SIMPLES DE CORPO DE PROVA,COM AUXILIO DE ESCLEROMETRO,POR CORPO DE PROVA | H94: UN | I94: 68.32
A95: 01.001.0129-0 | B95: "SLUMP TEST" | C95: UN | D95: 34.28 | F95: 01.001.0129-A | G95: "SLUMP TEST" | H95: UN | I95: 32.79
A96: 01.001.0130-0 | B96: DOSAGEM COM ESTUDO GRANULOMETRICO DOS AGREGADOS,DETERMINACAODE UM TRACO A PARTIR DOS GRAFICOS OBTIDOS DE MISTURAS EXPERIMENTAIS E COM RUPTURA DE CORPO DE PROVA,DE 15X30CM,AOS 3,7E 28 DIAS DE IDADE,UTILIZANDO COMO MATERIAIS CIMENTO,UM AGREGADO GRAUDO E UM AGREGADO MIUDO | C96: UN | D96: 18666.96 | F96: 01.001.0130-A | G96: DOSAGEM COM ESTUDO GRANULOMETRICO DOS AGREGADOS,DETERMINACAODE UM TRACO A PARTIR DOS GRAFICOS OBTIDOS DE MISTURAS EXPERIMENTAIS E COM RUPTURA DE CORPO DE PROVA,DE 15X30CM,AOS 3,7E 28 DIAS DE IDADE,UTILIZANDO COMO MATERIAIS CIMENTO,UM AGREGADO GRAUDO E UM AGREGADO MIUDO | H96: UN | I96: 17856.92
A97: 01.001.0131-0 | B97: DOSAGEM COM ESTUDO GRANULOMETRICO DOS AGREGADOS,DETERMINACAODE UM TRACO A PARTIR DOS GRAFICOS OBTIDOS DE MISTURAS EXPERIMENTAIS E COM RUPTURA DE CORPO DE PROVA,DE 15X30CM,AOS 3,7E 28 DIAS DE IDADE,PARA CADA AGREGADO MIUDO ADICIONAL AO ITEM 01.001.0130 | C97: UN | D97: 6222.31 | F97: 01.001.0131-A | G97: DOSAGEM COM ESTUDO GRANULOMETRICO DOS AGREGADOS,DETERMINACAODE UM TRACO A PARTIR DOS GRAFICOS OBTIDOS DE MISTURAS EXPERIMENTAIS E COM RUPTURA DE CORPO DE PROVA,DE 15X30CM,AOS 3,7E 28 DIAS DE IDADE,PARA CADA AGREGADO MIUDO ADICIONAL AO ITEM 01.001.0130 | H97: UN | I97: 5952.3
A98: 01.001.0132-0 | B98: DOSAGEM COM ESTUDO GRANULOMETRICO DOS AGREGADOS,DETERMINACAODE UM TRACO A PARTIR DOS GRAFICOS OBTIDOS DE MISTURAS EXPERIMENTAIS E COM RUPTURA DE CORPO DE PROVA,DE 15X30CM,AOS 3,7E 28 DIAS DE IDADE,PARA CADA AGREGADO GRAUDO ADICIONAL AO ITEM 01.001.0130 | C98: UN | D98: 6222.31 | F98: 01.001.0132-A | G98: DOSAGEM COM ESTUDO GRANULOMETRICO DOS AGREGADOS,DETERMINACAODE UM TRACO A PARTIR DOS GRAFICOS OBTIDOS DE MISTURAS EXPERIMENTAIS E COM RUPTURA DE CORPO DE PROVA,DE 15X30CM,AOS 3,7E 28 DIAS DE IDADE,PARA CADA AGREGADO GRAUDO ADICIONAL AO ITEM 01.001.0130 | H98: UN | I98: 5952.3
A99: 01.001.0133-0 | B99: DETERMINACAO DE OUTROS TRACOS A PARTIR DOS MESMOS GRAFICOS,MENCIONADOS NO ITEM 01.001.0130,POR TRACO | C99: UN | D99: 18666.96 | F99: 01.001.0133-A | G99: DETERMINACAO DE OUTROS TRACOS A PARTIR DOS MESMOS GRAFICOS,MENCIONADOS NO ITEM 01.001.0130,POR TRACO | H99: UN | I99: 17856.92
A100: 01.001.0134-0 | B100: DOSAGEM COM ESTUDO GRANULOMETRICO DOS AGREGADOS,POR TRACO ADICIONAL AO ITEM 01.001.0130,A PARTIR DOS GRAFICOS OBTIDOS DEMISTURAS EXPERIMENTAIS E COM RUPTURA DE CORPO DE PROVA,DE 15X30CM,AOS 3,7 E 28 DIAS DE IDADE,UTILIZANDO AGREGADOS DA MESMA QUALIDADE,POREM EM PROPORCOES DIFERENTES DE CIMENTO,UM AGREGADO MIUDO E UM AGREGADO GRAUDO | C100: UN | D100: 18666.96 | F100: 01.001.0134-A | G100: DOSAGEM COM ESTUDO GRANULOMETRICO DOS AGREGADOS,POR TRACO ADICIONAL AO ITEM 01.001.0130,A PARTIR DOS GRAFICOS OBTIDOS DEMISTURAS EXPERIMENTAIS E COM RUPTURA DE CORPO DE PROVA,DE 15X30CM,AOS 3,7 E 28 DIAS DE IDADE,UTILIZANDO AGREGADOS DA MESMA QUALIDADE,POREM EM PROPORCOES DIFERENTES DE CIMENTO,UM AGREGADO MIUDO E UM AGREGADO GRAUDO | H100: UN | I100: 17856.92
A101: 01.001.0135-0 | B101: DOSAGEM COM ESTUDO GRANULOMETRICO DOS AGREGADOS,POR TRACO ADICIONAL AO ITEM 01.001.0130,A PARTIR DOS GRAFICOS OBTIDOS DEMISTURAS EXPERIMENTAIS E COM RUPTURA DO CORPO DE PROVA,DE 15X30CM,AOS 3,7 E 28 DIAS DE IDADE,UTILIZANDO AGREGADOS DA MESMA QUALIDADE,POREM EM PROPORCOES DIFERENTES DE CIMENTO,MAISDE UM AGREGADO MIUDO E MAIS DE UM AGREGADO GRAUDO | C101: UN | D101: 18666.96 | F101: 01.001.0135-A | G101: DOSAGEM COM ESTUDO GRANULOMETRICO DOS AGREGADOS,POR TRACO ADICIONAL AO ITEM 01.001.0130,A PARTIR DOS GRAFICOS OBTIDOS DEMISTURAS EXPERIMENTAIS E COM RUPTURA DO CORPO DE PROVA,DE 15X30CM,AOS 3,7 E 28 DIAS DE IDADE,UTILIZANDO AGREGADOS DA MESMA QUALIDADE,POREM EM PROPORCOES DIFERENTES DE CIMENTO,MAISDE UM AGREGADO MIUDO E MAIS DE UM AGREGADO GRAUDO | H101: UN | I101: 17856.92
A102: 01.001.0136-0 | B102: DOSAGEM COM ESTUDO GRANULOMETRICO DOS AGREGADOS,DETERMINACAODE MAIS TRACOS A PARTIR DOS GRAFICOS OBTIDOS DE MISTURAS EXPERIMENTAIS E COM RUPTURA DE CORPO DE PROVA,DE 15X30CM,AOS 3,7 E 28 DIAS DE IDADE,UTILIZANDO AGREGADOS DA MESMA QUALIDADE,POREM EM PROPORCOES DIFERENTES DE CIMENTO,MAIS DE UM AGREGADO MIUDO E MAIS DE UM AGREGADO GRAUDO | C102: UN | D102: 18666.96 | F102: 01.001.0136-A | G102: DOSAGEM COM ESTUDO GRANULOMETRICO DOS AGREGADOS,DETERMINACAODE MAIS TRACOS A PARTIR DOS GRAFICOS OBTIDOS DE MISTURAS EXPERIMENTAIS E COM RUPTURA DE CORPO DE PROVA,DE 15X30CM,AOS 3,7 E 28 DIAS DE IDADE,UTILIZANDO AGREGADOS DA MESMA QUALIDADE,POREM EM PROPORCOES DIFERENTES DE CIMENTO,MAIS DE UM AGREGADO MIUDO E MAIS DE UM AGREGADO GRAUDO | H102: UN | I102: 17856.92
A103: 01.001.0137-0 | B103: TRACADO DAS CURVAS QUE CORRELACIONAM A RESISTENCIA A COMPRESSAO AO FATOR AGUA-CIMENTO,COM MOLDAGEM DE 24 CORPOS-DE-PROVACILINDRICOS DE CONCRETO,DE 15X30CM,COM TRACOS 1:5,1:6,1:7,1:8 E DETERMINACAO DAS TENSOES DE RUPTURA A COMPRESSAO AOS 3,7 E 28 DIAS DE IDADE(AMOSTRAS 6 SACOS DE CIMENTO) | C103: UN | D103: 122183.81 | F103: 01.001.0137-A | G103: TRACADO DAS CURVAS QUE CORRELACIONAM A RESISTENCIA A COMPRESSAO AO FATOR AGUA-CIMENTO,COM MOLDAGEM DE 24 CORPOS-DE-PROVACILINDRICOS DE CONCRETO,DE 15X30CM,COM TRACOS 1:5,1:6,1:7,1:8 E DETERMINACAO DAS TENSOES DE RUPTURA A COMPRESSAO AOS 3,7 E 28 DIAS DE IDADE(AMOSTRAS 6 SACOS DE CIMENTO) | H103: UN | I103: 116881.69
A104: 01.001.0138-0 | B104: RECONSTITUICAO DE TRACOS DE CONCRETO,POR TRACO | C104: UN | D104: 44752.23 | F104: 01.001.0138-A | G104: RECONSTITUICAO DE TRACOS DE CONCRETO,POR TRACO | H104: UN | I104: 42810.23
A105: 01.001.0139-0 | B105: AVALIACAO DA ESPESSURA DE CARBONATACAO,POR PONTO,EM ESTRUTURAS DE CONCRETO ARMADO OU PROTENDIDO,ATRAVES DE ASPERSAO DE SOLUCAO DE FENOLFTALEINA,INCLUSIVE COLETA DA AMOSTRA | C105: UN | D105: 485.15 | F105: 01.001.0139-A | G105: AVALIACAO DA ESPESSURA DE CARBONATACAO,POR PONTO,EM ESTRUTURAS DE CONCRETO ARMADO OU PROTENDIDO,ATRAVES DE ASPERSAO DE SOLUCAO DE FENOLFTALEINA,INCLUSIVE COLETA DA AMOSTRA | H105: UN | I105: 458.13
A106: 01.001.0140-0 | B106: DETERMINACAO DO TEOR DE CLORETOS,POR AMOSTRA,EM ESTRUTURAS DE CONCRETO ARMADO OU PROTENDIDO,CONFORME NORMA DA ACI-318/31-BR36,INCLUSIVE COLETA DA AMOSTRA | C106: UN | D106: 484.42 | F106: 01.001.0140-A | G106: DETERMINACAO DO TEOR DE CLORETOS,POR AMOSTRA,EM ESTRUTURAS DE CONCRETO ARMADO OU PROTENDIDO,CONFORME NORMA DA ACI-318/31-BR36,INCLUSIVE COLETA DA AMOSTRA | H106: UN | I106: 455.91
A107: 01.001.0141-0 | B107: DETERMINACAO DO TEOR DE SULFATOS,POR AMOSTRA,EM ESTRUTURAS DE CONCRETO ARMADO OU PROTENDIDO,CONFORME BOLETIM N°25 DO IPT,INCLUSIVE COLETA DA AMOSTRA | C107: UN | D107: 484.42 | F107: 01.001.0141-A | G107: DETERMINACAO DO TEOR DE SULFATOS,POR AMOSTRA,EM ESTRUTURAS DE CONCRETO ARMADO OU PROTENDIDO,CONFORME BOLETIM N°25 DO IPT,INCLUSIVE COLETA DA AMOSTRA | H107: UN | I107: 455.91
A108: 01.001.0143-0 | B108: ENSAIO DE RESISTENCIA A TRACAO SIMPLES,POR COMPRESSAO DIAMETRAL DE CORPOS DE PROVA CILINDRICOS DE 15X30CM,EXCLUSIVE CORPO DE PROVA | C108: UN | D108: 2084.84 | F108: 01.001.0143-A | G108: ENSAIO DE RESISTENCIA A TRACAO SIMPLES,POR COMPRESSAO DIAMETRAL DE CORPOS DE PROVA CILINDRICOS DE 15X30CM,EXCLUSIVE CORPO DE PROVA | H108: UN | I108: 1994.37
A109: 01.001.0144-0 | B109: RESISTENCIA A COMPRESSAO E TRACAO,MODULO DE ELASTICIDADE DINAMICA,EXCLUSIVE CORPO DE PROVA | C109: UN | D109: 3495.02 | F109: 01.001.0144-A | G109: RESISTENCIA A COMPRESSAO E TRACAO,MODULO DE ELASTICIDADE DINAMICA,EXCLUSIVE CORPO DE PROVA | H109: UN | I109: 3343.36
A110: 01.001.0145-0 | B110: DETERMINACAO DO AR INCORPORADO EM CONCRETO,EXCLUSIVE CORPO DE PROVA | C110: UN | D110: 3495.02 | F110: 01.001.0145-A | G110: DETERMINACAO DO AR INCORPORADO EM CONCRETO,EXCLUSIVE CORPO DE PROVA | H110: UN | I110: 3343.36
A111: 01.001.0147-0 | B111: MOLDAGEM E COLETA DE CORPO DE PROVA DE CONCRETO,EXECUTADO POR FIRMA ESPECIALIZADA,INCLUSIVE TRANSPORTE ATE 50KM | C111: UN | D111: 77.34 | F111: 01.001.0147-A | G111: MOLDAGEM E COLETA DE CORPO DE PROVA DE CONCRETO,EXECUTADO POR FIRMA ESPECIALIZADA,INCLUSIVE TRANSPORTE ATE 50KM | H111: UN | I111: 75.03
A112: 01.001.0148-0 | B112: MOLDAGEM E COLETA DE CORPO DE PROVA DE CONCRETO,EXECUTADO POR FIRMA ESPECIALIZADA,INCLUSIVE TRANSPORTE PARA UMA DISTANCIA DE 51 A 100KM | C112: UN | D112: 124.69 | F112: 01.001.0148-A | G112: MOLDAGEM E COLETA DE CORPO DE PROVA DE CONCRETO,EXECUTADO POR FIRMA ESPECIALIZADA,INCLUSIVE TRANSPORTE PARA UMA DISTANCIA DE 51 A 100KM | H112: UN | I112: 121.69
A113: 01.001.0149-0 | B113: MOLDAGEM E COLETA DE CORPO DE PROVA DE CONCRETO,EXECUTADO POR FIRMA ESPECIALIZADA,INCLUSIVE TRANSPORTE PARA UMA DISTANCIA DE 101 A 250KM | C113: UN | D113: 268.43 | F113: 01.001.0149-A | G113: MOLDAGEM E COLETA DE CORPO DE PROVA DE CONCRETO,EXECUTADO POR FIRMA ESPECIALIZADA,INCLUSIVE TRANSPORTE PARA UMA DISTANCIA DE 101 A 250KM | H113: UN | I113: 263.33
A114: 01.001.0150-1 | B114: CONTROLE TECNOLOGICO DE OBRAS EM CONCRETO ARMADO CONSIDERANDO APENAS O CONTROLE DE CONCRETO E CONSTANDO DE COLETA,MOLDAGEM E CAPEAMENTO DE CORPOS DE PROVA,TRANSPORTE ATE 50KM,ENSAIOS DE RESISTENCIA A COMPRESSAO AOS 3, 7 E 28 DIAS E "SLUMP TEST",MEDIDO POR M3 DE CONCRETO COLOCADO NAS FORMAS | C114: M3 | D114: 26.42 | F114: 01.001.0150-B | G114: CONTROLE TECNOLOGICO DE OBRAS EM CONCRETO ARMADO CONSIDERANDO APENAS O CONTROLE DE CONCRETO E CONSTANDO DE COLETA,MOLDAGEM E CAPEAMENTO DE CORPOS DE PROVA,TRANSPORTE ATE 50KM,ENSAIOS DE RESISTENCIA A COMPRESSAO AOS 3, 7 E 28 DIAS E "SLUMP TEST",MEDIDO POR M3 DE CONCRETO COLOCADO NAS FORMAS | H114: M3 | I114: 25.4
A115: 01.001.0151-0 | B115: CONTROLE TECNOLOGICO DE OBRAS EM CONCRETO ARMADO CONSIDERANDO APENAS O CONTROLE DO CONCRETO E CONSTANDO DE COLETA,MOLDAGEM E CAPEAMENTO DE CORPOS DE PROVA,TRANSPORTE ATE 100KM,ENSAIOS DE RESISTENCIA A COMPRESSAO AOS 3, 7 E 28 DIAS E "SLUMPTEST",MEDIDO POR M3 DE CONCRETO COLOCADO NAS FORMAS | C115: M3 | D115: 33.81 | F115: 01.001.0151-A | G115: CONTROLE TECNOLOGICO DE OBRAS EM CONCRETO ARMADO CONSIDERANDO APENAS O CONTROLE DO CONCRETO E CONSTANDO DE COLETA,MOLDAGEM E CAPEAMENTO DE CORPOS DE PROVA,TRANSPORTE ATE 100KM,ENSAIOS DE RESISTENCIA A COMPRESSAO AOS 3, 7 E 28 DIAS E "SLUMPTEST",MEDIDO POR M3 DE CONCRETO COLOCADO NAS FORMAS | H115: M3 | I115: 32.63
A116: 01.001.0152-0 | B116: CONTROLE TECNOLOGICO DE OBRAS EM CONCRETO ARMADO CONSIDERANDO APENAS O CONTROLE DO CONCRETO E CONSTANDO DE COLETA,MOLDAGEM E CAPEAMENTO DE CORPOS DE PROVA,TRANSPORTE ATE 250KM,ENSAIOS DE RESISTENCIA A COMPRESSAO AOS 3, 7 E 28 DIAS E "SLUMPTEST",MEDIDO POR M3 DE CONCRETO COLOCADO NAS FORMAS | C116: M3 | D116: 51.06 | F116: 01.001.0152-A | G116: CONTROLE TECNOLOGICO DE OBRAS EM CONCRETO ARMADO CONSIDERANDO APENAS O CONTROLE DO CONCRETO E CONSTANDO DE COLETA,MOLDAGEM E CAPEAMENTO DE CORPOS DE PROVA,TRANSPORTE ATE 250KM,ENSAIOS DE RESISTENCIA A COMPRESSAO AOS 3, 7 E 28 DIAS E "SLUMPTEST",MEDIDO POR M3 DE CONCRETO COLOCADO NAS FORMAS | H116: M3 | I116: 49.63
A117: 01.001.0160-0 | B117: PENETRACAO A 25°C,100G E 5S | C117: UN | D117: 231.27 | F117: 01.001.0160-A | G117: PENETRACAO A 25°C,100G E 5S | H117: UN | I117: 221.23
A118: 01.001.0161-0 | B118: PONTO DE FULGOR CLEVELAND | C118: UN | D118: 170.9 | F118: 01.001.0161-A | G118: PONTO DE FULGOR CLEVELAND | H118: UN | I118: 163.48
A119: 01.001.0162-0 | B119: DUCTIBILIDADE A 25°C | C119: UN | D119: 231.27 | F119: 01.001.0162-A | G119: DUCTIBILIDADE A 25°C | H119: UN | I119: 221.23
A120: 01.001.0163-0 | B120: VISCOSIDADE SSF,A CADA TEMPERATURA PARA EMULSAO | C120: UN | D120: 250.62 | F120: 01.001.0163-A | G120: VISCOSIDADE SSF,A CADA TEMPERATURA PARA EMULSAO | H120: UN | I120: 239.74
A121: 01.001.0164-0 | B121: VISCOSIDADE SSF,A CADA TEMPERATURA PARA ASFALTO DILUIDO | C121: UN | D121: 250.62 | F121: 01.001.0164-A | G121: VISCOSIDADE SSF,A CADA TEMPERATURA PARA ASFALTO DILUIDO | H121: UN | I121: 239.74
A122: 01.001.0165-0 | B122: VISCOSIDADE CINEMATICA,A CADA TEMPERATURA | C122: UN | D122: 492.69 | F122: 01.001.0165-A | G122: VISCOSIDADE CINEMATICA,A CADA TEMPERATURA | H122: UN | I122: 471.31
A123: 01.001.0166-0 | B123: VISCOSIDADE DINAMICA,A CADA TEMPERATURA | C123: UN | D123: 411.27 | F123: 01.001.0166-A | G123: VISCOSIDADE DINAMICA,A CADA TEMPERATURA | H123: UN | I123: 393.43
A124: 01.001.0167-0 | B124: TEOR DE BETUME (SOLUBILIDADE) | C124: UN | D124: 347.01 | F124: 01.001.0167-A | G124: TEOR DE BETUME (SOLUBILIDADE) | H124: UN | I124: 331.96
A125: 01.001.0168-0 | B125: INDICE DE SUSCETIBILIDADE TERMICA | C125: UN | D125: 377.01 | F125: 01.001.0168-A | G125: INDICE DE SUSCETIBILIDADE TERMICA | H125: UN | I125: 360.65
A126: 01.001.0169-0 | B126: EFEITO DO CALOR E DO AR,POR PERCENTAGEM DA PENETRACAO ORIGINAL | C126: UN | D126: 657.63 | F126: 01.001.0169-A | G126: EFEITO DO CALOR E DO AR,POR PERCENTAGEM DA PENETRACAO ORIGINAL | H126: UN | I126: 629.09
A127: 01.001.0170-0 | B127: EFEITO DO CALOR E DO AR,POR PERCENTAGEM DA VARIACAO EM PESO | C127: UN | D127: 327.73 | F127: 01.001.0170-A | G127: EFEITO DO CALOR E DO AR,POR PERCENTAGEM DA VARIACAO EM PESO | H127: UN | I127: 313.51
A128: 01.001.0171-0 | B128: PONTO DE AMOLECIMENTO | C128: UN | D128: 231.34 | F128: 01.001.0171-A | G128: PONTO DE AMOLECIMENTO | H128: UN | I128: 221.3
A129: 01.001.0172-0 | B129: DENSIDADE A 25°C | C129: UN | D129: 214.2 | F129: 01.001.0172-A | G129: DENSIDADE A 25°C | H129: UN | I129: 204.9
A130: 01.001.0173-0 | B130: DETERMINACAO DA CURVA VISCOSIDADE X TEMPERATURA | C130: UN | D130: 839.71 | F130: 01.001.0173-A | G130: DETERMINACAO DA CURVA VISCOSIDADE X TEMPERATURA | H130: UN | I130: 803.27
A131: 01.001.0174-0 | B131: PONTO DE FULGOR TAG | C131: UN | D131: 205.03 | F131: 01.001.0174-A | G131: PONTO DE FULGOR TAG | H131: UN | I131: 196.13
A132: 01.001.0175-0 | B132: DESTILACAO DE ASFALTOS DILUIDOS | C132: UN | D132: 307.63 | F132: 01.001.0175-A | G132: DESTILACAO DE ASFALTOS DILUIDOS | H132: UN | I132: 294.28
A133: 01.001.0176-0 | B133: DETERMINACAO DE AGUA POR DESTILACAO | C133: UN | D133: 307.63 | F133: 01.001.0176-A | G133: DETERMINACAO DE AGUA POR DESTILACAO | H133: UN | I133: 294.28
A134: 01.001.0177-0 | B134: ENSAIOS DO RESIDUO DA DESTILACAO | C134: UN | D134: 244.94 | F134: 01.001.0177-A | G134: ENSAIOS DO RESIDUO DA DESTILACAO | H134: UN | I134: 234.32
A135: 01.001.0178-0 | B135: VISCOSIDADE ESPECIFICA ENGLER | C135: UN | D135: 266.61 | F135: 01.001.0178-A | G135: VISCOSIDADE ESPECIFICA ENGLER | H135: UN | I135: 255.04
A136: 01.001.0179-0 | B136: FLUTUACAO | C136: UN | D136: 298.51 | F136: 01.001.0179-A | G136: FLUTUACAO | H136: UN | I136: 285.55
A137: 01.001.0180-0 | B137: DESTILACAO DO ALCATRAO | C137: UN | D137: 307.63 | F137: 01.001.0180-A | G137: DESTILACAO DO ALCATRAO | H137: UN | I137: 294.28
A138: 01.001.0181-0 | B138: INDICE DE SULFONACAO | C138: UN | D138: 307.63 | F138: 01.001.0181-A | G138: INDICE DE SULFONACAO | H138: UN | I138: 294.28
A139: 01.001.0182-0 | B139: BETUME TOTAL | C139: UN | D139: 347.01 | F139: 01.001.0182-A | G139: BETUME TOTAL | H139: UN | I139: 331.96
A140: 01.001.0183-0 | B140: SEDIMENTACAO A 5 DIAS | C140: UN | D140: 559.09 | F140: 01.001.0183-A | G140: SEDIMENTACAO A 5 DIAS | H140: UN | I140: 534.83
A141: 01.001.0184-0 | B141: PENEIRACAO | C141: UN | D141: 246.11 | F141: 01.001.0184-A | G141: PENEIRACAO | H141: UN | I141: 235.43
A142: 01.001.0185-0 | B142: RESISTENCIA A AGUA | C142: UN | D142: 2321.35 | F142: 01.001.0185-A | G142: RESISTENCIA A AGUA | H142: UN | I142: 2220.62
A143: 01.001.0186-0 | B143: MISTURA COM CIMENTO OU COM FILLER SILICICO | C143: UN | D143: 512.73 | F143: 01.001.0186-A | G143: MISTURA COM CIMENTO OU COM FILLER SILICICO | H143: UN | I143: 490.48
A144: 01.001.0187-0 | B144: CARGA DAS PARTICULAS | C144: UN | D144: 298.51 | F144: 01.001.0187-A | G144: CARGA DAS PARTICULAS | H144: UN | I144: 285.55
A145: 01.001.0188-0 | B145: DESEMULSIBILIDADE | C145: UN | D145: 205.03 | F145: 01.001.0188-A | G145: DESEMULSIBILIDADE | H145: UN | I145: 196.13
A146: 01.001.0189-0 | B146: DESTILACAO DE EMULSOES ASFALTICAS E OLEO DESTILADO | C146: UN | D146: 292.99 | F146: 01.001.0189-A | G146: DESTILACAO DE EMULSOES ASFALTICAS E OLEO DESTILADO | H146: UN | I146: 280.27
A147: 01.001.0190-0 | B147: RESISTENCIA AO CALOR | C147: UN | D147: 455.77 | F147: 01.001.0190-A | G147: RESISTENCIA AO CALOR | H147: UN | I147: 435.99
A148: 01.001.0191-0 | B148: ENSAIO RRL PARA AGREGADO GRAUDO | C148: UN | D148: 455.77 | F148: 01.001.0191-A | G148: ENSAIO RRL PARA AGREGADO GRAUDO | H148: UN | I148: 435.99
A149: 01.001.0192-0 | B149: DETERMINACAO DE PERCENTAGEM DE AGENTES ATIVOS | C149: UN | D149: 455.77 | F149: 01.001.0192-A | G149: DETERMINACAO DE PERCENTAGEM DE AGENTES ATIVOS | H149: UN | I149: 435.99
A150: 01.001.0193-0 | B150: ENSAIO LCPC | C150: UN | D150: 341.82 | F150: 01.001.0193-A | G150: ENSAIO LCPC | H150: UN | I150: 326.99
A151: 01.001.0194-0 | B151: MATERIAL DE ENCHIMENTO (AMOSTRA GRANULOMETRICA) | C151: UN | D151: 306 | F151: 01.001.0194-A | G151: MATERIAL DE ENCHIMENTO (AMOSTRA GRANULOMETRICA) | H151: UN | I151: 292.72
A152: 01.001.0195-0 | B152: DETERMINACAO DE PERCENTAGEM DE CARBONATO DE CALCIO | C152: UN | D152: 569.7 | F152: 01.001.0195-A | G152: DETERMINACAO DE PERCENTAGEM DE CARBONATO DE CALCIO | H152: UN | I152: 544.98
A153: 01.001.0196-0 | B153: MASSA ESPECIFICA REAL DO CORRETIVO DE ADESIVIDADE | C153: UN | D153: 227.87 | F153: 01.001.0196-A | G153: MASSA ESPECIFICA REAL DO CORRETIVO DE ADESIVIDADE | H153: UN | I153: 217.98
A154: 01.001.0197-0 | B154: MASSA ESPECIFICA APARENTE DO CORRETIVO DE ADESIVIDADE | C154: UN | D154: 136.72 | F154: 01.001.0197-A | G154: MASSA ESPECIFICA APARENTE DO CORRETIVO DE ADESIVIDADE | H154: UN | I154: 130.79
A155: 01.001.0198-0 | B155: DETERMINACAO DO TEOR DE BETUME | C155: UN | D155: 536.84 | F155: 01.001.0198-A | G155: DETERMINACAO DO TEOR DE BETUME | H155: UN | I155: 513.55
A156: 01.001.0199-0 | B156: DETERMINACAO DA ESTABILIDADE E FLUENCIA MARSHALL | C156: UN | D156: 1291.9 | F156: 01.001.0199-A | G156: DETERMINACAO DA ESTABILIDADE E FLUENCIA MARSHALL | H156: UN | I156: 1235.84
A157: 01.001.0200-0 | B157: DENSIDADE APARENTE | C157: UN | D157: 192.07 | F157: 01.001.0200-A | G157: DENSIDADE APARENTE | H157: UN | I157: 183.73
A158: 01.001.0201-0 | B158: PERCENTAGEM DE VAZIOS RICE | C158: UN | D158: 324.29 | F158: 01.001.0201-A | G158: PERCENTAGEM DE VAZIOS RICE | H158: UN | I158: 310.21
A159: 01.001.0202-0 | B159: DOSAGEM MARSHALL | C159: UN | D159: 2321.35 | F159: 01.001.0202-A | G159: DOSAGEM MARSHALL | H159: UN | I159: 2220.62
A160: 01.001.0203-0 | B160: RECUPERACAO DO LIGANTE (ALSON) | C160: UN | D160: 407 | F160: 01.001.0203-A | G160: RECUPERACAO DO LIGANTE (ALSON) | H160: UN | I160: 389.34
A161: 01.001.0204-0 | B161: AMOSTRA GRANULOMETRICA APOS EXTRACAO DO LIGANTE | C161: UN | D161: 203.17 | F161: 01.001.0204-A | G161: AMOSTRA GRANULOMETRICA APOS EXTRACAO DO LIGANTE | H161: UN | I161: 194.36
A162: 01.001.0205-0 | B162: DETERMINACAO,COM AUXILIO DE SONDA ROTATIVA,DA DENSIDADE DE MISTURA COMPACTADA,POR CORPO DE PROVA | C162: UN | D162: 58.03 | F162: 01.001.0205-A | G162: DETERMINACAO,COM AUXILIO DE SONDA ROTATIVA,DA DENSIDADE DE MISTURA COMPACTADA,POR CORPO DE PROVA | H162: UN | I162: 55.51
A163: 01.001.0206-0 | B163: CONTROLE DE COMPACTACAO,POR PONTO(METODO DO ANEL) | C163: UN | D163: 69.65 | F163: 01.001.0206-A | G163: CONTROLE DE COMPACTACAO,POR PONTO(METODO DO ANEL) | H163: UN | I163: 66.63
A164: 01.001.0208-0 | B164: DETERMINACAO DA RESISTENCIA A TRACAO POR COMPRESSAO DIAMETRAL DE MISTURAS BETUMINOSAS | C164: UN | D164: 202.75 | F164: 01.001.0208-A | G164: DETERMINACAO DA RESISTENCIA A TRACAO POR COMPRESSAO DIAMETRAL DE MISTURAS BETUMINOSAS | H164: UN | I164: 193.95
A165: 01.001.0209-0 | B165: DETERMINACAO DO MODULO DE RESISTENCIA DE MISTURAS BETUMINOSAS | C165: UN | D165: 202.75 | F165: 01.001.0209-A | G165: DETERMINACAO DO MODULO DE RESISTENCIA DE MISTURAS BETUMINOSAS | H165: UN | I165: 193.95
A166: 01.001.0210-0 | B166: DETERMINACAO DE MASSA ESPECIFICA APARENTE "IN SITU" COM EMPREGO DO FRASCO DE AREIA | C166: UN | D166: 123.81 | F166: 01.001.0210-A | G166: DETERMINACAO DE MASSA ESPECIFICA APARENTE "IN SITU" COM EMPREGO DO FRASCO DE AREIA | H166: UN | I166: 118.44
A167: 01.001.0220-0 | B167: ENSAIO NORMAL COMPLETO | C167: UN | D167: 4466.39 | F167: 01.001.0220-A | G167: ENSAIO NORMAL COMPLETO | H167: UN | I167: 4272.57
A168: 01.001.0221-0 | B168: ENSAIO DE PEGA | C168: UN | D168: 231.27 | F168: 01.001.0221-A | G168: ENSAIO DE PEGA | H168: UN | I168: 221.23
A169: 01.001.0222-0 | B169: ENSAIO DE EXPANSIBILIDADE(LE CHATELIER) | C169: UN | D169: 231.27 | F169: 01.001.0222-A | G169: ENSAIO DE EXPANSIBILIDADE(LE CHATELIER) | H169: UN | I169: 221.23
A170: 01.001.0223-0 | B170: ENSAIO DE EXPANSIBILIDADE EM AUTO-CLAVE | C170: UN | D170: 536.84 | F170: 01.001.0223-A | G170: ENSAIO DE EXPANSIBILIDADE EM AUTO-CLAVE | H170: UN | I170: 513.55
A171: 01.001.0224-0 | B171: ENSAIO DE FINURA: RESIDUO NA PENEIRA Nº 200 | C171: UN | D171: 205.03 | F171: 01.001.0224-A | G171: ENSAIO DE FINURA: RESIDUO NA PENEIRA Nº 200 | H171: UN | I171: 196.13
A172: 01.001.0225-0 | B172: ENSAIO DE FINURA: SUPERFICIE ESPECIFICA BLAINE | C172: UN | D172: 536.84 | F172: 01.001.0225-A | G172: ENSAIO DE FINURA: SUPERFICIE ESPECIFICA BLAINE | H172: UN | I172: 513.55
A173: 01.001.0226-0 | B173: RESISTENCIA A COMPRESSAO AOS 3,7 E 28 DIAS DE IDADE | C173: UN | D173: 1291.9 | F173: 01.001.0226-A | G173: RESISTENCIA A COMPRESSAO AOS 3,7 E 28 DIAS DE IDADE | H173: UN | I173: 1235.84
A174: 01.001.0227-0 | B174: RESISTENCIA A COMPRESSAO,PARA CADA IDADE COMPLEMENTAR | C174: UN | D174: 864 | F174: 01.001.0227-A | G174: RESISTENCIA A COMPRESSAO,PARA CADA IDADE COMPLEMENTAR | H174: UN | I174: 826.5
A175: 01.001.0228-0 | B175: MASSA ESPECIFICA REAL DO CIMENTO PORTLAND | C175: UN | D175: 231.27 | F175: 01.001.0228-A | G175: MASSA ESPECIFICA REAL DO CIMENTO PORTLAND | H175: UN | I175: 221.23
A176: 01.001.0229-0 | B176: CALOR DE HIDRATACAO AOS 7 E 28 DIAS DE IDADE | C176: UN | D176: 1257.34 | F176: 01.001.0229-A | G176: CALOR DE HIDRATACAO AOS 7 E 28 DIAS DE IDADE | H176: UN | I176: 1202.78
A177: 01.001.0230-0 | B177: PERDA AO FOGO(PORTLAND COMUM) | C177: UN | D177: 193.63 | F177: 01.001.0230-A | G177: PERDA AO FOGO(PORTLAND COMUM) | H177: UN | I177: 185.22
A178: 01.001.0231-0 | B178: PERDA AO FOGO(POZOLANICO) | C178: UN | D178: 193.63 | F178: 01.001.0231-A | G178: PERDA AO FOGO(POZOLANICO) | H178: UN | I178: 185.22
A179: 01.001.0232-0 | B179: RESIDUO INSOLUVEL | C179: UN | D179: 193.63 | F179: 01.001.0232-A | G179: RESIDUO INSOLUVEL | H179: UN | I179: 185.22
A180: 01.001.0233-0 | B180: QUANTIDADE DE ANIDRIDO SULFURICO | C180: UN | D180: 193.63 | F180: 01.001.0233-A | G180: QUANTIDADE DE ANIDRIDO SULFURICO | H180: UN | I180: 185.22
A181: 01.001.0234-0 | B181: QUANTIDADE DE SILICA | C181: UN | D181: 193.63 | F181: 01.001.0234-A | G181: QUANTIDADE DE SILICA | H181: UN | I181: 185.22
A182: 01.001.0235-0 | B182: QUANTIDADE DE OXIDO DE FERRO | C182: UN | D182: 193.63 | F182: 01.001.0235-A | G182: QUANTIDADE DE OXIDO DE FERRO | H182: UN | I182: 185.22
A183: 01.001.0236-0 | B183: QUANTIDADE DE OXIDO DE ALUMINIO | C183: UN | D183: 193.63 | F183: 01.001.0236-A | G183: QUANTIDADE DE OXIDO DE ALUMINIO | H183: UN | I183: 185.22
A184: 01.001.0237-0 | B184: QUANTIDADE DE OXIDO DE CALCIO | C184: UN | D184: 193.63 | F184: 01.001.0237-A | G184: QUANTIDADE DE OXIDO DE CALCIO | H184: UN | I184: 185.22
A185: 01.001.0238-0 | B185: QUANTIDADE DE OXIDO DE MAGNESIO | C185: UN | D185: 193.63 | F185: 01.001.0238-A | G185: QUANTIDADE DE OXIDO DE MAGNESIO | H185: UN | I185: 185.22
A186: 01.001.0239-0 | B186: QUANTIDADE DE ANIDRIDO SILICICO | C186: UN | D186: 193.63 | F186: 01.001.0239-A | G186: QUANTIDADE DE ANIDRIDO SILICICO | H186: UN | I186: 185.22
A187: 01.001.0240-0 | B187: QUANTIDADE DE OXIDO DE POTASSIO | C187: UN | D187: 193.63 | F187: 01.001.0240-A | G187: QUANTIDADE DE OXIDO DE POTASSIO | H187: UN | I187: 185.22
A188: 01.001.0241-0 | B188: QUANTIDADE DE OXIDO DE SODIO | C188: UN | D188: 193.63 | F188: 01.001.0241-A | G188: QUANTIDADE DE OXIDO DE SODIO | H188: UN | I188: 185.22
A189: 01.001.0242-0 | B189: QUANTIDADE DE CALCIO | C189: UN | D189: 193.63 | F189: 01.001.0242-A | G189: QUANTIDADE DE CALCIO | H189: UN | I189: 185.22
A190: 01.001.0243-0 | B190: QUANTIDADE DE OXIDO DE MANGANES | C190: UN | D190: 193.63 | F190: 01.001.0243-A | G190: QUANTIDADE DE OXIDO DE MANGANES | H190: UN | I190: 185.22
A191: 01.001.0244-0 | B191: QUANTIDADE DE SULFATO | C191: UN | D191: 193.63 | F191: 01.001.0244-A | G191: QUANTIDADE DE SULFATO | H191: UN | I191: 185.22
A192: 01.001.0245-0 | B192: DETERMINACAO DOS COMPOSTOS PRINCIPAIS PRESENTES NO CIMENTO PORTLAND | C192: UN | D192: 193.63 | F192: 01.001.0245-A | G192: DETERMINACAO DOS COMPOSTOS PRINCIPAIS PRESENTES NO CIMENTO PORTLAND | H192: UN | I192: 185.22
A193: 01.001.0246-0 | B193: ENSAIO QUIMICO COMPLETO DE CIMENTO | C193: UN | D193: 4048.68 | F193: 01.001.0246-A | G193: ENSAIO QUIMICO COMPLETO DE CIMENTO | H193: UN | I193: 3872.99
A194: 01.001.0247-0 | B194: CONTROLE TECNOLOGICO DE OBRAS,CONSIDERANDO APENAS O CONTROLEDAS ARMADURAS,CONSTANDO DE COLETA DE CORPOS DE PROVA,TRANSPORTE ATE 50KM,ENSAIO DE DOBRAMENTO E DE TRACAO SIMPLES,MEDIDO POR TONELADA DE ACO GEOMETRICAMENTE NECESSARIO | C194: T | D194: 189.5 | F194: 01.001.0247-A | G194: CONTROLE TECNOLOGICO DE OBRAS,CONSIDERANDO APENAS O CONTROLEDAS ARMADURAS,CONSTANDO DE COLETA DE CORPOS DE PROVA,TRANSPORTE ATE 50KM,ENSAIO DE DOBRAMENTO E DE TRACAO SIMPLES,MEDIDO POR TONELADA DE ACO GEOMETRICAMENTE NECESSARIO | H194: T | I194: 181.28
A195: 01.001.0248-0 | B195: CONTROLE TECNOLOGICO DE OBRAS,CONSIDERANDO APENAS O CONTROLEDAS ARMADURAS,CONSTANDO DE COLETA DE CORPOS DE PROVA,TRANSPORTE ATE 100KM,ENSAIO DE DOBRAMENTO E DE TRACAO SIMPLES,MEDIDO POR TONELADA DE ACO GEOMETRICAMENTE NECESSARIO | C195: T | D195: 196.79 | F195: 01.001.0248-A | G195: CONTROLE TECNOLOGICO DE OBRAS,CONSIDERANDO APENAS O CONTROLEDAS ARMADURAS,CONSTANDO DE COLETA DE CORPOS DE PROVA,TRANSPORTE ATE 100KM,ENSAIO DE DOBRAMENTO E DE TRACAO SIMPLES,MEDIDO POR TONELADA DE ACO GEOMETRICAMENTE NECESSARIO | H195: T | I195: 188.25
A196: 01.001.0249-0 | B196: CONTROLE TECNOLOGICO DE OBRAS,CONSIDERANDO APENAS O CONTROLEDAS ARMADURAS,CONSTANDO DE COLETA DE CORPOS DE PROVA,TRANSPORTE ATE 250KM,ENSAIO DE DOBRAMENTO E DE TRACAO SIMPLES,MEDIDO POR TONELADA DE ACO GEOMETRICAMENTE NECESSARIO | C196: T | D196: 218.66 | F196: 01.001.0249-A | G196: CONTROLE TECNOLOGICO DE OBRAS,CONSIDERANDO APENAS O CONTROLEDAS ARMADURAS,CONSTANDO DE COLETA DE CORPOS DE PROVA,TRANSPORTE ATE 250KM,ENSAIO DE DOBRAMENTO E DE TRACAO SIMPLES,MEDIDO POR TONELADA DE ACO GEOMETRICAMENTE NECESSARIO | H196: T | I196: 209.17
A197: 01.001.0250-0 | B197: DOBRAMENTO SIMPLES,EM UMA OPERACAO | C197: UN | D197: 115.66 | F197: 01.001.0250-A | G197: DOBRAMENTO SIMPLES,EM UMA OPERACAO | H197: UN | I197: 110.64
A198: 01.001.0251-0 | B198: DOBRAMENTO SIMPLES, EM DUAS OPERACOES (FLEXAO E COMPRESSAO) | C198: UN | D198: 132.8 | F198: 01.001.0251-A | G198: DOBRAMENTO SIMPLES, EM DUAS OPERACOES (FLEXAO E COMPRESSAO) | H198: UN | I198: 127.03
A199: 01.001.0252-0 | B199: TRACAO SIMPLES,COM ESFORCO ATE 5T | C199: UN | D199: 192.79 | F199: 01.001.0252-A | G199: TRACAO SIMPLES,COM ESFORCO ATE 5T | H199: UN | I199: 184.42
A200: 01.001.0253-0 | B200: TRACAO SIMPLES,COM ESFORCO DE 5 ATE 30T | C200: UN | D200: 231.34 | F200: 01.001.0253-A | G200: TRACAO SIMPLES,COM ESFORCO DE 5 ATE 30T | H200: UN | I200: 221.3
... 4300 more rows

Sheet SCO_SERV_CONJ_052025 (hidden)
A1: NÃO DESONERADO - SCO | F1: DESONERADO - SCO
A2: CÓDIGO | B2: DESCRIÇÃO | C2: UNID | D2: PREÇOS 05/2025 | F2: CÓDIGO | G2: DESCRIÇÃO | H2: UNID | I2: PREÇOS 05/2025
A3: AD 05.05.0050 | B3: ANÁLISE GRANULOMÉTRICA SEM SEDIMENTAÇÃO. | C3: UN | D3: 296,04 | F3: AD 04.05.0050 | G3: ANÁLISE GRANULOMÉTRICA SEM SEDIMENTAÇÃO.(DESONERADO) | H3: UN | I3: 267,45
A4: AD 05.05.0053 | B4: ANÁLISE GRANULOMÉTRICA COMPLETA, EM AMOSTRA DE SOLO, DE ACORDO COM A NBR7181 E NBR6457, COMPREENDENDO AS FASES DE PENEIRAMENTO E SEDIMENTAÇÃO, QUANDO CONSTATADA A PRESENÇA DE PARTÍCULAS FINAS EM SUA COMPOSIÇÃO. | C4: UN | D4: 467,26 | F4: AD 04.05.0053 | G4: ANÁLISE GRANULOMÉTRICA COMPLETA, EM AMOSTRA DE SOLO, DE ACORDO COM A NBR7181 E NBR6457, COMPREENDENDO AS FASES DE PENEIRAMENTO E SEDIMENTAÇÃO, QUANDO CONSTATADA A PRESENÇA DE PARTÍCULAS FINAS EM SUA COMPOSIÇÃO.(DESONERADO) | H4: UN | I4: 422,14
A5: AD 05.05.0100 | B5: ENSAIO DE ADENSAMENTO ENDOMÉTRICO EM AMOSTRA DE SOLO, ENVOLVENDO, NO MÍNIMO, 10 ESTÁGIOS DE CARGA, INCLUSIVE UM LAÇO DE DESCARREGAMENTO E RECARREGAMENTO, DE ACORDO COM AS RECOMENDAÇÕES ESTABELECIDAS NA NBR12007. | C5: UN | D5: 2209,88 | F5: AD 04.05.0100 | G5: ENSAIO DE ADENSAMENTO ENDOMÉTRICO EM AMOSTRA DE SOLO, ENVOLVENDO, NO MÍNIMO, 10 ESTÁGIOS DE CARGA, INCLUSIVE UM LAÇO DE DESCARREGAMENTO E RECARREGAMENTO, DE ACORDO COM AS RECOMENDAÇÕES ESTABELECIDAS NA NBR12007.(DESONERADO) | H5: UN | I5: 1996,51
A6: AD 05.05.0150 | B6: ENSAIO DE CIZALHAMENTO DIRETO EM SOLO, COM, NO MÍNIMO, 3 NÍVEIS DE TENSÃO NORMAL APLICADA À AMOSTRA E COM APRESENTAÇÃO DAS CURVAS DE TENSÃO CISALHANTE POR DESLOCAMENTO HORIZONTAL E DESLOCAMENTO VERTICAL POR DESLOCAMENTO HORIZONTAL, EM MM, PARA CADA UM DOS 3 NÍVEIS DE TENSÃO. | C6: UN | D6: 2021,05 | F6: AD 04.05.0150 | G6: ENSAIO DE CIZALHAMENTO DIRETO EM SOLO, COM, NO MÍNIMO, 3 NÍVEIS DE TENSÃO NORMAL APLICADA À AMOSTRA E COM APRESENTAÇÃO DAS CURVAS DE TENSÃO CISALHANTE POR DESLOCAMENTO HORIZONTAL E DESLOCAMENTO VERTICAL POR DESLOCAMENTO HORIZONTAL, EM MM, PARA CADA UM DOS 3 NÍVEIS DE TENSÃO.(DESONERADO) | H6: UN | I6: 1825,92
A7: AD 05.05.0200 | B7: ENSAIO DE LABORATÓRIO, PARA DETERMINAÇÃO DA DENSIDADE REAL DOS GRÃOS DE AMOSTRA DE SOLO, DE ACORDO COM AS RECOMENDAÇÕES DE PREPARO DESCRITAS NA NBR6457. | C7: UN | D7: 246,43 | F7: AD 04.05.0200 | G7: ENSAIO DE LABORATÓRIO, PARA DETERMINAÇÃO DA DENSIDADE REAL DOS GRÃOS DE AMOSTRA DE SOLO, DE ACORDO COM AS RECOMENDAÇÕES DE PREPARO DESCRITAS NA NBR6457.(DESONERADO) | H7: UN | I7: 222,64
A8: AD 05.05.0250 | B8: ENSAIO PARA DETERMINAÇÃO, EM LABORATÓRIO, DO LIMITE DE LIQUIDEZ DE AMOSTRA DE SOLO FINO, DE ACORDO COM AS RECOMENDAÇÕES DA NBR7180 E DA NBR6457. | C8: UN | D8: 179,22 | F8: AD 04.05.0250 | G8: ENSAIO PARA DETERMINAÇÃO, EM LABORATÓRIO, DO LIMITE DE LIQUIDEZ DE AMOSTRA DE SOLO FINO, DE ACORDO COM AS RECOMENDAÇÕES DA NBR7180 E DA NBR6457.(DESONERADO) | H8: UN | I8: 161,92
A9: AD 05.05.0300 | B9: ENSAIO PARA DETERMINAÇÃO, EM LABORATÓRIO, DO LIMITE DE PLASTICIDADE DE AMOSTRA DE SOLO FINO, DE ACORDO COM AS RECOMENDAÇÕES DA NBR7180 E DA NBR6457. | C9: UN | D9: 179,22 | F9: AD 04.05.0300 | G9: ENSAIO PARA DETERMINAÇÃO, EM LABORATÓRIO, DO LIMITE DE PLASTICIDADE DE AMOSTRA DE SOLO FINO, DE ACORDO COM AS RECOMENDAÇÕES DA NBR7180 E DA NBR6457.(DESONERADO) | H9: UN | I9: 161,92
A10: AD 05.05.0325 | B10: ENSAIO PARA DETERMINAÇÃO DE MASSA ESPECÍFICA APARENTE "IN SITU" (DPTM-92/64). | C10: UN | D10: 99,21 | F10: AD 04.05.0325 | G10: ENSAIO PARA DETERMINAÇÃO DE MASSA ESPECÍFICA APARENTE "IN SITU" (DPTM-92/64).(DESONERADO) | H10: UN | I10: 89,63
A11: AD 05.05.0350 | B11: ENSAIO PARA DETERMINAÇÃO, EM LABORATÓRIO, DO PESO ESPECÍFICO APARENTE DE AMOSTRA DE SOLO, DE ACORDO COM AS RECOMENDAÇÕES DA NBR6457. | C11: UN | D11: 99,21 | F11: AD 04.05.0350 | G11: ENSAIO PARA DETERMINAÇÃO, EM LABORATÓRIO, DO PESO ESPECÍFICO APARENTE DE AMOSTRA DE SOLO, DE ACORDO COM AS RECOMENDAÇÕES DA NBR6457.(DESONERADO) | H11: UN | I11: 89,63
A12: AD 05.05.0450 | B12: ENSAIO PARA DETERMINAÇÃO DO ÍNDICE DE SUPORTE CALIFÓRNIA (CBR) - 3 PONTOS - OBTIDO COM ENERGIA PROCTOR NORMAL, ATRAVÉS DE, NO MÍNIMO, 5 CORPOS DE PROVA, CONFORME RECOMENDAÇÕES DA NBR9895. | C12: UN | D12: 1798,62 | F12: AD 04.05.0450 | G12: ENSAIO PARA DETERMINAÇÃO DO ÍNDICE DE SUPORTE CALIFÓRNIA (CBR) - 3 PONTOS - OBTIDO COM ENERGIA PROCTOR NORMAL, ATRAVÉS DE, NO MÍNIMO, 5 CORPOS DE PROVA, CONFORME RECOMENDAÇÕES DA NBR9895.(DESONERADO) | H12: UN | I12: 1624,97
A13: AD 05.05.0500 | B13: ENSAIO PARA DETERMINAÇÃO, NO CAMPO, DA UMIDADE APARENTE DO SOLO, ATRAVÉS DO MÉTODO "SPEEDY". | C13: UN | D13: 62,41 | F13: AD 04.05.0500 | G13: ENSAIO PARA DETERMINAÇÃO, NO CAMPO, DA UMIDADE APARENTE DO SOLO, ATRAVÉS DO MÉTODO "SPEEDY".(DESONERADO) | H13: UN | I13: 56,38
A14: AD 05.05.0550 | B14: ENSAIO PARA DETERMINAÇÃO DA UMIDADE NATURAL DE AMOSTRAS DE SOLO, EM LABORATÓRIO. | C14: UN | D14: 92,81 | F14: AD 04.05.0550 | G14: ENSAIO PARA DETERMINAÇÃO DA UMIDADE NATURAL DE AMOSTRAS DE SOLO, EM LABORATÓRIO.(DESONERADO) | H14: UN | I14: 83,85
A15: AD 05.05.0600 | B15: EXTRAÇÃO E ACONDICIONAMENTO DE AMOSTRA INDEFORMADA DE SOLO, COM PISTÃO ESTACIONÁRIO DE 100MM E DE ACORDO COM AS RECOMENDAÇÕES ESTABELECIDAS NA NBR9820. | C15: UN | D15: 467,26 | F15: AD 04.05.0600 | G15: EXTRAÇÃO E ACONDICIONAMENTO DE AMOSTRA INDEFORMADA DE SOLO, COM PISTÃO ESTACIONÁRIO DE 100MM E DE ACORDO COM AS RECOMENDAÇÕES ESTABELECIDAS NA NBR9820.(DESONERADO) | H15: UN | I15: 422,14
A16: AD 05.05.0650 | B16: INSTALAÇÃO DE MEDIDOR DE NÍVEL DE ÁGUA, INCLUSIVE TRANSPORTE DA EQUIPE. | C16: M | D16: 297,44 | F16: AD 04.05.0650 | G16: INSTALAÇÃO DE MEDIDOR DE NÍVEL DE ÁGUA, INCLUSIVE TRANSPORTE DA EQUIPE.(DESONERADO) | H16: M | I16: 285,00
A17: AD 05.05.0700 | B17: SONDAGEM MANUAL COM PÁ E PICARETA, POR METRO LINEAR OU FRAÇÃO. | C17: M | D17: 246,43 | F17: AD 04.05.0700 | G17: SONDAGEM MANUAL COM PÁ E PICARETA, POR METRO LINEAR OU FRAÇÃO.(DESONERADO) | H17: M | I17: 222,64
A18: AD 05.05.0703 | B18: SONDAGEM MANUAL COM TRADO E CAVADEIRA, POR METRO LINEAR OU FRAÇÃO. | C18: M | D18: 209,63 | F18: AD 04.05.0703 | G18: SONDAGEM MANUAL COM TRADO E CAVADEIRA, POR METRO LINEAR OU FRAÇÃO.(DESONERADO) | H18: M | I18: 189,39
A19: AD 05.05.0706 | B19: SONDAGEM DE RECONHECIMENTO, A TRADO MANUAL, COM DIÂMETRO DE 100MM. | C19: M | D19: 183,03 | F19: AD 04.05.0706 | G19: SONDAGEM DE RECONHECIMENTO, A TRADO MANUAL, COM DIÂMETRO DE 100MM.(DESONERADO) | H19: M | I19: 167,45
A20: AD 05.10.0050 | B20: SONDAGEM ROTATIVA VERTICAL, EM ROCHA ALTERADA, COM COROA DE WÍDIA OU SIMILAR, DIÂMETRO B (60MM), INCLUSIVE DESLOCAMENTO E POSICIONAMENTO EM CADA FURO. | C20: M | D20: 370,12 | F20: AD 04.10.0050 | G20: SONDAGEM ROTATIVA VERTICAL, EM ROCHA ALTERADA, COM COROA DE WÍDIA OU SIMILAR, DIÂMETRO B (60MM), INCLUSIVE DESLOCAMENTO E POSICIONAMENTO EM CADA FURO.(DESONERADO) | H20: M | I20: 349,59
A21: AD 05.10.0100 | B21: SONDAGEM ROTATIVA VERTICAL, EM ROCHA ALTERADA, COM COROA DE WÍDIA OU SIMILAR, DIÂMETRO N (75MM), INCLUSIVE DESLOCAMENTO E POSICIONAMENTO EM CADA FURO. | C21: M | D21: 431,92 | F21: AD 04.10.0100 | G21: SONDAGEM ROTATIVA VERTICAL, EM ROCHA ALTERADA, COM COROA DE WÍDIA OU SIMILAR, DIÂMETRO N (75MM), INCLUSIVE DESLOCAMENTO E POSICIONAMENTO EM CADA FURO.(DESONERADO) | H21: M | I21: 407,97
A22: AD 05.10.0150 | B22: SONDAGEM ROTATIVA VERTICAL, EM SOLO, COM COROA DE WÍDIA OU SIMILAR, DIÂMETRO B (60MM), INCLUSIVE DESLOCAMENTO E POSICIONAMENTO EM CADA FURO. | C22: M | D22: 211,10 | F22: AD 04.10.0150 | G22: SONDAGEM ROTATIVA VERTICAL, EM SOLO, COM COROA DE WÍDIA OU SIMILAR, DIÂMETRO B (60MM), INCLUSIVE DESLOCAMENTO E POSICIONAMENTO EM CADA FURO.(DESONERADO) | H22: M | I22: 199,38
A23: AD 05.10.0200 | B23: SONDAGEM ROTATIVA VERTICAL, EM SOLO, COM COROA DE WÍDIA OU SIMILAR, DIÂMETRO N (75MM), INCLUSIVE DESLOCAMENTO E POSICIONAMENTO EM CADA FURO. | C23: M | D23: 228,00 | F23: AD 04.10.0200 | G23: SONDAGEM ROTATIVA VERTICAL, EM SOLO, COM COROA DE WÍDIA OU SIMILAR, DIÂMETRO N (75MM), INCLUSIVE DESLOCAMENTO E POSICIONAMENTO EM CADA FURO.(DESONERADO) | H23: M | I23: 215,34
A24: AD 05.15.0050 | B24: SONDAGEM ROTATIVA COM COROA DE DIAMANTE, EM ROCHA SÃ, DIÂMETRO HW, INCLINADA (QUALQUER INCLINAÇÃO DIFERENTE DA VERTICAL), INCLUSIVE DESLOCAMENTO DENTRO DO CANTEIRO E INSTALAÇÃO DA SONDA NO FURO. | C24: M | D24: 1621,02 | F24: AD 04.15.0050 | G24: SONDAGEM ROTATIVA COM COROA DE DIAMANTE, EM ROCHA SÃ, DIÂMETRO HW, INCLINADA (QUALQUER INCLINAÇÃO DIFERENTE DA VERTICAL), INCLUSIVE DESLOCAMENTO DENTRO DO CANTEIRO E INSTALAÇÃO DA SONDA NO FURO.(DESONERADO) | H24: M | I24: 1538,82
A25: AD 05.15.0100 | B25: SONDAGEM ROTATIVA COM COROA DE DIAMANTE, EM ROCHA SÃ, DIÂMETRO NW, INCLINADA (QUALQUER INCLINAÇÃO DIFERENTE DA VERTICAL), INCLUSIVE DESLOCAMENTO DENTRO DO CANTEIRO E INSTALAÇÃO DA SONDA NO FURO. | C25: M | D25: 1183,25 | F25: AD 04.15.0100 | G25: SONDAGEM ROTATIVA COM COROA DE DIAMANTE, EM ROCHA SÃ, DIÂMETRO NW, INCLINADA (QUALQUER INCLINAÇÃO DIFERENTE DA VERTICAL), INCLUSIVE DESLOCAMENTO DENTRO DO CANTEIRO E INSTALAÇÃO DA SONDA NO FURO.(DESONERADO) | H25: M | I25: 1115,98
A26: AD 05.15.0150 | B26: SONDAGEM ROTATIVA VERTICAL, EM ROCHA ALTERADA, COM COROA DE DIAMANTE, DIÂMETRO B (60MM), INCLUSIVE DESLOCAMENTO E POSICIONAMENTO EM CADA FURO. | C26: M | D26: 960,10 | F26: AD 04.15.0150 | G26: SONDAGEM ROTATIVA VERTICAL, EM ROCHA ALTERADA, COM COROA DE DIAMANTE, DIÂMETRO B (60MM), INCLUSIVE DESLOCAMENTO E POSICIONAMENTO EM CADA FURO.(DESONERADO) | H26: M | I26: 904,00
A27: AD 05.15.0200 | B27: SONDAGEM ROTATIVA VERTICAL, EM ROCHA ALTERADA, COM COROA DE DIAMANTE, DIÂMETRO H (99MM), INCLUSIVE DESLOCAMENTO E POSICIONAMENTO EM CADA FURO. | C27: M | D27: 1240,32 | F27: AD 04.15.0200 | G27: SONDAGEM ROTATIVA VERTICAL, EM ROCHA ALTERADA, COM COROA DE DIAMANTE, DIÂMETRO H (99MM), INCLUSIVE DESLOCAMENTO E POSICIONAMENTO EM CADA FURO.(DESONERADO) | H27: M | I27: 1180,75
A28: AD 05.15.0250 | B28: SONDAGEM ROTATIVA VERTICAL, EM ROCHA SÃ, COM COROA DE DIAMANTE, DIÂMETRO B (60MM), INCLUSIVE DESLOCAMENTO E POSICIONAMENTO EM CADA FURO. | C28: M | D28: 990,90 | F28: AD 04.15.0250 | G28: SONDAGEM ROTATIVA VERTICAL, EM ROCHA SÃ, COM COROA DE DIAMANTE, DIÂMETRO B (60MM), INCLUSIVE DESLOCAMENTO E POSICIONAMENTO EM CADA FURO.(DESONERADO) | H28: M | I28: 935,76
A29: AD 05.15.0300 | B29: SONDAGEM ROTATIVA VERTICAL, EM ROCHA SÃ, COM COROA DE DIAMANTE, DIÂMETRO N (75MM), INCLUSIVE DESLOCAMENTO E POSICIONAMENTO EM CADA FURO. | C29: M | D29: 1034,41 | F29: AD 04.15.0300 | G29: SONDAGEM ROTATIVA VERTICAL, EM ROCHA SÃ, COM COROA DE DIAMANTE, DIÂMETRO N (75MM), INCLUSIVE DESLOCAMENTO E POSICIONAMENTO EM CADA FURO.(DESONERADO) | H29: M | I29: 975,93
A30: AD 05.15.0400 | B30: SONDAGEM ROTATIVA VERTICAL, EM ROCHA SÃ, COM COROA DE DIAMANTE, DIÂMETRO H (99MM), INCLUSIVE DESLOCAMENTO E POSICIONAMENTO EM CADA FURO. | C30: M | D30: 1423,88 | F30: AD 04.15.0400 | G30: SONDAGEM ROTATIVA VERTICAL, EM ROCHA SÃ, COM COROA DE DIAMANTE, DIÂMETRO H (99MM), INCLUSIVE DESLOCAMENTO E POSICIONAMENTO EM CADA FURO.(DESONERADO) | H30: M | I30: 1352,40
A31: AD 05.20.0050 | B31: SONDAGEM À PERCUSSÃO COM DIÂMETRO ATÉ 3", COM ENSAIO DE PENETRAÇÃO (SPT) A CADA METRO, INCLUINDO RELATÓRIO CONTENDO CLASSIFICAÇÃO TÁTIL VISUAL DAS AMOSTRAS, PERFIS INDIVIDUAIS DOS FUROS, PLANTA DE LOCALIZAÇÃO E RESPECTIVAS COTAS DAS SONDAGENS. INCLUI DESLOCAMENTO ATÉ 50M DE DISTÂNCIA E INSTALAÇÃO DO TRIPÉ EM CADA FURO DENTRO DO CANTEIRO, EXCLUINDO MOBILIZAÇÃO E DESMOBILIZAÇÃO. | C31: M | D31: 95,00 | F31: AD 04.20.0050 | G31: SONDAGEM À PERCUSSÃO COM DIÂMETRO ATÉ 3", COM ENSAIO DE PENETRAÇÃO (SPT) A CADA METRO, INCLUINDO RELATÓRIO CONTENDO CLASSIFICAÇÃO TÁTIL VISUAL DAS AMOSTRAS, PERFIS INDIVIDUAIS DOS FUROS, PLANTA DE LOCALIZAÇÃO E RESPECTIVAS COTAS DAS SONDAGENS. INCLUI DESLOCAMENTO ATÉ 50M DE DISTÂNCIA E INSTALAÇÃO DO TRIPÉ EM CADA FURO DENTRO DO CANTEIRO, EXCLUINDO MOBILIZAÇÃO E DESMOBILIZAÇÃO.(DESONERADO) | H31: M | I31: 95,00
A32: AD 10.05.0050 | B32: MARCAÇÃO DE OBRA, SEM INSTRUMENTO TOPOGRÁFICO, CONSIDERADA A PROJEÇÃO HORIZONTAL DA ÁREA ENVOLVENTE. | C32: M2 | D32: 4,94 | F32: AD 09.05.0050 | G32: MARCAÇÃO DE OBRA, SEM INSTRUMENTO TOPOGRÁFICO, CONSIDERADA A PROJEÇÃO HORIZONTAL DA ÁREA ENVOLVENTE.(DESONERADO) | H32: M2 | I32: 4,67
A33: AD 10.10.0100 | B33: LOCAÇÃO DE OBRA COM APARELHO TOPOGRÁFICO, SOBRE CERCA DE MARCAÇÃO, INCLUSIVE CONSTRUÇÃO DESTA E SUA PRÉ-LOCAÇÃO E O FORNECIMENTO DO MATERIAL E TENDO, POR MEDIÇÃO, O PERÍMETRO A CONSTRUIR. | C33: M | D33: 34,53 | F33: AD 09.10.0100 | G33: LOCAÇÃO DE OBRA COM APARELHO TOPOGRÁFICO, SOBRE CERCA DE MARCAÇÃO, INCLUSIVE CONSTRUÇÃO DESTA E SUA PRÉ-LOCAÇÃO E O FORNECIMENTO DO MATERIAL E TENDO, POR MEDIÇÃO, O PERÍMETRO A CONSTRUIR.(DESONERADO) | H33: M | I33: 32,55
A34: AD 15.05.0050 | B34: DESLOCAMENTO, ENTRE FUROS, DE EQUIPAMENTO DE SONDAGEM A PERCURSSÃO, INCLUINDO DESMONTAGEM E REMONTAGEM. | C34: UN | D34: 440,62 | F34: AD 14.05.0050 | G34: DESLOCAMENTO, ENTRE FUROS, DE EQUIPAMENTO DE SONDAGEM A PERCURSSÃO, INCLUINDO DESMONTAGEM E REMONTAGEM.(DESONERADO) | H34: UN | I34: 409,08
A35: AD 15.10.0050 | B35: CARGA E DESCARGA DE EQUIPAMENTOS PESADOS EM CARRETAS, EXCLUSIVE O CUSTO HORÁRIO DO EQUIPAMENTO, DURANTE A OPERAÇÃO. | C35: T | D35: 71,96 | F35: AD 14.10.0050 | G35: CARGA E DESCARGA DE EQUIPAMENTOS PESADOS EM CARRETAS, EXCLUSIVE O CUSTO HORÁRIO DO EQUIPAMENTO, DURANTE A OPERAÇÃO.(DESONERADO) | H35: T | I35: 66,63
A36: AD 15.10.0100 | B36: TRANSPORTE DE ANDAIME SUSPENSO, TIPO LEVE, PARA PINTURA, INCLUSIVE IDA E VOLTA DO CAMINHÃO, CARGA E DESCARGA (CONSIDERAR O MÍNIMO DE 40UNXKM, PARA CÁLCULO DESTE TRANSPORTE). | C36: UN.KM | D36: 2,91 | F36: AD 14.10.0100 | G36: TRANSPORTE DE ANDAIME SUSPENSO, TIPO LEVE, PARA PINTURA, INCLUSIVE IDA E VOLTA DO CAMINHÃO, CARGA E DESCARGA (CONSIDERAR O MÍNIMO DE 40UNXKM, PARA CÁLCULO DESTE TRANSPORTE).(DESONERADO) | H36: UN.KM | I36: 2,85
A37: AD 15.10.0150 | B37: TRANSPORTE DE ANDAIME SUSPENSO, TIPO PESADO, PARA REVESTIMENTO, INCLUSIVE IDA E VOLTA DO CAMINHÃO, CARGA E DESCARGA (CONSIDERAR O MÍNIMO DE 200UNXKM, PARA CÁLCULO DESTE TRANSPORTE). | C37: UN.KM | D37: 14,11 | F37: AD 14.10.0150 | G37: TRANSPORTE DE ANDAIME SUSPENSO, TIPO PESADO, PARA REVESTIMENTO, INCLUSIVE IDA E VOLTA DO CAMINHÃO, CARGA E DESCARGA (CONSIDERAR O MÍNIMO DE 200UNXKM, PARA CÁLCULO DESTE TRANSPORTE).(DESONERADO) | H37: UN.KM | I37: 13,86
A38: AD 15.10.0200 | B38: TRANSPORTE DE ANDAIME TUBULAR, CONSIDERANDO-SE A ÁREA DE PROJEÇÃO VERTICAL DO ANDAIME, INCLUSIVE IDA E VOLTA DO CAMINHÃO, CARGA E DESCARGA (CONSIDERAR O MÍNIMO DE 315M2XKM, PARA CÁLCULO DESTE TRANSPORTE). | C38: M2.KM | D38: 0,26 | F38: AD 14.10.0200 | G38: TRANSPORTE DE ANDAIME TUBULAR, CONSIDERANDO-SE A ÁREA DE PROJEÇÃO VERTICAL DO ANDAIME, INCLUSIVE IDA E VOLTA DO CAMINHÃO, CARGA E DESCARGA (CONSIDERAR O MÍNIMO DE 315M2XKM, PARA CÁLCULO DESTE TRANSPORTE).(DESONERADO) | H38: M2.KM | I38: 0,25
A39: AD 15.10.0250 | B39: TRANSPORTE DE ELEVADOR DE OBRAS CONSTITUÍDO POR CABINE ABERTA, COM PLATAFORMA, GUINCHOS E CABOS DE 16M DE ALTURA. | C39: UN.KM | D39: 266,39 | F39: AD 14.10.0250 | G39: TRANSPORTE DE ELEVADOR DE OBRAS CONSTITUÍDO POR CABINE ABERTA, COM PLATAFORMA, GUINCHOS E CABOS DE 16M DE ALTURA.(DESONERADO) | H39: UN.KM | I39: 247,99
A40: AD 15.10.0300 | B40: TRANSPORTE DE EQUIPAMENTOS PESADOS EM CARRETAS, EXCLUSIVE A CARGA E DESCARGA E O CUSTO HORÁRIO DOS EQUIPAMENTOS TRANSPORTADOS. | C40: T.KM | D40: 2,76 | F40: AD 14.10.0300 | G40: TRANSPORTE DE EQUIPAMENTOS PESADOS EM CARRETAS, EXCLUSIVE A CARGA E DESCARGA E O CUSTO HORÁRIO DOS EQUIPAMENTOS TRANSPORTADOS.(DESONERADO) | H40: T.KM | I40: 2,75
A41: AD 15.10.0350 | B41: TRANSPORTE MARÍTIMO DE CARGA DE QUALQUER NATUREZA, EXCLUSIVE DESPESAS DE CARGA E DESCARGA, NO TRAJETO DA ILHA DO GOVERNADOR ATÉ A ILHA DE PAQUETÁ OU VICE-VERSA, EM EMBARCAÇÃO APROPRIADA (CONSIDERAR APENAS A VIAGEM COM A CARGA). | C41: T | D41: 66,10 | F41: AD 14.10.0350 | G41: TRANSPORTE MARÍTIMO DE CARGA DE QUALQUER NATUREZA, EXCLUSIVE DESPESAS DE CARGA E DESCARGA, NO TRAJETO DA ILHA DO GOVERNADOR ATÉ A ILHA DE PAQUETÁ OU VICE-VERSA, EM EMBARCAÇÃO APROPRIADA (CONSIDERAR APENAS A VIAGEM COM A CARGA).(DESONERADO) | H41: T | I41: 66,10
A42: AD 15.12.0050 | B42: MOBILIZAÇÃO E DESMOBILIZAÇÃO DE EQUIPE DE ENSAIOS TECNOLÓGICOS, CONSIDERANDO O TRANSPORTE ATÉ 50 KM. | C42: UN | D42: 3017,28 | F42: AD 14.12.0050 | G42: MOBILIZAÇÃO E DESMOBILIZAÇÃO DE EQUIPE DE ENSAIOS TECNOLÓGICOS, CONSIDERANDO O TRANSPORTE ATÉ 50 KM. (DESONERADO) | H42: UN | I42: 2848,95
A43: AD 15.15.0050 | B43: CAMINHONETA DE SERVIÇO, COM CABINE E CAÇAMBA, COM MOTOR BICOMBUSTÍVEL, CABINE SIMPLES, COM AR CONDICIONADO E DIREÇÃO HIDRÁULICA, CAPACIDADE DE CARGA MÍNIMA DE 650KG, TRAÇÃO 4 X 2, COM MOTORISTA, MATERIAL DE OPERAÇÃO E MATERIAL DE MANUTENÇÃO. CUSTO HORÁRIO PRODUTIVO. | C43: H | D43: 90,62 | F43: AD 14.15.0050 | G43: CAMINHONETA DE SERVIÇO, COM CABINE E CAÇAMBA, COM MOTOR BICOMBUSTÍVEL, CABINE SIMPLES, COM AR CONDICIONADO E DIREÇÃO HIDRÁULICA, CAPACIDADE DE CARGA MÍNIMA DE 650KG, TRAÇÃO 4 X 2, COM MOTORISTA, MATERIAL DE OPERAÇÃO E MATERIAL DE MANUTENÇÃO. CUSTO HORÁRIO PRODUTIVO.(DESONERADO) | H43: H | I43: 88,98
A44: AD 15.15.0100 | B44: CAMINHONETA DE SERVIÇO, COM CABINE E CAÇAMBA, COM MOTOR BICOMBUSTÍVEL, CABINE SIMPLES, COM AR CONDICIONADO E DIREÇÃO HIDRÁULICA, CAPACIDADE DE CARGA MÍNIMA DE 650KG, TRAÇÃO 4 X 2, COM MOTORISTA E MATERIAL DE OPERAÇÃO. CUSTO HORÁRIO IMPRODUTIVO (MOTOR FUNCIONANDO). | C44: H | D44: 56,25 | F44: AD 14.15.0100 | G44: CAMINHONETA DE SERVIÇO, COM CABINE E CAÇAMBA, COM MOTOR BICOMBUSTÍVEL, CABINE SIMPLES, COM AR CONDICIONADO E DIREÇÃO HIDRÁULICA, CAPACIDADE DE CARGA MÍNIMA DE 650KG, TRAÇÃO 4 X 2, COM MOTORISTA E MATERIAL DE OPERAÇÃO. CUSTO HORÁRIO IMPRODUTIVO (MOTOR FUNCIONANDO).(DESONERADO) | H44: H | I44: 54,61
A45: AD 15.15.0150 | B45: CAMINHONETA DE SERVIÇO, COM CABINE E CAÇAMBA, COM MOTOR BICOMBUSTÍVEL, CABINE SIMPLES, COM AR CONDICIONADO E DIREÇÃO HIDRÁULICA, CAPACIDADE DE CARGA MÍNIMA DE 650KG, TRAÇÃO 4 X 2, COM MOTORISTA. CUSTO HORÁRIO IMPRODUTIVO (MOTOR DESLIGADO). | C45: H | D45: 27,80 | F45: AD 14.15.0150 | G45: CAMINHONETA DE SERVIÇO, COM CABINE E CAÇAMBA, COM MOTOR BICOMBUSTÍVEL, CABINE SIMPLES, COM AR CONDICIONADO E DIREÇÃO HIDRÁULICA, CAPACIDADE DE CARGA MÍNIMA DE 650KG, TRAÇÃO 4 X 2, COM MOTORISTA. CUSTO HORÁRIO IMPRODUTIVO (MOTOR DESLIGADO).(DESONERADO) | H45: H | I45: 26,16
A46: AD 15.15.0200 | B46: CAMINHONETA DE SERVICO, CAPACIDADE PARA 13 PASSAGEIROS OU 1650KG, COM MOTORISTA, MATERIAL DE OPERACAO E MATERIAL DE MANUTENCAO, COM AS SEGUINTES ESPECIFICACOES MINIMAS: MOTOR A GASOLINA DE 123CV, MODELO BÁSICO. CUSTO HORARIO DIURNO (ENTRE 05:00H E 22:00H). | C46: H | D46: 59,25 | F46: AD 14.15.0200 | G46: CAMINHONETA DE SERVICO, CAPACIDADE MÍNIMA PARA 13 PASSAGEIROS OU 1650KG, COM MOTORISTA, MATERIAL DE OPERACAO E MATERIAL DE MANUTENCAO, COM AS SEGUINTES ESPECIFICACOES MINIMAS: MOTOR A GASOLINA DE 123CV, MODELO BÁSICO. CUSTO HORARIO DIURNO (ENTRE 05:00H E 22:00H).(DESONERADO) | H46: H | I46: 59,80
A47: AD 15.15.0250 | B47: CAMINHONETA DE SERVICO, CAPACIDADE PARA 13 PASSAGEIROS OU 1650KG, COM MOTORISTA, MATERIAL DE OPERACAO E MATERIAL DE MANUTENCAO, COM AS SEGUINTES ESPECIFICACOES MINIMAS: MOTOR A GASOLINA DE 123CV. CUSTO HORARIO PRODUTIVO. | C47: H | D47: 143,26 | F47: AD 14.15.0250 | G47: CAMINHONETA DE SERVICO, CAPACIDADE DE 13 PASSAGEIROS OU 1650KG, COM MOTORISTA, MATERIAL DE OPERACAO E MATERIAL DE MANUTENCAO, COM AS SEGUINTES ESPECIFICACOES MINIMAS: MOTOR A GASOLINA DE 123CV, MODELO BÁSICO. CUSTO HORARIO PRODUTIVO.(DESONERADO) | H47: H | I47: 100,41
A48: AD 15.15.0300 | B48: CAMINHONETA DE SERVICO, CAPACIDADE PARA 13 PASSAGEIROS OU 1650KG, COM MOTORISTA E MATERIAL DE OPERACAO, COM AS SEGUINTES ESPECIFICACOES MINIMAS: MOTOR A GASOLINA DE 123CV. CUSTO HORARIO IMPRODUTIVO (MOTOR FUNCIONANDO). | C48: H | D48: 74,96 | F48: AD 14.15.0300 | G48: CAMINHONETA DE SERVICO, CAPACIDADE DE 13 PASSAGEIROS OU 1650KG, COM MOTORISTA E MATERIAL DE OPERACAO, COM AS SEGUINTES ESPECIFICACOES MINIMAS: MOTOR A GASOLINA DE 123CV. CUSTO HORARIO IMPRODUTIVO (MOTOR FUNCIONANDO).(DESONERADO) | H48: H | I48: 73,09
A49: AD 15.15.0350 | B49: CAMINHONETA DE SERVICO, CAPACIDADE PARA 13 PASSAGEIROS OU 1650KG, COM MOTORISTA, COM AS SEGUINTES ESPECIFICACOES MINIMAS: MOTOR A GASOLINA DE 123CV. CUSTO HORARIO IMPRODUTIVO (MOTOR DESLIGADO). | C49: H | D49: 29,60 | F49: AD 14.15.0350 | G49: CAMINHONETA DE SERVICO, CAPACIDADE DE 13 PASSAGEIROS OU 1650KG, COM MOTORISTA, COM AS SEGUINTES ESPECIFICACOES MINIMAS: MOTOR A GASOLINA DE 123CV. CUSTO HORARIO IMPRODUTIVO (MOTOR DESLIGADO).(DESONERADO) | H49: H | I49: 27,73
A50: AD 15.15.0401 | B50: CAMINHONETA DE SERVIÇO, CAPACIDADE DE 7 PASSAGEIROS OU 600 KG, COM MOTORISTA, MATERIAL DE OPERACAO E MATERIAL DE MANUTENCAO, COM AS SEGUINTES ESPECIFICACOES MINIMAS: A GASOLINA DE 83CV, AUTONOMIA DE 3000 KM/MÊS. CUSTO MENSAL. | C50: UN.MÊS | D50: 7270,33 | F50: AD 14.15.0401 | G50: CAMINHONETA DE SERVIÇO, CAPACIDADE DE 7 PASSAGEIROS OU 600 KG, COM MOTORISTA, MATERIAL DE OPERACAO E MATERIAL DE MANUTENCAO, COM AS SEGUINTES ESPECIFICACOES MINIMAS: A GASOLINA DE 83CV, AUTONOMIA DE 3000 KM/MÊS. CUSTO MENSAL.(DESONERADO) | H50: UN.MÊS | I50: 6981,69
A51: AD 15.15.0403 | B51: CAMINHONETA DE SERVICO (KILOMETRAGEM ADICIONAL), CAPACIDADE PARA 13 PASSAGEIROS OU 1650 KG, COM MOTORISTA, MATERIAL DE OPERACAO E MATERIAL DE MANUTENÇÃO, COM AS SEGUINTES ESPECIFICACOES MINIMAS: MOTOR A GASOLINA DE 123CV. CUSTO DO QUILOMETRO ADICIONAL. | C51: KM | D51: 0,89 | F51: AD 14.15.0403 | G51: CAMINHONETA DE SERVICO (KILOMETRAGEM ADICIONAL), CAPACIDADE PARA 13 PASSAGEIROS OU 1650 KG, COM MOTORISTA, MATERIAL DE OPERACAO E MATERIAL DE MANUTENCAO, COM AS SEGUINTES ESPECIFICACOES MINIMAS: MOTOR A GASOLINA DE 123CV. CUSTO DO QUILOMETRO ADICIONAL.(DESONERADO) | H51: KM | I51: 0,89
A52: AD 15.15.0550 | B52: CARRETA PARA TRANSPORTE PESADO, COM CAPACIDADE DE CARGA ÚTIL DE 60/80T, COM MOTORISTA OPERADOR, MATERIAL DE OPERAÇÃO E MATERIAL DE MANUTENÇÃO, COM AS SEGUINTES ESPECIFICAÇÕES MÍNIMAS: MOTOR DIESEL DE 330CV, CHASSIS EXTENSÍVEL ATÉ 21M E SEMI-REBOQUE DE 4 EIXOS. CUSTO HORÁRIO PRODUTIVO. | C52: H | D52: 552,47 | F52: AD 14.15.0550 | G52: CARRETA PARA TRANSPORTE PESADO, COM CAPACIDADE DE CARGA ÚTIL DE 60/80T, COM MOTORISTA OPERADOR, MATERIAL DE OPERAÇÃO E MATERIAL DE MANUTENÇÃO, COM AS SEGUINTES ESPECIFICAÇÕES MÍNIMAS: MOTOR DIESEL DE 330CV, CHASSIS EXTENSÍVEL ATÉ 21M E SEMI-REBOQUE DE 4 EIXOS. CUSTO HORÁRIO PRODUTIVO.(DESONERADO) | H52: H | I52: 549,21
A53: AD 15.15.0600 | B53: CARRETA PARA TRANSPORTE PESADO, COM CAPACIDADE DE CARGA ÚTIL DE 60/80T, COM MOTORISTA OPERADOR E MATERIAL DE OPERAÇÃO, COM AS SEGUINTES ESPECIFICAÇÕES MÍNIMAS: MOTOR DIESEL DE 330CV, CHASSIS EXTENSÍVEL ATÉ 21M E SEMI-REBOQUE DE 4 EIXOS. CUSTO HORÁRIO IMPRODUTIVO (MOTOR FUNCIONANDO). | C53: H | D53: 251,31 | F53: AD 14.15.0600 | G53: CARRETA PARA TRANSPORTE PESADO, COM CAPACIDADE DE CARGA ÚTIL DE 60/80T, COM MOTORISTA OPERADOR E MATERIAL DE OPERAÇÃO, COM AS SEGUINTES ESPECIFICAÇÕES MÍNIMAS: MOTOR DIESEL DE 330CV, CHASSIS EXTENSÍVEL ATÉ 21M E SEMI-REBOQUE DE 4 EIXOS. CUSTO HORÁRIO IMPRODUTIVO (MOTOR FUNCIONANDO).(DESONERADO) | H53: H | I53: 248,05
A54: AD 15.15.0650 | B54: CARRETA PARA TRANSPORTE PESADO, COM CAPACIDADE DE CARGA ÚTIL DE 60/80T, COM MOTORISTA OPERADOR, COM AS SEGUINTES ESPECIFICAÇÕES MÍNIMAS: MOTOR DIESEL DE 330CV, CHASSIS EXTENSÍVEL ATÉ 21M E SEMI-REBOQUE DE 4 EIXOS. CUSTO HORÁRIO IMPRODUTIVO (MOTOR DESLIGADO). | C54: H | D54: 207,68 | F54: AD 14.15.0650 | G54: CARRETA PARA TRANSPORTE PESADO, COM CAPACIDADE DE CARGA ÚTIL DE 60/80T, COM MOTORISTA OPERADOR, COM AS SEGUINTES ESPECIFICAÇÕES MÍNIMAS: MOTOR DIESEL DE 330CV, CHASSIS EXTENSÍVEL ATÉ 21M E SEMI-REBOQUE DE 4 EIXOS. CUSTO HORÁRIO IMPRODUTIVO (MOTOR DESLIGADO).(DESONERADO) | H54: H | I54: 204,42
A55: AD 15.15.0700 | B55: CARRETA PARA TRANSPORTE PESADO, COM CAPACIDADE DE CARGA ÚTIL DE 30T, COM MOTORISTA OPERADOR, MATERIAL DE OPERAÇÃO E MATERIAL DE MANUTENÇÃO, COM AS SEGUINTES ESPECIFICAÇÕES MÍNIMAS: MOTOR DIESEL DE 330CV, CHASSIS EXTENSÍVEL ATÉ 21M E SEMI-REBOQUE DE 3 EIXOS. CUSTO HORÁRIO PRODUTIVO. | C55: H | D55: 369,36 | F55: AD 14.15.0700 | G55: CARRETA PARA TRANSPORTE PESADO, COM CAPACIDADE DE CARGA ÚTIL DE 30T, COM MOTORISTA OPERADOR, MATERIAL DE OPERAÇÃO E MATERIAL DE MANUTENÇÃO, COM AS SEGUINTES ESPECIFICAÇÕES MÍNIMAS: MOTOR DIESEL DE 330CV, CHASSIS EXTENSÍVEL ATÉ 21M E SEMI-REBOQUE DE 3 EIXOS. CUSTO HORÁRIO PRODUTIVO.(DESONERADO) | H55: H | I55: 366,10
A56: AD 15.15.0703 | B56: CARRETA PARA TRANSPORTE PESADO, COM CAPACIDADE DE CARGA ÚTIL DE 30T, COM MOTORISTA OPERADOR E MATERIAL DE OPERAÇÃO, COM AS SEGUINTES ESPECIFICAÇÕES MÍNIMAS: MOTOR DIESEL DE 330CV, CHASSIS EXTENSÍVEL ATÉ 21M E SEMI-REBOQUE DE 3 EIXOS. CUSTO HORÁRIO IMPRODUTIVO (MOTOR FUNCIONANDO). | C56: H | D56: 193,26 | F56: AD 14.15.0703 | G56: CARRETA PARA TRANSPORTE PESADO, COM CAPACIDADE DE CARGA ÚTIL DE 30T, COM MOTORISTA OPERADOR E MATERIAL DE OPERAÇÃO, COM AS SEGUINTES ESPECIFICAÇÕES MÍNIMAS: MOTOR DIESEL DE 330CV, CHASSIS EXTENSÍVEL ATÉ 21M E SEMI-REBOQUE DE 3 EIXOS. CUSTO HORÁRIO IMPRODUTIVO (MOTOR FUNCIONANDO).(DESONERADO) | H56: H | I56: 190,00
A57: AD 15.15.0706 | B57: CARRETA PARA TRANSPORTE PESADO, COM CAPACIDADE DE CARGA ÚTIL DE 30T, COM MOTORISTA, COM AS SEGUINTES ESPECIFICAÇÕES MÍNIMAS: MOTOR DIESEL DE 330CV, CHASSIS EXTENSÍVEL ATÉ 21M E SEMI-REBOQUE DE 3 EIXOS. CUSTO HORÁRIO IMPRODUTIVO (MOTOR DESLIGADO). | C57: H | D57: 105,21 | F57: AD 14.15.0706 | G57: CARRETA PARA TRANSPORTE PESADO, COM CAPACIDADE DE CARGA ÚTIL DE 30T, COM MOTORISTA, COM AS SEGUINTES ESPECIFICAÇÕES MÍNIMAS: MOTOR DIESEL DE 330CV, CHASSIS EXTENSÍVEL ATÉ 21M E SEMI-REBOQUE DE 3 EIXOS. CUSTO HORÁRIO IMPRODUTIVO (MOTOR DESLIGADO).(DESONERADO) | H57: H | I57: 101,95
A58: AD 15.15.0750 | B58: VEÍCULO DE SERVIÇO, MOTOR 1.0, COM AR CONDICIONADO, DIREÇÃO HIDRÁULICA, RÁDIO, INCLUSIVE COMBUSTÍVEL, SEGURO, LUBRIFICAÇÃO, MANUTENÇÃO, LICENCIAMENTO, QUILOMETRAGEM LIVRE, SEM MOTORISTA. CUSTO MENSAL. | C58: UN.MÊS | D58: 5512,68 | F58: AD 14.15.0750 | G58: VEÍCULO DE SERVIÇO, MOTOR 1.0, COM AR CONDICIONADO, DIREÇÃO HIDRÁULICA, RÁDIO, INCLUSIVE COMBUSTÍVEL, SEGURO, LUBRIFICAÇÃO, MANUTENÇÃO, LICENCIAMENTO, QUILOMETRAGEM LIVRE, SEM MOTORISTA. CUSTO MENSAL.(DESONERADO) | H58: UN.MÊS | I58: 5512,68
A59: AD 15.15.0770 | B59: VEÍCULO DE SERVIÇO PARA APOIO ÀS OPERAÇÕES DE TRAFEGO, MOTOR 1.0 A GASOLINA, 4 PORTAS, COM AR CONDICIONADO E DIREÇÃO HIDRÁULICA, IDENTIFICAÇÃO PADRÃO CET-RIO, SINALIZADOR GIRATÓRIO, EQUIPAMENTO DE RASTREAMENTO, INCLUSIVE COMBUSTÍVEL, LICENCIAMENTO, SEGURO OBRIGATÓRIO, LUBRIFICAÇÃO, MANUTENÇÃO, LAVAGEM GERAL. QUILOMETRAGEM MÉDIA DE 3.300 KM / MÊS, SEM MOTORISTA. CUSTO MENSAL. | C59: UN.MÊS | D59: 5055,08 | F59: AD 14.15.0770 | G59: VEÍCULO DE SERVIÇO PARA APOIO ÀS OPERAÇÕES DE TRAFEGO, MOTOR 1.0 A GASOLINA, 4 PORTAS, COM AR CONDICIONADO E DIREÇÃO HIDRÁULICA, IDENTIFICAÇÃO PADRÃO CET-RIO, SINALIZADOR GIRATÓRIO, EQUIPAMENTO DE RASTREAMENTO, INCLUSIVE COMBUSTÍVEL, LICENCIAMENTO, SEGURO OBRIGATÓRIO, LUBRIFICAÇÃO, MANUTENÇÃO, LAVAGEM GERAL. QUILOMETRAGEM MÉDIA DE 3.300 KM / MÊS, SEM MOTORISTA. CUSTO MENSAL.(DESONERADO) | H59: UN.MÊS | I59: 5055,08
A60: AD 15.15.0800 | B60: VEÍCULO DE SERVIÇO, MOTOR 1.0 A GASOLINA, DE 69 CV (67,6 HP), PARA APOIO ÀS OPERAÇÕES DE TRÁFEGO (USO EXCLUSIVO SMTR/CET-RIO), COM AR CONDICIONADO, DIREÇÃO HIDRÁULICA, INCLUSIVE MATERIAL DE OPERAÇÃO E MATERIAL DE MANUTENÇÃO, LICENCIAMENTO, SEGURO E ADESIVOS NA CARROCERIA, SINALIZADOR GIRATÓRIO, RÁDIO AM/FM DIGITAL, E CAIXA DE FERRAMENTAS E ACESSÓRIOS. QUILOMETRAGEM MÉDIA DE 4.500KM/MÊS, SEM MOTORISTA. CUSTO MENSAL. | C60: UN.MÊS | D60: 6160,71 | F60: AD 14.15.0800 | G60: VEÍCULO DE SERVIÇO, MOTOR 1.0 A GASOLINA, DE 69 CV (67,6 HP), PARA APOIO ÀS OPERAÇÕES DE TRÁFEGO (USO EXCLUSIVO SMTR/CET-RIO), COM AR CONDICIONADO, DIREÇÃO HIDRÁULICA, INCLUSIVE MATERIAL DE OPERAÇÃO E MATERIAL DE MANUTENÇÃO, LICENCIAMENTO, SEGURO E ADESIVOS NA CARROCERIA, SINALIZADOR GIRATÓRIO, RÁDIO AM/FM DIGITAL, E CAIXA DE FERRAMENTAS E ACESSÓRIOS. QUILOMETRAGEM MÉDIA DE 4.500KM/MÊS, SEM MOTORISTA. CUSTO MENSAL.(DESONERADO) | H60: UN.MÊS | I60: 6160,71
A61: AD 20.05.0050 | B61: BARRACÃO DE OBRA COM PAREDES DE MADEIRA COMPENSADA, TIPO CHAPA RESINADA COM 10MM DE ESPESSURA, PISO CIMENTADO E ESTRUTURA DE MADEIRA SERRADA, E COBERTURA DE TELHAS ONDULADAS DE FIBRAS VEGETAIS E MINERAIS COM 3MM DE ESPESSURA, INCLUSIVE PINTURA, INSTALAÇÕES DE APARELHOS, ESQUADRIAS E FERRAGENS, CONSTANDO DE ESCRITÓRIO, SANITÁRIOS, DEPÓSITOS E TORRE COM CAIXA D'ÁGUA EM POLIETILENO COM CAPACIDADE DE 500L, REAPROVEITADO 5 VEZES, EXCLUSIVE LIGAÇÕES PROVISÓRIAS. | C61: M2 | D61: 812,76 | F61: AD 19.05.0050 | G61: BARRACÃO DE OBRA COM PAREDES DE MADEIRA COMPENSADA, TIPO CHAPA RESINADA COM 10MM DE ESPESSURA, PISO CIMENTADO E ESTRUTURA DE MADEIRA SERRADA, E COBERTURA DE TELHAS ONDULADAS DE FIBRAS VEGETAIS E MINERAIS COM 3MM DE ESPESSURA, INCLUSIVE PINTURA, INSTALAÇÕES DE APARELHOS, ESQUADRIAS E FERRAGENS, CONSTANDO DE ESCRITÓRIO, SANITÁRIOS, DEPÓSITOS E TORRE COM CAIXA D'ÁGUA EM POLIETILENO COM CAPACIDADE DE 500L, REAPROVEITADO 5 VEZES, EXCLUSIVE LIGAÇÕES PROVISÓRIAS.(DESONERADO) | H61: M2 | I61: 770,09
A62: AD 20.05.0100 | B62: BARRACÃO DE OBRA COM PAREDE DE MADEIRA, TIPO CHAPA DE MADEIRA RESINADA COM 10MM DE ESPESSURA, PINTADAS INTERNAMENTE E EXTERNAMENTE COM PVA - LÁTEX, PISO EM CONCRETO SIMPLES REVESTIDO COM CIMENTADO, ESTRUTURA DE MADEIRA SERRADA, COBERTURA DE TELHAS ONDULADAS DE FIBRAS VEGETAIS E MINERAIS COM 3MM DE ESPESSURA, INCLUSIVE INSTALAÇÕES, ESQUADRIAS E FERRAGENS, TORRE DE MADEIRA SERRADA COM CAIXA D'ÁGUA EM POLIETILENO, CAPACIDADE DE 500L, COM UTILIZAÇÃO DE 3 VEZES (FERRAGENS, MADEIRAS, QUADRO DE LUZ, ACESSÓRIOS ELÉTRICOS E HIDRÁULICOS, CAIXA D'ÁGUA, TELHAS), EXCLUSIVE AS LIGAÇÕES PROVISÓRIAS E SANITÁRIOS. | C62: M2 | D62: 654,14 | F62: AD 19.05.0100 | G62: BARRACÃO DE OBRA COM PAREDE DE MADEIRA, TIPO CHAPA DE MADEIRA RESINADA COM 10MM DE ESPESSURA, PINTADAS INTERNAMENTE E EXTERNAMENTE COM PVA - LÁTEX, PISO EM CONCRETO SIMPLES REVESTIDO COM CIMENTADO, ESTRUTURA DE MADEIRA SERRADA, COBERTURA DE TELHAS ONDULADAS DE FIBRAS VEGETAIS E MINERAIS COM 3MM DE ESPESSURA, INCLUSIVE INSTALAÇÕES, ESQUADRIAS E FERRAGENS, TORRE DE MADEIRA SERRADA COM CAIXA D'ÁGUA EM POLIETILENO, CAPACIDADE DE 500L, COM UTILIZAÇÃO DE 3 VEZES (FERRAGENS, MADEIRAS, QUADRO DE LUZ, ACESSÓRIOS ELÉTRICOS E HIDRÁULICOS, CAIXA D'ÁGUA, TELHAS), EXCLUSIVE AS LIGAÇÕES PROVISÓRIAS E SANITÁRIOS.(DESONERADO) | H62: M2 | I62: 627,46
A63: AD 20.05.0200 | B63: SANITARIO COM VASO, LAVATORIO E CHUVEIRO PARA PESSOAL DE OBRA, COLETIVO DE 2 UNIDADES E 4,2M2, EXECUTADO COM CHAPAS DE MADEIRA COMPENSADA PLASTIFICADA DE 10MM E TELHAS ONDULADAS DE FIBRAS VEGETAIS E MINERAIS, INCLUSIVE INSTALACOES, APARELHOS, ESQUADRIAS E FERRAGENS, CONSIDERANDO REAPROVEITAMENTO DAS INSTALAÇÕES NAO EMBUTIDAS NO SOLO, DAS TELHAS E DOS APARELHOS 2 VEZES E EXCLUSIVE AS LIGAÇÕES EXTERNAS A MAIS DE 2M DAS PAREDES | C63: UN | D63: 7017,85 | F63: AD 19.05.0200 | G63: SANITARIO COM VASO, LAVATORIO E CHUVEIRO PARA PESSOAL DE OBRA, COLETIVO DE 2 UNIDADES E 4,2M2, EXECUTADO COM CHAPAS DE MADEIRA COMPENSADA PLASTIFICADA DE 10MM E TELHAS ONDULADAS DE FIBRAS VEGETAIS E MINERAIS, INCLUSIVE INSTALACOES, APARELHOS, ESQUADRIAS E FERRAGENS, CONSIDERANDO REAPROVEITAMENTO DAS INSTALACOES NAO EMBUTIDAS NO SOLO, DAS TELHAS E DOS APARELHOS 2 VEZES E EXCLUSIVE AS LIGACOES EXTERNAS A MAIS DE 2M DAS PAREDES. (DESONERADO) | H63: UN | I63: 6796,29
A64: AD 20.05.0250 | B64: SANITARIO COM VASO, LAVATORIO E CHUVEIRO PARA PESSOAL DE OBRA, COM 2M2, EXECUTADO COM CHAPAS DE MADEIRA COMPENSADA PLASTIFICADA DE 10MM E TELHAS ONDULADAS DE FIBRAS VEGETAIS E MINERAIS, INCLUSIVE INSTALACOES, APARELHOS, ESQUADRIAS E FERRAGENS, CONSIDERANDO REAPROVEITAMENTO DAS INSTALAÇÕES NAO EMBUTIDAS NO SOLO, DAS TELHAS E DOS APARELHOS 2 VEZES E EXCLUSIVE AS LIGAÇÕES EXTERNAS A MAIS DE 2M DAS PAREDES | C64: UN | D64: 4406,26 | F64: AD 19.05.0250 | G64: SANITARIO COM VASO, LAVATORIO E CHUVEIRO PARA PESSOAL DE OBRA, COLETIVO DE 2M2, EXECUTADO COM CHAPAS DE MADEIRA COMPENSADA PLASTIFICADA DE 10MM E TELHAS ONDULADAS DE FIBRAS VEGETAIS E MINERAIS, INCLUSIVE INSTALACOES, APARELHOS, ESQUADRIAS E FERRAGENS, CONSIDERANDO REAPROVEITAMENTO DAS INSTALACOES NAO EMBUTIDAS NO SOLO, DAS TELHAS E DOS APARELHOS 2 VEZES E EXCLUSIVE AS LIGACOES EXTERNAS A MAIS DE 2M DAS PAREDES. (DESONERADO) | H64: UN | I64: 4257,35
A65: AD 20.05.0300 | B65: TAPUME DE VEDAÇÃO OU PROTEÇÃO, EXECUTADO COM CHAPAS DE COMPENSADO, TIPO CHAPA RESINADA OU SIMILAR, COM 6MM DE ESPESSURA, EXCLUSIVE PINTURA. | C65: M2 | D65: 85,31 | F65: AD 19.05.0300 | G65: TAPUME DE VEDAÇÃO OU PROTEÇÃO, EXECUTADO COM CHAPAS DE COMPENSADO, TIPO CHAPA RESINADA OU SIMILAR, COM 6MM DE ESPESSURA, EXCLUSIVE PINTURA.(DESONERADO) | H65: M2 | I65: 81,32
A66: AD 20.05.0350 | B66: TAPUME DE VEDAÇÃO OU PROTEÇÃO, EXECUTADO COM CHAPAS DE COMPENSADO, TIPO CHAPA RESINADA OU SIMILAR, COM 6MM DE ESPESSURA, COM UTILIZAÇÃO 2 VEZES, EXCLUSIVE PINTURA. | C66: M2 | D66: 67,02 | F66: AD 19.05.0350 | G66: TAPUME DE VEDAÇÃO OU PROTEÇÃO, EXECUTADO COM CHAPAS DE COMPENSADO, TIPO CHAPA RESINADA OU SIMILAR, COM 6MM DE ESPESSURA, COM UTILIZAÇÃO 2 VEZES, EXCLUSIVE PINTURA.(DESONERADO) | H66: M2 | I66: 63,03
A67: AD 20.05.0400 | B67: TAPUME DE VEDAÇÃO OU PROTEÇÃO, EXECUTADO COM TÁBUAS DE MADEIRA SERRADA, SENDO O APROVEITAMENTO DA MADEIRA 2 VEZES, EXCLUSIVE PINTURA. | C67: M2 | D67: 71,58 | F67: AD 19.05.0400 | G67: TAPUME DE VEDAÇÃO OU PROTEÇÃO, EXECUTADO COM TÁBUAS DE MADEIRA SERRADA, SENDO O APROVEITAMENTO DA MADEIRA 2 VEZES, EXCLUSIVE PINTURA.(DESONERADO) | H67: M2 | I67: 68,57
A68: AD 20.05.0450 | B68: TAPUME DE VEDAÇÃO OU PROTEÇÃO, EXECUTADO COM TELHAS TRAPEZOIDAIS DE AÇO GALVANIZADO (ESP.: 0,50MM), INCLUSIVE DUAS DEMÃOS DE PINTURA ESMALTE SINTÉTICO, NA FACE EXTERNA, CONSIDERANDO A UTILIZAÇÃO DAS TELHAS 4 VEZES E DA MOLDURA EM PERNA DE 3"X3", DUAS VEZES. | C68: M2 | D68: 58,20 | F68: AD 19.05.0450 | G68: TAPUME DE VEDAÇÃO OU PROTEÇÃO, EXECUTADO COM TELHAS TRAPEZOIDAIS DE AÇO GALVANIZADO (ESP.: 0,50MM), INCLUSIVE DUAS DEMÃOS DE PINTURA ESMALTE SINTÉTICO, NA FACE EXTERNA, CONSIDERANDO A UTILIZAÇÃO DAS TELHAS 4 VEZES E DA MOLDURA EM PERNA DE 3"X3", DUAS VEZES.(DESONERADO) | H68: M2 | I68: 56,60
A69: AD 20.05.0500 | B69: ALUGUEL DE BANHEIRO QUIMICO, INCLUINDO TRANSPORTE DE IDA E VOLTA, MANUTENÇÃO E HIGIENIZAÇÃO 3 VEZES POR SEMANA. MODELO LUXO, DIMENSÇÕES 2,31 X 1,15 X 1,15M. | C69: UN.MÊS | D69: 1550,00 | F69: AD 19.05.0500 | G69: ALUGUEL DE BANHEIRO QUIMICO, INCLUINDO TRANSPORTE DE IDA E VOLTA, MANUTENÇÃO E HIGIENIZAÇÃO 3 VEZES POR SEMANA. MODELO LUXO, DIMENSÇÕES 2,31 X 1,15 X 1,15M.(DESONERADO) | H69: UN.MÊS | I69: 1550,00
A70: AD 20.10.0050 | B70: GALPÃO DE CANTEIRO DE OBRAS, PARA OFICINA E/OU DEPÓSITO, INCLUSIVE O MADEIRAMENTO, A COBERTURA DE TELHA ONDULADA DE FIBROCIMENTO, SEM AMIANTO, DE 6MM DE ESPESSURA, PREPARO DO TERRENO E PISO CIMENTADO. | C70: M2 | D70: 426,19 | F70: AD 19.10.0050 | G70: GALPÃO DE CANTEIRO DE OBRAS, PARA OFICINA E/OU DEPÓSITO, INCLUSIVE O MADEIRAMENTO, A COBERTURA DE TELHA ONDULADA DE FIBROCIMENTO, SEM AMIANTO, DE 6MM DE ESPESSURA, PREPARO DO TERRENO E PISO CIMENTADO.(DESONERADO) | H70: M2 | I70: 398,16
A71: AD 20.15.0050 | B71: CONTAINER ESCRITÓRIO, MODELO PADRÃO, MEDINDO: (6X2,4X2,55)M, EM ESTRUTURA DE AÇO, COMPOSTO POR PISO DE MADEIRA CORRIDA, PAREDES FORRADAS COM COMPENSADO NAVAL, TETO COM ISOLAMENTO TÉRMICO, COM 1 PORTA DE (0,80X2,10)M, 2 BASCULANTES DE (1,20X1,20)M, WC COM PIA, VASO SANITÁRIO E CHUVEIRO, ENTRADA PARA AR CONDICIONADO COM SUPORTE E TOMADA 3P, 2 PONTOS DE ILUMINAÇÃO, 2 TOMADAS ELÉTRICAS, DISTRIBUIÇÃO INTERNA DAS INSTALAÇÕES ELÉTRICAS E HIDRÁULICAS ATÉ O PONTO DE ENTRADA/SAÍDA DA UNIDADE E PESO APROXIMADO DE 2T, EXCLUSIVE CARGA, DESCARGA E TRANSPORTE IDA E VOLTA AO CANTEIRO. ALUGUEL MENSAL. | C71: UN.MÊS | D71: 886,50 | F71: AD 19.15.0050 | G71: CONTAINER ESCRITÓRIO, MODELO PADRÃO, MEDINDO: (6X2,4X2,55)M, EM ESTRUTURA DE AÇO, COMPOSTO POR PISO DE MADEIRA CORRIDA, PAREDES FORRADAS COM COMPENSADO NAVAL, TETO COM ISOLAMENTO TÉRMICO, COM 1 PORTA DE (0,80X2,10)M, 2 BASCULANTES DE (1,20X1,20)M, WC COM PIA, VASO SANITÁRIO E CHUVEIRO, ENTRADA PARA AR CONDICIONADO COM SUPORTE E TOMADA 3P, 2 PONTOS DE ILUMINAÇÃO, 2 TOMADAS ELÉTRICAS, DISTRIBUIÇÃO INTERNA DAS INSTALAÇÕES ELÉTRICAS E HIDRÁULICAS ATÉ O PONTO DE ENTRADA/SAÍDA DA UNIDADE E PESO APROXIMADO DE 2T, EXCLUSIVE CARGA, DESCARGA E TRANSPORTE IDA E VOLTA AO CANTEIRO. ALUGUEL MENSAL.(DESONERADO) | H71: UN.MÊS | I71: 886,50
A72: AD 20.15.0100 | B72: CONTAINER ESCRITÓRIO, VESTIÁRIO OU DEPÓSITO, MODELO PADRÃO, MEDINDO: (6X2,4X2,55)M, EM ESTRUTURA DE AÇO, COMPOSTO POR PISO DE MADEIRA, PAREDES FORRADAS COM COMPENSADO NAVAL, TETO COM ISOLAMENTO TÉRMICO, COM 1 PORTA DE (0,80X2,10)M, 2 BASCULANTES DE (1,20X1,20), ENTRADA PARA AR CONDICIONADO COM SUPORTE E TOMADA 3P, 2 PONTOS DE ILUMINAÇÃO, 2 TOMADAS ELÉTRICAS, DISTRIBUIÇÃO INTERNA DAS INSTALAÇÕES ELÉTRICAS E HIDRÁULICAS ATÉ O PONTO DE ENTRADA/SAÍDA DA UNIDADE E PESO APROXIMADO DE 2T, EXCLUSIVE CARGA, DESCARGA E TRANSPORTE IDA E VOLTA AO CANTEIRO. ALUGUEL MENSAL. | C72: UN.MÊS | D72: 500,00 | F72: AD 19.15.0100 | G72: CONTAINER ESCRITÓRIO, VESTIÁRIO OU DEPÓSITO, MODELO PADRÃO, MEDINDO: (6X2,4X2,55)M, EM ESTRUTURA DE AÇO, COMPOSTO POR PISO DE MADEIRA, PAREDES FORRADAS COM COMPENSADO NAVAL, TETO COM ISOLAMENTO TÉRMICO, COM 1 PORTA DE (0,80X2,10)M, 2 BASCULANTES DE (1,20X1,20), ENTRADA PARA AR CONDICIONADO COM SUPORTE E TOMADA 3P, 2 PONTOS DE ILUMINAÇÃO, 2 TOMADAS ELÉTRICAS, DISTRIBUIÇÃO INTERNA DAS INSTALAÇÕES ELÉTRICAS E HIDRÁULICAS ATÉ O PONTO DE ENTRADA/SAÍDA DA UNIDADE E PESO APROXIMADO DE 2T, EXCLUSIVE CARGA, DESCARGA E TRANSPORTE IDA E VOLTA AO CANTEIRO. ALUGUEL MENSAL.(DESONERADO) | H72: UN.MÊS | I72: 500,00
A73: AD 20.15.0150 | B73: CONTAINER WC, MODELO PADRÃO, MEDINDO: (6X2,4X2,55)M, EM ESTRUTURA DE AÇO, COMPOSTO POR PISO DE COMPENSADO NAVAL REVESTIDO COM PLURIGOMA, PAREDES AO NATURAL, TETO COM ISOLAMENTO TÉRMICO, COM 1 PORTA DE (0,80X2,10)M, 2 BASCULANTES DE (1,20X1,20), COM 5 CHUVEIROS, 3 VASOS SANITÁRIOS, MICTÓRIO E 3 LAVATÓRIOS, 2 PONTOS DE ILUMINAÇÃO, DISTRIBUIÇÃO INTERNA DAS INSTALAÇÕES ELÉTRICAS E HIDRÁULICAS ATÉ O PONTO DE ENTRADA/SAÍDA DA UNIDADE E PESO APROXIMADO DE 2,3T, EXCLUSIVE CARGA, DESCARGA E TRANSPORTE IDA E VOLTA AO CANTEIRO. ALUGUEL MENSAL. | C73: UN.MÊS | D73: 1500,00 | F73: AD 19.15.0150 | G73: CONTAINER WC, MODELO PADRÃO, MEDINDO: (6X2,4X2,55)M, EM ESTRUTURA DE AÇO, COMPOSTO POR PISO DE COMPENSADO NAVAL REVESTIDO COM PLURIGOMA, PAREDES AO NATURAL, TETO COM ISOLAMENTO TÉRMICO, COM 1 PORTA DE (0,80X2,10)M, 2 BASCULANTES DE (1,20X1,20), COM 5 CHUVEIROS, 3 VASOS SANITÁRIOS, MICTÓRIO E 3 LAVATÓRIOS, 2 PONTOS DE ILUMINAÇÃO, DISTRIBUIÇÃO INTERNA DAS INSTALAÇÕES ELÉTRICAS E HIDRÁULICAS ATÉ O PONTO DE ENTRADA/SAÍDA DA UNIDADE E PESO APROXIMADO DE 2,3T, EXCLUSIVE CARGA, DESCARGA E TRANSPORTE IDA E VOLTA AO CANTEIRO. ALUGUEL MENSAL.(DESONERADO) | H73: UN.MÊS | I73: 1500,00
A74: AD 20.20.0050 | B74: INSTALAÇÃO E LIGAÇÃO PROVISÓRIAS DE ALIMENTAÇÃO DE ENERGIA ELÉTRICA, EM BAIXA TENSÃO (BT), PARA CANTEIRO DE OBRAS, EXCLUSIVE O FORNECIMENTO DO MEDIDOR. | C74: UN | D74: 2235,26 | F74: AD 19.20.0050 | G74: INSTALAÇÃO E LIGAÇÃO PROVISÓRIAS DE ALIMENTAÇÃO DE ENERGIA ELÉTRICA, EM BAIXA TENSÃO (BT), PARA CANTEIRO DE OBRAS, EXCLUSIVE O FORNECIMENTO DO MEDIDOR.(DESONERADO) | H74: UN | I74: 2188,68
A75: AD 20.20.0100 | B75: INSTALAÇÃO E LIGAÇÃO PROVISÓRIA DE OBRA DE ÁGUA E ESGOTO A REDE PÚBLICA. | C75: UN | D75: 2175,83 | F75: AD 19.20.0100 | G75: INSTALAÇÃO E LIGAÇÃO PROVISÓRIA DE OBRA DE ÁGUA E ESGOTO A REDE PÚBLICA.(DESONERADO) | H75: UN | I75: 2135,42
A76: AD 20.25.0050 | B76: BARRAGEM DE BLOQUEIO, DE OBRA NA VIA PÚBLICA, DE ACORDO COM A DELIBERAÇÃO OCOR 01/2001 DE 17/10/2001, COMPREENDENDO O FORNECIMENTO, PINTURA DOS SUPORTES DE MADEIRA E REAPROVEITAMENTO DO CONJUNTO 40 VEZES. | C76: M | D76: 4,99 | F76: AD 19.25.0050 | G76: BARRAGEM DE BLOQUEIO, DE OBRA NA VIA PÚBLICA, DE ACORDO COM A DELIBERAÇÃO OCOR 01/2001 DE 17/10/2001, COMPREENDENDO O FORNECIMENTO, PINTURA DOS SUPORTES DE MADEIRA E REAPROVEITAMENTO DO CONJUNTO 40 VEZES.(DESONERADO) | H76: M | I76: 4,74
A77: AD 20.25.0051 | B77: TAPUME-BARRAGEM, REMOVÍVEL, PARA BLOQUEIO DE VEÍCULOS E PEDESTRES E PROTEÇÃO DE INTERVENÇÕES EM FAIXAS DE ROLAMENTO DE VIAS E EM PASSEIOS PÚBLICOS, ALTURA ÚTIL DE 1,40M, COM PINTURA DE FACE EXTERNA EM FORMA DE SETA, NO SENTIDO OBRIGATÓRIO DO DESVIO, NAS CORES VERMELHA E FUNDO BRANCO, MADEIRAMENTO (CHAPA RESINADA DE 10MM, ENCABEÇAMENTO DE (5 X 5)CM, DOIS PONTALETES DE (7,5 X 7,5)CM POR CHAPA) CRAVADO EM BLOCO PRÉ-MOLDADO DE CONCRETO DE (0,40 X 0,40 X 0,30)CM, CALCULADA A UTILIZAÇÃO PARA 05 OBRAS. | C77: M | D77: 72,75 | F77: AD 19.25.0051 | G77: TAPUME-BARRAGEM, REMOVÍVEL, PARA BLOQUEIO DE VEÍCULOS E PEDESTRES E PROTEÇÃO DE INTERVENÇÕES EM FAIXAS DE ROLAMENTO DE VIAS E EM PASSEIOS PÚBLICOS, ALTURA ÚTIL DE 1,40M, COM PINTURA DE FACE EXTERNA EM FORMA DE SETA, NO SENTIDO OBRIGATÓRIO DO DESVIO, NAS CORES VERMELHA E FUNDO BRANCO, MADEIRAMENTO (CHAPA RESINADA DE 10MM, ENCABEÇAMENTO DE (5 X 5)CM, DOIS PONTALETES DE (7,5 X 7,5)CM POR CHAPA) CRAVADO EM BLOCO PRÉ-MOLDADO DE CONCRETO DE (0,40 X 0,40 X 0,30)CM, CALCULADA A UTILIZAÇÃO PARA 05 OBRAS.(DESONERADO) | H77: M | I77: 70,54
A78: AD 20.25.0100 | B78: BARRAGEM DE BLOQUEIO, DE OBRA NA VIA PÚBLICA, DE ACORDO COM A DELIBERAÇÃO OCOR 01/2001 DE 17/10/2001, COMPREENDENDO A COLOCAÇÃO E RETIRADA UMA VEZ. | C78: M | D78: 16,32 | F78: AD 19.25.0100 | G78: BARRAGEM DE BLOQUEIO, DE OBRA NA VIA PÚBLICA, DE ACORDO COM A DELIBERAÇÃO OCOR 01/2001 DE 17/10/2001, COMPREENDENDO A COLOCAÇÃO E RETIRADA UMA VEZ.(DESONERADO) | H78: M | I78: 15,34
A79: AD 20.25.0150 | B79: DEMARCAÇÃO PROVISÓRIA DE PAVIMENTO, POR PINTURA, EM COR AMARELA. MEDIDO POR ÁREA EFETIVAMENTE PINTADA. | C79: M2 | D79: 14,78 | F79: AD 19.25.0150 | G79: DEMARCAÇÃO PROVISÓRIA DE PAVIMENTO, POR PINTURA, EM COR AMARELA. MEDIDO POR ÁREA EFETIVAMENTE PINTADA.(DESONERADO) | H79: M2 | I79: 13,77
A80: AD 20.25.0200 | B80: PLACA DE SINALIZAÇÃO PARA OBRA NA VIA PÚBLICA, COM 0,60M DE LARGURA POR 1M DE ALTURA, COM AVISOS EM LETRAS PINTADAS, COMPREENDENDO O FORNECIMENTO E PINTURA, INCLUSIVE DA ESTRUTURA E SUPORTE EM MADEIRA SERRADA E BASE DE CONCRETO. | C80: UN | D80: 177,48 | F80: AD 19.25.0200 | G80: PLACA DE SINALIZAÇÃO PARA OBRA NA VIA PÚBLICA, COM 0,60M DE LARGURA POR 1M DE ALTURA, COM AVISOS EM LETRAS PINTADAS, COMPREENDENDO O FORNECIMENTO E PINTURA, INCLUSIVE DA ESTRUTURA E SUPORTE EM MADEIRA SERRADA E BASE DE CONCRETO.(DESONERADO) | H80: UN | I80: 169,20
A81: AD 20.25.0210 | B81: PLACA DE SINALIZAÇÃO PARA OBRA NA VIA PÚBLICA, TIPO CAVALETE ARTICULADO, CONFECCIONADO EM CHAPA PET 2,4MM, FUNDO, TEXTOS E SÍMBOLOS EM VINIL AUTO ADESIVO, ESTRUTURA EM AÇO TRATADO A BASE DE WASH PRIMER, PINTADO PELO PROCESSO ELETROSTÁTICO, NAS DIMENSÕES DE 0,60M X 1,00M. FORNECIMENTO. | C81: UN | D81: 576,00 | F81: AD 19.25.0210 | G81: PLACA DE SINALIZAÇÃO PARA OBRA NA VIA PÚBLICA, TIPO CAVALETE ARTICULADO, CONFECCIONADO EM CHAPA PET 2,4MM, FUNDO, TEXTOS E SÍMBOLOS EM VINIL AUTO ADESIVO, ESTRUTURA EM AÇO TRATADO A BASE DE WASH PRIMER, PINTADO PELO PROCESSO ELETROSTÁTICO, NAS DIMENSÕES DE 0,60M X 1,00M. FORNECIMENTO.(DESONERADO) | H81: UN | I81: 576,00
A82: AD 20.25.0250 | B82: PLACA DE SINALIZAÇÃO PARA OBRA NA VIA PÚBLICA, COMPREENDENDO EXCLUSIVAMENTE O SERVIÇO DE COLOCAÇÃO E RETIRADA. | C82: UN | D82: 5,35 | F82: AD 19.25.0250 | G82: PLACA DE SINALIZAÇÃO PARA OBRA NA VIA PÚBLICA, COMPREENDENDO EXCLUSIVAMENTE O SERVIÇO DE COLOCAÇÃO E RETIRADA.(DESONERADO) | H82: UN | I82: 4,92
A83: AD 20.25.0300 | B83: PLACA DE IDENTIFICAÇÃO DE OBRA PÚBLICA, INCLUSIVE PINTURA, ESTRUTURA, SUPORTE DE MADEIRA EM PEÇAS DE MADEIRA SERRADA DE (7,5 X 7,5)CM E TRANSPORTE. FORNECIMENTO E COLOCAÇÃO. | C83: M2 | D83: 656,17 | F83: AD 19.25.0300 | G83: PLACA DE IDENTIFICAÇÃO DE OBRA PÚBLICA, INCLUSIVE PINTURA, ESTRUTURA, SUPORTE DE MADEIRA EM PEÇAS DE MADEIRA SERRADA DE (7,5 X 7,5)CM E TRANSPORTE. FORNECIMENTO E COLOCAÇÃO.(DESONERADO) | H83: M2 | I83: 621,05
A84: AD 20.25.0310 | B84: PLACA DE IDENTIFICAÇÃO DE OBRA PÚBLICA, CONFECCIONADO EM CHAPA DE PET 2,0MM, FUNDO, TEXTOS E SÍMBOLOS EM VINIL AUTO ADESIVO E ESTRUTURA DE REQUADRO, SUPORTE ESTRUTURADO EM PEÇA DE MADEIRA SERRADA DE (7,5 X 7,5)CM PINTADO, INCLUSIVE TRANSPORTE. FORNECIMENTO E COLOCAÇÃO. | C84: M2 | D84: 623,16 | F84: AD 19.25.0310 | G84: PLACA DE IDENTIFICAÇÃO DE OBRA PÚBLICA, CONFECCIONADO EM CHAPA DE PET 2,0MM, FUNDO, TEXTOS E SÍMBOLOS EM VINIL AUTO ADESIVO E ESTRUTURA DE REQUADRO, SUPORTE ESTRUTURADO EM PEÇA DE MADEIRA SERRADA DE (7,5 X 7,5)CM PINTADO, INCLUSIVE TRANSPORTE. FORNECIMENTO E COLOCAÇÃO.(DESONERADO) | H84: M2 | I84: 593,85
A85: AD 20.25.0350 | B85: SEMÁFORO PARA SINALIZAÇÃO DE OBRA NA VIA PÚBLICA, COMPREENDENDO EXCLUSIVAMENTE O SERVIÇO E RETIRADA. | C85: UN | D85: 18,98 | F85: AD 19.25.0350 | G85: SEMÁFORO PARA SINALIZAÇÃO DE OBRA NA VIA PÚBLICA, COMPREENDENDO EXCLUSIVAMENTE O SERVIÇO E RETIRADA.(DESONERADO) | H85: UN | I85: 17,43
A86: AD 25.05.0050 | B86: ALUGUEL DE BALIZADOR VAGALUME, EQUIPADO COM PISCA ALERTA E PAINÉIS DE FITA REFLETIVA PADRÃO ENGENHARIA COM ALTURA DE 1,32M, DE ACORDO COM O MANUAL DO DNSR E CET-RIO, INCLUINDO MANUTENÇÃO, PRIMEIRA COLOCAÇÃO E RETIRADA DA OBRA. | C86: UN.MÊS | D86: 134,45 | F86: AD 24.05.0050 | G86: ALUGUEL DE BALIZADOR VAGALUME, EQUIPADO COM PISCA ALERTA E PAINÉIS DE FITA REFLETIVA PADRÃO ENGENHARIA COM ALTURA DE 1,32M, DE ACORDO COM O MANUAL DO DNSR E CET-RIO, INCLUINDO MANUTENÇÃO, PRIMEIRA COLOCAÇÃO E RETIRADA DA OBRA.(DESONERADO) | H86: UN.MÊS | I86: 134,45
A87: AD 25.05.0150 | B87: ALUGUEL DE CAVALETE MINICADE, EQUIPADO COM PAINÉIS REFLETIVOS DE ALTA INTENSIDADE E UM PISCA ALERTA COM CÉLULA FOTO-ELÉTRICA, ALIMENTADA POR 2 BATERIAS DE 6V (DISPENSA O USO DE GERADOR). | C87: UN.MÊS | D87: 50,00 | F87: AD 24.05.0150 | G87: ALUGUEL DE CAVALETE MINICADE, EQUIPADO COM PAINÉIS REFLETIVOS DE ALTA INTENSIDADE E UM PISCA ALERTA COM CÉLULA FOTO-ELÉTRICA, ALIMENTADA POR 2 BATERIAS DE 6V (DISPENSA O USO DE GERADOR).(DESONERADO) | H87: UN.MÊS | I87: 50,00
A88: AD 25.05.0200 | B88: ALUGUEL DE CAVALETE PLÁSTICO UNIVERSAL DE POLIETILENO DE ALTO IMPACTO, NA COR BRANCA, COM PAINÉIS DE FITA REFLETIVA NA DIMENSÕES (1,15X0,61)M, PERMITINDO ADAPTAÇÃO DE ATÉ 2 PISCAS ALERTAS E PLACAS DE SINALIZAÇÕES DIVERSAS, DE ACORDO COM O MANUAL DO DNSR E CET-RIO, COM MAIS ACESSÓRIOS, INCLUINDO 1 PISCA ALERTA, PRIMEIRA COLOCAÇÃO E RETIRADA NO FINAL DA OBRA. | C88: UN.MÊS | D88: 64,48 | F88: AD 24.05.0200 | G88: ALUGUEL DE CAVALETE PLÁSTICO UNIVERSAL DE POLIETILENO DE ALTO IMPACTO, NA COR BRANCA, COM PAINÉIS DE FITA REFLETIVA NA DIMENSÕES (1,15X0,61)M, PERMITINDO ADAPTAÇÃO DE ATÉ 2 PISCAS ALERTAS E PLACAS DE SINALIZAÇÕES DIVERSAS, DE ACORDO COM O MANUAL DO DNSR E CET-RIO, COM MAIS ACESSÓRIOS, INCLUINDO 1 PISCA ALERTA, PRIMEIRA COLOCAÇÃO E RETIRADA NO FINAL DA OBRA.(DESONERADO) | H88: UN.MÊS | I88: 64,48
A89: AD 25.05.0250 | B89: ALUGUEL DE CONE CANALIZADOR EMPILHÁVEL T-TOPDE DE ALTA DENSIDADE DE POLIETILENO INQUEBRÁVEL, COM 1,06M DE ALTURA E 0,33M DE FAIXA REFLETIVA COM BASE DE BORRACHA REMOVÍVEL, PERMITINDO PRESTAÇÃO DE PISCA ALERTA, DE ACORDO COM O MANUAL DO DNSR E CET-RIO, COM MAIS ACESSÓRIOS, INCLUINDO MANUTENÇÃO, COLOCAÇÃO E RETIRADA NO FINAL DA OBRA, EXCLUINDO O PISCA ALERTA. | C89: UN.MÊS | D89: 158,40 | F89: AD 24.05.0250 | G89: ALUGUEL DE CONE CANALIZADOR EMPILHÁVEL T-TOPDE DE ALTA DENSIDADE DE POLIETILENO INQUEBRÁVEL, COM 1,06M DE ALTURA E 0,33M DE FAIXA REFLETIVA COM BASE DE BORRACHA REMOVÍVEL, PERMITINDO PRESTAÇÃO DE PISCA ALERTA, DE ACORDO COM O MANUAL DO DNSR E CET-RIO, COM MAIS ACESSÓRIOS, INCLUINDO MANUTENÇÃO, COLOCAÇÃO E RETIRADA NO FINAL DA OBRA, EXCLUINDO O PISCA ALERTA.(DESONERADO) | H89: UN.MÊS | I89: 158,40
A90: AD 25.05.0300 | B90: ALUGUEL DE PISCA ALERTA PARA ADAPTAÇÃO EM CONES CANALIZADORES E CAVALETES. | C90: UN.MÊS | D90: 78,66 | F90: AD 24.05.0300 | G90: ALUGUEL DE PISCA ALERTA PARA ADAPTAÇÃO EM CONES CANALIZADORES E CAVALETES.(DESONERADO) | H90: UN.MÊS | I90: 78,66
A91: AD 25.05.0350 | B91: ALUGUEL DE PLACAS DE SINALIZAÇÃO DE OBRAS, REFLETIVAS, REVESTIDAS COM PELÍCULA REFLETIVA GRAU TÉCNICO. | C91: M2.MÊS | D91: 52,40 | F91: AD 24.05.0350 | G91: ALUGUEL DE PLACAS DE SINALIZAÇÃO DE OBRAS, REFLETIVAS, REVESTIDAS COM PELÍCULA REFLETIVA GRAU TÉCNICO.(DESONERADO) | H91: M2.MÊS | I91: 52,40
A92: AD 25.05.0450 | B92: ROLO DE TELA PLÁSTICA, NAS DIMENSÕES DE (50X1,20)M, NA COR LARANJA, SENDO UTILIZADA 2 VEZES. FORNECIMENTO. | C92: M | D92: 2,18 | F92: AD 24.05.0450 | G92: ROLO DE TELA PLÁSTICA, NAS DIMENSÕES DE (50X1,20)M, NA COR LARANJA, SENDO UTILIZADA 2 VEZES. FORNECIMENTO.(DESONERADO) | H92: M | I92: 2,18
A93: AD 25.05.0500 | B93: PROTEÇÃO DE CANTEIRO DE OBRA EM ÁREAS PÚBLICAS, COMPREENDENDO TELA PLÁSTICA, ESTRUTURA DE MADEIRA A CADA 3M DE DISTÂNCIA COM BASE DE CONCRETO, UTILIZAÇÃO 2 VEZES. | C93: M | D93: 26,43 | F93: AD 24.05.0500 | G93: PROTEÇÃO DE CANTEIRO DE OBRA EM ÁREAS PÚBLICAS, COMPREENDENDO TELA PLÁSTICA, ESTRUTURA DE MADEIRA A CADA 3M DE DISTÂNCIA COM BASE DE CONCRETO, UTILIZAÇÃO 2 VEZES.(DESONERADO) | H93: M | I93: 25,60
A94: AD 30.05.0050 | B94: RELATÓRIO FINAL DE OBRAS OU SERVIÇOS DE ENGENHARIA, INCLUINDO DESENHOS TAMANHO A-1 EM "AUTOCAD FOR WINDOWS", REGISTRO FOTOGRÁFICO DOS SERVIÇOS COM FOTOS (10X15)CM ACOMPANHADAS DE LEGENDAS E INDICAÇÃO DA LOCALIZAÇÃO, INFORMAÇÕES CONTRATUAIS, PLANILHA ORÇAMENTÁRIA E DESCRIÇÃO DO ESCOPO DOS SERVIÇOS, REALIZADOS, TODOS COM TEXTO EM "WORD FOR WINDOWS", CONFORME RECOMENDAÇÕES E ESPECIFICAÇÕES DO ÓRGÃO CONTRATANTE. O RELATÓRIO DEVERÁ SER APRESENTADO EM DUAS VIAS (ORIGINAL E CÓPIA) ENCADERNADAS E ACOMPANHADAS DE CÓPIA DIGITALIZADA E ARMAZENADA EM "DVD ROM". O ITEM DEVERÁ SER MEDIDO PELO NÚMERO DE PRANCHAS ORIGINAIS QUE COMPÕE O RELATÓRIO. | C94: UN | D94: 2435,08 | F94: AD 29.05.0050 | G94: RELATÓRIO FINAL DE OBRAS OU SERVIÇOS DE ENGENHARIA, INCLUINDO DESENHOS TAMANHO A-1 EM "AUTOCAD FOR WINDOWS", REGISTRO FOTOGRÁFICO DOS SERVIÇOS COM FOTOS (10X15)CM ACOMPANHADAS DE LEGENDAS E INDICAÇÃO DA LOCALIZAÇÃO, INFORMAÇÕES CONTRATUAIS, PLANILHA ORÇAMENTÁRIA E DESCRIÇÃO DO ESCOPO DOS SERVIÇOS, REALIZADOS, TODOS COM TEXTO EM "WORD FOR WINDOWS", CONFORME RECOMENDAÇÕES E ESPECIFICAÇÕES DO ÓRGÃO CONTRATANTE. O RELATÓRIO DEVERÁ SER APRESENTADO EM DUAS VIAS (ORIGINAL E CÓPIA) ENCADERNADAS E ACOMPANHADAS DE CÓPIA DIGITALIZADA E ARMAZENADA EM "DVD ROM". O ITEM DEVERÁ SER MEDIDO PELO NÚMERO DE PRANCHAS ORIGINAIS QUE COMPÕE O RELATÓRIO.(DESONERADO) | H94: UN | I94: 2212,17
A95: AD 30.05.0100 | B95: RELATÓRIO DE IMPLANTAÇÃO E ACOMPANHAMENTO (RIA) DO PGRCC, INCLUINDO A APRESENTAÇÃO DOS COMPROVANTES DO TRANSPORTE E DESTINAÇÃO FINAL DOS RCC (CLASSES A, B, C E D), LISTA DE TREINAMENTOS DOS FUNCIONÁRIOS E REGISTRO FOTOGRÁFICO DOS LOCAIS DE ACONDICIONAMENTO E TREINAMENTO COM FOTOS (10X15)CM ACOMPANHADAS DE LEGENDAS E INDICACAO DA LOCALIZACAO, CONFORME RECOMENDACOES E ESPECIFICACOES DO ORGAO CONTRATANTE. O RELATORIO DEVERA SER APRESENTADO EM DUAS VIAS (ORIGINAL E COPIA) ENCADERNADAS E ACOMPANHADAS DE COPIA DIGITALIZADA E ARMAZENADA EM "DVD ROM". | C95: UN | D95: 2192,44 | F95: AD 29.05.0100 | G95: RELATÓRIO DE IMPLANTAÇÃO E ACOMPANHAMENTO (RIA) DO PGRCC, INCLUINDO A APRESENTAÇÃO DOS COMPROVANTES DO TRANSPORTE E DESTINAÇÃO FINAL DOS RCC (CLASSES A, B, C E D), LISTA DE TREINAMENTOS DOS FUNCIONÁRIOS E REGISTRO FOTOGRÁFICO DOS LOCAIS DE ACONDICIONAMENTO E TREINAMENTO COM FOTOS (10X15)CM ACOMPANHADAS DE LEGENDAS E INDICACAO DA LOCALIZACAO, CONFORME RECOMENDACOES E ESPECIFICACOES DO ORGAO CONTRATANTE. O RELATORIO DEVERA SER APRESENTADO EM DUAS VIAS (ORIGINAL E COPIA) ENCADERNADAS E ACOMPANHADAS DE COPIA DIGITALIZADA E ARMAZENADA EM "DVD ROM". (DESONERADO) | H95: UN | I95: 1990,63
A96: AD 30.05.0200 | B96: RELATÓRIO TÉCNICO CADASTRAL DE ESTRUTURAS DE DRENAGEM EM ENCOSTAS, CONFORME MODELO GEO-RIO. INCLUÍDO VISTORIA EM CAMPO, DESENHOS DIGITAIS GEORREFERENCIADOS E COTADOS DA ESTRUTURA E REGISTRO FOTOGRÁFICO. | C96: M | D96: 8,37 | F96: AD 29.05.0200 | G96: RELATÓRIO TÉCNICO CADASTRAL DE ESTRUTURAS DE DRENAGEM EM ENCOSTAS, CONFORME MODELO GEO-RIO. INCLUÍDO VISTORIA EM CAMPO, DESENHOS DIGITAIS GEORREFERENCIADOS E COTADOS DA ESTRUTURA E REGISTRO FOTOGRÁFICO.(DESONERADO) | H96: M | I96: 7,81
A97: AD 30.05.0300 | B97: RELATÓRIO TÉCNICO CADASTRAL DE ESTRUTURAS DE CONTENÇÃO EM ENCOSTAS, CONFORME MODELO GEO-RIO. INCLUÍDO VISTORIA EM CAMPO, DESENHOS DIGITAIS GEORREFERENCIADOS E COTADOS DA ESTRUTURA E REGISTRO FOTOGRÁFICO. | C97: M2 | D97: 13,24 | F97: AD 29.05.0300 | G97: RELATÓRIO TÉCNICO CADASTRAL DE ESTRUTURAS DE CONTENÇÃO EM ENCOSTAS, CONFORME MODELO GEO-RIO. INCLUÍDO VISTORIA EM CAMPO, DESENHOS DIGITAIS GEORREFERENCIADOS E COTADOS DA ESTRUTURA E REGISTRO FOTOGRÁFICO.(DESONERADO) | H97: M2 | I97: 12,16
A98: AD 35.05.0050 | B98: CARGA DAS PARTÍCULAS (PMB-565). | C98: UN | D98: 209,63 | F98: AD 34.05.0050 | G98: CARGA DAS PARTÍCULAS (PMB-565).(DESONERADO) | H98: UN | I98: 189,39
A99: AD 35.05.0053 | B99: DESEMULSIBILIDADE (PMB-580). | C99: UN | D99: 201,63 | F99: AD 34.05.0053 | G99: DESEMULSIBILIDADE (PMB-580).(DESONERADO) | H99: UN | I99: 182,16
A100: AD 35.05.0056 | B100: PENETRAÇÃO À 25°C, 100G, 5S (MB-107). | C100: UN | D100: 172,82 | F100: AD 34.05.0056 | G100: PENETRAÇÃO À 25°C, 100G, 5S (MB-107).(DESONERADO) | H100: UN | I100: 156,14
A101: AD 35.05.0059 | B101: PONTO DE FULGOR CLEVELAND (MB-90). | C101: UN | D101: 144,02 | F101: AD 34.05.0059 | G101: PONTO DE FULGOR CLEVELAND (MB-90).(DESONERADO) | H101: UN | I101: 130,11
A102: AD 35.05.0062 | B102: VISCOSIDADE SSF A CADA TEMPERATURA, PARA EMULSÃO (PMB-581 A 512). | C102: UN | D102: 187,22 | F102: AD 34.05.0062 | G102: VISCOSIDADE SSF A CADA TEMPERATURA, PARA EMULSÃO (PMB-581 A 512).(DESONERADO) | H102: UN | I102: 169,15
A103: AD 35.10.0050 | B103: ENSAIO NORMAL COMPLETO (MB-1). | C103: UN | D103: 4448,56 | F103: AD 34.10.0050 | G103: ENSAIO NORMAL COMPLETO (MB-1).(DESONERADO) | H103: UN | I103: 4019,05
A104: AD 35.10.0100 | B104: ENSAIO QUÍMICO COMPLETO DE CIMENTO. | C104: UN | D104: 2576,32 | F104: AD 34.10.0100 | G104: ENSAIO QUÍMICO COMPLETO DE CIMENTO.(DESONERADO) | H104: UN | I104: 2327,58
A105: AD 35.15.0050 | B105: CONTROLE TECNOLÓGICO DE OBRAS EM CONCRETO ARMADO, CONSIDERANDO-SE APENAS O CONTROLE DO CONCRETO E CONSTANDO DE COLETA, MOLDAGEM E CAPEAMENTO DE CORPOS DE PROVA, TRANSPORTE ATÉ 50KM, ENSAIOS DE RESISTÊNCIA À COMPRESSÃO AOS 28 DIAS E "SLUMP TEST", MEDIDO POR M3 DE CONCRETO COLOCADO NAS FORMAS. | C105: M3 | D105: 50,12 | F105: AD 34.15.0050 | G105: CONTROLE TECNOLÓGICO DE OBRAS EM CONCRETO ARMADO, CONSIDERANDO-SE APENAS O CONTROLE DO CONCRETO E CONSTANDO DE COLETA, MOLDAGEM E CAPEAMENTO DE CORPOS DE PROVA, TRANSPORTE ATÉ 50KM, ENSAIOS DE RESISTÊNCIA À COMPRESSÃO AOS 28 DIAS E "SLUMP TEST", MEDIDO POR M3 DE CONCRETO COLOCADO NAS FORMAS.(DESONERADO) | H105: M3 | I105: 43,16
A106: AD 35.15.0100 | B106: ENSAIO DE RESISTÊNCIA À COMPRESSÃO DE CORPO DE PROVA CILÍNDRICO (15X30)CM, EXCLUSIVE O TRANSPORTE. | C106: UN | D106: 86,19 | F106: AD 34.15.0100 | G106: ENSAIO DE RESISTÊNCIA À COMPRESSÃO DE CORPO DE PROVA CILÍNDRICO (15X30)CM, EXCLUSIVE O TRANSPORTE.(DESONERADO) | H106: UN | I106: 77,83
A107: AD 35.15.0150 | B107: MOLDAGEM E COLETA DE CORPO DE PROVA DE CONCRETO E TRANSPORTE A 50KM, POR TOPO. | C107: UN | D107: 79,56 | F107: AD 34.15.0150 | G107: MOLDAGEM E COLETA DE CORPO DE PROVA DE CONCRETO E TRANSPORTE A 50KM, POR TOPO.(DESONERADO) | H107: UN | I107: 64,62
A108: AD 35.15.0200 | B108: REMATE E CAPEAMENTO DE CORPO DE PROVA, EXCLUSIVE O TRANSPORTE. | C108: UN | D108: 23,17 | F108: AD 34.15.0200 | G108: REMATE E CAPEAMENTO DE CORPO DE PROVA, EXCLUSIVE O TRANSPORTE.(DESONERADO) | H108: UN | I108: 21,19
A109: AD 35.20.0050 | B109: ANÁLISE GRANULOMÉTRICA APÓS EXTRAÇÃO DO LIGANTE. | C109: UN | D109: 504,06 | F109: AD 34.20.0050 | G109: ANÁLISE GRANULOMÉTRICA APÓS EXTRAÇÃO DO LIGANTE.(DESONERADO) | H109: UN | I109: 455,40
A110: AD 35.20.0053 | B110: DENSIDADE APARENTE (DPTM-77/63). | C110: UN | D110: 144,02 | F110: AD 34.20.0053 | G110: DENSIDADE APARENTE (DPTM-77/63).(DESONERADO) | H110: UN | I110: 130,11
A111: AD 35.20.0056 | B111: DETERMINAÇÃO, COM AUXÍLIO DE SONDA ROTATIVA, DA DENSIDADE DE MISTURA COMPACTADA, POR CORPO DE PROVA. | C111: UN | D111: 144,02 | F111: AD 34.20.0056 | G111: DETERMINAÇÃO, COM AUXÍLIO DE SONDA ROTATIVA, DA DENSIDADE DE MISTURA COMPACTADA, POR CORPO DE PROVA.(DESONERADO) | H111: UN | I111: 130,11
A112: AD 35.20.0059 | B112: DETERMINAÇÃO DA ESTABILIDADE E FLUÊNCIA MARSHALL (DPTM-43/64). | C112: UN | D112: 331,24 | F112: AD 34.20.0059 | G112: DETERMINAÇÃO DA ESTABILIDADE E FLUÊNCIA MARSHALL (DPTM-43/64).(DESONERADO) | H112: UN | I112: 299,26
A113: AD 35.20.0062 | B113: DETERMINAÇÃO DO TEOR DE BETUME (DBTM-53/63). | C113: UN | D113: 504,06 | F113: AD 34.20.0062 | G113: DETERMINAÇÃO DO TEOR DE BETUME (DBTM-53/63).(DESONERADO) | H113: UN | I113: 455,40
A114: AD 35.20.0065 | B114: FADIGA POR COMPRESSÃO DIAMETRAL. | C114: UN | D114: 6032,75 | F114: AD 34.20.0065 | G114: FADIGA POR COMPRESSÃO DIAMETRAL.(DESONERADO) | H114: UN | I114: 5450,29
A115: AD 35.20.0068 | B115: FADIGA POR FLEXÃO (VIGOTA). | C115: UN | D115: 14073,76 | F115: AD 34.20.0068 | G115: FADIGA POR FLEXÃO (VIGOTA).(DESONERADO) | H115: UN | I115: 12714,93
A116: AD 35.20.0071 | B116: MÓDULO RESILIENTE POR COMPRESSÃO DIAMETRAL. | C116: UN | D116: 924,92 | F116: AD 34.20.0071 | G116: MÓDULO RESILIENTE POR COMPRESSÃO DIAMETRAL.(DESONERADO) | H116: UN | I116: 835,61
A117: AD 35.20.0074 | B117: MÓDULO RESILIENTE POR FLEXÃO (VIGOTA). | C117: UN | D117: 1931,44 | F117: AD 34.20.0074 | G117: MÓDULO RESILIENTE POR FLEXÃO (VIGOTA).(DESONERADO) | H117: UN | I117: 1744,96
A118: AD 35.20.0077 | B118: RECUPERAÇÃO DO LIGANTE (ABSON). | C118: UN | D118: 1009,73 | F118: AD 34.20.0077 | G118: RECUPERAÇÃO DO LIGANTE (ABSON).(DESONERADO) | H118: UN | I118: 912,24
A119: AD 35.25.0050 | B119: ENSAIO DE CISALHAMENTO DIRETO, EM JUNTAS (DIACLASES), EM LABORATÓRIO, COM CONTROLE DE DESLOCAMENTO CISALHANTE E DA TENSÃO NORMAL APLICADA, ATRAVÉS DE SISTEMA DE AQUISIÇÃO DE DADOS AUTOMÁTICO, PARA 5 NÍVEIS DE TENSÃO NORMAL, INCLUINDO A PREPARAÇÃO DA AMOSTRA POR CORPO DE PROVA E DE RELATÓRIO, EXCLUINDO A EXTRAÇÃO DA AMOSTRA ORIENTADA. | C119: UN | D119: 3242,01 | F119: AD 34.25.0050 | G119: ENSAIO DE CISALHAMENTO DIRETO, EM JUNTAS (DIACLASES), EM LABORATÓRIO, COM CONTROLE DE DESLOCAMENTO CISALHANTE E DA TENSÃO NORMAL APLICADA, ATRAVÉS DE SISTEMA DE AQUISIÇÃO DE DADOS AUTOMÁTICO, PARA 5 NÍVEIS DE TENSÃO NORMAL, INCLUINDO A PREPARAÇÃO DA AMOSTRA POR CORPO DE PROVA E DE RELATÓRIO, EXCLUINDO A EXTRAÇÃO DA AMOSTRA ORIENTADA.(DESONERADO) | H119: UN | I119: 2928,99
A120: AD 35.25.0100 | B120: ENSAIO PARA DETERMINAÇÃO DE MÓDULO DE DEFORMAÇÃO, COEFICIENTE DE POISSON E RESISTÊNCIA À COMPRESSÃO, EM CORPOS DE PROVA DE ROCHA, NOS DIÂMETROS N ATÉ H, EXCLUINDO A PREPARAÇÃO DA AMOSTRA, POR CORPO DE PROVA. | C120: UN | D120: 468,86 | F120: AD 34.25.0100 | G120: ENSAIO PARA DETERMINAÇÃO DE MÓDULO DE DEFORMAÇÃO, COEFICIENTE DE POISSON E RESISTÊNCIA À COMPRESSÃO, EM CORPOS DE PROVA DE ROCHA, NOS DIÂMETROS N ATÉ H, EXCLUINDO A PREPARAÇÃO DA AMOSTRA, POR CORPO DE PROVA.(DESONERADO) | H120: UN | I120: 423,59
A121: AD 35.25.0150 | B121: ENSAIO PARA DETERMINAÇÃO DA RESISTÊNCIA Á COMPRESSÃO SIMPLES AXIAL, EM CORPOS DE PROVA EM ROCHA, COM DIÂMETRO ENTRE N ATÉ H, EXCLUINDO A PREPARAÇÃO DA AMOSTRA. | C121: UN | D121: 288,20 | F121: AD 34.25.0150 | G121: ENSAIO PARA DETERMINAÇÃO DA RESISTÊNCIA Á COMPRESSÃO SIMPLES AXIAL, EM CORPOS DE PROVA EM ROCHA, COM DIÂMETRO ENTRE N ATÉ H, EXCLUINDO A PREPARAÇÃO DA AMOSTRA.(DESONERADO) | H121: UN | I121: 260,37
A122: AD 35.25.0200 | B122: ENSAIO DE SPT, COM AMOSTRADOR PADRÃO, DURANTE SONDAGEM ROTATIVA MISTA, QUALQUER DIÂMETRO, QUALQUER PROFUNDIDADE, POR ENSAIO. | C122: UN | D122: 124,69 | F122: AD 34.25.0200 | G122: ENSAIO DE SPT, COM AMOSTRADOR PADRÃO, DURANTE SONDAGEM ROTATIVA MISTA, QUALQUER DIÂMETRO, QUALQUER PROFUNDIDADE, POR ENSAIO.(DESONERADO) | H122: UN | I122: 118,32
A123: AD 35.25.0250 | B123: PREPARAÇÃO DE CORPOS DE PROVA, EM ROCHA, COM SERRA DIAMANTADA, INCLUINDO RETIFICAÇÃO DE TOPO, BASE E GERATRIZ, NOS DIÂMETROS DE N ATÉ H, POR CORPO DE PROVA. | C123: UN | D123: 144,02 | F123: AD 34.25.0250 | G123: PREPARAÇÃO DE CORPOS DE PROVA, EM ROCHA, COM SERRA DIAMANTADA, INCLUINDO RETIFICAÇÃO DE TOPO, BASE E GERATRIZ, NOS DIÂMETROS DE N ATÉ H, POR CORPO DE PROVA.(DESONERADO) | H123: UN | I123: 130,11
A124: AD 35.30.0050 | B124: AVALIAÇÃO DA ESPESSURA DE CARBONATAÇÃO, POR PONTO, EM ESTRUTURAS DE CONCRETO ARMADO OU PROTENDIDO, ATRAVÉS DE ASPERSÃO DE SOLUÇÃO DE FENOLFTALEÍNA, INCLUSIVE COLETA DA AMOSTRA. | C124: UN | D124: 7210,25 | F124: AD 34.30.0050 | G124: AVALIAÇÃO DA ESPESSURA DE CARBONATAÇÃO, POR PONTO, EM ESTRUTURAS DE CONCRETO ARMADO OU PROTENDIDO, ATRAVÉS DE ASPERSÃO DE SOLUÇÃO DE FENOLFTALEÍNA, INCLUSIVE COLETA DA AMOSTRA.(DESONERADO) | H124: UN | I124: 7210,25
A125: AD 35.30.0150 | B125: DETERMINAÇÃO DO ÍNDICE DE VAZIOS, MASSA ESPECÍFICA E CAPACIDADE DE ABSORÇÃO DO CONCRETO, ATRAVÉS DE CORPO DE PROVA RETIRADO EM ESTRUTURAS DE CONCRETO ARMADO OU PROTENDIDO, CONFORME NBR 9778, INCLUSIVE COLETA DA AMOSTRA. | C125: UN | D125: 1009,50 | F125: AD 34.30.0150 | G125: DETERMINAÇÃO DO ÍNDICE DE VAZIOS, MASSA ESPECÍFICA E CAPACIDADE DE ABSORÇÃO DO CONCRETO, ATRAVÉS DE CORPO DE PROVA RETIRADO EM ESTRUTURAS DE CONCRETO ARMADO OU PROTENDIDO, CONFORME NBR 9778, INCLUSIVE COLETA DA AMOSTRA.(DESONERADO) | H125: UN | I125: 1009,50
A126: AD 35.30.0200 | B126: DETERMINAÇÃO DE TEOR DE CLORETOS, POR AMOSTRA, EM ESTRUTURAS DE CONCRETO ARMADO OU PROTENDIDO, CONFORME NORMA DA ACI-318/31-BR36, INCLUSIVE COLETA DA AMOSTRA. | C126: UN | D126: 546,68 | F126: AD 34.30.0200 | G126: DETERMINAÇÃO DE TEOR DE CLORETOS, POR AMOSTRA, EM ESTRUTURAS DE CONCRETO ARMADO OU PROTENDIDO, CONFORME NORMA DA ACI-318/31-BR36, INCLUSIVE COLETA DA AMOSTRA.(DESONERADO) | H126: UN | I126: 546,68
A127: AD 35.30.0250 | B127: DETERMINAÇÃO DO TEOR DE SULFATOS, POR AMOSTRA, EM ESTRUTURAS DE CONCRETO ARMADO OU PROTENDIDO, CONFORME BOLETIM N° 25 DO IPT, INCLUSIVE COLETA DA AMOSTRA. | C127: UN | D127: 546,68 | F127: AD 34.30.0250 | G127: DETERMINAÇÃO DO TEOR DE SULFATOS, POR AMOSTRA, EM ESTRUTURAS DE CONCRETO ARMADO OU PROTENDIDO, CONFORME BOLETIM N° 25 DO IPT, INCLUSIVE COLETA DA AMOSTRA.(DESONERADO) | H127: UN | I127: 546,68
A128: AD 35.30.0300 | B128: EXTRAÇÃO DE CORPO DE PROVA DE CONCRETO, DIÂMETRO DE 4", COM CORTE, PREPARO E ENSAIOS DE COMPRESSÃO AXIAL, PARA DETERMINAÇÃO DA RESISTÊNCIA DO CONCRETO EM ESTRUTURAS DE CONCRETO, ARMADO OU PROTENDIDO, CONFORME NBR-7680 E NBR-5739, INCLUSIVE COLETA DA AMOSTRA. | C128: UN | D128: 6950,00 | F128: AD 34.30.0300 | G128: EXTRAÇÃO DE CORPO DE PROVA DE CONCRETO, DIÂMETRO DE 4", COM CORTE, PREPARO E ENSAIOS DE COMPRESSÃO AXIAL, PARA DETERMINAÇÃO DA RESISTÊNCIA DO CONCRETO EM ESTRUTURAS DE CONCRETO, ARMADO OU PROTENDIDO, CONFORME NBR-7680 E NBR-5739, INCLUSIVE COLETA DA AMOSTRA.(DESONERADO) | H128: UN | I128: 6950,00
A129: AD 35.30.0350 | B129: RECONSTITUIÇÃO DO TRAÇO DE CONCRETO, POR AMOSTRA, ATRAVÉS DE CORPOS DE PROVAS RETIRADOS EM ESTRUTURAS DE CONCRETO ARMADO OU PROTENDIDO, CONFORME BOLETIM N° 25 DO IPT, INCLUSIVE COLETA DE AMOSTRA. | C129: UN | D129: 2962,50 | F129: AD 34.30.0350 | G129: RECONSTITUIÇÃO DO TRAÇO DE CONCRETO, POR AMOSTRA, ATRAVÉS DE CORPOS DE PROVAS RETIRADOS EM ESTRUTURAS DE CONCRETO ARMADO OU PROTENDIDO, CONFORME BOLETIM N° 25 DO IPT, INCLUSIVE COLETA DE AMOSTRA.(DESONERADO) | H129: UN | I129: 2962,50
A130: AD 35.30.0400 | B130: VERIFICAÇÃO DO POTENCIAL DE CORROSÃO DA ARMADURA (POR ENSAIO, ÁREA DE 2M2) EM ESTRUTURA DE CONCRETO ARMADO OU PROTENDIDO, CONFORME NORMA ASTM-C-868/87, INCLUSIVE COLETA DA AMOSTRA. | C130: UN | D130: 17800,20 | F130: AD 34.30.0400 | G130: VERIFICAÇÃO DO POTENCIAL DE CORROSÃO DA ARMADURA (POR ENSAIO, ÁREA DE 2M2) EM ESTRUTURA DE CONCRETO ARMADO OU PROTENDIDO, CONFORME NORMA ASTM-C-868/87, INCLUSIVE COLETA DA AMOSTRA.(DESONERADO) | H130: UN | I130: 17800,20
A131: AD 35.35.0050 | B131: AMOSTRA INDEFORMADA EM BLOCO. | C131: UN | D131: 330,89 | F131: AD 34.35.0050 | G131: AMOSTRA INDEFORMADA EM BLOCO.(DESONERADO) | H131: UN | I131: 300,11
A132: AD 35.35.0100 | B132: ENSAIO DE AMOSTRA DE AREIA. | C132: UN | D132: 2563,52 | F132: AD 34.35.0100 | G132: ENSAIO DE AMOSTRA DE AREIA.(DESONERADO) | H132: UN | I132: 2316,01
A133: AD 35.35.0150 | B133: ENSAIO DE AMOSTRA DE MATERIAL PÉTREO. | C133: UN | D133: 193,62 | F133: AD 34.35.0150 | G133: ENSAIO DE AMOSTRA DE MATERIAL PÉTREO.(DESONERADO) | H133: UN | I133: 174,93
A134: AD 35.35.0200 | B134: ENSAIO DE COMPACTAÇÃO COM ENERGIA PROCTOR INTERMEDIÁRIO, CONFORME AS RECOMENDAÇÕES DA NBR7182 E DA NBR6457. | C134: UN | D134: 739,29 | F134: AD 34.35.0200 | G134: ENSAIO DE COMPACTAÇÃO COM ENERGIA PROCTOR INTERMEDIÁRIO, CONFORME AS RECOMENDAÇÕES DA NBR7182 E DA NBR6457.(DESONERADO) | H134: UN | I134: 667,91
A135: AD 35.35.0250 | B135: ENSAIO DE COMPACTAÇÃO COM ENERGIA PROCTOR MODIFICADO, CONFORME AS RECOMENDAÇÕES DA NBR7182 E DA NBR6457. | C135: UN | D135: 860,91 | F135: AD 34.35.0250 | G135: ENSAIO DE COMPACTAÇÃO COM ENERGIA PROCTOR MODIFICADO, CONFORME AS RECOMENDAÇÕES DA NBR7182 E DA NBR6457.(DESONERADO) | H135: UN | I135: 777,79
A136: AD 35.35.0300 | B136: ENSAIO DE COMPACTAÇÃO COM ENERGIA PROCTOR NORMAL, CONFORME RECOMENDAÇÕES DA NBR 7182 E NBR 6457. | C136: UN | D136: 616,08 | F136: AD 34.35.0300 | G136: ENSAIO DE COMPACTAÇÃO COM ENERGIA PROCTOR NORMAL, CONFORME RECOMENDAÇÕES DA NBR 7182 E NBR 6457.(DESONERADO) | H136: UN | I136: 556,59
A137: AD 35.35.0350 | B137: ENSAIO DE COMPRESSÃO NÃO CONFINADA EM AMOSTRA NATURAL DE SOLO, CONFORME RECOMENDAÇÕES DA NBR12770. | C137: UN | D137: 320,04 | F137: AD 34.35.0350 | G137: ENSAIO DE COMPRESSÃO NÃO CONFINADA EM AMOSTRA NATURAL DE SOLO, CONFORME RECOMENDAÇÕES DA NBR12770.(DESONERADO) | H137: UN | I137: 289,14
A138: AD 35.35.0400 | B138: ENSAIO DE COMPRESSÃO SIMPLES EM AMOSTRA MOLDADA. | C138: UN | D138: 320,04 | F138: AD 34.35.0400 | G138: ENSAIO DE COMPRESSÃO SIMPLES EM AMOSTRA MOLDADA.(DESONERADO) | H138: UN | I138: 289,14
A139: AD 35.35.0450 | B139: ENSAIO DE PALHETA ("VANE TEST") REALIZADO NO CAMPO, EXCLUSIVE PERFURAÇÃO. | C139: UN | D139: 229,35 | F139: AD 34.35.0450 | G139: ENSAIO DE PALHETA ("VANE TEST") REALIZADO NO CAMPO, EXCLUSIVE PERFURAÇÃO. (DESONERADO) | H139: UN | I139: 209,55
A140: AD 35.35.0500 | B140: ENSAIO DE PERDA D'ÁGUA, SONDAGEM ROTATIVA EM ROCHA. | C140: UN | D140: 215,28 | F140: AD 34.35.0500 | G140: ENSAIO DE PERDA D'ÁGUA, SONDAGEM ROTATIVA EM ROCHA.(DESONERADO) | H140: UN | I140: 196,93
A141: AD 35.35.0550 | B141: ENSAIO PARA DETERMINAÇÃO DO COEFICIENTE DE PERMEABILIDADE, EM AMOSTRA ARGILOSA MOLDADA, À CARGA VARIÁVEL, CONFORME NBR14545. | C141: UN | D141: 492,86 | F141: AD 34.35.0550 | G141: ENSAIO PARA DETERMINAÇÃO DO COEFICIENTE DE PERMEABILIDADE, EM AMOSTRA ARGILOSA MOLDADA, À CARGA VARIÁVEL, CONFORME NBR14545.(DESONERADO) | H141: UN | I141: 445,28
A142: AD 35.35.0600 | B142: ENSAIO PARA DETERMINAÇÃO DO COEFICIENTE DE PERMEABILIDADE, EM AMOSTRA ARGILOSA NATURAL, À CARGA VARIÁVEL, CONFORME NBR14545. | C142: UN | D142: 492,86 | F142: AD 34.35.0600 | G142: ENSAIO PARA DETERMINAÇÃO DO COEFICIENTE DE PERMEABILIDADE, EM AMOSTRA ARGILOSA NATURAL, À CARGA VARIÁVEL, CONFORME NBR14545.(DESONERADO) | H142: UN | I142: 445,28
A143: AD 35.35.0650 | B143: ENSAIO PARA DETERMINAÇÃO DE COEFICIENTE DE PERMEABILIDADE, EM AMOSTRA GRANULAR NATURAL, À CARGA CONSTANTE, CONFORME NBR13292. | C143: UN | D143: 480,06 | F143: AD 34.35.0650 | G143: ENSAIO PARA DETERMINAÇÃO DE COEFICIENTE DE PERMEABILIDADE, EM AMOSTRA GRANULAR NATURAL, À CARGA CONSTANTE, CONFORME NBR13292.(DESONERADO) | H143: UN | I143: 433,71
A144: AD 35.35.0700 | B144: ENSAIO PARA DETERMINAÇÃO DO ÍNDICE SUPORTE CALIFÓRNIA (CBR) - 5 PONTOS - OBTIDO COM ENERGIA PROCTOR INTERMEDIÁRIO, ATRAVÉS DE, NO MÍNIMO, 5 CORPOS DE PROVA, CONFORME RECOMENDAÇÃO DA NBR9895, NBR6457, NBR7182. | C144: UN | D144: 2584,32 | F144: AD 34.35.0700 | G144: ENSAIO PARA DETERMINAÇÃO DO ÍNDICE SUPORTE CALIFÓRNIA (CBR) - 5 PONTOS - OBTIDO COM ENERGIA PROCTOR INTERMEDIÁRIO, ATRAVÉS DE, NO MÍNIMO, 5 CORPOS DE PROVA, CONFORME RECOMENDAÇÃO DA NBR9895, NBR6457, NBR7182.(DESONERADO) | H144: UN | I144: 2334,81
A145: AD 35.35.0750 | B145: ENSAIO PARA DETERMINAÇÃO DO ÍNDICE SUPORTE CALIFÓRNIA (CBR) - 5 PONTOS - OBTIDO COM ENERGIA PROCTOR MODIFICADO, ATRAVÉS DE, NO MÍNIMO, 5 CORPOS DE PROVA, CONFORME RECOMENDAÇÃO DA NBR9895, NBR6457, NBR7182. | C145: UN | D145: 2707,54 | F145: AD 34.35.0750 | G145: ENSAIO PARA DETERMINAÇÃO DO ÍNDICE SUPORTE CALIFÓRNIA (CBR) - 5 PONTOS - OBTIDO COM ENERGIA PROCTOR MODIFICADO, ATRAVÉS DE, NO MÍNIMO, 5 CORPOS DE PROVA, CONFORME RECOMENDAÇÃO DA NBR9895, NBR6457, NBR7182.(DESONERADO) | H145: UN | I145: 2446,12
A146: AD 35.35.0800 | B146: ENSAIO PARA DETERMINAÇÃO DO ÍNDICE SUPORTE CALIFÓRNIA (CBR) - 5 PONTOS - OBTIDO COM ENERGIA PROCTOR NORMAL, ATRAVÉS DE, NO MÍNIMO, 5 CORPOS DE PROVA, CONFORME RECOMENDAÇÃO DA NBR9895, NBR6457, NBR7182. | C146: UN | D146: 2339,49 | F146: AD 34.35.0800 | G146: ENSAIO PARA DETERMINAÇÃO DO ÍNDICE SUPORTE CALIFÓRNIA (CBR) - 5 PONTOS - OBTIDO COM ENERGIA PROCTOR NORMAL, ATRAVÉS DE, NO MÍNIMO, 5 CORPOS DE PROVA, CONFORME RECOMENDAÇÃO DA NBR9895, NBR6457, NBR7182.(DESONERADO) | H146: UN | I146: 2113,61
A147: AD 35.35.0850 | B147: ENSAIO PARA DETERMINAÇÃO DO ÍNDICE SUPORTE CALIFÓRNIA (CBR) - 3 PONTOS - OBTIDO COM ENERGIA PROCTOR INTERMEDIÁRIO, ATRAVÉS DE, NO MÍNIMO, 5 CORPOS DE PROVA, CONFORME RECOMENDAÇÃO DA NBR9895, NBR6457, NBR7182. | C147: UN | D147: 1600,20 | F147: AD 34.35.0850 | G147: ENSAIO PARA DETERMINAÇÃO DO ÍNDICE SUPORTE CALIFÓRNIA (CBR) - 3 PONTOS - OBTIDO COM ENERGIA PROCTOR INTERMEDIÁRIO, ATRAVÉS DE, NO MÍNIMO, 5 CORPOS DE PROVA, CONFORME RECOMENDAÇÃO DA NBR9895, NBR6457, NBR7182.(DESONERADO) | H147: UN | I147: 1445,70
A148: AD 35.35.0900 | B148: ENSAIO PARA DETERMINAÇÃO DO ÍNDICE SUPORTE CALIFÓRNIA (CBR) - 3 PONTOS - OBTIDO COM ENERGIA PROCTOR MODIFICADO, ATRAVÉS DE, NO MÍNIMO, 5 CORPOS DE PROVA, CONFORME RECOMENDAÇÃO DA NBR9895, NBR6457, NBR7182. | C148: UN | D148: 1723,42 | F148: AD 34.35.0900 | G148: ENSAIO PARA DETERMINAÇÃO DO ÍNDICE SUPORTE CALIFÓRNIA (CBR) - 3 PONTOS - OBTIDO COM ENERGIA PROCTOR MODIFICADO, ATRAVÉS DE, NO MÍNIMO, 5 CORPOS DE PROVA, CONFORME RECOMENDAÇÃO DA NBR9895, NBR6457, NBR7182.(DESONERADO) | H148: UN | I148: 1557,02
A149: AD 35.35.0950 | B149: ENSAIO TRIAXIAL DRENADO EM AMOSTRA MOLDADA POR CP. | C149: UN | D149: 2646,73 | F149: AD 34.35.0950 | G149: ENSAIO TRIAXIAL DRENADO EM AMOSTRA MOLDADA POR CP.(DESONERADO) | H149: UN | I149: 2391,19
A150: AD 35.35.1000 | B150: ENSAIO TRIAXIAL DRENADO EM AMOSTRA NATURAL POR CP. | C150: UN | D150: 2461,11 | F150: AD 34.35.1000 | G150: ENSAIO TRIAXIAL DRENADO EM AMOSTRA NATURAL POR CP.(DESONERADO) | H150: UN | I150: 2223,49
A151: AD 35.35.1050 | B151: ENSAIO TRIAXIAL NÃO DRENADO EM AMOSTRA MOLDADA POR CP. | C151: UN | D151: 1046,53 | F151: AD 34.35.1050 | G151: ENSAIO TRIAXIAL NÃO DRENADO EM AMOSTRA MOLDADA POR CP.(DESONERADO) | H151: UN | I151: 945,49
A152: AD 35.35.1100 | B152: ENSAIO TRIAXIAL NÃO DRENADO EM AMOSTRA NATURAL POR CP. | C152: UN | D152: 923,32 | F152: AD 34.35.1100 | G152: ENSAIO TRIAXIAL NÃO DRENADO EM AMOSTRA NATURAL POR CP.(DESONERADO) | H152: UN | I152: 834,17
A153: AD 40.05.0050 | B153: AJUDANTE (INCLUSIVE ENCARGOS SOCIAIS). | C153: H | D153: 26,71 | F153: AD 39.05.0050 | G153: AJUDANTE (INCLUSIVE ENCARGOS SOCIAIS).(DESONERADO) | H153: H | I153: 24,61
A154: AD 40.05.0056 | B154: ALMOXARIFE (INCLUSIVE ENCARGOS SOCIAIS). | C154: H | D154: 38,33 | F154: AD 39.05.0056 | G154: ALMOXARIFE (INCLUSIVE ENCARGOS SOCIAIS).(DESONERADO) | H154: H | I154: 34,99
A155: AD 40.05.0068 | B155: APONTADOR (INCLUSIVE ENCARGOS SOCIAIS). | C155: H | D155: 38,33 | F155: AD 39.05.0068 | G155: APONTADOR (INCLUSIVE ENCARGOS SOCIAIS).(DESONERADO) | H155: H | I155: 34,99
A156: AD 40.05.0074 | B156: AUXILIAR DE ALMOXARIFE (INCLUSIVE ENCARGOS SOCIAIS). | C156: H | D156: 31,13 | F156: AD 39.05.0074 | G156: AUXILIAR DE ALMOXARIFE (INCLUSIVE ENCARGOS SOCIAIS).(DESONERADO) | H156: H | I156: 28,55
A157: AD 40.05.0077 | B157: AUXILIAR DE ENFERMAGEM (INCLUSIVE ENCARGOS SOCIAIS). | C157: H | D157: 25,21 | F157: AD 39.05.0077 | G157: AUXILIAR DE ENFERMAGEM (INCLUSIVE ENCARGOS SOCIAIS). (DESONERADO) | H157: H | I157: 23,25
A158: AD 40.05.0080 | B158: AUXILIAR DE ESCRITÓRIO (INCLUSIVE ENCARGOS SOCIAIS). | C158: H | D158: 31,13 | F158: AD 39.05.0080 | G158: AUXILIAR DE ESCRITÓRIO (INCLUSIVE ENCARGOS SOCIAIS).(DESONERADO) | H158: H | I158: 28,55
A159: AD 40.05.0086 | B159: TÉCNICO DE NÍVEL MÉDIO (INCLUSIVE ENCARGOS SOCIAIS). | C159: H | D159: 30,26 | F159: AD 39.05.0086 | G159: TÉCNICO DE NÍVEL MÉDIO (INCLUSIVE ENCARGOS SOCIAIS).(DESONERADO) | H159: H | I159: 27,74
A160: AD 40.05.0092 | B160: AUXILIAR DE TOPOGRAFIA - SERVIÇOS DE CAMPO (INCLUSIVE ENCARGOS SOCIAIS). | C160: H | D160: 36,70 | F160: AD 39.05.0092 | G160: AUXILIAR DE TOPOGRAFIA - SERVIÇOS DE CAMPO (INCLUSIVE ENCARGOS SOCIAIS).(DESONERADO) | H160: H | I160: 33,57
A161: AD 40.05.0094 | B161: BIÓLOGO NA ÁREA DE MEIO AMBIENTE (INCLUSIVE ENCARGOS SOCIAIS). | C161: H | D161: 44,42 | F161: AD 39.05.0094 | G161: BIÓLOGO NA ÁREA DE MEIO AMBIENTE (INCLUSIVE ENCARGOS SOCIAIS).(DESONERADO) | H161: H | I161: 40,42
A162: AD 40.05.0098 | B162: CHEFE DE ESCRITÓRIO (INCLUSIVE ENCARGOS SOCIAIS). | C162: H | D162: 49,20 | F162: AD 39.05.0098 | G162: CHEFE DE ESCRITÓRIO (INCLUSIVE ENCARGOS SOCIAIS).(DESONERADO) | H162: H | I162: 44,69
A163: AD 40.05.0104 | B163: DESENHISTA A (INCLUSIVE ENCARGOS SOCIAIS). | C163: H | D163: 39,45 | F163: AD 39.05.0104 | G163: DESENHISTA A (INCLUSIVE ENCARGOS SOCIAIS).(DESONERADO) | H163: H | I163: 35,99
A164: AD 40.05.0110 | B164: DIGITADOR (INCLUSIVE ENCARGOS SOCIAIS). | C164: H | D164: 25,79 | F164: AD 39.05.0110 | G164: DIGITADOR (INCLUSIVE ENCARGOS SOCIAIS).(DESONERADO) | H164: H | I164: 23,77
A165: AD 40.05.0116 | B165: ENCARREGADO (INCLUSIVE ENCARGOS SOCIAIS). | C165: H | D165: 44,99 | F165: AD 39.05.0116 | G165: ENCARREGADO (INCLUSIVE ENCARGOS SOCIAIS).(DESONERADO) | H165: H | I165: 40,97
A166: AD 40.05.0119 | B166: ENFERMEIRO (INCLUSIVE ENCARGOS SOCIAIS). | C166: H | D166: 49,69 | F166: AD 39.05.0119 | G166: ENFERMEIRO (INCLUSIVE ENCARGOS SOCIAIS). (DESONERADO) | H166: H | I166: 45,16
A167: AD 40.05.0122 | B167: ENGENHEIRO, ARQUITETO OU GEÓLOGO JR (INCLUSIVE ENCARGOS SOCIAIS). | C167: H | D167: 131,13 | F167: AD 39.05.0122 | G167: ENGENHEIRO, ARQUITETO OU GEÓLOGO JR (INCLUSIVE ENCARGOS SOCIAIS).(DESONERADO) | H167: H | I167: 118,05
A168: AD 40.05.0128 | B168: ENGENHEIRO OU ARQUITETO, COORDENADOR GERAL DE PROJETOS OU SUPERVISOR DE OBRAS (INCLUSIVE ENCARGOS SOCIAIS). | C168: H | D168: 204,63 | F168: AD 39.05.0128 | G168: ENGENHEIRO OU ARQUITETO, COORDENADOR GERAL DE PROJETOS OU SUPERVISOR DE OBRAS (INCLUSIVE ENCARGOS SOCIAIS).(DESONERADO) | H168: H | I168: 183,86
A169: AD 40.05.0134 | B169: ENGENHEIRO, ARQUITETO OU GEÓLOGO SÊNIOR (INCLUSIVE ENCARGOS SOCIAIS). | C169: H | D169: 293,17 | F169: AD 39.05.0134 | G169: ENGENHEIRO, ARQUITETO OU GEÓLOGO SÊNIOR (INCLUSIVE ENCARGOS SOCIAIS).(DESONERADO) | H169: H | I169: 263,16
A170: AD 40.05.0138 | B170: ENGENHEIRO DE SEGURANÇA DO TRABALHO (INCLUSIVE ENCARGOS SOCIAIS). | C170: H | D170: 135,06 | F170: AD 39.05.0138 | G170: ENGENHEIRO DE SEGURANÇA DO TRABALHO (INCLUSIVE ENCARGOS SOCIAIS). (DESONERADO) | H170: H | I170: 121,59
A171: AD 40.05.0140 | B171: ESCRITURÁRIO (INCLUSIVE ENCARGOS SOCIAIS). | C171: H | D171: 37,00 | F171: AD 39.05.0140 | G171: ESCRITURÁRIO (INCLUSIVE ENCARGOS SOCIAIS).(DESONERADO) | H171: H | I171: 33,83
A172: AD 40.05.0146 | B172: ESTAGIÁRIO (INCLUSIVE ENCARGOS SOCIAIS). | C172: H | D172: 8,43 | F172: AD 39.05.0146 | G172: ESTAGIÁRIO (INCLUSIVE ENCARGOS SOCIAIS).(DESONERADO) | H172: H | I172: 8,43
A173: AD 40.05.0149 | B173: MÉDICO DO TRABALHO (INCLUSIVE ENCARGOS SOCIAIS). | C173: H | D173: 135,06 | F173: AD 39.05.0149 | G173: MÉDICO DO TRABALHO (INCLUSIVE ENCARGOS SOCIAIS). (DESONERADO) | H173: H | I173: 121,59
A174: AD 40.05.0152 | B174: MESTRE DE OBRA A (INCLUSIVE ENCARGOS SOCIAIS). | C174: H | D174: 92,06 | F174: AD 39.05.0152 | G174: MESTRE DE OBRA A (INCLUSIVE ENCARGOS SOCIAIS).(DESONERADO) | H174: H | I174: 83,09
A175: AD 40.05.0158 | B175: MESTRE DE OBRA B (INCLUSIVE ENCARGOS SOCIAIS). | C175: H | D175: 70,05 | F175: AD 39.05.0158 | G175: MESTRE DE OBRA B (INCLUSIVE ENCARGOS SOCIAIS).(DESONERADO) | H175: H | I175: 63,42
A176: AD 40.05.0164 | B176: MOTORISTA DE CAMINHÃO E CARRETA (INCLUSIVE ENCARGOS SOCIAIS). | C176: H | D176: 24,12 | F176: AD 39.05.0164 | G176: MOTORISTA DE CAMINHÃO E CARRETA (INCLUSIVE ENCARGOS SOCIAIS).(DESONERADO) | H176: H | I176: 22,25
A177: AD 40.05.0170 | B177: MOTORISTA DE VEÍCULO LEVE DE SERVIÇO (INCLUSIVE ENCARGOS SOCIAIS). | C177: H | D177: 21,88 | F177: AD 39.05.0170 | G177: MOTORISTA DE VEÍCULO LEVE DE SERVIÇO (INCLUSIVE ENCARGOS SOCIAIS).(DESONERADO) | H177: H | I177: 20,24
A178: AD 40.05.0173 | B178: MOTORISTA OPERADOR DE REBOQUE E MUNCK (INCLUSIVE ENCARGOS SOCIAIS). | C178: H | D178: 28,42 | F178: AD 39.05.0173 | G178: MOTORISTA OPERADOR DE REBOQUE E MUNCK (INCLUSIVE ENCARGOS SOCIAIS).(DESONERADO) | H178: H | I178: 26,12
A179: AD 40.05.0176 | B179: OPERADOR DE COMPUTADOR (INCLUSIVE ENCARGOS SOCIAIS). | C179: H | D179: 25,49 | F179: AD 39.05.0176 | G179: OPERADOR DE COMPUTADOR (INCLUSIVE ENCARGOS SOCIAIS).(DESONERADO) | H179: H | I179: 23,50
A180: AD 40.05.0182 | B180: PROGRAMADOR DE COMPUTADOR (INCLUSIVE ENCARGOS SOCIAIS). | C180: H | D180: 35,52 | F180: AD 39.05.0182 | G180: PROGRAMADOR DE COMPUTADOR (INCLUSIVE ENCARGOS SOCIAIS).(DESONERADO) | H180: H | I180: 32,48
